Workbook

Sheet PI vs x
A1: Measurement | B1: Hall
A2: Type | B2: Off-axis
A4: Project | B4: ='10 y=-0.2'!B5 -> 504314
A5: PS serial no | B5: ='10 y=-0.2'!B7 -> 2410101
A7: Measurement date | B7: =LEFT('10 y=-0.2'!B4,10) -> 24-09-2024
C11: Nominal gap [mm] | D11: Encoder [counts] | E11: Encoder [mm] | F11: PI [T^2mm^3] | G11: y [mm] | H11: Encoder value at 10 mm gap:
B12: ='PI vs x'!$C$12 & "mm gap" -> 10mm gap | C12: ='10 y=-0.2'!B48 -> 10 | D12: ='10 y=-0.2'!$B$50 -> 19.5984 | E12: =D12-$H$12+10 -> 9.99935 | F12: ='10 y=-0.2'!$K$3 -> 10502.86456 | G12: -0.2 | H12: 19.59905
C13: =C12 -> 10 | D13: ='10 y=-0.1'!$B$50 -> 19.5984 | E13: =D13-$H$12+10 -> 9.99935 | F13: ='10 y=-0.1'!$K$3 -> 10498.17235 | G13: -0.1
C14: =C13 -> 10 | D14: ='10 y=0'!$B$50 -> 19.5984 | E14: 9.99935 | F14: ='10 y=0'!$K$3 -> 10499.2591 | G14: 0
C15: 10 | D15: ='10 y=0.1'!$B$50 -> 19.5984 | E15: 9.99935 | F15: ='10 y=0.1'!$K$3 -> 10498.23241 | G15: 0.1
C16: 10 | D16: ='10 y=0.2'!$B$50 -> 19.5984 | E16: 9.99935 | F16: ='10 y=0.2'!$K$3 -> 10501.56883 | G16: 0.2
B17: ='PI vs x'!$C$17 & "mm gap" -> mm gap

Sheet 10 y=-0.2
A1: =IF('DF raw data'!A1="","",'DF raw data'!A1) -> Number of header lines | B1: =IF('DF raw data'!B1="","",'DF raw data'!B1) -> 54 | C1: =IF('DF raw data'!C1="","",'DF raw data'!C1) ->  | D1: =IF('DF raw data'!D1="","",'DF raw data'!D1) ->  | F1: T_coeff | G1: -0.001 | H1: /degC | J1: IBy total | K1: =J1262*1000 -> -22.77411817 | L1: muTm | M1: =L1262*1000 -> 126.4309027 | R1: DF ref | S1: 1
A2: =IF('DF raw data'!A2="","",'DF raw data'!A2) -> Measured by | B2: =IF('DF raw data'!B2="","",'DF raw data'!B2) -> Danfysik | C2: =IF('DF raw data'!C2="","",'DF raw data'!C2) ->  | D2: =IF('DF raw data'!D2="","",'DF raw data'!D2) ->  | F2: Tcorr | G2: 20 | H2: degC | J2: JBy total | K2: =K1262 -> -26.37301564 | L2: muTm^2 | M2: =M1262 -> 43.647343
A3: =IF('DF raw data'!A3="","",'DF raw data'!A3) -> Operator | B3: =IF('DF raw data'!B3="","",'DF raw data'!B3) -> PMHA | C3: =IF('DF raw data'!C3="","",'DF raw data'!C3) ->  | D3: =IF('DF raw data'!D3="","",'DF raw data'!D3) ->  | F3: Step | G3: =A63-A62 -> 0.5 | H3: mm | J3: PI total | K3: =N1262 -> 10502.86456 | L3: T^2mm^3
A4: =IF('DF raw data'!A4="","",'DF raw data'!A4) -> Data-time | B4: =IF('DF raw data'!B4="","",'DF raw data'!B4) -> 24-09-2024, 14:33:47 | C4: =IF('DF raw data'!C4="","",'DF raw data'!C4) ->  | D4: =IF('DF raw data'!D4="","",'DF raw data'!D4) -> 
A5: =IF('DF raw data'!A5="","",'DF raw data'!A5) -> Project | B5: =IF('DF raw data'!B5="","",'DF raw data'!B5) -> 504314 | C5: =IF('DF raw data'!C5="","",'DF raw data'!C5) ->  | D5: =IF('DF raw data'!D5="","",'DF raw data'!D5) -> 
A6: =IF('DF raw data'!A6="","",'DF raw data'!A6) -> Magnet type | B6: =IF('DF raw data'!B6="","",'DF raw data'!B6) -> Dipole | C6: =IF('DF raw data'!C6="","",'DF raw data'!C6) ->  | D6: =IF('DF raw data'!D6="","",'DF raw data'!D6) -> 
A7: =IF('DF raw data'!A7="","",'DF raw data'!A7) -> Magnet nr. | B7: =IF('DF raw data'!B7="","",'DF raw data'!B7) -> 2410101 | C7: =IF('DF raw data'!C7="","",'DF raw data'!C7) ->  | D7: =IF('DF raw data'!D7="","",'DF raw data'!D7) -> 
A8: =IF('DF raw data'!A8="","",'DF raw data'!A8) -> Meas. number | B8: =IF('DF raw data'!B8="","",'DF raw data'!B8) -> 675 | C8: =IF('DF raw data'!C8="","",'DF raw data'!C8) ->  | D8: =IF('DF raw data'!D8="","",'DF raw data'!D8) -> 
A9: =IF('DF raw data'!A9="","",'DF raw data'!A9) -> Add. info | B9: =IF('DF raw data'!B9="","",'DF raw data'!B9) -> Y-alignment scan 1) | C9: =IF('DF raw data'!C9="","",'DF raw data'!C9) ->  | D9: =IF('DF raw data'!D9="","",'DF raw data'!D9) -> 
A10: =IF('DF raw data'!A10="","",'DF raw data'!A10) -> Device | B10: =IF('DF raw data'!B10="","",'DF raw data'!B10) -> (HAL) HALL-PROBE | C10: =IF('DF raw data'!C10="","",'DF raw data'!C10) ->  | D10: =IF('DF raw data'!D10="","",'DF raw data'!D10) -> 
A11: =IF('DF raw data'!A11="","",'DF raw data'!A11) -> Goal | B11: =IF('DF raw data'!B11="","",'DF raw data'!B11) -> (AXI) AXis Integral (Line, EFB) | C11: =IF('DF raw data'!C11="","",'DF raw data'!C11) ->  | D11: =IF('DF raw data'!D11="","",'DF raw data'!D11) -> 
A12: =IF('DF raw data'!A12="","",'DF raw data'!A12) -> Power supply mode | B12: =IF('DF raw data'!B12="","",'DF raw data'!B12) -> (PM) Permanent Magnet (no MPS in use) | C12: =IF('DF raw data'!C12="","",'DF raw data'!C12) ->  | D12: =IF('DF raw data'!D12="","",'DF raw data'!D12) -> 
A13: =IF('DF raw data'!A13="","",'DF raw data'!A13) -> Data format | B13: =IF('DF raw data'!B13="","",'DF raw data'!B13) -> Raw data text file | C13: =IF('DF raw data'!C13="","",'DF raw data'!C13) ->  | D13: =IF('DF raw data'!D13="","",'DF raw data'!D13) -> 
A14: =IF('DF raw data'!A14="","",'DF raw data'!A14) -> Direction of the pos. x-axis | B14: =IF('DF raw data'!B14="","",'DF raw data'!B14) -> See test program | C14: =IF('DF raw data'!C14="","",'DF raw data'!C14) ->  | D14: =IF('DF raw data'!D14="","",'DF raw data'!D14) -> 
A15: =IF('DF raw data'!A15="","",'DF raw data'!A15) -> Direction of the pos. y-axis | B15: =IF('DF raw data'!B15="","",'DF raw data'!B15) -> Vertical up | C15: =IF('DF raw data'!C15="","",'DF raw data'!C15) ->  | D15: =IF('DF raw data'!D15="","",'DF raw data'!D15) -> 
A16: =IF('DF raw data'!A16="","",'DF raw data'!A16) -> Direction of the pos. z-axis | B16: =IF('DF raw data'!B16="","",'DF raw data'!B16) -> See test program | C16: =IF('DF raw data'!C16="","",'DF raw data'!C16) ->  | D16: =IF('DF raw data'!D16="","",'DF raw data'!D16) -> 
A17: =IF('DF raw data'!A17="","",'DF raw data'!A17) -> Mapper type | B17: =IF('DF raw data'!B17="","",'DF raw data'!B17) -> Precision Hall Mapper | C17: =IF('DF raw data'!C17="","",'DF raw data'!C17) ->  | D17: =IF('DF raw data'!D17="","",'DF raw data'!D17) -> 
A18: =IF('DF raw data'!A18="","",'DF raw data'!A18) -> Mapper Danfysik Reg. Number | B18: =IF('DF raw data'!B18="","",'DF raw data'!B18) -> 2033-D (mapper 1) | C18: =IF('DF raw data'!C18="","",'DF raw data'!C18) ->  | D18: =IF('DF raw data'!D18="","",'DF raw data'!D18) -> 
A19: =IF('DF raw data'!A19="","",'DF raw data'!A19) -> Measurement consept | B19: =IF('DF raw data'!B19="","",'DF raw data'!B19) -> Square line grid | C19: =IF('DF raw data'!C19="","",'DF raw data'!C19) ->  | D19: =IF('DF raw data'!D19="","",'DF raw data'!D19) -> 
A20: =IF('DF raw data'!A20="","",'DF raw data'!A20) -> Mode | B20: =IF('DF raw data'!B20="","",'DF raw data'!B20) -> On-the-fly measurement | C20: =IF('DF raw data'!C20="","",'DF raw data'!C20) ->  | D20: =IF('DF raw data'!D20="","",'DF raw data'!D20) -> 
A21: =IF('DF raw data'!A21="","",'DF raw data'!A21) ->  | B21: =IF('DF raw data'!B21="","",'DF raw data'!B21) ->  | C21: =IF('DF raw data'!C21="","",'DF raw data'!C21) ->  | D21: =IF('DF raw data'!D21="","",'DF raw data'!D21) -> 
A22: =IF('DF raw data'!A22="","",'DF raw data'!A22) -> Probe Name | B22: =IF('DF raw data'!B22="","",'DF raw data'!B22) -> ID12_By | C22: =IF('DF raw data'!C22="","",'DF raw data'!C22) ->  | D22: =IF('DF raw data'!D22="","",'DF raw data'!D22) -> 
A23: =IF('DF raw data'!A23="","",'DF raw data'!A23) -> Probe Type | B23: =IF('DF raw data'!B23="","",'DF raw data'!B23) -> DF_ID_3D_Bxyz | C23: =IF('DF raw data'!C23="","",'DF raw data'!C23) ->  | D23: =IF('DF raw data'!D23="","",'DF raw data'!D23) -> 
A24: =IF('DF raw data'!A24="","",'DF raw data'!A24) -> Probe Danfysik Reg. Number | B24: =IF('DF raw data'!B24="","",'DF raw data'!B24) -> 2277 | C24: =IF('DF raw data'!C24="","",'DF raw data'!C24) ->  | D24: =IF('DF raw data'!D24="","",'DF raw data'!D24) -> 
A25: =IF('DF raw data'!A25="","",'DF raw data'!A25) -> Probe Axis | B25: =IF('DF raw data'!B25="","",'DF raw data'!B25) -> By | C25: =IF('DF raw data'!C25="","",'DF raw data'!C25) ->  | D25: =IF('DF raw data'!D25="","",'DF raw data'!D25) -> 
A26: =IF('DF raw data'!A26="","",'DF raw data'!A26) -> Probe Current Supply | B26: =IF('DF raw data'!B26="","",'DF raw data'!B26) -> 1825-D | C26: =IF('DF raw data'!C26="","",'DF raw data'!C26) ->  | D26: =IF('DF raw data'!D26="","",'DF raw data'!D26) -> 
A27: =IF('DF raw data'!A27="","",'DF raw data'!A27) -> Probe Gain Correction | B27: =IF('DF raw data'!B27="","",'DF raw data'!B27) -> 0.99617 | C27: =IF('DF raw data'!C27="","",'DF raw data'!C27) ->  | D27: =IF('DF raw data'!D27="","",'DF raw data'!D27) -> 
A28: =IF('DF raw data'!A28="","",'DF raw data'!A28) -> Probe Offset Correction | B28: =IF('DF raw data'!B28="","",'DF raw data'!B28) -> 0.0027549 | C28: =IF('DF raw data'!C28="","",'DF raw data'!C28) ->  | D28: =IF('DF raw data'!D28="","",'DF raw data'!D28) -> 
A29: =IF('DF raw data'!A29="","",'DF raw data'!A29) -> DVM Number | B29: =IF('DF raw data'!B29="","",'DF raw data'!B29) -> 2 | C29: =IF('DF raw data'!C29="","",'DF raw data'!C29) ->  | D29: =IF('DF raw data'!D29="","",'DF raw data'!D29) -> 
A30: =IF('DF raw data'!A30="","",'DF raw data'!A30) -> DVM Type | B30: =IF('DF raw data'!B30="","",'DF raw data'!B30) -> K2701 | C30: =IF('DF raw data'!C30="","",'DF raw data'!C30) ->  | D30: =IF('DF raw data'!D30="","",'DF raw data'!D30) -> 
A31: =IF('DF raw data'!A31="","",'DF raw data'!A31) -> DVM Danfysik Reg. Number | B31: =IF('DF raw data'!B31="","",'DF raw data'!B31) -> 1743-D | C31: =IF('DF raw data'!C31="","",'DF raw data'!C31) ->  | D31: =IF('DF raw data'!D31="","",'DF raw data'!D31) -> 
A32: =IF('DF raw data'!A32="","",'DF raw data'!A32) -> Probe Name | B32: =IF('DF raw data'!B32="","",'DF raw data'!B32) -> ID12_Bx | C32: =IF('DF raw data'!C32="","",'DF raw data'!C32) ->  | D32: =IF('DF raw data'!D32="","",'DF raw data'!D32) -> 
A33: =IF('DF raw data'!A33="","",'DF raw data'!A33) -> Probe Type | B33: =IF('DF raw data'!B33="","",'DF raw data'!B33) -> DF_ID_3D_Bxyz | C33: =IF('DF raw data'!C33="","",'DF raw data'!C33) ->  | D33: =IF('DF raw data'!D33="","",'DF raw data'!D33) -> 
A34: =IF('DF raw data'!A34="","",'DF raw data'!A34) -> Probe Danfysik Reg. Number | B34: =IF('DF raw data'!B34="","",'DF raw data'!B34) -> 2277 | C34: =IF('DF raw data'!C34="","",'DF raw data'!C34) ->  | D34: =IF('DF raw data'!D34="","",'DF raw data'!D34) -> 
A35: =IF('DF raw data'!A35="","",'DF raw data'!A35) -> Probe Axis | B35: =IF('DF raw data'!B35="","",'DF raw data'!B35) -> Bx | C35: =IF('DF raw data'!C35="","",'DF raw data'!C35) ->  | D35: =IF('DF raw data'!D35="","",'DF raw data'!D35) -> 
A36: =IF('DF raw data'!A36="","",'DF raw data'!A36) -> Probe Current Supply | B36: =IF('DF raw data'!B36="","",'DF raw data'!B36) -> 1825-D | C36: =IF('DF raw data'!C36="","",'DF raw data'!C36) ->  | D36: =IF('DF raw data'!D36="","",'DF raw data'!D36) -> 
A37: =IF('DF raw data'!A37="","",'DF raw data'!A37) -> Probe Gain Correction | B37: =IF('DF raw data'!B37="","",'DF raw data'!B37) -> 1 | C37: =IF('DF raw data'!C37="","",'DF raw data'!C37) ->  | D37: =IF('DF raw data'!D37="","",'DF raw data'!D37) -> 
A38: =IF('DF raw data'!A38="","",'DF raw data'!A38) -> Probe Offset Correction | B38: =IF('DF raw data'!B38="","",'DF raw data'!B38) -> -0.1756 | C38: =IF('DF raw data'!C38="","",'DF raw data'!C38) ->  | D38: =IF('DF raw data'!D38="","",'DF raw data'!D38) -> 
A39: =IF('DF raw data'!A39="","",'DF raw data'!A39) -> DVM Number | B39: =IF('DF raw data'!B39="","",'DF raw data'!B39) -> 3 | C39: =IF('DF raw data'!C39="","",'DF raw data'!C39) ->  | D39: =IF('DF raw data'!D39="","",'DF raw data'!D39) -> 
A40: =IF('DF raw data'!A40="","",'DF raw data'!A40) -> DVM Type | B40: =IF('DF raw data'!B40="","",'DF raw data'!B40) -> K2701 | C40: =IF('DF raw data'!C40="","",'DF raw data'!C40) ->  | D40: =IF('DF raw data'!D40="","",'DF raw data'!D40) -> 
A41: =IF('DF raw data'!A41="","",'DF raw data'!A41) -> DVM Danfysik Reg. Number | B41: =IF('DF raw data'!B41="","",'DF raw data'!B41) -> 1744-D | C41: =IF('DF raw data'!C41="","",'DF raw data'!C41) ->  | D41: =IF('DF raw data'!D41="","",'DF raw data'!D41) -> 
A42: =IF('DF raw data'!A42="","",'DF raw data'!A42) -> Probe Name | B42: =IF('DF raw data'!B42="","",'DF raw data'!B42) -> ID12_Bz | C42: =IF('DF raw data'!C42="","",'DF raw data'!C42) ->  | D42: =IF('DF raw data'!D42="","",'DF raw data'!D42) -> 
A43: =IF('DF raw data'!A43="","",'DF raw data'!A43) -> Probe Type | B43: =IF('DF raw data'!B43="","",'DF raw data'!B43) -> DF_ID_3D_Bxyz | C43: =IF('DF raw data'!C43="","",'DF raw data'!C43) ->  | D43: =IF('DF raw data'!D43="","",'DF raw data'!D43) -> 
A44: =IF('DF raw data'!A44="","",'DF raw data'!A44) -> Probe Danfysik Reg. Number | B44: =IF('DF raw data'!B44="","",'DF raw data'!B44) -> 2277 | C44: =IF('DF raw data'!C44="","",'DF raw data'!C44) ->  | D44: =IF('DF raw data'!D44="","",'DF raw data'!D44) -> 
A45: =IF('DF raw data'!A45="","",'DF raw data'!A45) -> Probe Axis | B45: =IF('DF raw data'!B45="","",'DF raw data'!B45) -> Bz | C45: =IF('DF raw data'!C45="","",'DF raw data'!C45) ->  | D45: =IF('DF raw data'!D45="","",'DF raw data'!D45) -> 
A46: =IF('DF raw data'!A46="","",'DF raw data'!A46) -> Probe Current Supply | B46: =IF('DF raw data'!B46="","",'DF raw data'!B46) -> 1825-D | C46: =IF('DF raw data'!C46="","",'DF raw data'!C46) ->  | D46: =IF('DF raw data'!D46="","",'DF raw data'!D46) -> 
A47: =IF('DF raw data'!A47="","",'DF raw data'!A47) -> Probe Gain Correction | B47: =IF('DF raw data'!B47="","",'DF raw data'!B47) -> 1 | C47: =IF('DF raw data'!C47="","",'DF raw data'!C47) ->  | D47: =IF('DF raw data'!D47="","",'DF raw data'!D47) -> 
A48: =IF('DF raw data'!A53="","",'DF raw data'!A53) -> PS-Gap: | B48: =IF('DF raw data'!B53="","",'DF raw data'!B53) -> 10 | C48: =IF('DF raw data'!C53="","",'DF raw data'!C53) ->  | D48: =IF('DF raw data'!D53="","",'DF raw data'!D53) -> 
A49: =IF('DF raw data'!A54="","",'DF raw data'!A54) -> PS-Temperature: | B49: =IF('DF raw data'!B54="","",'DF raw data'!B54) -> 24.9 | C49: =IF('DF raw data'!C54="","",'DF raw data'!C54) ->  | D49: =IF('DF raw data'!D54="","",'DF raw data'!D54) -> 
A50: =IF('DF raw data'!A55="","",'DF raw data'!A55) -> PS-Encoder: | B50: =IF('DF raw data'!B55="","",'DF raw data'!B55) -> 19.5984 | C50: =IF('DF raw data'!C55="","",'DF raw data'!C55) ->  | D50: =IF('DF raw data'!D55="","",'DF raw data'!D55) -> 
A51: =IF('DF raw data'!A56="","",'DF raw data'!A56) ->  | B51: =IF('DF raw data'!B56="","",'DF raw data'!B56) ->  | C51: =IF('DF raw data'!C56="","",'DF raw data'!C56) ->  | D51: =IF('DF raw data'!D56="","",'DF raw data'!D56) -> 
A52: =IF('DF raw data'!A57="","",'DF raw data'!A57) -> Monitor-Index | B52: =IF('DF raw data'!B57="","",'DF raw data'!B57) -> [1,1,4] | C52: =IF('DF raw data'!C57="","",'DF raw data'!C57) ->  | D52: =IF('DF raw data'!D57="","",'DF raw data'!D57) -> 
A53: =IF('DF raw data'!A58="","",'DF raw data'!A58) ->  | B53: =IF('DF raw data'!B58="","",'DF raw data'!B58) ->  | C53: =IF('DF raw data'!C58="","",'DF raw data'!C58) ->  | D53: =IF('DF raw data'!D58="","",'DF raw data'!D58) -> 
A54: =IF('DF raw data'!A59="","",'DF raw data'!A59) -> Time [s] | B54: =IF('DF raw data'!B59="","",'DF raw data'!B59) -> Y [mm] | C54: =IF('DF raw data'!C59="","",'DF raw data'!C59) -> X [mm] | D54: =IF('DF raw data'!D59="","",'DF raw data'!D59) -> Nominal current [A]
A55: =IF('DF raw data'!A60="","",'DF raw data'!A60) ->  | B55: =IF('DF raw data'!B60="","",'DF raw data'!B60) ->  | C55: =IF('DF raw data'!C60="","",'DF raw data'!C60) ->  | D55: =IF('DF raw data'!D60="","",'DF raw data'!D60) -> 
A56: =IF('DF raw data'!A61="","",'DF raw data'!A61) -> 207.7 | B56: =IF('DF raw data'!B61="","",'DF raw data'!B61) -> 31.35 | C56: =IF('DF raw data'!C61="","",'DF raw data'!C61) -> 302.55 | D56: =IF('DF raw data'!D61="","",'DF raw data'!D61) -> 0
A57: =IF('DF raw data'!A62="","",'DF raw data'!A62) ->  | B57: =IF('DF raw data'!B62="","",'DF raw data'!B62) ->  | C57: =IF('DF raw data'!C62="","",'DF raw data'!C62) ->  | D57: =IF('DF raw data'!D62="","",'DF raw data'!D62) -> 
A58: =IF('DF raw data'!A63="","",'DF raw data'!A63) -> Measurement-Index | B58: =IF('DF raw data'!B63="","",'DF raw data'!B63) -> [1,1,1201,2] | C58: =IF('DF raw data'!C63="","",'DF raw data'!C63) ->  | D58: =IF('DF raw data'!D63="","",'DF raw data'!D63) -> 
A59: =IF('DF raw data'!A64="","",'DF raw data'!A64) ->  | B59: =IF('DF raw data'!B64="","",'DF raw data'!B64) ->  | C59: =IF('DF raw data'!C64="","",'DF raw data'!C64) ->  | D59: =IF('DF raw data'!D64="","",'DF raw data'!D64) -> 
A60: =IF('DF raw data'!A65="","",'DF raw data'!A65) -> Z [mm] | B60: =IF('DF raw data'!B65="","",'DF raw data'!B65) -> By [T] | C60: =IF('DF raw data'!C65="","",'DF raw data'!C65) -> Bx [T] | D60: =IF('DF raw data'!D65="","",'DF raw data'!D65) -> Bz [T] | F60: By_corr | G60: Bx_corr | H60: Bz_corr | J60: Iy | K60: Jy | L60: Ix | M60: Jx | N60: PI
A62: =IF('DF raw data'!A67="","",'DF raw data'!A67) -> -300 | B62: =IF('DF raw data'!B67="","",'DF raw data'!B67) -> -1.55551e-05 | C62: =IF('DF raw data'!C67="","",'DF raw data'!C67) -> 0.000258624 | D62: =IF('DF raw data'!D67="","",'DF raw data'!D67) -> -1.31579e-05 | F62: =(1-$G$1*($B$49))*B62 -> -1.594242199e-05 | G62: =(1-$G$1*($B$49-$G$2))*C62 -> 0.0002598912576 | H62: =(1-$G$1*($B$49-$G$2))*D62 -> -1.322237371e-05 | J62: =F62*$G$3 -> -7.971210995e-06 | K62: =J62*$G$3 -> -3.985605497e-06 | L62: =G62*$G$3 -> 0.0001299456288 | M62: =L62*$G$3 -> 6.49728144e-05 | N62: =(J62^2+L62^2)*$G$3 -> 8.474703324e-09
A63: =IF('DF raw data'!A68="","",'DF raw data'!A68) -> -299.5 | B63: =IF('DF raw data'!B68="","",'DF raw data'!B68) -> -7.73795e-06 | C63: =IF('DF raw data'!C68="","",'DF raw data'!C68) -> 0.000257437 | D63: =IF('DF raw data'!D68="","",'DF raw data'!D68) -> -1.3395e-05 | F63: =(1-$G$1*($B$49-$G$2))*B63 -> -7.775865955e-06 | G63: =(1-$G$1*($B$49-$G$2))*C63 -> 0.0002586984413 | H63: -1.34606355e-05 | J63: =F63*$G$3+J62 -> -1.185914397e-05 | K63: =J63*$G$3+K62 -> -9.915177484e-06 | L63: =G63*$G$3+L62 -> 0.0002592948495 | M63: =L63*$G$3+M62 -> 0.0001946202391 | N63: =(J63^2+L63^2)*$G$3+N62 -> 4.216193245e-08
A64: =IF('DF raw data'!A69="","",'DF raw data'!A69) -> -299 | B64: =IF('DF raw data'!B69="","",'DF raw data'!B69) -> -3.4012e-05 | C64: =IF('DF raw data'!C69="","",'DF raw data'!C69) -> 0.000270193 | D64: =IF('DF raw data'!D69="","",'DF raw data'!D69) -> -1.30022e-05 | F64: =(1-$G$1*($B$49-$G$2))*B64 -> -3.41786588e-05 | G64: 0.0002715169457 | H64: -1.306591078e-05 | J64: =F64*$G$3+J63 -> -2.894847337e-05 | K64: =J64*$G$3+K63 -> -2.438941417e-05 | L64: =G64*$G$3+L63 -> 0.0003950533223 | M64: =L64*$G$3+M63 -> 0.0003921469003 | N64: =(J64^2+L64^2)*$G$3+N63 -> 1.206145032e-07
A65: =IF('DF raw data'!A70="","",'DF raw data'!A70) -> -298.5 | B65: =IF('DF raw data'!B70="","",'DF raw data'!B70) -> -1.87599e-05 | C65: =IF('DF raw data'!C70="","",'DF raw data'!C70) -> 0.000274497 | D65: =IF('DF raw data'!D70="","",'DF raw data'!D70) -> -1.20214e-05 | F65: -1.885182351e-05 | G65: 0.0002758420353 | H65: -1.208030486e-05 | J65: -3.837438513e-05 | K65: -4.357660673e-05 | L65: 0.0005329743399 | M65: 0.0006586340703 | N65: 2.633816235e-07
A66: =IF('DF raw data'!A71="","",'DF raw data'!A71) -> -298 | B66: =IF('DF raw data'!B71="","",'DF raw data'!B71) -> -2.02993e-05 | C66: =IF('DF raw data'!C71="","",'DF raw data'!C71) -> 0.00027018 | D66: =IF('DF raw data'!D71="","",'DF raw data'!D71) -> -1.15228e-05 | F66: -2.039876657e-05 | G66: 0.000271503882 | H66: -1.157926172e-05 | J66: -4.857376841e-05 | K66: -6.786349094e-05 | L66: 0.0006687262809 | M66: 0.0009929972107 | N66: 4.881587484e-07
A67: =IF('DF raw data'!A72="","",'DF raw data'!A72) -> -297.5 | B67: =IF('DF raw data'!B72="","",'DF raw data'!B72) -> -1.54279e-05 | C67: =IF('DF raw data'!C72="","",'DF raw data'!C72) -> 0.000261396 | D67: =IF('DF raw data'!D72="","",'DF raw data'!D72) -> -1.14652e-05 | F67: -1.550349671e-05 | G67: 0.0002626768404 | H67: -1.152137948e-05 | J67: -5.632551677e-05 | K67: -9.602624932e-05 | L67: 0.0008000647011 | M67: 0.001393029561 | N67: 8.097967933e-07
A68: =IF('DF raw data'!A73="","",'DF raw data'!A73) -> -297 | B68: =IF('DF raw data'!B73="","",'DF raw data'!B73) -> -1.72875e-05 | C68: =IF('DF raw data'!C73="","",'DF raw data'!C73) -> 0.000258442 | D68: =IF('DF raw data'!D73="","",'DF raw data'!D73) -> -1.12673e-05 | F68: -1.737220875e-05 | G68: 0.0002597083658 | H68: -1.132250977e-05 | J68: -6.501162114e-05 | K68: -0.0001285320599 | L68: 0.000929918884 | M68: 0.001857989003 | N68: 1.244284614e-06
A69: =IF('DF raw data'!A74="","",'DF raw data'!A74) -> -296.5 | B69: =IF('DF raw data'!B74="","",'DF raw data'!B74) -> -6.13659e-06 | C69: =IF('DF raw data'!C74="","",'DF raw data'!C74) -> 0.000263964 | D69: =IF('DF raw data'!D74="","",'DF raw data'!D74) -> -1.1422e-05 | F69: -6.166659291e-06 | G69: 0.0002652574236 | H69: -1.14779678e-05 | J69: -6.809495079e-05 | K69: -0.0001625795353 | L69: 0.001062547596 | M69: 0.002389262801 | N69: 1.811106772e-06
A70: =IF('DF raw data'!A75="","",'DF raw data'!A75) -> -296 | B70: =IF('DF raw data'!B75="","",'DF raw data'!B75) -> -7.16196e-06 | C70: =IF('DF raw data'!C75="","",'DF raw data'!C75) -> 0.000268057 | D70: =IF('DF raw data'!D75="","",'DF raw data'!D75) -> -1.21369e-05 | F70: -7.197053604e-06 | G70: 0.0002693704793 | H70: -1.219637081e-05 | J70: -7.169347759e-05 | K70: -0.0001984262741 | L70: 0.001197232836 | M70: 0.002987879219 | N70: 2.530359981e-06
A71: =IF('DF raw data'!A76="","",'DF raw data'!A76) -> -295.5 | B71: =IF('DF raw data'!B76="","",'DF raw data'!B76) -> -6.26359e-06 | C71: =IF('DF raw data'!C76="","",'DF raw data'!C76) -> 0.000269636 | D71: =IF('DF raw data'!D76="","",'DF raw data'!D76) -> -1.31744e-05 | F71: -6.294281591e-06 | G71: 0.0002709572164 | H71: -1.323895456e-05 | J71: -7.484061839e-05 | K71: -0.0002358465833 | L71: 0.001332711444 | M71: 0.003654234941 | N71: 3.421220436e-06
A72: =IF('DF raw data'!A77="","",'DF raw data'!A77) -> -295 | B72: =IF('DF raw data'!B77="","",'DF raw data'!B77) -> -7.99413e-06 | C72: =IF('DF raw data'!C77="","",'DF raw data'!C77) -> 0.000268244 | D72: =IF('DF raw data'!D77="","",'DF raw data'!D77) -> -1.36822e-05 | F72: -8.033301237e-06 | G72: 0.0002695583956 | H72: -1.374924278e-05 | J72: -7.8857269e-05 | K72: -0.0002752752178 | L72: 0.001467490641 | M72: 0.004387980262 | N72: 4.501094062e-06
A73: =IF('DF raw data'!A78="","",'DF raw data'!A78) -> -294.5 | B73: =IF('DF raw data'!B78="","",'DF raw data'!B78) -> -2.37568e-05 | C73: =IF('DF raw data'!C78="","",'DF raw data'!C78) -> 0.000266807 | D73: =IF('DF raw data'!D78="","",'DF raw data'!D78) -> -1.2882e-05 | F73: -2.387320832e-05 | G73: 0.0002681143543 | H73: -1.29451218e-05 | J73: -9.079387316e-05 | K73: -0.0003206721544 | L73: 0.001601547819 | M73: 0.005188754171 | N73: 5.787693533e-06
A74: =IF('DF raw data'!A79="","",'DF raw data'!A79) -> -294 | B74: =IF('DF raw data'!B79="","",'DF raw data'!B79) -> -1.72871e-05 | C74: =IF('DF raw data'!C79="","",'DF raw data'!C79) -> 0.000276314 | D74: =IF('DF raw data'!D79="","",'DF raw data'!D79) -> -1.21286e-05 | F74: -1.737180679e-05 | G74: 0.0002776679386 | H74: -1.218803014e-05 | J74: -9.947977656e-05 | K74: -0.0003704120426 | L74: 0.001740381788 | M74: 0.006058945065 | N74: 7.30710603e-06
A75: =IF('DF raw data'!A80="","",'DF raw data'!A80) -> -293.5 | B75: =IF('DF raw data'!B80="","",'DF raw data'!B80) -> -3.829e-06 | C75: =IF('DF raw data'!C80="","",'DF raw data'!C80) -> 0.000271583 | D75: =IF('DF raw data'!D80="","",'DF raw data'!D80) -> -1.28113e-05 | F75: -3.8477621e-06 | G75: 0.0002729137567 | H75: -1.287407537e-05 | J75: -0.0001014036576 | K75: -0.0004211138714 | L75: 0.001876838666 | M75: 0.006997364398 | N75: 9.073509071e-06
A76: =IF('DF raw data'!A81="","",'DF raw data'!A81) -> -293 | B76: =IF('DF raw data'!B81="","",'DF raw data'!B81) -> -2.14517e-05 | C76: =IF('DF raw data'!C81="","",'DF raw data'!C81) -> 0.000272169 | D76: =IF('DF raw data'!D81="","",'DF raw data'!D81) -> -1.33662e-05 | F76: -2.155681333e-05 | G76: 0.0002735026281 | H76: -1.343169438e-05 | J76: -0.0001121820643 | K76: -0.0004772049036 | L76: 0.00201358998 | M76: 0.008004159388 | N76: 1.110707378e-05
A77: =IF('DF raw data'!A82="","",'DF raw data'!A82) -> -292.5 | B77: =IF('DF raw data'!B82="","",'DF raw data'!B82) -> -2.61918e-05 | C77: =IF('DF raw data'!C82="","",'DF raw data'!C82) -> 0.000267043 | D77: =IF('DF raw data'!D82="","",'DF raw data'!D82) -> -1.26416e-05 | F77: -2.632013982e-05 | G77: 0.0002683515107 | H77: -1.270354384e-05 | J77: -0.0001253421342 | K77: -0.0005398759707 | L77: 0.002147765736 | M77: 0.009078042256 | N77: 1.342137794e-05
A78: =IF('DF raw data'!A83="","",'DF raw data'!A83) -> -292 | B78: =IF('DF raw data'!B83="","",'DF raw data'!B83) -> -1.52367e-05 | C78: =IF('DF raw data'!C83="","",'DF raw data'!C83) -> 0.00026616 | D78: =IF('DF raw data'!D83="","",'DF raw data'!D83) -> -1.19338e-05 | F78: -1.531135983e-05 | G78: 0.000267464184 | H78: -1.199227562e-05 | J78: -0.0001329978141 | K78: -0.0006063748777 | L78: 0.002281497828 | M78: 0.01021879117 | N78: 1.603283831e-05
A79: =IF('DF raw data'!A84="","",'DF raw data'!A84) -> -291.5 | B79: =IF('DF raw data'!B84="","",'DF raw data'!B84) -> -1.85586e-05 | C79: =IF('DF raw data'!C84="","",'DF raw data'!C84) -> 0.00025975 | D79: =IF('DF raw data'!D84="","",'DF raw data'!D84) -> -2.51297e-05 | F79: -1.864953714e-05 | G79: 0.000261022775 | H79: -2.525283553e-05 | J79: -0.0001423225827 | K79: -0.0006775361691 | L79: 0.002412009215 | M79: 0.01142479578 | N79: 1.89518604e-05
A80: =IF('DF raw data'!A85="","",'DF raw data'!A85) -> -291 | B80: =IF('DF raw data'!B85="","",'DF raw data'!B85) -> -1.72809e-05 | C80: =IF('DF raw data'!C85="","",'DF raw data'!C85) -> 0.000266561 | D80: =IF('DF raw data'!D85="","",'DF raw data'!D85) -> -2.16081e-05 | F80: -1.736557641e-05 | G80: 0.0002678671489 | H80: -2.171397969e-05 | J80: -0.0001510053709 | K80: -0.0007530388545 | L80: 0.00254594279 | M80: 0.01269776717 | N80: 2.220417405e-05
A81: =IF('DF raw data'!A86="","",'DF raw data'!A86) -> -290.5 | B81: =IF('DF raw data'!B86="","",'DF raw data'!B86) -> -1.2731e-05 | C81: =IF('DF raw data'!C86="","",'DF raw data'!C86) -> 0.000268692 | D81: =IF('DF raw data'!D86="","",'DF raw data'!D86) -> -2.0092e-05 | F81: -1.27933819e-05 | G81: 0.0002700085908 | H81: -2.01904508e-05 | J81: -0.0001574020618 | K81: -0.0008317398854 | L81: 0.002680947085 | M81: 0.01403824071 | N81: 2.58103004e-05
A82: =IF('DF raw data'!A87="","",'DF raw data'!A87) -> -290 | B82: =IF('DF raw data'!B87="","",'DF raw data'!B87) -> -1.95904e-05 | C82: =IF('DF raw data'!C87="","",'DF raw data'!C87) -> 0.000268882 | D82: =IF('DF raw data'!D87="","",'DF raw data'!D87) -> -1.78821e-05 | F82: -1.968639296e-05 | G82: 0.0002701995218 | H82: -1.796972229e-05 | J82: -0.0001672452583 | K82: -0.0009153625146 | L82: 0.002816046846 | M82: 0.01544626414 | N82: 2.97893458e-05
A83: =IF('DF raw data'!A88="","",'DF raw data'!A88) -> -289.5 | B83: =IF('DF raw data'!B88="","",'DF raw data'!B88) -> -1.10066e-05 | C83: =IF('DF raw data'!C88="","",'DF raw data'!C88) -> 0.000265419 | D83: =IF('DF raw data'!D88="","",'DF raw data'!D88) -> -1.12162e-05 | F83: -1.106053234e-05 | G83: 0.0002667195531 | H83: -1.127115938e-05 | J83: -0.0001727755245 | K83: -0.001001750277 | L83: 0.002949406622 | M83: 0.01692096745 | N83: 3.415377121e-05
A84: =IF('DF raw data'!A89="","",'DF raw data'!A89) -> -289 | B84: =IF('DF raw data'!B89="","",'DF raw data'!B89) -> -2.4713e-06 | C84: =IF('DF raw data'!C89="","",'DF raw data'!C89) -> 0.00026732 | D84: =IF('DF raw data'!D89="","",'DF raw data'!D89) -> -3.16547e-05 | F84: -2.48340937e-06 | G84: 0.000268629868 | H84: -3.180980803e-05 | J84: -0.0001740172292 | K84: -0.001088758891 | L84: 0.003083721556 | M84: 0.01846282823 | N84: 3.892358152e-05
A85: =IF('DF raw data'!A90="","",'DF raw data'!A90) -> -288.5 | B85: =IF('DF raw data'!B90="","",'DF raw data'!B90) -> -1.94576e-05 | C85: =IF('DF raw data'!C90="","",'DF raw data'!C90) -> 0.000269811 | D85: =IF('DF raw data'!D90="","",'DF raw data'!D90) -> -2.26194e-05 | F85: -1.955294224e-05 | G85: 0.0002711330739 | H85: -2.273023506e-05 | J85: -0.0001837937003 | K85: -0.001180655742 | L85: 0.003219288093 | M85: 0.02007247227 | N85: 4.41223795e-05
A86: =IF('DF raw data'!A91="","",'DF raw data'!A91) -> -288 | B86: =IF('DF raw data'!B91="","",'DF raw data'!B91) -> -1.17789e-05 | C86: =IF('DF raw data'!C91="","",'DF raw data'!C91) -> 0.000273531 | D86: =IF('DF raw data'!D91="","",'DF raw data'!D91) -> -7.50585e-06 | F86: -1.183661661e-05 | G86: 0.0002748713019 | H86: -7.542628665e-06 | J86: -0.0001897120086 | K86: -0.001275511746 | L86: 0.003356723744 | M86: 0.02175083415 | N86: 4.977417197e-05
A87: =IF('DF raw data'!A92="","",'DF raw data'!A92) -> -287.5 | B87: =IF('DF raw data'!B92="","",'DF raw data'!B92) -> -1.40159e-05 | C87: =IF('DF raw data'!C92="","",'DF raw data'!C92) -> 0.000279877 | D87: =IF('DF raw data'!D92="","",'DF raw data'!D92) -> -1.46823e-05 | F87: -1.408457791e-05 | G87: 0.0002812483973 | H87: -1.475424327e-05 | J87: -0.0001967542975 | K87: -0.001373888895 | L87: 0.003497347943 | M87: 0.02349950812 | N87: 5.590924942e-05
A88: =IF('DF raw data'!A93="","",'DF raw data'!A93) -> -287 | B88: =IF('DF raw data'!B93="","",'DF raw data'!B93) -> -1.82442e-05 | C88: =IF('DF raw data'!C93="","",'DF raw data'!C93) -> 0.000280984 | D88: =IF('DF raw data'!D93="","",'DF raw data'!D93) -> -1.8695e-05 | F88: -1.833359658e-05 | G88: 0.0002823608216 | H88: -1.87866055e-05 | J88: -0.0002059210958 | K88: -0.001476849442 | L88: 0.003638528354 | M88: 0.02531877229 | N88: 6.254989546e-05
A89: =IF('DF raw data'!A94="","",'DF raw data'!A94) -> -286.5 | B89: =IF('DF raw data'!B94="","",'DF raw data'!B94) -> -2.34285e-05 | C89: =IF('DF raw data'!C94="","",'DF raw data'!C94) -> 0.000282636 | D89: =IF('DF raw data'!D94="","",'DF raw data'!D94) -> -2.49506e-05 | F89: -2.354329965e-05 | G89: 0.0002840209164 | H89: -2.507285794e-05 | J89: -0.0002176927457 | K89: -0.001585695815 | L89: 0.003780538812 | M89: 0.0272090417 | N89: 6.971982738e-05
A90: =IF('DF raw data'!A95="","",'DF raw data'!A95) -> -286 | B90: =IF('DF raw data'!B95="","",'DF raw data'!B95) -> -1.26682e-05 | C90: =IF('DF raw data'!C95="","",'DF raw data'!C95) -> 0.000280387 | D90: =IF('DF raw data'!D95="","",'DF raw data'!D95) -> -1.95866e-05 | F90: -1.273027418e-05 | G90: 0.0002817608963 | H90: -1.968257434e-05 | J90: -0.0002240578827 | K90: -0.001697724757 | L90: 0.00392141926 | M90: 0.02916975133 | N90: 7.743369285e-05
A91: =IF('DF raw data'!A96="","",'DF raw data'!A96) -> -285.5 | B91: =IF('DF raw data'!B96="","",'DF raw data'!B96) -> -1.83086e-05 | C91: =IF('DF raw data'!C96="","",'DF raw data'!C96) -> 0.000280151 | D91: =IF('DF raw data'!D96="","",'DF raw data'!D96) -> -1.52842e-05 | F91: -1.839831214e-05 | G91: 0.0002815237399 | H91: -1.535909258e-05 | J91: -0.0002332570388 | K91: -0.001814353276 | L91: 0.00406218113 | M91: 0.0312008419 | N91: 8.571155504e-05
A92: =IF('DF raw data'!A97="","",'DF raw data'!A97) -> -285 | B92: =IF('DF raw data'!B97="","",'DF raw data'!B97) -> -9.52449e-06 | C92: =IF('DF raw data'!C97="","",'DF raw data'!C97) -> 0.000285152 | D92: =IF('DF raw data'!D97="","",'DF raw data'!D97) -> -2.53184e-05 | F92: -9.571160001e-06 | G92: 0.0002865492448 | H92: -2.544246016e-05 | J92: -0.0002380426188 | K92: -0.001933374586 | L92: 0.004205455753 | M92: 0.03330356977 | N92: 9.458281623e-05
A93: =IF('DF raw data'!A98="","",'DF raw data'!A98) -> -284.5 | B93: =IF('DF raw data'!B98="","",'DF raw data'!B98) -> -1.37545e-05 | C93: =IF('DF raw data'!C98="","",'DF raw data'!C98) -> 0.00028725 | D93: =IF('DF raw data'!D98="","",'DF raw data'!D98) -> -2.25041e-05 | F93: -1.382189705e-05 | G93: 0.000288657525 | H93: -2.261437009e-05 | J93: -0.0002449535673 | K93: -0.002055851369 | L93: 0.004349784515 | M93: 0.03547846203 | N93: 0.00010407313
A94: =IF('DF raw data'!A99="","",'DF raw data'!A99) -> -284 | B94: =IF('DF raw data'!B99="","",'DF raw data'!B99) -> -1.74166e-05 | C94: =IF('DF raw data'!C99="","",'DF raw data'!C99) -> 0.000285944 | D94: =IF('DF raw data'!D99="","",'DF raw data'!D99) -> -1.00455e-05 | F94: -1.750194134e-05 | G94: 0.0002873451256 | H94: -1.009472295e-05 | J94: -0.000253704538 | K94: -0.002182703638 | L94: 0.004493457078 | M94: 0.03772519057 | N94: 0.0001142008913
A95: =IF('DF raw data'!A100="","",'DF raw data'!A100) -> -283.5 | B95: =IF('DF raw data'!B100="","",'DF raw data'!B100) -> -1.81142e-05 | C95: =IF('DF raw data'!C100="","",'DF raw data'!C100) -> 0.000277328 | D95: =IF('DF raw data'!D100="","",'DF raw data'!D100) -> -1.87688e-05 | F95: -1.820295958e-05 | G95: 0.0002786869072 | H95: -1.886076712e-05 | J95: -0.0002628060178 | K95: -0.002314106647 | L95: 0.004632800531 | M95: 0.04004159083 | N95: 0.0001249668452
A96: =IF('DF raw data'!A101="","",'DF raw data'!A101) -> -283 | B96: =IF('DF raw data'!B101="","",'DF raw data'!B101) -> -2.06135e-05 | C96: =IF('DF raw data'!C101="","",'DF raw data'!C101) -> 0.000273255 | D96: =IF('DF raw data'!D101="","",'DF raw data'!D101) -> -2.14392e-05 | F96: -2.071450615e-05 | G96: 0.0002745939495 | H96: -2.154425208e-05 | J96: -0.0002731632709 | K96: -0.002450688283 | L96: 0.004770097506 | M96: 0.04242663959 | N96: 0.0001363810693
A97: =IF('DF raw data'!A102="","",'DF raw data'!A102) -> -282.5 | B97: =IF('DF raw data'!B102="","",'DF raw data'!B102) -> -7.99197e-06 | C97: =IF('DF raw data'!C102="","",'DF raw data'!C102) -> 0.000282006 | D97: =IF('DF raw data'!D102="","",'DF raw data'!D102) -> -1.57857e-05 | F97: -8.031130653e-06 | G97: 0.0002833878294 | H97: -1.586304993e-05 | J97: -0.0002771788362 | K97: -0.002589277701 | L97: 0.004911791421 | M97: 0.0448825353 | N97: 0.0001484823309
A98: =IF('DF raw data'!A103="","",'DF raw data'!A103) -> -282 | B98: =IF('DF raw data'!B103="","",'DF raw data'!B103) -> -2.45886e-05 | C98: =IF('DF raw data'!C103="","",'DF raw data'!C103) -> 0.000284576 | D98: =IF('DF raw data'!D103="","",'DF raw data'!D103) -> -1.8572e-05 | F98: -2.470908414e-05 | G98: 0.0002859704224 | H98: -1.86630028e-05 | J98: -0.0002895333783 | K98: -0.00273404439 | L98: 0.005054776632 | M98: 0.04740992361 | N98: 0.0001612996291
A99: =IF('DF raw data'!A104="","",'DF raw data'!A104) -> -281.5 | B99: =IF('DF raw data'!B104="","",'DF raw data'!B104) -> -1.50433e-05 | C99: =IF('DF raw data'!C104="","",'DF raw data'!C104) -> 0.000283195 | D99: =IF('DF raw data'!D104="","",'DF raw data'!D104) -> -1.1352e-05 | F99: -1.511701217e-05 | G99: 0.0002845826555 | H99: -1.14076248e-05 | J99: -0.0002970918844 | K99: -0.002882590332 | L99: 0.00519706796 | M99: 0.05000845759 | N99: 0.0001748485186
A100: =IF('DF raw data'!A105="","",'DF raw data'!A105) -> -281 | B100: =IF('DF raw data'!B105="","",'DF raw data'!B105) -> -1.1769e-05 | C100: =IF('DF raw data'!C105="","",'DF raw data'!C105) -> 0.000283675 | D100: =IF('DF raw data'!D105="","",'DF raw data'!D105) -> -2.27814e-05 | F100: -1.18266681e-05 | G100: 0.0002850650075 | H100: -2.289302886e-05 | J100: -0.0003030052184 | K100: -0.003034092941 | L100: 0.005339600464 | M100: 0.05267825783 | N100: 0.0001891500912
A101: =IF('DF raw data'!A106="","",'DF raw data'!A106) -> -280.5 | B101: =IF('DF raw data'!B106="","",'DF raw data'!B106) -> -2.41417e-05 | C101: =IF('DF raw data'!C106="","",'DF raw data'!C106) -> 0.000282667 | D101: =IF('DF raw data'!D106="","",'DF raw data'!D106) -> -1.23691e-05 | F101: -2.425999433e-05 | G101: 0.0002840520683 | H101: -1.242970859e-05 | J101: -0.0003151352156 | K101: -0.003191660549 | L101: 0.005481626498 | M101: 0.05541907107 | N101: 0.0002042238608
A102: =IF('DF raw data'!A107="","",'DF raw data'!A107) -> -280 | B102: =IF('DF raw data'!B107="","",'DF raw data'!B107) -> -1.51717e-05 | C102: =IF('DF raw data'!C107="","",'DF raw data'!C107) -> 0.000283861 | D102: =IF('DF raw data'!D107="","",'DF raw data'!D107) -> -1.30314e-05 | F102: -1.524604133e-05 | G102: 0.0002852519189 | H102: -1.309525386e-05 | J102: -0.0003227582362 | K102: -0.003353039667 | L102: 0.005624252457 | M102: 0.0582311973 | N102: 0.0002200920551
A103: =IF('DF raw data'!A108="","",'DF raw data'!A108) -> -279.5 | B103: =IF('DF raw data'!B108="","",'DF raw data'!B108) -> -2.48488e-05 | C103: =IF('DF raw data'!C108="","",'DF raw data'!C108) -> 0.000282627 | D103: =IF('DF raw data'!D108="","",'DF raw data'!D108) -> -9.04703e-06 | F103: -2.497055912e-05 | G103: 0.0002840118723 | H103: -9.091360447e-06 | J103: -0.0003352435158 | K103: -0.003520661425 | L103: 0.005766258393 | M103: 0.0611143265 | N103: 0.0002367731172
A104: =IF('DF raw data'!A109="","",'DF raw data'!A109) -> -279 | B104: =IF('DF raw data'!B109="","",'DF raw data'!B109) -> -1.51773e-05 | C104: =IF('DF raw data'!C109="","",'DF raw data'!C109) -> 0.000286748 | D104: =IF('DF raw data'!D109="","",'DF raw data'!D109) -> -4.36672e-06 | F104: -1.525166877e-05 | G104: 0.0002881530652 | H104: -4.388116928e-06 | J104: -0.0003428693502 | K104: -0.0036920961 | L104: 0.005910334926 | M104: 0.06406949396 | N104: 0.0002542979263
A105: =IF('DF raw data'!A110="","",'DF raw data'!A110) -> -278.5 | B105: =IF('DF raw data'!B110="","",'DF raw data'!B110) -> -1.67124e-05 | C105: =IF('DF raw data'!C110="","",'DF raw data'!C110) -> 0.000280013 | D105: =IF('DF raw data'!D110="","",'DF raw data'!D110) -> -6.94747e-06 | F105: -1.679429076e-05 | G105: 0.0002813850637 | H105: -6.981512603e-06 | J105: -0.0003512664956 | K105: -0.003867729348 | L105: 0.006051027458 | M105: 0.06709500769 | N105: 0.000272667087
A106: =IF('DF raw data'!A111="","",'DF raw data'!A111) -> -278 | B106: =IF('DF raw data'!B111="","",'DF raw data'!B111) -> -9.97644e-06 | C106: =IF('DF raw data'!C111="","",'DF raw data'!C111) -> 0.000275611 | D106: =IF('DF raw data'!D111="","",'DF raw data'!D111) -> -2.01412e-05 | F106: -1.002532456e-05 | G106: 0.0002769614939 | H106: -2.023989188e-05 | J106: -0.0003562791578 | K106: -0.004045868927 | L106: 0.006189508205 | M106: 0.07018976179 | N106: 0.0002918855604
A107: =IF('DF raw data'!A112="","",'DF raw data'!A112) -> -277.5 | B107: =IF('DF raw data'!B112="","",'DF raw data'!B112) -> -1.06238e-05 | C107: =IF('DF raw data'!C112="","",'DF raw data'!C112) -> 0.000276924 | D107: =IF('DF raw data'!D112="","",'DF raw data'!D112) -> -8.82293e-06 | F107: -1.067585662e-05 | G107: 0.0002782809276 | H107: -8.866162357e-06 | J107: -0.0003616170861 | K107: -0.00422667747 | L107: 0.006328648669 | M107: 0.07335408613 | N107: 0.0003119768408
A108: =IF('DF raw data'!A113="","",'DF raw data'!A113) -> -277 | B108: =IF('DF raw data'!B113="","",'DF raw data'!B113) -> -1.72313e-05 | C108: =IF('DF raw data'!C113="","",'DF raw data'!C113) -> 0.000279763 | D108: =IF('DF raw data'!D113="","",'DF raw data'!D113) -> 7.07147e-07 | F108: -1.731573337e-05 | G108: 0.0002811338387 | H108: 7.106120203e-07 | J108: -0.0003702749528 | K108: -0.004411814946 | L108: 0.006469215588 | M108: 0.07658869392 | N108: 0.0003329707677
A109: =IF('DF raw data'!A114="","",'DF raw data'!A114) -> -276.5 | B109: =IF('DF raw data'!B114="","",'DF raw data'!B114) -> -1.90076e-05 | C109: =IF('DF raw data'!C114="","",'DF raw data'!C114) -> 0.000286767 | D109: =IF('DF raw data'!D114="","",'DF raw data'!D114) -> -2.48259e-05 | F109: -1.910073724e-05 | G109: 0.0002881721583 | H109: -2.494754691e-05 | J109: -0.0003798253215 | K109: -0.004601727607 | L109: 0.006613301667 | M109: 0.07989534476 | N109: 0.0003549107808
A110: =IF('DF raw data'!A115="","",'DF raw data'!A115) -> -276 | B110: =IF('DF raw data'!B115="","",'DF raw data'!B115) -> -1.54882e-05 | C110: =IF('DF raw data'!C115="","",'DF raw data'!C115) -> 0.000291871 | D110: =IF('DF raw data'!D115="","",'DF raw data'!D115) -> -1.88853e-05 | F110: -1.556409218e-05 | G110: 0.0002933011679 | H110: -1.897783797e-05 | J110: -0.0003876073675 | K110: -0.004795531291 | L110: 0.006759952251 | M110: 0.08327532088 | N110: 0.0003778343778
A111: =IF('DF raw data'!A116="","",'DF raw data'!A116) -> -275.5 | B111: =IF('DF raw data'!B116="","",'DF raw data'!B116) -> -1.76093e-05 | C111: =IF('DF raw data'!C116="","",'DF raw data'!C116) -> 0.000278119 | D111: =IF('DF raw data'!D116="","",'DF raw data'!D116) -> -7.31189e-06 | F111: -1.769558557e-05 | G111: 0.0002794817831 | H111: -7.347718261e-06 | J111: -0.0003964551603 | K111: -0.004993758871 | L111: 0.006899693143 | M111: 0.08672516745 | N111: 0.0004017158489
A112: =IF('DF raw data'!A117="","",'DF raw data'!A117) -> -275 | B112: =IF('DF raw data'!B117="","",'DF raw data'!B117) -> -2.41409e-05 | C112: =IF('DF raw data'!C117="","",'DF raw data'!C117) -> 0.000276633 | D112: =IF('DF raw data'!D117="","",'DF raw data'!D117) -> -1.65758e-05 | F112: -2.425919041e-05 | G112: 0.0002779885017 | H112: -1.665702142e-05 | J112: -0.0004085847555 | K112: -0.005198051249 | L112: 0.007038687393 | M112: 0.09024451115 | N112: 0.0004265708797
A113: =IF('DF raw data'!A118="","",'DF raw data'!A118) -> -274.5 | B113: =IF('DF raw data'!B118="","",'DF raw data'!B118) -> -1.81838e-05 | C113: =IF('DF raw data'!C118="","",'DF raw data'!C118) -> 0.000286443 | D113: =IF('DF raw data'!D118="","",'DF raw data'!D118) -> -1.04418e-05 | F113: -1.827290062e-05 | G113: 0.0002878465707 | H113: -1.049296482e-05 | J113: -0.0004177212058 | K113: -0.005406911852 | L113: 0.007182610679 | M113: 0.09383581649 | N113: 0.0004524530733
A114: =IF('DF raw data'!A119="","",'DF raw data'!A119) -> -274 | B114: =IF('DF raw data'!B119="","",'DF raw data'!B119) -> -1.71566e-05 | C114: =IF('DF raw data'!C119="","",'DF raw data'!C119) -> 0.000281321 | D114: =IF('DF raw data'!D119="","",'DF raw data'!D119) -> -1.54559e-05 | F114: -1.724066734e-05 | G114: 0.0002826994729 | H114: -1.553163391e-05 | J114: -0.0004263415395 | K114: -0.005620082621 | L114: 0.007323960415 | M114: 0.0974977967 | N114: 0.000479364155
A115: =IF('DF raw data'!A120="","",'DF raw data'!A120) -> -273.5 | B115: =IF('DF raw data'!B120="","",'DF raw data'!B120) -> -8.69704e-06 | C115: =IF('DF raw data'!C120="","",'DF raw data'!C120) -> 0.000279175 | D115: =IF('DF raw data'!D120="","",'DF raw data'!D120) -> -1.57053e-05 | F115: -8.739655496e-06 | G115: 0.0002805429575 | H115: -1.578225597e-05 | J115: -0.0004307113673 | K115: -0.005835438305 | L115: 0.007464231894 | M115: 0.1012299126 | N115: 0.00050731429
A116: =IF('DF raw data'!A121="","",'DF raw data'!A121) -> -273 | B116: =IF('DF raw data'!B121="","",'DF raw data'!B121) -> -1.23507e-05 | C116: =IF('DF raw data'!C121="","",'DF raw data'!C121) -> 0.000281559 | D116: =IF('DF raw data'!D121="","",'DF raw data'!D121) -> -1.52284e-05 | F116: -1.241121843e-05 | G116: 0.0002829386391 | H116: -1.530301916e-05 | J116: -0.0004369169765 | K116: -0.006053896793 | L116: 0.007605701213 | M116: 0.1050327633 | N116: 0.0005363330837
A117: =IF('DF raw data'!A122="","",'DF raw data'!A122) -> -272.5 | B117: =IF('DF raw data'!B122="","",'DF raw data'!B122) -> -2.08041e-05 | C117: =IF('DF raw data'!C122="","",'DF raw data'!C122) -> 0.000279149 | D117: =IF('DF raw data'!D122="","",'DF raw data'!D122) -> -2.10394e-05 | F117: -2.090604009e-05 | G117: 0.0002805168301 | H117: -2.114249306e-05 | J117: -0.0004473699965 | K117: -0.006277581791 | L117: 0.007745959629 | M117: 0.1089057431 | N117: 0.0005664330989
A118: =IF('DF raw data'!A123="","",'DF raw data'!A123) -> -272 | B118: =IF('DF raw data'!B123="","",'DF raw data'!B123) -> -1.75396e-05 | C118: =IF('DF raw data'!C123="","",'DF raw data'!C123) -> 0.00028271 | D118: =IF('DF raw data'!D123="","",'DF raw data'!D123) -> -1.77911e-05 | F118: -1.762554404e-05 | G118: 0.000284095279 | H118: -1.787827639e-05 | J118: -0.0004561827685 | K118: -0.006505673176 | L118: 0.007888007268 | M118: 0.1128497467 | N118: 0.0005976474796
A119: =IF('DF raw data'!A124="","",'DF raw data'!A124) -> -271.5 | B119: =IF('DF raw data'!B124="","",'DF raw data'!B124) -> -1.74752e-05 | C119: =IF('DF raw data'!C124="","",'DF raw data'!C124) -> 0.000285391 | D119: =IF('DF raw data'!D124="","",'DF raw data'!D124) -> -1.63871e-05 | F119: -1.756082848e-05 | G119: 0.0002867894159 | H119: -1.646739679e-05 | J119: -0.0004649631828 | K119: -0.006738154767 | L119: 0.008031401976 | M119: 0.1168654477 | N119: 0.0006300072838
A120: =IF('DF raw data'!A125="","",'DF raw data'!A125) -> -271 | B120: =IF('DF raw data'!B125="","",'DF raw data'!B125) -> -1.97751e-05 | C120: =IF('DF raw data'!C125="","",'DF raw data'!C125) -> 0.000282166 | D120: =IF('DF raw data'!D125="","",'DF raw data'!D125) -> -2.91646e-05 | F120: -1.987199799e-05 | G120: 0.0002835486134 | H120: -2.930750654e-05 | J120: -0.0004748991818 | K120: -0.006975604358 | L120: 0.008173176283 | M120: 0.1209520358 | N120: 0.0006635204537
A121: =IF('DF raw data'!A126="","",'DF raw data'!A126) -> -270.5 | B121: =IF('DF raw data'!B126="","",'DF raw data'!B126) -> -2.86046e-06 | C121: =IF('DF raw data'!C126="","",'DF raw data'!C126) -> 0.000296986 | D121: =IF('DF raw data'!D126="","",'DF raw data'!D126) -> -2.40542e-05 | F121: -2.874476254e-06 | G121: 0.0002984412314 | H121: -2.417206558e-05 | J121: -0.0004763364199 | K121: -0.007213772568 | L121: 0.008322396898 | M121: 0.1251132343 | N121: 0.000698265047
A122: =IF('DF raw data'!A127="","",'DF raw data'!A127) -> -270 | B122: =IF('DF raw data'!B127="","",'DF raw data'!B127) -> -2.40967e-06 | C122: =IF('DF raw data'!C127="","",'DF raw data'!C127) -> 0.000299739 | D122: =IF('DF raw data'!D127="","",'DF raw data'!D127) -> -2.80674e-05 | F122: -2.421477383e-06 | G122: 0.0003012077211 | H122: -2.820493026e-05 | J122: -0.0004775471586 | K122: -0.007452546147 | L122: 0.008473000759 | M122: 0.1293497347 | N122: 0.0007342749436
A123: =IF('DF raw data'!A128="","",'DF raw data'!A128) -> -269.5 | B123: =IF('DF raw data'!B128="","",'DF raw data'!B128) -> -1.61288e-05 | C123: =IF('DF raw data'!C128="","",'DF raw data'!C128) -> 0.000293221 | D123: =IF('DF raw data'!D128="","",'DF raw data'!D128) -> -1.74326e-05 | F123: -1.620783112e-05 | G123: 0.0002946577829 | H123: -1.751801974e-05 | J123: -0.0004856510742 | K123: -0.007695371684 | L123: 0.00862032965 | M123: 0.1336598995 | N123: 0.0007715479137
A124: =IF('DF raw data'!A129="","",'DF raw data'!A129) -> -269 | B124: =IF('DF raw data'!B129="","",'DF raw data'!B129) -> -2.28604e-05 | C124: =IF('DF raw data'!C129="","",'DF raw data'!C129) -> 0.000286347 | D124: =IF('DF raw data'!D129="","",'DF raw data'!D129) -> -1.49839e-05 | F124: -2.297241596e-05 | G124: 0.0002877501003 | H124: -1.505732111e-05 | J124: -0.0004971372821 | K124: -0.007943940325 | L124: 0.008764204701 | M124: 0.1380420018 | N124: 0.0008100771284
A125: =IF('DF raw data'!A130="","",'DF raw data'!A130) -> -268.5 | B125: =IF('DF raw data'!B130="","",'DF raw data'!B130) -> -1.67015e-05 | C125: =IF('DF raw data'!C130="","",'DF raw data'!C130) -> 0.000285103 | D125: =IF('DF raw data'!D130="","",'DF raw data'!D130) -> -2.36621e-05 | F125: -1.678333735e-05 | G125: 0.0002865000047 | H125: -2.377804429e-05 | J125: -0.0005055289508 | K125: -0.008196704801 | L125: 0.008907454703 | M125: 0.1424957292 | N125: 0.0008498762828
A126: =IF('DF raw data'!A131="","",'DF raw data'!A131) -> -268 | B126: =IF('DF raw data'!B131="","",'DF raw data'!B131) -> -1.20195e-05 | C126: =IF('DF raw data'!C131="","",'DF raw data'!C131) -> 0.00029177 | D126: =IF('DF raw data'!D131="","",'DF raw data'!D131) -> -3.17609e-05 | F126: -1.207839555e-05 | G126: 0.000293199673 | H126: -3.191652841e-05 | J126: -0.0005115681486 | K126: -0.008452488875 | L126: 0.009054054539 | M126: 0.1470227565 | N126: 0.0008909950856
A127: =IF('DF raw data'!A132="","",'DF raw data'!A132) -> -267.5 | B127: =IF('DF raw data'!B132="","",'DF raw data'!B132) -> -1.78578e-05 | C127: =IF('DF raw data'!C132="","",'DF raw data'!C132) -> 0.000285847 | D127: =IF('DF raw data'!D132="","",'DF raw data'!D132) -> -1.908e-05 | F127: -1.794530322e-05 | G127: 0.0002872476503 | H127: -1.9173492e-05 | J127: -0.0005205408002 | K127: -0.008712759275 | L127: 0.009197678365 | M127: 0.1516215956 | N127: 0.0009334292106
A128: =IF('DF raw data'!A133="","",'DF raw data'!A133) -> -267 | B128: =IF('DF raw data'!B133="","",'DF raw data'!B133) -> -2.52284e-05 | C128: =IF('DF raw data'!C133="","",'DF raw data'!C133) -> 0.000288436 | D128: =IF('DF raw data'!D133="","",'DF raw data'!D133) -> -1.96263e-05 | F128: =(1-$G$1*($B$49-$G$2))*B128 -> -2.535201916e-05 | G128: 0.0002898493364 | H128: -1.972246887e-05 | J128: =F128*$G$3+J127 -> -0.0005332168098 | K128: =J128*$G$3+K127 -> -0.00897936768 | L128: =G128*$G$3+L127 -> 0.009342603033 | M128: =L128*$G$3+M127 -> 0.1562928972 | N128: =(J128^2+L128^2)*$G$3+N127 -> 0.0009772134864
A129: =IF('DF raw data'!A134="","",'DF raw data'!A134) -> -266.5 | B129: =IF('DF raw data'!B134="","",'DF raw data'!B134) -> -3.00408e-05 | C129: =IF('DF raw data'!C134="","",'DF raw data'!C134) -> 0.000289342 | D129: =IF('DF raw data'!D134="","",'DF raw data'!D134) -> -6.1317e-06 | F129: -3.018799992e-05 | G129: 0.0002907597758 | H129: -6.16174533e-06 | J129: -0.0005483108097 | K129: -0.009253523085 | L129: 0.009487982921 | M129: 0.1610368886 | N129: 0.001022374719
A130: =IF('DF raw data'!A135="","",'DF raw data'!A135) -> -266 | B130: =IF('DF raw data'!B135="","",'DF raw data'!B135) -> -2.07391e-05 | C130: =IF('DF raw data'!C135="","",'DF raw data'!C135) -> 0.000283483 | D130: =IF('DF raw data'!D135="","",'DF raw data'!D135) -> -2.49992e-05 | F130: -2.084072159e-05 | G130: 0.0002848720667 | H130: -2.512169608e-05 | J130: -0.0005587311705 | K130: -0.00953288867 | L130: 0.009630418954 | M130: 0.1658520981 | N130: 0.001068903294
A131: =IF('DF raw data'!A136="","",'DF raw data'!A136) -> -265.5 | B131: =IF('DF raw data'!B136="","",'DF raw data'!B136) -> -1.57442e-05 | C131: =IF('DF raw data'!C136="","",'DF raw data'!C136) -> 0.000287629 | D131: =IF('DF raw data'!D136="","",'DF raw data'!D136) -> -1.77493e-05 | F131: -1.582134658e-05 | G131: 0.0002890383821 | H131: -1.783627157e-05 | J131: -0.0005666418438 | K131: -0.009816209592 | L131: 0.009774938145 | M131: 0.1707395672 | N131: 0.001116838543
A132: =IF('DF raw data'!A137="","",'DF raw data'!A137) -> -265 | B132: =IF('DF raw data'!B137="","",'DF raw data'!B137) -> -1.68356e-05 | C132: =IF('DF raw data'!C137="","",'DF raw data'!C137) -> 0.000298439 | D132: =IF('DF raw data'!D137="","",'DF raw data'!D137) -> -1.65139e-05 | F132: -1.691809444e-05 | G132: 0.0002999013511 | H132: -1.659481811e-05 | J132: -0.000575100891 | K132: -0.01010376004 | L132: 0.009924888821 | M132: 0.1757020116 | N132: 0.001166255623
A133: =IF('DF raw data'!A138="","",'DF raw data'!A138) -> -264.5 | B133: =IF('DF raw data'!B138="","",'DF raw data'!B138) -> -9.72684e-06 | C133: =IF('DF raw data'!C138="","",'DF raw data'!C138) -> 0.00029511 | D133: =IF('DF raw data'!D138="","",'DF raw data'!D138) -> -8.6147e-06 | F133: -9.774501516e-06 | G133: 0.000296556039 | H133: -8.65691203e-06 | J133: -0.0005799881418 | K133: -0.01039375411 | L133: 0.01007316684 | M133: 0.180738595 | N133: 0.001217158161
A134: =IF('DF raw data'!A139="","",'DF raw data'!A139) -> -264 | B134: =IF('DF raw data'!B139="","",'DF raw data'!B139) -> -2.19625e-05 | C134: =IF('DF raw data'!C139="","",'DF raw data'!C139) -> 0.000282494 | D134: =IF('DF raw data'!D139="","",'DF raw data'!D139) -> -1.59653e-05 | F134: -2.207011625e-05 | G134: 0.0002838782206 | H134: -1.604352997e-05 | J134: -0.0005910231999 | K134: -0.01068926571 | L134: 0.01021510595 | M134: 0.185846148 | N134: 0.00126950701
A135: =IF('DF raw data'!A140="","",'DF raw data'!A140) -> -263.5 | B135: =IF('DF raw data'!B140="","",'DF raw data'!B140) -> -1.59385e-05 | C135: =IF('DF raw data'!C140="","",'DF raw data'!C140) -> 0.000284664 | D135: =IF('DF raw data'!D140="","",'DF raw data'!D140) -> -1.44301e-05 | F135: -1.601659865e-05 | G135: 0.0002860588536 | H135: -1.450080749e-05 | J135: -0.0005990314992 | K135: -0.01098878146 | L135: 0.01035813538 | M135: 0.1910252157 | N135: 0.001323331913
A136: =IF('DF raw data'!A141="","",'DF raw data'!A141) -> -263 | B136: =IF('DF raw data'!B141="","",'DF raw data'!B141) -> -1.24856e-05 | C136: =IF('DF raw data'!C141="","",'DF raw data'!C141) -> 0.000286675 | D136: =IF('DF raw data'!D141="","",'DF raw data'!D141) -> -4.65452e-06 | F136: -1.254677944e-05 | G136: 0.0002880797075 | H136: -4.677327148e-06 | J136: -0.000605304889 | K136: -0.0112914339 | L136: 0.01050217523 | M136: 0.1962763033 | N136: 0.001378662953
A137: =IF('DF raw data'!A142="","",'DF raw data'!A142) -> -262.5 | B137: =IF('DF raw data'!B142="","",'DF raw data'!B142) -> -2.2152e-05 | C137: =IF('DF raw data'!C142="","",'DF raw data'!C142) -> 0.000285181 | D137: =IF('DF raw data'!D142="","",'DF raw data'!D142) -> -1.77589e-05 | F137: -2.22605448e-05 | G137: 0.0002865783869 | H137: -1.784591861e-05 | J137: -0.0006164351614 | K137: -0.01159965148 | L137: 0.01064546442 | M137: 0.2015990355 | N137: 0.001435515905
A138: =IF('DF raw data'!A143="","",'DF raw data'!A143) -> -262 | B138: =IF('DF raw data'!B143="","",'DF raw data'!B143) -> -1.20287e-05 | C138: =IF('DF raw data'!C143="","",'DF raw data'!C143) -> 0.000279886 | D138: =IF('DF raw data'!D143="","",'DF raw data'!D143) -> -1.72944e-05 | F138: -1.208764063e-05 | G138: 0.0002812574414 | H138: -1.737914256e-05 | J138: -0.0006224789817 | K138: -0.01191089097 | L138: 0.01078609315 | M138: 0.2069920821 | N138: 0.001493879548
A139: =IF('DF raw data'!A144="","",'DF raw data'!A144) -> -261.5 | B139: =IF('DF raw data'!B144="","",'DF raw data'!B144) -> -1.36921e-05 | C139: =IF('DF raw data'!C144="","",'DF raw data'!C144) -> 0.000270557 | D139: =IF('DF raw data'!D144="","",'DF raw data'!D144) -> -2.05396e-05 | F139: -1.375919129e-05 | G139: 0.0002718827293 | H139: -2.064024404e-05 | J139: -0.0006293585773 | K139: -0.01222557026 | L139: 0.01092203451 | M139: 0.2124530993 | N139: 0.001553723013
A140: =IF('DF raw data'!A145="","",'DF raw data'!A145) -> -261 | B140: =IF('DF raw data'!B145="","",'DF raw data'!B145) -> -6.26747e-06 | C140: =IF('DF raw data'!C145="","",'DF raw data'!C145) -> 0.000275258 | D140: =IF('DF raw data'!D145="","",'DF raw data'!D145) -> -7.86155e-06 | F140: -6.298180603e-06 | G140: 0.0002766067642 | H140: -7.900071595e-06 | J140: -0.0006325076676 | K140: -0.0125418241 | L140: 0.01106033789 | M140: 0.2179832683 | N140: 0.001615088583
A141: =IF('DF raw data'!A146="","",'DF raw data'!A146) -> -260.5 | B141: =IF('DF raw data'!B146="","",'DF raw data'!B146) -> -4.33689e-06 | C141: =IF('DF raw data'!C146="","",'DF raw data'!C146) -> 0.000276033 | D141: =IF('DF raw data'!D146="","",'DF raw data'!D146) -> -2.01193e-05 | F141: -4.358140761e-06 | G141: 0.0002773855617 | H141: -2.021788457e-05 | J141: -0.000634686738 | K141: -0.01285916747 | L141: 0.01119903067 | M141: 0.2235827836 | N141: 0.001677999141
A142: =IF('DF raw data'!A147="","",'DF raw data'!A147) -> -260 | B142: =IF('DF raw data'!B147="","",'DF raw data'!B147) -> -9.27345e-06 | C142: =IF('DF raw data'!C147="","",'DF raw data'!C147) -> 0.000281943 | D142: =IF('DF raw data'!D147="","",'DF raw data'!D147) -> -1.68776e-05 | F142: -9.318889905e-06 | G142: 0.0002833245207 | H142: -1.696030024e-05 | J142: -0.000639346183 | K142: -0.01317884056 | L142: 0.01134069293 | M142: 0.2292531301 | N142: 0.001742509181
A143: =IF('DF raw data'!A148="","",'DF raw data'!A148) -> -259.5 | B143: =IF('DF raw data'!B148="","",'DF raw data'!B148) -> -1.35638e-05 | C143: =IF('DF raw data'!C148="","",'DF raw data'!C148) -> 0.000279966 | D143: =IF('DF raw data'!D148="","",'DF raw data'!D148) -> -2.07292e-05 | F143: -1.363026262e-05 | G143: 0.0002813378334 | H143: -2.083077308e-05 | J143: -0.0006461613143 | K143: -0.01350192121 | L143: 0.01148136185 | M143: 0.234993811 | N143: 0.001808628778
A144: =IF('DF raw data'!A149="","",'DF raw data'!A149) -> -259 | B144: =IF('DF raw data'!B149="","",'DF raw data'!B149) -> -3.18873e-05 | C144: =IF('DF raw data'!C149="","",'DF raw data'!C149) -> 0.000283544 | D144: =IF('DF raw data'!D149="","",'DF raw data'!D149) -> -2.79239e-05 | F144: -3.204354777e-05 | G144: 0.0002849333656 | H144: -2.806072711e-05 | J144: -0.0006621830882 | K144: -0.01383301276 | L144: 0.01162382853 | M144: 0.2408057253 | N144: 0.001876404716
A145: =IF('DF raw data'!A150="","",'DF raw data'!A150) -> -258.5 | B145: =IF('DF raw data'!B150="","",'DF raw data'!B150) -> -2.43919e-05 | C145: =IF('DF raw data'!C150="","",'DF raw data'!C150) -> 0.000288809 | D145: =IF('DF raw data'!D150="","",'DF raw data'!D150) -> -2.2107e-05 | F145: -2.451142031e-05 | G145: 0.0002902241641 | H145: -2.22153243e-05 | J145: -0.0006744387983 | K145: -0.01417023216 | L145: 0.01176894061 | M145: 0.2466901956 | N145: 0.001945886131
A146: =IF('DF raw data'!A151="","",'DF raw data'!A151) -> -258 | B146: =IF('DF raw data'!B151="","",'DF raw data'!B151) -> -9.52574e-06 | C146: =IF('DF raw data'!C151="","",'DF raw data'!C151) -> 0.000286002 | D146: =IF('DF raw data'!D151="","",'DF raw data'!D151) -> -2.309e-05 | F146: -9.572416126e-06 | G146: 0.0002874034098 | H146: -2.3203141e-05 | J146: -0.0006792250064 | K146: -0.01450984466 | L146: 0.01191264232 | M146: 0.2526465167 | N146: 0.002017072328
A147: =IF('DF raw data'!A152="","",'DF raw data'!A152) -> -257.5 | B147: =IF('DF raw data'!B152="","",'DF raw data'!B152) -> -1.58067e-05 | C147: =IF('DF raw data'!C152="","",'DF raw data'!C152) -> 0.000292843 | D147: =IF('DF raw data'!D152="","",'DF raw data'!D152) -> -1.99534e-05 | F147: -1.588415283e-05 | G147: 0.0002942779307 | H147: -2.005117166e-05 | J147: -0.0006871670828 | K147: -0.0148534282 | L147: 0.01205978128 | M147: 0.2586764074 | N147: 0.00209002759
A148: =IF('DF raw data'!A153="","",'DF raw data'!A153) -> -257 | B148: =IF('DF raw data'!B153="","",'DF raw data'!B153) -> -2.97147e-05 | C148: =IF('DF raw data'!C153="","",'DF raw data'!C153) -> 0.000293027 | D148: =IF('DF raw data'!D153="","",'DF raw data'!D153) -> -1.81951e-05 | F148: -2.986030203e-05 | G148: 0.0002944628323 | H148: -1.828425599e-05 | J148: -0.0007020972338 | K148: -0.01520447682 | L148: 0.0122070127 | M148: 0.2647799137 | N148: 0.00216477964
A149: =IF('DF raw data'!A154="","",'DF raw data'!A154) -> -256.5 | B149: =IF('DF raw data'!B154="","",'DF raw data'!B154) -> -2.20196e-05 | C149: =IF('DF raw data'!C154="","",'DF raw data'!C154) -> 0.000289557 | D149: =IF('DF raw data'!D154="","",'DF raw data'!D154) -> -2.4127e-05 | F149: -2.212749604e-05 | G149: 0.0002909758293 | H149: -2.42452223e-05 | J149: -0.0007131609818 | K149: -0.01556105731 | L149: 0.01235250062 | M149: 0.270956164 | N149: 0.002241326075
A150: =IF('DF raw data'!A155="","",'DF raw data'!A155) -> -256 | B150: =IF('DF raw data'!B155="","",'DF raw data'!B155) -> -2.28603e-05 | C150: =IF('DF raw data'!C155="","",'DF raw data'!C155) -> 0.00029214 | D150: =IF('DF raw data'!D155="","",'DF raw data'!D155) -> -1.49743e-05 | F150: -2.297231547e-05 | G150: 0.000293571486 | H150: -1.504767407e-05 | J150: -0.0007246471396 | K150: -0.01592338088 | L150: 0.01249928636 | M150: 0.2772058072 | N150: 0.002319704711
A151: =IF('DF raw data'!A156="","",'DF raw data'!A156) -> -255.5 | B151: =IF('DF raw data'!B156="","",'DF raw data'!B156) -> -1.55463e-05 | C151: =IF('DF raw data'!C156="","",'DF raw data'!C156) -> 0.000292176 | D151: =IF('DF raw data'!D156="","",'DF raw data'!D156) -> -2.61998e-05 | F151: -1.562247687e-05 | G151: 0.0002936076624 | H151: -2.632817902e-05 | J151: -0.000732458378 | K151: -0.01628961007 | L151: 0.01264609019 | M151: 0.2835288523 | N151: 0.002399934757
A152: =IF('DF raw data'!A157="","",'DF raw data'!A157) -> -255 | B152: =IF('DF raw data'!B157="","",'DF raw data'!B157) -> -2.01661e-05 | C152: =IF('DF raw data'!C157="","",'DF raw data'!C157) -> 0.000288072 | D152: =IF('DF raw data'!D157="","",'DF raw data'!D157) -> -1.89527e-05 | F152: -2.026491389e-05 | G152: 0.0002894835528 | H152: -1.904556823e-05 | J152: -0.0007425908349 | K152: -0.01666090549 | L152: 0.01279083197 | M152: 0.2899242683 | N152: 0.002482013169
A153: =IF('DF raw data'!A158="","",'DF raw data'!A158) -> -254.5 | B153: =IF('DF raw data'!B158="","",'DF raw data'!B158) -> -2.1765e-05 | C153: =IF('DF raw data'!C158="","",'DF raw data'!C158) -> 0.000284036 | D153: =IF('DF raw data'!D158="","",'DF raw data'!D158) -> -2.15237e-05 | F153: -2.18716485e-05 | G153: 0.0002854277764 | H153: -2.162916613e-05 | J153: -0.0007535266592 | K153: -0.01703766882 | L153: 0.01293354585 | M153: 0.2963910412 | N153: 0.002565935374
A154: =IF('DF raw data'!A159="","",'DF raw data'!A159) -> -254 | B154: =IF('DF raw data'!B159="","",'DF raw data'!B159) -> -2.38192e-05 | C154: =IF('DF raw data'!C159="","",'DF raw data'!C159) -> 0.000292035 | D154: =IF('DF raw data'!D159="","",'DF raw data'!D159) -> -1.84041e-05 | F154: -2.393591408e-05 | G154: 0.0002934659715 | H154: -1.849428009e-05 | J154: -0.0007654946162 | K154: -0.01742041612 | L154: 0.01308027884 | M154: 0.3029311806 | N154: 0.002651775213
A155: =IF('DF raw data'!A160="","",'DF raw data'!A160) -> -253.5 | B155: =IF('DF raw data'!B160="","",'DF raw data'!B160) -> -2.95214e-05 | C155: =IF('DF raw data'!C160="","",'DF raw data'!C160) -> 0.000295873 | D155: =IF('DF raw data'!D160="","",'DF raw data'!D160) -> -1.68295e-05 | F155: -2.966605486e-05 | G155: 0.0002973227777 | H155: -1.691196455e-05 | J155: -0.0007803276437 | K155: -0.01781057995 | L155: 0.01322894023 | M155: 0.3095456507 | N155: 0.002739582098
A156: =IF('DF raw data'!A161="","",'DF raw data'!A161) -> -253 | B156: =IF('DF raw data'!B161="","",'DF raw data'!B161) -> -2.15783e-05 | C156: =IF('DF raw data'!C161="","",'DF raw data'!C161) -> 0.000286153 | D156: =IF('DF raw data'!D161="","",'DF raw data'!D161) -> -1.52473e-05 | F156: -2.168403367e-05 | G156: 0.0002875551497 | H156: -1.532201177e-05 | J156: -0.0007911696605 | K156: -0.01820616478 | L156: 0.0133727178 | M156: 0.3162320096 | N156: 0.002829309864
A157: =IF('DF raw data'!A162="","",'DF raw data'!A162) -> -252.5 | B157: =IF('DF raw data'!B162="","",'DF raw data'!B162) -> -2.84914e-05 | C157: =IF('DF raw data'!C162="","",'DF raw data'!C162) -> 0.000283005 | D157: =IF('DF raw data'!D162="","",'DF raw data'!D162) -> -2.4226e-05 | F157: -2.863100786e-05 | G157: 0.0002843917245 | H157: -2.43447074e-05 | J157: -0.0008054851644 | K157: -0.01860890736 | L157: 0.01351491367 | M157: 0.3229894665 | N157: 0.002920960712
A158: =IF('DF raw data'!A163="","",'DF raw data'!A163) -> -252 | B158: =IF('DF raw data'!B163="","",'DF raw data'!B163) -> -2.15087e-05 | C158: =IF('DF raw data'!C163="","",'DF raw data'!C163) -> 0.000282031 | D158: =IF('DF raw data'!D163="","",'DF raw data'!D163) -> -2.39697e-05 | F158: -2.161409263e-05 | G158: 0.0002834129519 | H158: -2.408715153e-05 | J158: -0.0008162922107 | K158: -0.01901705346 | L158: 0.01365662014 | M158: 0.3298177765 | N158: 0.003014545516
A159: =IF('DF raw data'!A164="","",'DF raw data'!A164) -> -251.5 | B159: =IF('DF raw data'!B164="","",'DF raw data'!B164) -> -2.74063e-05 | C159: =IF('DF raw data'!C164="","",'DF raw data'!C164) -> 0.000278971 | D159: =IF('DF raw data'!D164="","",'DF raw data'!D164) -> -1.77187e-05 | F159: -2.754059087e-05 | G159: 0.0002803379579 | H159: -1.780552163e-05 | J159: -0.0008300625062 | K159: -0.01943208472 | L159: 0.01379678912 | M159: 0.3367161711 | N159: 0.003110065713
A160: =IF('DF raw data'!A165="","",'DF raw data'!A165) -> -251 | B160: =IF('DF raw data'!B165="","",'DF raw data'!B165) -> -2.16461e-05 | C160: =IF('DF raw data'!C165="","",'DF raw data'!C165) -> 0.000279221 | D160: =IF('DF raw data'!D165="","",'DF raw data'!D165) -> -9.48666e-06 | F160: -2.175216589e-05 | G160: 0.0002805891829 | H160: -9.533144634e-06 | J160: -0.0008409385891 | K160: -0.01985255401 | L160: 0.01393708371 | M160: 0.343684713 | N160: 0.003207540453
A161: =IF('DF raw data'!A166="","",'DF raw data'!A166) -> -250.5 | B161: =IF('DF raw data'!B166="","",'DF raw data'!B166) -> -3.7661e-06 | C161: =IF('DF raw data'!C166="","",'DF raw data'!C166) -> 0.000279606 | D161: =IF('DF raw data'!D166="","",'DF raw data'!D166) -> -1.08225e-05 | F161: -3.78455389e-06 | G161: 0.0002809760694 | H161: -1.087553025e-05 | J161: -0.0008428308661 | K161: -0.02027396944 | L161: 0.01407757175 | M161: 0.3507234988 | N161: 0.003306984648
A162: =IF('DF raw data'!A167="","",'DF raw data'!A167) -> -250 | B162: =IF('DF raw data'!B167="","",'DF raw data'!B167) -> -2.58064e-05 | C162: =IF('DF raw data'!C167="","",'DF raw data'!C167) -> 0.000286708 | D162: =IF('DF raw data'!D167="","",'DF raw data'!D167) -> -1.73559e-05 | F162: -2.593285136e-05 | G162: 0.0002881128692 | H162: -1.744094391e-05 | J162: -0.0008557972917 | K162: -0.02070186809 | L162: 0.01422162818 | M162: 0.3578343129 | N162: 0.003408478196
A163: =IF('DF raw data'!A168="","",'DF raw data'!A168) -> -249.5 | B163: =IF('DF raw data'!B168="","",'DF raw data'!B168) -> -1.94663e-05 | C163: =IF('DF raw data'!C168="","",'DF raw data'!C168) -> 0.000284645 | D163: =IF('DF raw data'!D168="","",'DF raw data'!D168) -> -9.31086e-06 | F163: -1.956168487e-05 | G163: 0.0002860397605 | H163: -9.356483214e-06 | J163: -0.0008655781342 | K163: -0.02113465716 | L163: 0.01436464806 | M163: 0.365016637 | N163: 0.003512024366
A164: =IF('DF raw data'!A169="","",'DF raw data'!A169) -> -249 | B164: =IF('DF raw data'!B169="","",'DF raw data'!B169) -> -2.65869e-05 | C164: =IF('DF raw data'!C169="","",'DF raw data'!C169) -> 0.000285178 | D164: =IF('DF raw data'!D169="","",'DF raw data'!D169) -> 7.5611e-07 | F164: -2.671717581e-05 | G164: 0.0002865753722 | H164: 7.59814939e-07 | J164: -0.0008789367221 | K164: -0.02157412552 | L164: 0.01450793575 | M164: 0.3722706048 | N164: 0.003617650731
A165: =IF('DF raw data'!A170="","",'DF raw data'!A170) -> -248.5 | B165: =IF('DF raw data'!B170="","",'DF raw data'!B170) -> -1.69687e-05 | C165: =IF('DF raw data'!C170="","",'DF raw data'!C170) -> 0.000286973 | D165: =IF('DF raw data'!D170="","",'DF raw data'!D170) -> -7.13447e-06 | F165: -1.705184663e-05 | G165: 0.0002883791677 | H165: -7.169428903e-06 | J165: -0.0008874626454 | K165: -0.02201785684 | L165: 0.01465212533 | M165: 0.3795966675 | N165: 0.003725386914
A166: =IF('DF raw data'!A171="","",'DF raw data'!A171) -> -248 | B166: =IF('DF raw data'!B171="","",'DF raw data'!B171) -> -1.42786e-05 | C166: =IF('DF raw data'!C171="","",'DF raw data'!C171) -> 0.000283341 | D166: =IF('DF raw data'!D171="","",'DF raw data'!D171) -> -6.39e-06 | F166: -1.434856514e-05 | G166: 0.0002847293709 | H166: -6.421311e-06 | J166: -0.000894636928 | K166: -0.0224651753 | L166: 0.01479449002 | M166: 0.3869939125 | N166: 0.003835225569
A167: =IF('DF raw data'!A172="","",'DF raw data'!A172) -> -247.5 | B167: =IF('DF raw data'!B172="","",'DF raw data'!B172) -> -2.14409e-05 | C167: =IF('DF raw data'!C172="","",'DF raw data'!C172) -> 0.000282082 | D167: =IF('DF raw data'!D172="","",'DF raw data'!D172) -> -2.72377e-05 | F167: -2.154596041e-05 | G167: 0.0002834642018 | H167: -2.737116473e-05 | J167: -0.0009054099082 | K167: -0.02291788026 | L167: 0.01493622212 | M167: 0.3944620236 | N167: 0.003947180818
A168: =IF('DF raw data'!A173="","",'DF raw data'!A173) -> -247 | B168: =IF('DF raw data'!B173="","",'DF raw data'!B173) -> -1.88789e-05 | C168: =IF('DF raw data'!C173="","",'DF raw data'!C173) -> 0.000280504 | D168: =IF('DF raw data'!D173="","",'DF raw data'!D173) -> -2.74153e-05 | F168: -1.897140661e-05 | G168: 0.0002818784696 | H168: -2.754963497e-05 | J168: -0.0009148956115 | K168: -0.02337532806 | L168: 0.01507716135 | M168: 0.4020006042 | N168: 0.004061259733
A169: =IF('DF raw data'!A174="","",'DF raw data'!A174) -> -246.5 | B169: =IF('DF raw data'!B174="","",'DF raw data'!B174) -> -1.94604e-05 | C169: =IF('DF raw data'!C174="","",'DF raw data'!C174) -> 0.000273603 | D169: =IF('DF raw data'!D174="","",'DF raw data'!D174) -> -1.83967e-05 | F169: -1.955575596e-05 | G169: 0.0002749436547 | H169: -1.848684383e-05 | J169: -0.0009246734895 | K169: -0.02383766481 | L169: 0.01521463318 | M169: 0.4096079208 | N169: 0.004177429775
A170: =IF('DF raw data'!A175="","",'DF raw data'!A175) -> -246 | B170: =IF('DF raw data'!B175="","",'DF raw data'!B175) -> -5.62005e-06 | C170: =IF('DF raw data'!C175="","",'DF raw data'!C175) -> 0.00027463 | D170: =IF('DF raw data'!D175="","",'DF raw data'!D175) -> -1.80778e-05 | F170: -5.647588245e-06 | G170: 0.000275975687 | H170: -1.816638122e-05 | J170: -0.0009274972836 | K170: -0.02430141345 | L170: 0.01535262102 | M170: 0.4172842313 | N170: 0.004295711386
A171: =IF('DF raw data'!A176="","",'DF raw data'!A176) -> -245.5 | B171: =IF('DF raw data'!B176="","",'DF raw data'!B176) -> -1.86274e-05 | C171: =IF('DF raw data'!C176="","",'DF raw data'!C176) -> 0.000276897 | D171: =IF('DF raw data'!D176="","",'DF raw data'!D176) -> -1.83014e-05 | F171: -1.871867426e-05 | G171: 0.0002782537953 | H171: -1.839107686e-05 | J171: -0.0009368566207 | K171: -0.02476984176 | L171: 0.01549174792 | M171: 0.4250301053 | N171: 0.004416147363
A172: =IF('DF raw data'!A177="","",'DF raw data'!A177) -> -245 | B172: =IF('DF raw data'!B177="","",'DF raw data'!B177) -> -1.68941e-05 | C172: =IF('DF raw data'!C177="","",'DF raw data'!C177) -> 0.000280821 | D172: =IF('DF raw data'!D177="","",'DF raw data'!D177) -> -2.47724e-05 | F172: -1.697688109e-05 | G172: 0.0002821970229 | H172: -2.489378476e-05 | J172: -0.0009453450613 | K172: -0.02524251429 | L172: 0.01563284643 | M172: 0.4328465285 | N172: 0.004538787146
A173: =IF('DF raw data'!A178="","",'DF raw data'!A178) -> -244.5 | B173: =IF('DF raw data'!B178="","",'DF raw data'!B178) -> -1.60654e-05 | C173: =IF('DF raw data'!C178="","",'DF raw data'!C178) -> 0.000280702 | D173: =IF('DF raw data'!D178="","",'DF raw data'!D178) -> -1.66561e-05 | F173: -1.614412046e-05 | G173: 0.0002820774398 | H173: -1.673771489e-05 | J173: -0.0009534171215 | K173: -0.02571922285 | L173: 0.01577388515 | M173: 0.4407334711 | N173: 0.004663649374
A174: =IF('DF raw data'!A179="","",'DF raw data'!A179) -> -244 | B174: =IF('DF raw data'!B179="","",'DF raw data'!B179) -> -1.05495e-05 | C174: =IF('DF raw data'!C179="","",'DF raw data'!C179) -> 0.000284291 | D174: =IF('DF raw data'!D179="","",'DF raw data'!D179) -> -2.57527e-05 | F174: -1.060119255e-05 | G174: 0.0002856840259 | H174: -2.587888823e-05 | J174: -0.0009587177178 | K174: -0.02619858171 | L174: 0.01591672717 | M174: 0.4486918347 | N174: 0.004790780046
A175: =IF('DF raw data'!A180="","",'DF raw data'!A180) -> -243.5 | B175: =IF('DF raw data'!B180="","",'DF raw data'!B180) -> -1.76663e-05 | C175: =IF('DF raw data'!C180="","",'DF raw data'!C180) -> 0.000285036 | D175: =IF('DF raw data'!D180="","",'DF raw data'!D180) -> -1.80824e-05 | F175: -1.775286487e-05 | G175: 0.0002864326764 | H175: -1.817100376e-05 | J175: -0.0009675941502 | K175: -0.02668237879 | L175: 0.0160599435 | M175: 0.4567218064 | N175: 0.004920209058
A176: =IF('DF raw data'!A181="","",'DF raw data'!A181) -> -243 | B176: =IF('DF raw data'!B181="","",'DF raw data'!B181) -> -2.36243e-05 | C176: =IF('DF raw data'!C181="","",'DF raw data'!C181) -> 0.000282342 | D176: =IF('DF raw data'!D181="","",'DF raw data'!D181) -> -2.23855e-05 | F176: -2.374005907e-05 | G176: 0.0002837254758 | H176: -2.249518895e-05 | J176: -0.0009794641797 | K176: -0.02717211088 | L176: 0.01620180624 | M176: 0.4648227096 | N176: 0.005051937996
A177: =IF('DF raw data'!A182="","",'DF raw data'!A182) -> -242.5 | B177: =IF('DF raw data'!B182="","",'DF raw data'!B182) -> -1.3763e-05 | C177: =IF('DF raw data'!C182="","",'DF raw data'!C182) -> 0.000276926 | D177: =IF('DF raw data'!D182="","",'DF raw data'!D182) -> -9.61124e-06 | F177: -1.38304387e-05 | G177: 0.0002782829374 | H177: -9.658335076e-06 | J177: -0.0009863793991 | K177: -0.02766530058 | L177: 0.01634094771 | M177: 0.4729931834 | N177: 0.005185937754
A178: =IF('DF raw data'!A183="","",'DF raw data'!A183) -> -242 | B178: =IF('DF raw data'!B183="","",'DF raw data'!B183) -> -1.60662e-05 | C178: =IF('DF raw data'!C183="","",'DF raw data'!C183) -> 0.000279534 | D178: =IF('DF raw data'!D183="","",'DF raw data'!D183) -> -1.70817e-05 | F178: -1.614492438e-05 | G178: 0.0002809037166 | H178: -1.716540033e-05 | J178: -0.0009944518613 | K178: -0.02816252651 | L178: 0.01648139957 | M178: 0.4812338832 | N178: 0.005322250487
A179: =IF('DF raw data'!A184="","",'DF raw data'!A184) -> -241.5 | B179: =IF('DF raw data'!B184="","",'DF raw data'!B184) -> -1.63227e-05 | C179: =IF('DF raw data'!C184="","",'DF raw data'!C184) -> 0.000287481 | D179: =IF('DF raw data'!D184="","",'DF raw data'!D184) -> -1.50866e-05 | F179: -1.640268123e-05 | G179: 0.0002888896569 | H179: -1.516052434e-05 | J179: -0.001002653202 | K179: -0.02866385311 | L179: 0.0166258444 | M179: 0.4895468054 | N179: 0.005460962495
A180: =IF('DF raw data'!A185="","",'DF raw data'!A185) -> -241 | B180: =IF('DF raw data'!B185="","",'DF raw data'!B185) -> -2.41378e-05 | C180: =IF('DF raw data'!C185="","",'DF raw data'!C185) -> 0.000290411 | D180: =IF('DF raw data'!D185="","",'DF raw data'!D185) -> -2.10443e-05 | F180: -2.425607522e-05 | G180: 0.0002918340139 | H180: -2.114741707e-05 | J180: -0.001014781239 | K180: -0.02917124373 | L180: 0.0167717614 | M180: 0.4979326861 | N180: 0.005602123375
A181: =IF('DF raw data'!A186="","",'DF raw data'!A186) -> -240.5 | B181: =IF('DF raw data'!B186="","",'DF raw data'!B186) -> -8.30763e-06 | C181: =IF('DF raw data'!C186="","",'DF raw data'!C186) -> 0.000284988 | D181: =IF('DF raw data'!D186="","",'DF raw data'!D186) -> -2.33846e-05 | F181: -8.348337387e-06 | G181: 0.0002863844412 | H181: -2.349918454e-05 | J181: -0.001018955408 | K181: -0.02968072143 | L181: 0.01691495363 | M181: 0.5063901629 | N181: 0.005745700339
A182: =IF('DF raw data'!A187="","",'DF raw data'!A187) -> -240 | B182: =IF('DF raw data'!B187="","",'DF raw data'!B187) -> -1.93342e-05 | C182: =IF('DF raw data'!C187="","",'DF raw data'!C187) -> 0.000292488 | D182: =IF('DF raw data'!D187="","",'DF raw data'!D187) -> -1.74398e-05 | F182: -1.942893758e-05 | G182: 0.0002939211912 | H182: -1.752525502e-05 | J182: -0.001028669877 | K182: -0.03019505637 | L182: 0.01706191422 | M182: 0.51492112 | N182: 0.005891783878
A183: =IF('DF raw data'!A188="","",'DF raw data'!A188) -> -239.5 | B183: =IF('DF raw data'!B188="","",'DF raw data'!B188) -> -1.71581e-05 | C183: =IF('DF raw data'!C188="","",'DF raw data'!C188) -> 0.000295141 | D183: =IF('DF raw data'!D188="","",'DF raw data'!D188) -> -1.10571e-05 | F183: -1.724217469e-05 | G183: 0.0002965871909 | H183: -1.111127979e-05 | J183: -0.001037290964 | K183: -0.03071370185 | L183: 0.01721020782 | M183: 0.5235262239 | N183: 0.006040417491
A184: =IF('DF raw data'!A189="","",'DF raw data'!A189) -> -239 | B184: =IF('DF raw data'!B189="","",'DF raw data'!B189) -> -1.65771e-05 | C184: =IF('DF raw data'!C189="","",'DF raw data'!C189) -> 0.0002917 | D184: =IF('DF raw data'!D189="","",'DF raw data'!D189) -> -1.99219e-05 | F184: -1.665832779e-05 | G184: 0.00029312933 | H184: -2.001951731e-05 | J184: -0.001045620128 | K184: -0.03123651192 | L184: 0.01735677248 | M184: 0.5322046102 | N184: 0.006191592927
A185: =IF('DF raw data'!A190="","",'DF raw data'!A190) -> -238.5 | B185: =IF('DF raw data'!B190="","",'DF raw data'!B190) -> -1.51067e-05 | C185: =IF('DF raw data'!C190="","",'DF raw data'!C190) -> 0.000289081 | D185: =IF('DF raw data'!D190="","",'DF raw data'!D190) -> -1.27024e-05 | F185: -1.518072283e-05 | G185: 0.0002904974969 | H185: -1.276464176e-05 | J185: -0.00105321049 | K185: -0.03176311716 | L185: 0.01750202123 | M185: 0.5409556208 | N185: 0.006345307927
A186: =IF('DF raw data'!A191="","",'DF raw data'!A191) -> -238 | B186: =IF('DF raw data'!B191="","",'DF raw data'!B191) -> -2.38952e-05 | C186: =IF('DF raw data'!C191="","",'DF raw data'!C191) -> 0.000282957 | D186: =IF('DF raw data'!D191="","",'DF raw data'!D191) -> -7.2058e-08 | F186: -2.401228648e-05 | G186: 0.0002843434893 | H186: -7.24110842e-08 | J186: -0.001065216633 | K186: -0.03229572548 | L186: 0.01764419297 | M186: 0.5497777173 | N186: 0.006501534043
A187: =IF('DF raw data'!A192="","",'DF raw data'!A192) -> -237.5 | B187: =IF('DF raw data'!B192="","",'DF raw data'!B192) -> -1.17777e-05 | C187: =IF('DF raw data'!C192="","",'DF raw data'!C192) -> 0.000285192 | D187: =IF('DF raw data'!D192="","",'DF raw data'!D192) -> -7.83148e-06 | F187: -1.183541073e-05 | G187: 0.0002865894408 | H187: -7.869854252e-06 | J187: -0.001071134338 | K187: -0.03283129265 | L187: 0.01778748769 | M187: 0.5586714611 | N187: 0.006660305066
A188: =IF('DF raw data'!A193="","",'DF raw data'!A193) -> -237 | B188: =IF('DF raw data'!B193="","",'DF raw data'!B193) -> -1.84419e-05 | C188: =IF('DF raw data'!C193="","",'DF raw data'!C193) -> 0.000282037 | D188: =IF('DF raw data'!D193="","",'DF raw data'!D193) -> -9.54171e-06 | F188: -1.853226531e-05 | G188: 0.0002834189813 | H188: -9.588464379e-06 | J188: -0.001080400471 | K188: -0.03337149288 | L188: 0.01792919719 | M188: 0.5676360597 | N188: 0.006821616755
A189: =IF('DF raw data'!A194="","",'DF raw data'!A194) -> -236.5 | B189: =IF('DF raw data'!B194="","",'DF raw data'!B194) -> -1.40792e-05 | C189: =IF('DF raw data'!C194="","",'DF raw data'!C194) -> 0.000272451 | D189: =IF('DF raw data'!D194="","",'DF raw data'!D194) -> -1.63073e-05 | F189: -1.414818808e-05 | G189: 0.0002737860099 | H189: -1.638720577e-05 | J189: -0.001087474565 | K189: -0.03391523016 | L189: 0.01806609019 | M189: 0.5766691048 | N189: 0.006985399863
A190: =IF('DF raw data'!A195="","",'DF raw data'!A195) -> -236 | B190: =IF('DF raw data'!B195="","",'DF raw data'!B195) -> -1.2482e-05 | C190: =IF('DF raw data'!C195="","",'DF raw data'!C195) -> 0.000277196 | D190: =IF('DF raw data'!D195="","",'DF raw data'!D195) -> -1.0208e-05 | F190: -1.25431618e-05 | G190: 0.0002785542604 | H190: -1.02580192e-05 | J190: -0.001093746146 | K190: -0.03446210324 | L190: 0.01820536732 | M190: 0.5857717885 | N190: 0.007151715703
A191: =IF('DF raw data'!A196="","",'DF raw data'!A196) -> -235.5 | B191: =IF('DF raw data'!B196="","",'DF raw data'!B196) -> -1.59472e-05 | C191: =IF('DF raw data'!C196="","",'DF raw data'!C196) -> 0.000289982 | D191: =IF('DF raw data'!D196="","",'DF raw data'!D196) -> -8.49614e-07 | F191: -1.602534128e-05 | G191: 0.0002914029118 | H191: -8.537771086e-07 | J191: -0.001101758816 | K191: -0.03501298265 | L191: 0.01835106878 | M191: 0.5949473229 | N191: 0.007320703501
A192: =IF('DF raw data'!A197="","",'DF raw data'!A197) -> -235 | B192: =IF('DF raw data'!B197="","",'DF raw data'!B197) -> -1.13951e-05 | C192: =IF('DF raw data'!C197="","",'DF raw data'!C197) -> 0.000290194 | D192: =IF('DF raw data'!D197="","",'DF raw data'!D197) -> -6.28618e-06 | F192: =(1-$G$1*($B$49-$G$2))*B192 -> -1.145093599e-05 | G192: 0.0002916159506 | H192: -6.316982282e-06 | J192: =F192*$G$3+J191 -> -0.001107484284 | K192: =J192*$G$3+K191 -> -0.03556672479 | L192: =G192*$G$3+L191 -> 0.01849687675 | M192: =L192*$G$3+M191 -> 0.6041957612 | N192: =(J192^2+L192^2)*$G$3+N191 -> 0.007492383987
A193: =IF('DF raw data'!A198="","",'DF raw data'!A198) -> -234.5 | B193: =IF('DF raw data'!B198="","",'DF raw data'!B198) -> -9.4054e-06 | C193: =IF('DF raw data'!C198="","",'DF raw data'!C198) -> 0.000277666 | D193: =IF('DF raw data'!D198="","",'DF raw data'!D198) -> -1.0069e-05 | F193: -9.45148646e-06 | G193: 0.0002790265634 | H193: -1.01183381e-05 | J193: -0.001112210028 | K193: -0.0361228298 | L193: 0.01863639003 | M193: 0.6135139562 | N193: 0.007666660009
A194: =IF('DF raw data'!A199="","",'DF raw data'!A199) -> -234 | B194: =IF('DF raw data'!B199="","",'DF raw data'!B199) -> -7.92833e-06 | C194: =IF('DF raw data'!C199="","",'DF raw data'!C199) -> 0.000282674 | D194: =IF('DF raw data'!D199="","",'DF raw data'!D199) -> -1.62553e-05 | F194: -7.967178817e-06 | G194: 0.0002840591026 | H194: -1.633495097e-05 | J194: -0.001116193617 | K194: -0.03668092661 | L194: 0.01877841958 | M194: 0.622903166 | N194: 0.007843597474
A195: =IF('DF raw data'!A200="","",'DF raw data'!A200) -> -233.5 | B195: =IF('DF raw data'!B200="","",'DF raw data'!B200) -> -1.33794e-05 | C195: =IF('DF raw data'!C200="","",'DF raw data'!C200) -> 0.000279744 | D195: =IF('DF raw data'!D200="","",'DF raw data'!D200) -> -8.30743e-06 | F195: -1.344495906e-05 | G195: 0.0002811147456 | H195: -8.348136407e-06 | J195: -0.001122916097 | K195: -0.03724238466 | L195: 0.01891897696 | M195: 0.6323626545 | N195: 0.008023191789
A196: =IF('DF raw data'!A201="","",'DF raw data'!A201) -> -233 | B196: =IF('DF raw data'!B201="","",'DF raw data'!B201) -> -1.40895e-05 | C196: =IF('DF raw data'!C201="","",'DF raw data'!C201) -> 0.000285166 | D196: =IF('DF raw data'!D201="","",'DF raw data'!D201) -> -1.75926e-06 | F196: -1.415853855e-05 | G196: 0.0002865633134 | H196: -1.767880374e-06 | J196: -0.001129995366 | K196: -0.03780738234 | L196: 0.01906225861 | M196: 0.6418937838 | N196: 0.008205515086
A197: =IF('DF raw data'!A202="","",'DF raw data'!A202) -> -232.5 | B197: =IF('DF raw data'!B202="","",'DF raw data'!B202) -> -6.97487e-06 | C197: =IF('DF raw data'!C202="","",'DF raw data'!C202) -> 0.000287745 | D197: =IF('DF raw data'!D202="","",'DF raw data'!D202) -> -3.47007e-06 | F197: -7.009046863e-06 | G197: 0.0002891549505 | H197: -3.487073343e-06 | J197: -0.001133499889 | K197: -0.03837413229 | L197: 0.01920683609 | M197: 0.6514972019 | N197: 0.008390608773
A198: =IF('DF raw data'!A203="","",'DF raw data'!A203) -> -232 | B198: =IF('DF raw data'!B203="","",'DF raw data'!B203) -> -2.83054e-05 | C198: =IF('DF raw data'!C203="","",'DF raw data'!C203) -> 0.000287588 | D198: =IF('DF raw data'!D203="","",'DF raw data'!D203) -> -1.73333e-05 | F198: -2.844409646e-05 | G198: 0.0002889971812 | H198: -1.741823317e-05 | J198: -0.001147721938 | K198: -0.03894799326 | L198: 0.01935133468 | M198: 0.6611728692 | N198: 0.008578504483
A199: =IF('DF raw data'!A204="","",'DF raw data'!A204) -> -231.5 | B199: =IF('DF raw data'!B204="","",'DF raw data'!B204) -> -2.01678e-05 | C199: =IF('DF raw data'!C204="","",'DF raw data'!C204) -> 0.000287382 | D199: =IF('DF raw data'!D204="","",'DF raw data'!D204) -> -1.42428e-05 | F199: -2.026662222e-05 | G199: 0.0002887901718 | H199: -1.431258972e-05 | J199: -0.001157855249 | K199: -0.03952692088 | L199: 0.01949572977 | M199: 0.6709207341 | N199: 0.008769216537
A200: =IF('DF raw data'!A205="","",'DF raw data'!A205) -> -231 | B200: =IF('DF raw data'!B205="","",'DF raw data'!B205) -> -5.62092e-06 | C200: =IF('DF raw data'!C205="","",'DF raw data'!C205) -> 0.000284862 | D200: =IF('DF raw data'!D205="","",'DF raw data'!D205) -> -1.67308e-05 | F200: -5.648462508e-06 | G200: 0.0002862578238 | H200: -1.681278092e-05 | J200: -0.00116067948 | K200: -0.04010726062 | L200: 0.01963885868 | M200: 0.6807401634 | N200: 0.00896273251
A201: =IF('DF raw data'!A206="","",'DF raw data'!A206) -> -230.5 | B201: =IF('DF raw data'!B206="","",'DF raw data'!B206) -> -9.96876e-06 | C201: =IF('DF raw data'!C206="","",'DF raw data'!C206) -> 0.000295576 | D201: =IF('DF raw data'!D206="","",'DF raw data'!D206) -> -3.08242e-05 | F201: -1.001760692e-05 | G201: 0.0002970243224 | H201: -3.097523858e-05 | J201: -0.001165688283 | K201: -0.04069010476 | L201: 0.01978737084 | M201: 0.6906338488 | N201: 0.009159181947
... 1061 more rows

Sheet 10 y=-0.1
A1: =IF('DF raw data'!E1="","",'DF raw data'!E1) -> Number of header lines | B1: =IF('DF raw data'!F1="","",'DF raw data'!F1) -> 54 | C1: =IF('DF raw data'!G1="","",'DF raw data'!G1) ->  | D1: =IF('DF raw data'!H1="","",'DF raw data'!H1) ->  | F1: T_coeff | G1: -0.001 | H1: /degC | J1: IBy total | K1: =J1262*1000 -> -22.48325197 | L1: muTm | M1: =L1262*1000 -> 97.98892712 | R1: DF ref | S1: ='10 y=-0.2'!S1 -> 1
A2: =IF('DF raw data'!E2="","",'DF raw data'!E2) -> Measured by | B2: =IF('DF raw data'!F2="","",'DF raw data'!F2) -> Danfysik | C2: =IF('DF raw data'!G2="","",'DF raw data'!G2) ->  | D2: =IF('DF raw data'!H2="","",'DF raw data'!H2) ->  | F2: Tcorr | G2: 20 | H2: degC | J2: JBy total | K2: =K1262 -> -26.1758619 | L2: muTm^2 | M2: =M1262 -> 35.50070532
A3: =IF('DF raw data'!E3="","",'DF raw data'!E3) -> Operator | B3: =IF('DF raw data'!F3="","",'DF raw data'!F3) -> PMHA | C3: =IF('DF raw data'!G3="","",'DF raw data'!G3) ->  | D3: =IF('DF raw data'!H3="","",'DF raw data'!H3) ->  | F3: Step | G3: =A63-A62 -> 0.5 | H3: mm | J3: PI total | K3: =N1262 -> 10498.17235 | L3: T^2mm^3
A4: =IF('DF raw data'!E4="","",'DF raw data'!E4) -> Data-time | B4: =IF('DF raw data'!F4="","",'DF raw data'!F4) -> 24-09-2024, 14:37:15 | C4: =IF('DF raw data'!G4="","",'DF raw data'!G4) ->  | D4: =IF('DF raw data'!H4="","",'DF raw data'!H4) -> 
A5: =IF('DF raw data'!E5="","",'DF raw data'!E5) -> Project | B5: =IF('DF raw data'!F5="","",'DF raw data'!F5) -> 504314 | C5: =IF('DF raw data'!G5="","",'DF raw data'!G5) ->  | D5: =IF('DF raw data'!H5="","",'DF raw data'!H5) -> 
A6: =IF('DF raw data'!E6="","",'DF raw data'!E6) -> Magnet type | B6: =IF('DF raw data'!F6="","",'DF raw data'!F6) -> Dipole | C6: =IF('DF raw data'!G6="","",'DF raw data'!G6) ->  | D6: =IF('DF raw data'!H6="","",'DF raw data'!H6) -> 
A7: =IF('DF raw data'!E7="","",'DF raw data'!E7) -> Magnet nr. | B7: =IF('DF raw data'!F7="","",'DF raw data'!F7) -> 2410101 | C7: =IF('DF raw data'!G7="","",'DF raw data'!G7) ->  | D7: =IF('DF raw data'!H7="","",'DF raw data'!H7) -> 
A8: =IF('DF raw data'!E8="","",'DF raw data'!E8) -> Meas. number | B8: =IF('DF raw data'!F8="","",'DF raw data'!F8) -> 676 | C8: =IF('DF raw data'!G8="","",'DF raw data'!G8) ->  | D8: =IF('DF raw data'!H8="","",'DF raw data'!H8) -> 
A9: =IF('DF raw data'!E9="","",'DF raw data'!E9) -> Add. info | B9: =IF('DF raw data'!F9="","",'DF raw data'!F9) -> Y-alignment scan 2) | C9: =IF('DF raw data'!G9="","",'DF raw data'!G9) ->  | D9: =IF('DF raw data'!H9="","",'DF raw data'!H9) -> 
A10: =IF('DF raw data'!E10="","",'DF raw data'!E10) -> Device | B10: =IF('DF raw data'!F10="","",'DF raw data'!F10) -> (HAL) HALL-PROBE | C10: =IF('DF raw data'!G10="","",'DF raw data'!G10) ->  | D10: =IF('DF raw data'!H10="","",'DF raw data'!H10) -> 
A11: =IF('DF raw data'!E11="","",'DF raw data'!E11) -> Goal | B11: =IF('DF raw data'!F11="","",'DF raw data'!F11) -> (AXI) AXis Integral (Line, EFB) | C11: =IF('DF raw data'!G11="","",'DF raw data'!G11) ->  | D11: =IF('DF raw data'!H11="","",'DF raw data'!H11) -> 
A12: =IF('DF raw data'!E12="","",'DF raw data'!E12) -> Power supply mode | B12: =IF('DF raw data'!F12="","",'DF raw data'!F12) -> (PM) Permanent Magnet (no MPS in use) | C12: =IF('DF raw data'!G12="","",'DF raw data'!G12) ->  | D12: =IF('DF raw data'!H12="","",'DF raw data'!H12) -> 
A13: =IF('DF raw data'!E13="","",'DF raw data'!E13) -> Data format | B13: =IF('DF raw data'!F13="","",'DF raw data'!F13) -> Raw data text file | C13: =IF('DF raw data'!G13="","",'DF raw data'!G13) ->  | D13: =IF('DF raw data'!H13="","",'DF raw data'!H13) -> 
A14: =IF('DF raw data'!E14="","",'DF raw data'!E14) -> Direction of the pos. x-axis | B14: =IF('DF raw data'!F14="","",'DF raw data'!F14) -> See test program | C14: =IF('DF raw data'!G14="","",'DF raw data'!G14) ->  | D14: =IF('DF raw data'!H14="","",'DF raw data'!H14) -> 
A15: =IF('DF raw data'!E15="","",'DF raw data'!E15) -> Direction of the pos. y-axis | B15: =IF('DF raw data'!F15="","",'DF raw data'!F15) -> Vertical up | C15: =IF('DF raw data'!G15="","",'DF raw data'!G15) ->  | D15: =IF('DF raw data'!H15="","",'DF raw data'!H15) -> 
A16: =IF('DF raw data'!E16="","",'DF raw data'!E16) -> Direction of the pos. z-axis | B16: =IF('DF raw data'!F16="","",'DF raw data'!F16) -> See test program | C16: =IF('DF raw data'!G16="","",'DF raw data'!G16) ->  | D16: =IF('DF raw data'!H16="","",'DF raw data'!H16) -> 
A17: =IF('DF raw data'!E17="","",'DF raw data'!E17) -> Mapper type | B17: =IF('DF raw data'!F17="","",'DF raw data'!F17) -> Precision Hall Mapper | C17: =IF('DF raw data'!G17="","",'DF raw data'!G17) ->  | D17: =IF('DF raw data'!H17="","",'DF raw data'!H17) -> 
A18: =IF('DF raw data'!E18="","",'DF raw data'!E18) -> Mapper Danfysik Reg. Number | B18: =IF('DF raw data'!F18="","",'DF raw data'!F18) -> 2033-D (mapper 1) | C18: =IF('DF raw data'!G18="","",'DF raw data'!G18) ->  | D18: =IF('DF raw data'!H18="","",'DF raw data'!H18) -> 
A19: =IF('DF raw data'!E19="","",'DF raw data'!E19) -> Measurement consept | B19: =IF('DF raw data'!F19="","",'DF raw data'!F19) -> Square line grid | C19: =IF('DF raw data'!G19="","",'DF raw data'!G19) ->  | D19: =IF('DF raw data'!H19="","",'DF raw data'!H19) -> 
A20: =IF('DF raw data'!E20="","",'DF raw data'!E20) -> Mode | B20: =IF('DF raw data'!F20="","",'DF raw data'!F20) -> On-the-fly measurement | C20: =IF('DF raw data'!G20="","",'DF raw data'!G20) ->  | D20: =IF('DF raw data'!H20="","",'DF raw data'!H20) -> 
A21: =IF('DF raw data'!E21="","",'DF raw data'!E21) ->  | B21: =IF('DF raw data'!F21="","",'DF raw data'!F21) ->  | C21: =IF('DF raw data'!G21="","",'DF raw data'!G21) ->  | D21: =IF('DF raw data'!H21="","",'DF raw data'!H21) -> 
A22: =IF('DF raw data'!E22="","",'DF raw data'!E22) -> Probe Name | B22: =IF('DF raw data'!F22="","",'DF raw data'!F22) -> ID12_By | C22: =IF('DF raw data'!G22="","",'DF raw data'!G22) ->  | D22: =IF('DF raw data'!H22="","",'DF raw data'!H22) -> 
A23: =IF('DF raw data'!E23="","",'DF raw data'!E23) -> Probe Type | B23: =IF('DF raw data'!F23="","",'DF raw data'!F23) -> DF_ID_3D_Bxyz | C23: =IF('DF raw data'!G23="","",'DF raw data'!G23) ->  | D23: =IF('DF raw data'!H23="","",'DF raw data'!H23) -> 
A24: =IF('DF raw data'!E24="","",'DF raw data'!E24) -> Probe Danfysik Reg. Number | B24: =IF('DF raw data'!F24="","",'DF raw data'!F24) -> 2277 | C24: =IF('DF raw data'!G24="","",'DF raw data'!G24) ->  | D24: =IF('DF raw data'!H24="","",'DF raw data'!H24) -> 
A25: =IF('DF raw data'!E25="","",'DF raw data'!E25) -> Probe Axis | B25: =IF('DF raw data'!F25="","",'DF raw data'!F25) -> By | C25: =IF('DF raw data'!G25="","",'DF raw data'!G25) ->  | D25: =IF('DF raw data'!H25="","",'DF raw data'!H25) -> 
A26: =IF('DF raw data'!E26="","",'DF raw data'!E26) -> Probe Current Supply | B26: =IF('DF raw data'!F26="","",'DF raw data'!F26) -> 1825-D | C26: =IF('DF raw data'!G26="","",'DF raw data'!G26) ->  | D26: =IF('DF raw data'!H26="","",'DF raw data'!H26) -> 
A27: =IF('DF raw data'!E27="","",'DF raw data'!E27) -> Probe Gain Correction | B27: =IF('DF raw data'!F27="","",'DF raw data'!F27) -> 0.99617 | C27: =IF('DF raw data'!G27="","",'DF raw data'!G27) ->  | D27: =IF('DF raw data'!H27="","",'DF raw data'!H27) -> 
A28: =IF('DF raw data'!E28="","",'DF raw data'!E28) -> Probe Offset Correction | B28: =IF('DF raw data'!F28="","",'DF raw data'!F28) -> 0.0027549 | C28: =IF('DF raw data'!G28="","",'DF raw data'!G28) ->  | D28: =IF('DF raw data'!H28="","",'DF raw data'!H28) -> 
A29: =IF('DF raw data'!E29="","",'DF raw data'!E29) -> DVM Number | B29: =IF('DF raw data'!F29="","",'DF raw data'!F29) -> 2 | C29: =IF('DF raw data'!G29="","",'DF raw data'!G29) ->  | D29: =IF('DF raw data'!H29="","",'DF raw data'!H29) -> 
A30: =IF('DF raw data'!E30="","",'DF raw data'!E30) -> DVM Type | B30: =IF('DF raw data'!F30="","",'DF raw data'!F30) -> K2701 | C30: =IF('DF raw data'!G30="","",'DF raw data'!G30) ->  | D30: =IF('DF raw data'!H30="","",'DF raw data'!H30) -> 
A31: =IF('DF raw data'!E31="","",'DF raw data'!E31) -> DVM Danfysik Reg. Number | B31: =IF('DF raw data'!F31="","",'DF raw data'!F31) -> 1743-D | C31: =IF('DF raw data'!G31="","",'DF raw data'!G31) ->  | D31: =IF('DF raw data'!H31="","",'DF raw data'!H31) -> 
A32: =IF('DF raw data'!E32="","",'DF raw data'!E32) -> Probe Name | B32: =IF('DF raw data'!F32="","",'DF raw data'!F32) -> ID12_Bx | C32: =IF('DF raw data'!G32="","",'DF raw data'!G32) ->  | D32: =IF('DF raw data'!H32="","",'DF raw data'!H32) -> 
A33: =IF('DF raw data'!E33="","",'DF raw data'!E33) -> Probe Type | B33: =IF('DF raw data'!F33="","",'DF raw data'!F33) -> DF_ID_3D_Bxyz | C33: =IF('DF raw data'!G33="","",'DF raw data'!G33) ->  | D33: =IF('DF raw data'!H33="","",'DF raw data'!H33) -> 
A34: =IF('DF raw data'!E34="","",'DF raw data'!E34) -> Probe Danfysik Reg. Number | B34: =IF('DF raw data'!F34="","",'DF raw data'!F34) -> 2277 | C34: =IF('DF raw data'!G34="","",'DF raw data'!G34) ->  | D34: =IF('DF raw data'!H34="","",'DF raw data'!H34) -> 
A35: =IF('DF raw data'!E35="","",'DF raw data'!E35) -> Probe Axis | B35: =IF('DF raw data'!F35="","",'DF raw data'!F35) -> Bx | C35: =IF('DF raw data'!G35="","",'DF raw data'!G35) ->  | D35: =IF('DF raw data'!H35="","",'DF raw data'!H35) -> 
A36: =IF('DF raw data'!E36="","",'DF raw data'!E36) -> Probe Current Supply | B36: =IF('DF raw data'!F36="","",'DF raw data'!F36) -> 1825-D | C36: =IF('DF raw data'!G36="","",'DF raw data'!G36) ->  | D36: =IF('DF raw data'!H36="","",'DF raw data'!H36) -> 
A37: =IF('DF raw data'!E37="","",'DF raw data'!E37) -> Probe Gain Correction | B37: =IF('DF raw data'!F37="","",'DF raw data'!F37) -> 1 | C37: =IF('DF raw data'!G37="","",'DF raw data'!G37) ->  | D37: =IF('DF raw data'!H37="","",'DF raw data'!H37) -> 
A38: =IF('DF raw data'!E38="","",'DF raw data'!E38) -> Probe Offset Correction | B38: =IF('DF raw data'!F38="","",'DF raw data'!F38) -> -0.1756 | C38: =IF('DF raw data'!G38="","",'DF raw data'!G38) ->  | D38: =IF('DF raw data'!H38="","",'DF raw data'!H38) -> 
A39: =IF('DF raw data'!E39="","",'DF raw data'!E39) -> DVM Number | B39: =IF('DF raw data'!F39="","",'DF raw data'!F39) -> 3 | C39: =IF('DF raw data'!G39="","",'DF raw data'!G39) ->  | D39: =IF('DF raw data'!H39="","",'DF raw data'!H39) -> 
A40: =IF('DF raw data'!E40="","",'DF raw data'!E40) -> DVM Type | B40: =IF('DF raw data'!F40="","",'DF raw data'!F40) -> K2701 | C40: =IF('DF raw data'!G40="","",'DF raw data'!G40) ->  | D40: =IF('DF raw data'!H40="","",'DF raw data'!H40) -> 
A41: =IF('DF raw data'!E41="","",'DF raw data'!E41) -> DVM Danfysik Reg. Number | B41: =IF('DF raw data'!F41="","",'DF raw data'!F41) -> 1744-D | C41: =IF('DF raw data'!G41="","",'DF raw data'!G41) ->  | D41: =IF('DF raw data'!H41="","",'DF raw data'!H41) -> 
A42: =IF('DF raw data'!E42="","",'DF raw data'!E42) -> Probe Name | B42: =IF('DF raw data'!F42="","",'DF raw data'!F42) -> ID12_Bz | C42: =IF('DF raw data'!G42="","",'DF raw data'!G42) ->  | D42: =IF('DF raw data'!H42="","",'DF raw data'!H42) -> 
A43: =IF('DF raw data'!E43="","",'DF raw data'!E43) -> Probe Type | B43: =IF('DF raw data'!F43="","",'DF raw data'!F43) -> DF_ID_3D_Bxyz | C43: =IF('DF raw data'!G43="","",'DF raw data'!G43) ->  | D43: =IF('DF raw data'!H43="","",'DF raw data'!H43) -> 
A44: =IF('DF raw data'!E44="","",'DF raw data'!E44) -> Probe Danfysik Reg. Number | B44: =IF('DF raw data'!F44="","",'DF raw data'!F44) -> 2277 | C44: =IF('DF raw data'!G44="","",'DF raw data'!G44) ->  | D44: =IF('DF raw data'!H44="","",'DF raw data'!H44) -> 
A45: =IF('DF raw data'!E45="","",'DF raw data'!E45) -> Probe Axis | B45: =IF('DF raw data'!F45="","",'DF raw data'!F45) -> Bz | C45: =IF('DF raw data'!G45="","",'DF raw data'!G45) ->  | D45: =IF('DF raw data'!H45="","",'DF raw data'!H45) -> 
A46: =IF('DF raw data'!E46="","",'DF raw data'!E46) -> Probe Current Supply | B46: =IF('DF raw data'!F46="","",'DF raw data'!F46) -> 1825-D | C46: =IF('DF raw data'!G46="","",'DF raw data'!G46) ->  | D46: =IF('DF raw data'!H46="","",'DF raw data'!H46) -> 
A47: =IF('DF raw data'!E47="","",'DF raw data'!E47) -> Probe Gain Correction | B47: =IF('DF raw data'!F47="","",'DF raw data'!F47) -> 1 | C47: =IF('DF raw data'!G47="","",'DF raw data'!G47) ->  | D47: =IF('DF raw data'!H47="","",'DF raw data'!H47) -> 
A48: =IF('DF raw data'!E53="","",'DF raw data'!E53) -> PS-Gap: | B48: =IF('DF raw data'!F53="","",'DF raw data'!F53) -> 10 | C48: =IF('DF raw data'!G53="","",'DF raw data'!G53) ->  | D48: =IF('DF raw data'!H53="","",'DF raw data'!H53) -> 
A49: =IF('DF raw data'!E54="","",'DF raw data'!E54) -> PS-Temperature: | B49: =IF('DF raw data'!F54="","",'DF raw data'!F54) -> 24.9 | C49: =IF('DF raw data'!G54="","",'DF raw data'!G54) ->  | D49: =IF('DF raw data'!H54="","",'DF raw data'!H54) -> 
A50: =IF('DF raw data'!E55="","",'DF raw data'!E55) -> PS-Encoder: | B50: =IF('DF raw data'!F55="","",'DF raw data'!F55) -> 19.5984 | C50: =IF('DF raw data'!G55="","",'DF raw data'!G55) ->  | D50: =IF('DF raw data'!H55="","",'DF raw data'!H55) -> 
A51: =IF('DF raw data'!E56="","",'DF raw data'!E56) ->  | B51: =IF('DF raw data'!F56="","",'DF raw data'!F56) ->  | C51: =IF('DF raw data'!G56="","",'DF raw data'!G56) ->  | D51: =IF('DF raw data'!H56="","",'DF raw data'!H56) -> 
A52: =IF('DF raw data'!E57="","",'DF raw data'!E57) -> Monitor-Index | B52: =IF('DF raw data'!F57="","",'DF raw data'!F57) -> [1,1,4] | C52: =IF('DF raw data'!G57="","",'DF raw data'!G57) ->  | D52: =IF('DF raw data'!H57="","",'DF raw data'!H57) -> 
A53: =IF('DF raw data'!E58="","",'DF raw data'!E58) ->  | B53: =IF('DF raw data'!F58="","",'DF raw data'!F58) ->  | C53: =IF('DF raw data'!G58="","",'DF raw data'!G58) ->  | D53: =IF('DF raw data'!H58="","",'DF raw data'!H58) -> 
A54: =IF('DF raw data'!E59="","",'DF raw data'!E59) -> Time [s] | B54: =IF('DF raw data'!F59="","",'DF raw data'!F59) -> Y [mm] | C54: =IF('DF raw data'!G59="","",'DF raw data'!G59) -> X [mm] | D54: =IF('DF raw data'!H59="","",'DF raw data'!H59) -> Nominal current [A]
A55: =IF('DF raw data'!E60="","",'DF raw data'!E60) ->  | B55: =IF('DF raw data'!F60="","",'DF raw data'!F60) ->  | C55: =IF('DF raw data'!G60="","",'DF raw data'!G60) ->  | D55: =IF('DF raw data'!H60="","",'DF raw data'!H60) -> 
A56: =IF('DF raw data'!E61="","",'DF raw data'!E61) -> 207.6 | B56: =IF('DF raw data'!F61="","",'DF raw data'!F61) -> 31.45 | C56: =IF('DF raw data'!G61="","",'DF raw data'!G61) -> 302.55 | D56: =IF('DF raw data'!H61="","",'DF raw data'!H61) -> 0
A57: =IF('DF raw data'!E62="","",'DF raw data'!E62) ->  | B57: =IF('DF raw data'!F62="","",'DF raw data'!F62) ->  | C57: =IF('DF raw data'!G62="","",'DF raw data'!G62) ->  | D57: =IF('DF raw data'!H62="","",'DF raw data'!H62) -> 
A58: =IF('DF raw data'!E63="","",'DF raw data'!E63) -> Measurement-Index | B58: =IF('DF raw data'!F63="","",'DF raw data'!F63) -> [1,1,1201,2] | C58: =IF('DF raw data'!G63="","",'DF raw data'!G63) ->  | D58: =IF('DF raw data'!H63="","",'DF raw data'!H63) -> 
A59: =IF('DF raw data'!E64="","",'DF raw data'!E64) ->  | B59: =IF('DF raw data'!F64="","",'DF raw data'!F64) ->  | C59: =IF('DF raw data'!G64="","",'DF raw data'!G64) ->  | D59: =IF('DF raw data'!H64="","",'DF raw data'!H64) -> 
A60: =IF('DF raw data'!E65="","",'DF raw data'!E65) -> Z [mm] | B60: By [T] | C60: Bx [T] | D60: Bz [T] | F60: By_corr | G60: Bx_corr | H60: Bz_corr | J60: Iy | K60: Jy | L60: Ix | M60: Jx | N60: PI
A62: =IF('DF raw data'!E67="","",'DF raw data'!E67) -> -300 | B62: =IF('DF raw data'!F67="","",'DF raw data'!F67) -> -1.22763e-05 | C62: =IF('DF raw data'!G67="","",'DF raw data'!G67) -> 0.00025679 | D62: =IF('DF raw data'!H67="","",'DF raw data'!H67) -> -1.86655e-05 | F62: =(1-$G$1*($B$49))*B62 -> -1.258197987e-05 | G62: =(1-$G$1*($B$49-$G$2))*C62 -> 0.000258048271 | H62: =(1-$G$1*($B$49-$G$2))*D62 -> -1.875696095e-05 | J62: =F62*$G$3 -> -6.290989935e-06 | K62: =J62*$G$3 -> -3.145494967e-06 | L62: =G62*$G$3 -> 0.0001290241355 | M62: =L62*$G$3 -> 6.451206775e-05 | N62: =(J62^2+L62^2)*$G$3 -> 8.343402048e-09
A63: =IF('DF raw data'!E68="","",'DF raw data'!E68) -> -299.5 | B63: =IF('DF raw data'!F68="","",'DF raw data'!F68) -> -1.38209e-06 | C63: =IF('DF raw data'!G68="","",'DF raw data'!G68) -> 0.00025929 | D63: =IF('DF raw data'!H68="","",'DF raw data'!H68) -> -1.93274e-05 | F63: =(1-$G$1*($B$49-$G$2))*B63 -> -1.388862241e-06 | G63: =(1-$G$1*($B$49-$G$2))*C63 -> 0.000260560521 | H63: -1.942210426e-05 | J63: =F63*$G$3+J62 -> -6.985421055e-06 | K63: =J63*$G$3+K62 -> -6.638205495e-06 | L63: =G63*$G$3+L62 -> 0.000259304396 | M63: =L63*$G$3+M62 -> 0.0001941642657 | N63: =(J63^2+L63^2)*$G$3+N62 -> 4.198718499e-08
A64: =IF('DF raw data'!E69="","",'DF raw data'!E69) -> -299 | B64: =IF('DF raw data'!F69="","",'DF raw data'!F69) -> -1.64404e-05 | C64: =IF('DF raw data'!G69="","",'DF raw data'!G69) -> 0.000264437 | D64: =IF('DF raw data'!H69="","",'DF raw data'!H69) -> -2.01546e-05 | F64: =(1-$G$1*($B$49-$G$2))*B64 -> -1.652095796e-05 | G64: 0.0002657327413 | H64: -2.025335754e-05 | J64: =F64*$G$3+J63 -> -1.524590004e-05 | K64: =J64*$G$3+K63 -> -1.426115551e-05 | L64: =G64*$G$3+L63 -> 0.0003921707666 | M64: =L64*$G$3+M63 -> 0.0003902496491 | N64: =(J64^2+L64^2)*$G$3+N63 -> 1.190023588e-07
A65: =IF('DF raw data'!E70="","",'DF raw data'!E70) -> -298.5 | B65: =IF('DF raw data'!F70="","",'DF raw data'!F70) -> -1.12499e-05 | C65: =IF('DF raw data'!G70="","",'DF raw data'!G70) -> 0.000274085 | D65: =IF('DF raw data'!H70="","",'DF raw data'!H70) -> -2.02069e-05 | F65: -1.130502451e-05 | G65: 0.0002754280165 | H65: -2.030591381e-05 | J65: -2.089841229e-05 | K65: -2.471036166e-05 | L65: 0.0005298847749 | M65: 0.0006551920365 | N65: 2.59609668e-07
A66: =IF('DF raw data'!E71="","",'DF raw data'!E71) -> -298 | B66: =IF('DF raw data'!F71="","",'DF raw data'!F71) -> -1.97087e-05 | C66: =IF('DF raw data'!G71="","",'DF raw data'!G71) -> 0.000274446 | D66: =IF('DF raw data'!H71="","",'DF raw data'!H71) -> -1.97351e-05 | F66: -1.980527263e-05 | G66: 0.0002757907854 | H66: -1.983180199e-05 | J66: -3.080104861e-05 | K66: -4.011088596e-05 | L66: 0.0006677801676 | M66: 0.0009890821203 | N66: 4.830491964e-07
A67: =IF('DF raw data'!E72="","",'DF raw data'!E72) -> -297.5 | B67: =IF('DF raw data'!F72="","",'DF raw data'!F72) -> -1.57362e-05 | C67: =IF('DF raw data'!G72="","",'DF raw data'!G72) -> 0.000264314 | D67: =IF('DF raw data'!H72="","",'DF raw data'!H72) -> -1.93581e-05 | F67: -1.581330738e-05 | G67: 0.0002656091386 | H67: -1.945295469e-05 | J67: -3.87077023e-05 | K67: -5.946473711e-05 | L67: 0.0008005847369 | M67: 0.001389374489 | N67: 8.042663e-07
A68: =IF('DF raw data'!E73="","",'DF raw data'!E73) -> -297 | B68: =IF('DF raw data'!F73="","",'DF raw data'!F73) -> -1.37499e-05 | C68: =IF('DF raw data'!G73="","",'DF raw data'!G73) -> 0.00026507 | D68: =IF('DF raw data'!H73="","",'DF raw data'!H73) -> -1.88763e-05 | F68: -1.381727451e-05 | G68: 0.000266368843 | H68: -1.896879387e-05 | J68: -4.561633955e-05 | K68: -8.227290688e-05 | L68: 0.0009337691584 | M68: 0.001856259068 | N68: 1.241269146e-06
A69: =IF('DF raw data'!E74="","",'DF raw data'!E74) -> -296.5 | B69: =IF('DF raw data'!F74="","",'DF raw data'!F74) -> -2.0671e-05 | C69: =IF('DF raw data'!G74="","",'DF raw data'!G74) -> 0.000259029 | D69: =IF('DF raw data'!H74="","",'DF raw data'!H74) -> -1.82474e-05 | F69: -2.07722879e-05 | G69: 0.0002602982421 | H69: -1.833681226e-05 | J69: -5.60024835e-05 | K69: -0.0001102741486 | L69: 0.001063918279 | M69: 0.002388218208 | N69: 1.808798338e-06
A70: =IF('DF raw data'!E75="","",'DF raw data'!E75) -> -296 | B70: =IF('DF raw data'!F75="","",'DF raw data'!F75) -> -8.05803e-07 | C70: =IF('DF raw data'!G75="","",'DF raw data'!G75) -> 0.000260395 | D70: =IF('DF raw data'!H75="","",'DF raw data'!H75) -> -1.84937e-05 | F70: -8.097514347e-07 | G70: 0.0002616709355 | H70: -1.858431913e-05 | J70: -5.640735922e-05 | K70: -0.0001384778282 | L70: 0.001194753747 | M70: 0.002985595081 | N70: 2.524107491e-06
A71: =IF('DF raw data'!E76="","",'DF raw data'!E76) -> -295.5 | B71: =IF('DF raw data'!F76="","",'DF raw data'!F76) -> -5.93147e-06 | C71: =IF('DF raw data'!G76="","",'DF raw data'!G76) -> 0.000261687 | D71: =IF('DF raw data'!H76="","",'DF raw data'!H76) -> -1.97194e-05 | F71: -5.960534203e-06 | G71: 0.0002629692663 | H71: -1.981602506e-05 | J71: -5.938762632e-05 | K71: -0.0001681716414 | L71: 0.00132623838 | M71: 0.003648714271 | N71: 3.405325057e-06
A72: =IF('DF raw data'!E77="","",'DF raw data'!E77) -> -295 | B72: =IF('DF raw data'!F77="","",'DF raw data'!F77) -> -7.02022e-06 | C72: =IF('DF raw data'!G77="","",'DF raw data'!G77) -> 0.000250606 | D72: =IF('DF raw data'!H77="","",'DF raw data'!H77) -> -2.07165e-05 | F72: -7.054619078e-06 | G72: 0.0002518339694 | H72: -2.081801085e-05 | J72: -6.291493586e-05 | K72: -0.0001996291093 | L72: 0.001452155365 | M72: 0.004374791954 | N72: 4.461681803e-06
A73: =IF('DF raw data'!E78="","",'DF raw data'!E78) -> -294.5 | B73: =IF('DF raw data'!F78="","",'DF raw data'!F78) -> -1.80423e-05 | C73: =IF('DF raw data'!G78="","",'DF raw data'!G78) -> 0.000255204 | D73: =IF('DF raw data'!H78="","",'DF raw data'!H78) -> -2.05087e-05 | F73: -1.813070727e-05 | G73: 0.0002564544996 | H73: -2.060919263e-05 | J73: -7.198028949e-05 | K73: -0.0002356192541 | L73: 0.001580382615 | M73: 0.005164983261 | N73: 5.713076989e-06
A74: =IF('DF raw data'!E79="","",'DF raw data'!E79) -> -294 | B74: =IF('DF raw data'!F79="","",'DF raw data'!F79) -> -1.8299e-05 | C74: =IF('DF raw data'!G79="","",'DF raw data'!G79) -> 0.000261762 | D74: =IF('DF raw data'!H79="","",'DF raw data'!H79) -> -1.96621e-05 | F74: -1.83886651e-05 | G74: 0.0002630446338 | H74: -1.975844429e-05 | J74: -8.117462204e-05 | K74: -0.0002762065651 | L74: 0.001711904932 | M74: 0.006020935727 | N74: 7.181680896e-06
A75: =IF('DF raw data'!E80="","",'DF raw data'!E80) -> -293.5 | B75: =IF('DF raw data'!F80="","",'DF raw data'!F80) -> -1.4711e-05 | C75: =IF('DF raw data'!G80="","",'DF raw data'!G80) -> 0.000266322 | D75: =IF('DF raw data'!H80="","",'DF raw data'!H80) -> -1.89313e-05 | F75: -1.47830839e-05 | G75: 0.0002676269778 | H75: -1.902406337e-05 | J75: -8.856616399e-05 | K75: -0.0003204896471 | L75: 0.001845718421 | M75: 0.006943794938 | N75: 8.888941123e-06
A76: =IF('DF raw data'!E81="","",'DF raw data'!E81) -> -293 | B76: =IF('DF raw data'!F81="","",'DF raw data'!F81) -> -1.66336e-05 | C76: =IF('DF raw data'!G81="","",'DF raw data'!G81) -> 0.00026865 | D76: =IF('DF raw data'!H81="","",'DF raw data'!H81) -> -1.86919e-05 | F76: -1.671510464e-05 | G76: 0.000269966385 | H76: -1.878349031e-05 | J76: -9.692371631e-05 | K76: -0.0003689515053 | L76: 0.001980701613 | M76: 0.007934145744 | N76: 1.085522767e-05
A77: =IF('DF raw data'!E82="","",'DF raw data'!E82) -> -292.5 | B77: =IF('DF raw data'!F82="","",'DF raw data'!F82) -> -7.40565e-06 | C77: =IF('DF raw data'!G82="","",'DF raw data'!G82) -> 0.000261817 | D77: =IF('DF raw data'!H82="","",'DF raw data'!H82) -> -1.93099e-05 | F77: -7.441937685e-06 | G77: 0.0002630999033 | H77: -1.940451851e-05 | J77: -0.0001006446852 | K77: -0.0004192738478 | L77: 0.002112251565 | M77: 0.008990271527 | N77: 1.309109568e-05
A78: =IF('DF raw data'!E83="","",'DF raw data'!E83) -> -292 | B78: =IF('DF raw data'!F83="","",'DF raw data'!F83) -> -7.40509e-06 | C78: =IF('DF raw data'!G83="","",'DF raw data'!G83) -> 0.000267111 | D78: =IF('DF raw data'!H83="","",'DF raw data'!H83) -> -2.00932e-05 | F78: -7.441374941e-06 | G78: 0.0002684198439 | H78: -2.019165668e-05 | J78: -0.0001043653726 | K78: -0.0004714565341 | L78: 0.002246461487 | M78: 0.01011350227 | N78: 1.561983635e-05
A79: =IF('DF raw data'!E84="","",'DF raw data'!E84) -> -291.5 | B79: =IF('DF raw data'!F84="","",'DF raw data'!F84) -> -2.44529e-05 | C79: =IF('DF raw data'!G84="","",'DF raw data'!G84) -> 0.000265548 | D79: =IF('DF raw data'!H84="","",'DF raw data'!H84) -> -1.64316e-05 | F79: -2.457271921e-05 | G79: 0.0002668491852 | H79: -1.651211484e-05 | J79: -0.0001166517322 | K79: -0.0005297824003 | L79: 0.002379886079 | M79: 0.01130344531 | N79: 1.845856904e-05
A80: =IF('DF raw data'!E85="","",'DF raw data'!E85) -> -291 | B80: =IF('DF raw data'!F85="","",'DF raw data'!F85) -> -1.03681e-05 | C80: =IF('DF raw data'!G85="","",'DF raw data'!G85) -> 0.000264149 | D80: =IF('DF raw data'!H85="","",'DF raw data'!H85) -> 3.30283e-06 | F80: -1.041890369e-05 | G80: 0.0002654433301 | H80: 3.319013867e-06 | J80: -0.0001218611841 | K80: -0.0005907129923 | L80: 0.002512607744 | M80: 0.01255974918 | N80: 2.162259295e-05
A81: =IF('DF raw data'!E86="","",'DF raw data'!E86) -> -290.5 | B81: =IF('DF raw data'!F86="","",'DF raw data'!F86) -> -1.73469e-05 | C81: =IF('DF raw data'!G86="","",'DF raw data'!G86) -> 0.000262845 | D81: =IF('DF raw data'!H86="","",'DF raw data'!H86) -> -5.60999e-06 | F81: -1.743189981e-05 | G81: 0.0002641329405 | H81: -5.637478951e-06 | J81: -0.000130577134 | K81: -0.0006560015593 | L81: 0.002644674215 | M81: 0.01388208629 | N81: 2.5128269e-05
A82: =IF('DF raw data'!E87="","",'DF raw data'!E87) -> -290 | B82: =IF('DF raw data'!F87="","",'DF raw data'!F87) -> -2.04131e-05 | C82: =IF('DF raw data'!G87="","",'DF raw data'!G87) -> 0.000261463 | D82: =IF('DF raw data'!H87="","",'DF raw data'!H87) -> -2.05646e-05 | F82: -2.051312419e-05 | G82: 0.0002627441687 | H82: -2.066536654e-05 | J82: -0.0001408336961 | K82: -0.0007264184073 | L82: 0.002776046299 | M82: 0.01527010944 | N82: 2.899140259e-05
A83: =IF('DF raw data'!E88="","",'DF raw data'!E88) -> -289.5 | B83: =IF('DF raw data'!F88="","",'DF raw data'!F88) -> -2.91895e-05 | C83: =IF('DF raw data'!G88="","",'DF raw data'!G88) -> 0.000254184 | D83: =IF('DF raw data'!H88="","",'DF raw data'!H88) -> -2.47851e-05 | F83: -2.933252855e-05 | G83: 0.0002554295016 | H83: -2.490654699e-05 | J83: -0.0001554999604 | K83: -0.0008041683875 | L83: 0.00290376105 | M83: 0.01672198996 | N83: 3.321940683e-05
A84: =IF('DF raw data'!E89="","",'DF raw data'!E89) -> -289 | B84: =IF('DF raw data'!F89="","",'DF raw data'!F89) -> -2.04821e-05 | C84: =IF('DF raw data'!G89="","",'DF raw data'!G89) -> 0.000263572 | D84: =IF('DF raw data'!H89="","",'DF raw data'!H89) -> -1.3166e-05 | F84: -2.058246229e-05 | G84: 0.0002648635028 | H84: -1.32305134e-05 | J84: -0.0001657911915 | K84: -0.0008870639833 | L84: 0.003036192801 | M84: 0.01824008636 | N84: 3.784238355e-05
A85: =IF('DF raw data'!E90="","",'DF raw data'!E90) -> -288.5 | B85: =IF('DF raw data'!F90="","",'DF raw data'!F90) -> -5.35285e-06 | C85: =IF('DF raw data'!G90="","",'DF raw data'!G90) -> 0.000273508 | D85: =IF('DF raw data'!H90="","",'DF raw data'!H90) -> -2.29015e-05 | F85: -5.379078965e-06 | G85: 0.0002748481892 | H85: -2.301371735e-05 | J85: -0.000168480731 | K85: -0.0009713043487 | L85: 0.003173616896 | M85: 0.01982689481 | N85: 4.289249853e-05
A86: =IF('DF raw data'!E91="","",'DF raw data'!E91) -> -288 | B86: =IF('DF raw data'!F91="","",'DF raw data'!F91) -> -1.65687e-05 | C86: =IF('DF raw data'!G91="","",'DF raw data'!G91) -> 0.000261478 | D86: =IF('DF raw data'!H91="","",'DF raw data'!H91) -> -1.96437e-05 | F86: -1.664988663e-05 | G86: 0.0002627592422 | H86: -1.973995413e-05 | J86: -0.0001768056743 | K86: -0.001059707186 | L86: 0.003304996517 | M86: 0.02147939307 | N86: 4.836962964e-05
A87: =IF('DF raw data'!E92="","",'DF raw data'!E92) -> -287.5 | B87: =IF('DF raw data'!F92="","",'DF raw data'!F92) -> -1.38096e-05 | C87: =IF('DF raw data'!G92="","",'DF raw data'!G92) -> 0.000255611 | D87: =IF('DF raw data'!H92="","",'DF raw data'!H92) -> -2.57266e-05 | F87: -1.387726704e-05 | G87: 0.0002568634939 | H87: -2.585266034e-05 | J87: -0.0001837443078 | K87: -0.00115157934 | L87: 0.003433428264 | M87: 0.0231961072 | N87: 5.428072545e-05
A88: =IF('DF raw data'!E93="","",'DF raw data'!E93) -> -287 | B88: =IF('DF raw data'!F93="","",'DF raw data'!F93) -> -1.40034e-05 | C88: =IF('DF raw data'!G93="","",'DF raw data'!G93) -> 0.000261754 | D88: =IF('DF raw data'!H93="","",'DF raw data'!H93) -> -2.31467e-05 | F88: -1.407201666e-05 | G88: 0.0002630365946 | H88: -2.326011883e-05 | J88: -0.0001907803161 | K88: -0.001246969498 | L88: 0.003564946561 | M88: 0.02497858048 | N88: 6.0653346e-05
A89: =IF('DF raw data'!E94="","",'DF raw data'!E94) -> -286.5 | B89: =IF('DF raw data'!F94="","",'DF raw data'!F94) -> -2.52209e-05 | C89: =IF('DF raw data'!G94="","",'DF raw data'!G94) -> 0.000258618 | D89: =IF('DF raw data'!H94="","",'DF raw data'!H94) -> -1.80124e-05 | F89: -2.534448241e-05 | G89: 0.0002598852282 | H89: -1.810066076e-05 | J89: -0.0002034525573 | K89: -0.001348695777 | L89: 0.003694889175 | M89: 0.02682602507 | N89: 6.750014548e-05
A90: =IF('DF raw data'!E95="","",'DF raw data'!E95) -> -286 | B90: =IF('DF raw data'!F95="","",'DF raw data'!F95) -> -2.27811e-05 | C90: =IF('DF raw data'!G95="","",'DF raw data'!G95) -> 0.000261096 | D90: =IF('DF raw data'!H95="","",'DF raw data'!H95) -> -2.49081e-05 | F90: -2.289272739e-05 | G90: 0.0002623753704 | H90: -2.503014969e-05 | J90: -0.000214898921 | K90: -0.001456145237 | L90: 0.00382607686 | M90: 0.0287390635 | N90: 7.484266833e-05
A91: =IF('DF raw data'!E96="","",'DF raw data'!E96) -> -285.5 | B91: =IF('DF raw data'!F96="","",'DF raw data'!F96) -> -9.84615e-06 | C91: =IF('DF raw data'!G96="","",'DF raw data'!G96) -> 0.000267632 | D91: =IF('DF raw data'!H96="","",'DF raw data'!H96) -> -1.12049e-05 | F91: -9.894396135e-06 | G91: 0.0002689433968 | H91: -1.125980401e-05 | J91: -0.0002198461191 | K91: -0.001566068297 | L91: 0.003960548559 | M91: 0.03071933778 | N91: 8.270980693e-05
A92: =IF('DF raw data'!E97="","",'DF raw data'!E97) -> -285 | B92: =IF('DF raw data'!F97="","",'DF raw data'!F97) -> -1.91322e-05 | C92: =IF('DF raw data'!G97="","",'DF raw data'!G97) -> 0.000261239 | D92: =IF('DF raw data'!H97="","",'DF raw data'!H97) -> -1.94548e-05 | F92: -1.922594778e-05 | G92: 0.0002625190711 | H92: -1.955012852e-05 | J92: -0.000229459093 | K92: -0.001680797843 | L92: 0.004091808094 | M92: 0.03276524183 | N92: 9.110757941e-05
A93: =IF('DF raw data'!E98="","",'DF raw data'!E98) -> -284.5 | B93: =IF('DF raw data'!F98="","",'DF raw data'!F98) -> -7.86191e-06 | C93: =IF('DF raw data'!G98="","",'DF raw data'!G98) -> 0.000261831 | D93: =IF('DF raw data'!H98="","",'DF raw data'!H98) -> -7.69677e-06 | F93: -7.900433359e-06 | G93: 0.0002631139719 | H93: -7.734484173e-06 | J93: -0.0002334093097 | K93: -0.001797502498 | L93: 0.00422336508 | M93: 0.03487692437 | N93: 0.0001000532257
A94: =IF('DF raw data'!E99="","",'DF raw data'!E99) -> -284 | B94: =IF('DF raw data'!F99="","",'DF raw data'!F99) -> -1.72751e-05 | C94: =IF('DF raw data'!G99="","",'DF raw data'!G99) -> 0.00026251 | D94: =IF('DF raw data'!H99="","",'DF raw data'!H99) -> -1.73353e-05 | F94: -1.735974799e-05 | G94: 0.000263796299 | H94: -1.742024297e-05 | J94: -0.0002420891837 | K94: -0.00191854709 | L94: 0.00435526323 | M94: 0.03705455598 | N94: 0.0001095666881
A95: =IF('DF raw data'!E100="","",'DF raw data'!E100) -> -283.5 | B95: =IF('DF raw data'!F100="","",'DF raw data'!F100) -> -3.05405e-06 | C95: =IF('DF raw data'!G100="","",'DF raw data'!G100) -> 0.000261273 | D95: =IF('DF raw data'!H100="","",'DF raw data'!H100) -> -1.02006e-05 | F95: -3.069014845e-06 | G95: 0.0002625532377 | H95: -1.025058294e-05 | J95: -0.0002436236911 | K95: -0.002040358935 | L95: 0.004486539849 | M95: 0.03929782591 | N95: 0.0001196608843
A96: =IF('DF raw data'!E101="","",'DF raw data'!E101) -> -283 | B96: =IF('DF raw data'!F101="","",'DF raw data'!F101) -> -1.4581e-05 | C96: =IF('DF raw data'!G101="","",'DF raw data'!G101) -> 0.000262702 | D96: =IF('DF raw data'!H101="","",'DF raw data'!H101) -> -2.13683e-05 | F96: -1.46524469e-05 | G96: 0.0002639892398 | H96: -2.147300467e-05 | J96: -0.0002509499145 | K96: -0.002165833893 | L96: 0.004618534469 | M96: 0.04160709314 | N96: 0.0001303578026
A97: =IF('DF raw data'!E102="","",'DF raw data'!E102) -> -282.5 | B97: =IF('DF raw data'!F102="","",'DF raw data'!F102) -> -1.99057e-05 | C97: =IF('DF raw data'!G102="","",'DF raw data'!G102) -> 0.000262321 | D97: =IF('DF raw data'!H102="","",'DF raw data'!H102) -> -1.29557e-05 | F97: -2.000323793e-05 | G97: 0.0002636063729 | H97: -1.301918293e-05 | J97: -0.0002609515335 | K97: -0.002296309659 | L97: 0.004750337655 | M97: 0.04398226197 | N97: 0.0001416747043
A98: =IF('DF raw data'!E103="","",'DF raw data'!E103) -> -282 | B98: =IF('DF raw data'!F103="","",'DF raw data'!F103) -> -4.01728e-06 | C98: =IF('DF raw data'!G103="","",'DF raw data'!G103) -> 0.00026535 | D98: =IF('DF raw data'!H103="","",'DF raw data'!H103) -> -7.0853e-06 | F98: -4.036964672e-06 | G98: 0.000266650215 | H98: -7.12001797e-06 | J98: -0.0002629700158 | K98: -0.002427794667 | L98: 0.004883662763 | M98: 0.04642409335 | N98: 0.0001536343619
A99: =IF('DF raw data'!E104="","",'DF raw data'!E104) -> -281.5 | B99: =IF('DF raw data'!F104="","",'DF raw data'!F104) -> -5.86965e-06 | C99: =IF('DF raw data'!G104="","",'DF raw data'!G104) -> 0.000264515 | D99: =IF('DF raw data'!H104="","",'DF raw data'!H104) -> -1.65021e-05 | F99: -5.898411285e-06 | G99: 0.0002658111235 | H99: -1.658296029e-05 | J99: -0.0002659192215 | K99: -0.002560754278 | L99: 0.005016568324 | M99: 0.04893237751 | N99: 0.0001662526973
A100: =IF('DF raw data'!E105="","",'DF raw data'!E105) -> -281 | B100: =IF('DF raw data'!F105="","",'DF raw data'!F105) -> 1.4348e-06 | C100: =IF('DF raw data'!G105="","",'DF raw data'!G105) -> 0.000257884 | D100: =IF('DF raw data'!H105="","",'DF raw data'!H105) -> -1.50792e-05 | F100: 1.44183052e-06 | G100: 0.0002591476316 | H100: -1.515308808e-05 | J100: -0.0002651983062 | K100: -0.002693353431 | L100: 0.00514614214 | M100: 0.05150544858 | N100: 0.0001795292519
A101: =IF('DF raw data'!E106="","",'DF raw data'!E106) -> -280.5 | B101: =IF('DF raw data'!F106="","",'DF raw data'!F106) -> -9.39588e-06 | C101: =IF('DF raw data'!G106="","",'DF raw data'!G106) -> 0.000253292 | D101: =IF('DF raw data'!H106="","",'DF raw data'!H106) -> -1.37e-05 | F101: -9.441919812e-06 | G101: 0.0002545331308 | H101: -1.376713e-05 | J101: -0.0002699192661 | K101: -0.002828313064 | L101: 0.005273408706 | M101: 0.05414215294 | N101: 0.0001934700997
A102: =IF('DF raw data'!E107="","",'DF raw data'!E107) -> -280 | B102: =IF('DF raw data'!F107="","",'DF raw data'!F107) -> -1.27863e-05 | C102: =IF('DF raw data'!G107="","",'DF raw data'!G107) -> 0.000253813 | D102: =IF('DF raw data'!H107="","",'DF raw data'!H107) -> -2.23267e-05 | F102: -1.284895287e-05 | G102: 0.0002550566837 | H102: -2.243610083e-05 | J102: -0.0002763437426 | K102: -0.002966484936 | L102: 0.005400937047 | M102: 0.05684262146 | N102: 0.0002080933432
A103: =IF('DF raw data'!E108="","",'DF raw data'!E108) -> -279.5 | B103: =IF('DF raw data'!F108="","",'DF raw data'!F108) -> -3.62108e-06 | C103: =IF('DF raw data'!G108="","",'DF raw data'!G108) -> 0.000256896 | D103: =IF('DF raw data'!H108="","",'DF raw data'!H108) -> -2.53046e-05 | F103: -3.638823292e-06 | G103: 0.0002581547904 | H103: -2.542859254e-05 | J103: -0.0002781631542 | K103: -0.003105566513 | L103: 0.005530014443 | M103: 0.05960762868 | N103: 0.0002234225604
A104: =IF('DF raw data'!E109="","",'DF raw data'!E109) -> -279 | B104: =IF('DF raw data'!F109="","",'DF raw data'!F109) -> -1.11236e-05 | C104: =IF('DF raw data'!G109="","",'DF raw data'!G109) -> 0.000257891 | D104: =IF('DF raw data'!H109="","",'DF raw data'!H109) -> -1.72516e-05 | F104: -1.117810564e-05 | G104: 0.0002591546659 | H104: -1.733613284e-05 | J104: -0.000283752207 | K104: -0.003247442616 | L104: 0.005659591776 | M104: 0.06243742457 | N104: 0.0002394783076
A105: =IF('DF raw data'!E110="","",'DF raw data'!E110) -> -278.5 | B105: =IF('DF raw data'!F110="","",'DF raw data'!F110) -> -4.90425e-06 | C105: =IF('DF raw data'!G110="","",'DF raw data'!G110) -> 0.000259074 | D105: =IF('DF raw data'!H110="","",'DF raw data'!H110) -> -2.27954e-05 | F105: -4.928280825e-06 | G105: 0.0002603434626 | H105: -2.290709746e-05 | J105: -0.0002862163475 | K105: -0.00339055079 | L105: 0.005789763507 | M105: 0.06533230632 | N105: 0.0002562799482
A106: =IF('DF raw data'!E111="","",'DF raw data'!E111) -> -278 | B106: =IF('DF raw data'!F111="","",'DF raw data'!F111) -> -8.6263e-06 | C106: =IF('DF raw data'!G111="","",'DF raw data'!G111) -> 0.00026254 | D106: =IF('DF raw data'!H111="","",'DF raw data'!H111) -> -1.44843e-05 | F106: -8.66856887e-06 | G106: 0.000263826446 | H106: -1.455527307e-05 | J106: -0.0002905506319 | K106: -0.003535826106 | L106: 0.00592167673 | M106: 0.06829314469 | N106: 0.0002738552857
A107: =IF('DF raw data'!E112="","",'DF raw data'!E112) -> -277.5 | B107: =IF('DF raw data'!F112="","",'DF raw data'!F112) -> -1.15055e-05 | C107: =IF('DF raw data'!G112="","",'DF raw data'!G112) -> 0.000262479 | D107: =IF('DF raw data'!H112="","",'DF raw data'!H112) -> -2.14059e-05 | F107: -1.156187695e-05 | G107: 0.0002637651471 | H107: -2.151078891e-05 | J107: -0.0002963315704 | K107: -0.003683991891 | L107: 0.006053559303 | M107: 0.07131992434 | N107: 0.000292221982
A108: =IF('DF raw data'!E113="","",'DF raw data'!E113) -> -277 | B108: =IF('DF raw data'!F113="","",'DF raw data'!F113) -> -1.04854e-05 | C108: =IF('DF raw data'!G113="","",'DF raw data'!G113) -> 0.000264167 | D108: =IF('DF raw data'!H113="","",'DF raw data'!H113) -> -1.34045e-05 | F108: -1.053677846e-05 | G108: 0.0002654614183 | H108: -1.347018205e-05 | J108: -0.0003015999596 | K108: -0.003834791871 | L108: 0.006186290013 | M108: 0.07441306934 | N108: 0.0003114025554
A109: =IF('DF raw data'!E114="","",'DF raw data'!E114) -> -276.5 | B109: =IF('DF raw data'!F114="","",'DF raw data'!F114) -> -1.96141e-06 | C109: =IF('DF raw data'!G114="","",'DF raw data'!G114) -> 0.000269054 | D109: =IF('DF raw data'!H114="","",'DF raw data'!H114) -> -1.55031e-05 | F109: -1.971020909e-06 | G109: 0.0002703723646 | H109: -1.557906519e-05 | J109: -0.00030258547 | K109: -0.003986084606 | L109: 0.006321476195 | M109: 0.07757380744 | N109: 0.000331428865
A110: =IF('DF raw data'!E115="","",'DF raw data'!E115) -> -276 | B110: =IF('DF raw data'!F115="","",'DF raw data'!F115) -> -7.40494e-06 | C110: =IF('DF raw data'!G115="","",'DF raw data'!G115) -> 0.00026139 | D110: =IF('DF raw data'!H115="","",'DF raw data'!H115) -> -2.03068e-05 | F110: -7.441224206e-06 | G110: 0.000262670811 | H110: -2.040630332e-05 | J110: -0.0003063060821 | K110: -0.004139237647 | L110: 0.0064528116 | M110: 0.08080021324 | N110: 0.0003522951655
A111: =IF('DF raw data'!E116="","",'DF raw data'!E116) -> -275.5 | B111: =IF('DF raw data'!F116="","",'DF raw data'!F116) -> -1.49057e-05 | C111: =IF('DF raw data'!G116="","",'DF raw data'!G116) -> 0.000255084 | D111: =IF('DF raw data'!H116="","",'DF raw data'!H116) -> -1.52805e-05 | F111: -1.497873793e-05 | G111: 0.0002563339116 | H111: -1.535537445e-05 | J111: -0.0003137954511 | K111: -0.004296135372 | L111: 0.006580978556 | M111: 0.08409070252 | N111: 0.0003739990386
A112: =IF('DF raw data'!E117="","",'DF raw data'!E117) -> -275 | B112: =IF('DF raw data'!F117="","",'DF raw data'!F117) -> 2.91476e-06 | C112: =IF('DF raw data'!G117="","",'DF raw data'!G117) -> 0.000260814 | D112: =IF('DF raw data'!H117="","",'DF raw data'!H117) -> -2.4823e-05 | F112: 2.929042324e-06 | G112: 0.0002620919886 | H112: -2.49446327e-05 | J112: -0.00031233093 | K112: -0.004452300837 | L112: 0.00671202455 | M112: 0.08744671479 | N112: 0.0003965734507
A113: =IF('DF raw data'!E118="","",'DF raw data'!E118) -> -274.5 | B113: =IF('DF raw data'!F118="","",'DF raw data'!F118) -> -3.30223e-06 | C113: =IF('DF raw data'!G118="","",'DF raw data'!G118) -> 0.000270263 | D113: =IF('DF raw data'!H118="","",'DF raw data'!H118) -> -2.27201e-05 | F113: -3.318410927e-06 | G113: 0.0002715872887 | H113: -2.283142849e-05 | J113: -0.0003139901354 | K113: -0.004609295905 | L113: 0.006847818195 | M113: 0.09087062389 | N113: 0.0004200690526
A114: =IF('DF raw data'!E119="","",'DF raw data'!E119) -> -274 | B114: =IF('DF raw data'!F119="","",'DF raw data'!F119) -> -1.36246e-05 | C114: =IF('DF raw data'!G119="","",'DF raw data'!G119) -> 0.000262446 | D114: =IF('DF raw data'!H119="","",'DF raw data'!H119) -> -1.43663e-05 | F114: -1.369136054e-05 | G114: 0.0002637319854 | H114: -1.443669487e-05 | J114: -0.0003208358157 | K114: -0.004769713813 | L114: 0.006979684187 | M114: 0.09436046599 | N114: 0.0004444785161
A115: =IF('DF raw data'!E120="","",'DF raw data'!E120) -> -273.5 | B115: =IF('DF raw data'!F120="","",'DF raw data'!F120) -> -1.58658e-05 | C115: =IF('DF raw data'!G120="","",'DF raw data'!G120) -> 0.000250175 | D115: =IF('DF raw data'!H120="","",'DF raw data'!H120) -> -1.72596e-05 | F115: -1.594354242e-05 | G115: 0.0002514008575 | H115: -1.734417204e-05 | J115: -0.0003288075869 | K115: -0.004934117606 | L115: 0.007105384616 | M115: 0.09791315829 | N115: 0.0004697758186
A116: =IF('DF raw data'!E121="","",'DF raw data'!E121) -> -273 | B116: =IF('DF raw data'!F121="","",'DF raw data'!F121) -> -1.84267e-05 | C116: =IF('DF raw data'!G121="","",'DF raw data'!G121) -> 0.000253991 | D116: =IF('DF raw data'!H121="","",'DF raw data'!H121) -> -2.01835e-05 | F116: -1.851699083e-05 | G116: 0.0002552355559 | H116: -2.028239915e-05 | J116: -0.0003380660823 | K116: -0.005103150648 | L116: 0.007233002394 | M116: 0.1015296595 | N116: 0.0004959911248
A117: =IF('DF raw data'!E122="","",'DF raw data'!E122) -> -272.5 | B117: =IF('DF raw data'!F122="","",'DF raw data'!F122) -> -5.54779e-06 | C117: =IF('DF raw data'!G122="","",'DF raw data'!G122) -> 0.000254112 | D117: =IF('DF raw data'!H122="","",'DF raw data'!H122) -> -1.85547e-05 | F117: -5.574974171e-06 | G117: 0.0002553571488 | H117: -1.864561803e-05 | J117: -0.0003408535694 | K117: -0.005273577432 | L117: 0.007360680969 | M117: 0.10521 | N117: 0.0005231390275
A118: =IF('DF raw data'!E123="","",'DF raw data'!E123) -> -272 | B118: =IF('DF raw data'!F123="","",'DF raw data'!F123) -> -7.46582e-06 | C118: =IF('DF raw data'!G123="","",'DF raw data'!G123) -> 0.00025125 | D118: =IF('DF raw data'!H123="","",'DF raw data'!H123) -> -2.5403e-05 | F118: -7.502402518e-06 | G118: 0.000252481125 | H118: -2.55274747e-05 | J118: -0.0003446047707 | K118: -0.005445879818 | L118: 0.007486921531 | M118: 0.1089534607 | N118: 0.0005512254007
A119: =IF('DF raw data'!E124="","",'DF raw data'!E124) -> -271.5 | B119: =IF('DF raw data'!F124="","",'DF raw data'!F124) -> -1.84259e-05 | C119: =IF('DF raw data'!G124="","",'DF raw data'!G124) -> 0.000255646 | D119: =IF('DF raw data'!H124="","",'DF raw data'!H124) -> -2.18737e-05 | F119: -1.851618691e-05 | G119: 0.0002568986654 | H119: -2.198088113e-05 | J119: -0.0003538628641 | K119: -0.00562281125 | L119: 0.007615370864 | M119: 0.1127611462 | N119: 0.0005802849469
A120: =IF('DF raw data'!E125="","",'DF raw data'!E125) -> -271 | B120: =IF('DF raw data'!F125="","",'DF raw data'!F125) -> -3.56428e-06 | C120: =IF('DF raw data'!G125="","",'DF raw data'!G125) -> 0.000259827 | D120: =IF('DF raw data'!H125="","",'DF raw data'!H125) -> -1.37758e-05 | F120: -3.581744972e-06 | G120: 0.0002611001523 | H120: -1.384330142e-05 | J120: -0.0003556537366 | K120: -0.005800638118 | L120: 0.00774592094 | M120: 0.1166341066 | N120: 0.0006103478373
A121: =IF('DF raw data'!E126="","",'DF raw data'!E126) -> -270.5 | B121: =IF('DF raw data'!F126="","",'DF raw data'!F126) -> -1.25397e-05 | C121: =IF('DF raw data'!G126="","",'DF raw data'!G126) -> 0.000262505 | D121: =IF('DF raw data'!H126="","",'DF raw data'!H126) -> -7.72529e-06 | F121: -1.260114453e-05 | G121: 0.0002637912745 | H121: -7.763143921e-06 | J121: -0.0003619543089 | K121: -0.005981615272 | L121: 0.007877816577 | M121: 0.1205730149 | N121: 0.0006414433398
A122: =IF('DF raw data'!E127="","",'DF raw data'!E127) -> -270 | B122: =IF('DF raw data'!F127="","",'DF raw data'!F127) -> -9.51862e-06 | C122: =IF('DF raw data'!G127="","",'DF raw data'!G127) -> 0.000266131 | D122: =IF('DF raw data'!H127="","",'DF raw data'!H127) -> -2.17289e-05 | F122: -9.565261238e-06 | G122: 0.0002674350419 | H122: -2.183537161e-05 | J122: -0.0003667369395 | K122: -0.006164983742 | L122: 0.008011534098 | M122: 0.124578782 | N122: 0.0006736029271
A123: =IF('DF raw data'!E128="","",'DF raw data'!E128) -> -269.5 | B123: =IF('DF raw data'!F128="","",'DF raw data'!F128) -> -3.95047e-06 | C123: =IF('DF raw data'!G128="","",'DF raw data'!G128) -> 0.00026194 | D123: =IF('DF raw data'!H128="","",'DF raw data'!H128) -> -1.12557e-05 | F123: -3.969827303e-06 | G123: 0.000263223506 | H123: -1.131085293e-05 | J123: -0.0003687218531 | K123: -0.006349344669 | L123: 0.008143145851 | M123: 0.1286503549 | N123: 0.0007068263171
A124: =IF('DF raw data'!E129="","",'DF raw data'!E129) -> -269 | B124: =IF('DF raw data'!F129="","",'DF raw data'!F129) -> -5.99789e-06 | C124: =IF('DF raw data'!G129="","",'DF raw data'!G129) -> 0.000266514 | D124: =IF('DF raw data'!H129="","",'DF raw data'!H129) -> -1.61536e-05 | F124: -6.027279661e-06 | G124: 0.0002678199186 | H124: -1.623275264e-05 | J124: -0.000371735493 | K124: -0.006535212415 | L124: 0.00827705581 | M124: 0.1327888828 | N124: 0.0007411502372
A125: =IF('DF raw data'!E130="","",'DF raw data'!E130) -> -268.5 | B125: =IF('DF raw data'!F130="","",'DF raw data'!F130) -> -2.17543e-05 | C125: =IF('DF raw data'!G130="","",'DF raw data'!G130) -> 0.000259361 | D125: =IF('DF raw data'!H130="","",'DF raw data'!H130) -> -2.80178e-05 | F125: -2.186089607e-05 | G125: 0.0002606318689 | H125: -2.815508722e-05 | J125: -0.000382665941 | K125: -0.006726545386 | L125: 0.008407371745 | M125: 0.1369925687 | N125: 0.0007765654037
A126: =IF('DF raw data'!E131="","",'DF raw data'!E131) -> -268 | B126: =IF('DF raw data'!F131="","",'DF raw data'!F131) -> -2.157e-05 | C126: =IF('DF raw data'!G131="","",'DF raw data'!G131) -> 0.00025793 | D126: =IF('DF raw data'!H131="","",'DF raw data'!H131) -> -1.47321e-05 | F126: -2.1675693e-05 | G126: 0.000259193857 | H126: -1.480428729e-05 | J126: -0.0003935037875 | K126: -0.006923297279 | L126: 0.008536968673 | M126: 0.141261053 | N126: 0.0008130827433
A127: =IF('DF raw data'!E132="","",'DF raw data'!E132) -> -267.5 | B127: =IF('DF raw data'!F132="","",'DF raw data'!F132) -> -1.81758e-05 | C127: =IF('DF raw data'!G132="","",'DF raw data'!G132) -> 0.000256993 | D127: =IF('DF raw data'!H132="","",'DF raw data'!H132) -> -1.24637e-05 | F127: -1.826486142e-05 | G127: 0.0002582522657 | H127: -1.252477213e-05 | J127: -0.0004026362182 | K127: -0.007124615389 | L127: 0.008666094806 | M127: 0.1455941004 | N127: 0.0008507144009
A128: =IF('DF raw data'!E133="","",'DF raw data'!E133) -> -267 | B128: =IF('DF raw data'!F133="","",'DF raw data'!F133) -> -1.47204e-05 | C128: =IF('DF raw data'!G133="","",'DF raw data'!G133) -> 0.000272197 | D128: =IF('DF raw data'!H133="","",'DF raw data'!H133) -> -3.94588e-06 | F128: =(1-$G$1*($B$49-$G$2))*B128 -> -1.479252996e-05 | G128: 0.0002735307653 | H128: -3.965214812e-06 | J128: =F128*$G$3+J127 -> -0.0004100324832 | K128: =J128*$G$3+K127 -> -0.00732963163 | L128: =G128*$G$3+L127 -> 0.008802860189 | M128: =L128*$G$3+M127 -> 0.1499955305 | N128: =(J128^2+L128^2)*$G$3+N127 -> 0.000889543638
A129: =IF('DF raw data'!E134="","",'DF raw data'!E134) -> -266.5 | B129: =IF('DF raw data'!F134="","",'DF raw data'!F134) -> -1.62578e-05 | C129: =IF('DF raw data'!G134="","",'DF raw data'!G134) -> 0.000272194 | D129: =IF('DF raw data'!H134="","",'DF raw data'!H134) -> -5.79521e-06 | F129: -1.633746322e-05 | G129: 0.0002735277506 | H129: -5.823606529e-06 | J129: -0.0004182012148 | K129: -0.007538732238 | L129: 0.008939624064 | M129: 0.1544653425 | N129: 0.0009295895233
A130: =IF('DF raw data'!E135="","",'DF raw data'!E135) -> -266 | B130: =IF('DF raw data'!F135="","",'DF raw data'!F135) -> -2.27912e-05 | C130: =IF('DF raw data'!G135="","",'DF raw data'!G135) -> 0.000262733 | D130: =IF('DF raw data'!H135="","",'DF raw data'!H135) -> -9.2455e-06 | F130: -2.290287688e-05 | G130: 0.0002640203917 | H130: -9.29080295e-06 | J130: -0.0004296526532 | K130: -0.007753558564 | L130: 0.00907163426 | M130: 0.1590011597 | N130: 0.0009708290981
A131: =IF('DF raw data'!E136="","",'DF raw data'!E136) -> -265.5 | B131: =IF('DF raw data'!F136="","",'DF raw data'!F136) -> -9.07928e-06 | C131: =IF('DF raw data'!G136="","",'DF raw data'!G136) -> 0.000260418 | D131: =IF('DF raw data'!H136="","",'DF raw data'!H136) -> -7.67604e-06 | F131: -9.123768472e-06 | G131: 0.0002616940482 | H131: -7.713652596e-06 | J131: -0.0004342145375 | K131: -0.007970665833 | L131: 0.009202481284 | M131: 0.1636024003 | N131: 0.0010132662
A132: =IF('DF raw data'!E137="","",'DF raw data'!E137) -> -265 | B132: =IF('DF raw data'!F137="","",'DF raw data'!F137) -> -1.13849e-05 | C132: =IF('DF raw data'!G137="","",'DF raw data'!G137) -> 0.000262275 | D132: =IF('DF raw data'!H137="","",'DF raw data'!H137) -> -9.52529e-06 | F132: -1.144068601e-05 | G132: 0.0002635601475 | H132: -9.571963921e-06 | J132: -0.0004399348805 | K132: -0.008190633273 | L132: 0.009334261358 | M132: 0.168269531 | N132: 0.001056927189
A133: =IF('DF raw data'!E138="","",'DF raw data'!E138) -> -264.5 | B133: =IF('DF raw data'!F138="","",'DF raw data'!F138) -> -7.08546e-06 | C133: =IF('DF raw data'!G138="","",'DF raw data'!G138) -> 0.000263426 | D133: =IF('DF raw data'!H138="","",'DF raw data'!H138) -> -1.92848e-05 | F133: -7.120178754e-06 | G133: 0.0002647167874 | H133: -1.937929552e-05 | J133: -0.0004434949699 | K133: -0.008412380758 | L133: 0.009466619752 | M133: 0.1730028409 | N133: 0.001101833978
A134: =IF('DF raw data'!E139="","",'DF raw data'!E139) -> -264 | B134: =IF('DF raw data'!F139="","",'DF raw data'!F139) -> -1.25993e-05 | C134: =IF('DF raw data'!G139="","",'DF raw data'!G139) -> 0.000261228 | D134: =IF('DF raw data'!H139="","",'DF raw data'!H139) -> -1.44666e-05 | F134: -1.266103657e-05 | G134: 0.0002625080172 | H134: -1.453748634e-05 | J134: -0.0004498254881 | K134: -0.008637293502 | L134: 0.00959787376 | M134: 0.1778017778 | N134: 0.001147994739
A135: =IF('DF raw data'!E140="","",'DF raw data'!E140) -> -263.5 | B135: =IF('DF raw data'!F140="","",'DF raw data'!F140) -> -1.50336e-05 | C135: =IF('DF raw data'!G140="","",'DF raw data'!G140) -> 0.000270035 | D135: =IF('DF raw data'!H140="","",'DF raw data'!H140) -> -1.58543e-05 | F135: -1.510726464e-05 | G135: 0.0002713581715 | H135: -1.593198607e-05 | J135: -0.0004573791205 | K135: -0.008865983062 | L135: 0.009733552846 | M135: 0.1826685542 | N135: 0.001195470363
A136: =IF('DF raw data'!E141="","",'DF raw data'!E141) -> -263 | B136: =IF('DF raw data'!F141="","",'DF raw data'!F141) -> -1.68889e-05 | C136: =IF('DF raw data'!G141="","",'DF raw data'!G141) -> 0.000269105 | D136: =IF('DF raw data'!H141="","",'DF raw data'!H141) -> -2.02019e-05 | F136: -1.697165561e-05 | G136: 0.0002704236145 | H136: -2.030088931e-05 | J136: -0.0004658649483 | K136: -0.009098915536 | L136: 0.009868764653 | M136: 0.1876029365 | N136: 0.001244275136
A137: =IF('DF raw data'!E142="","",'DF raw data'!E142) -> -262.5 | B137: =IF('DF raw data'!F142="","",'DF raw data'!F142) -> -1.43932e-05 | C137: =IF('DF raw data'!G142="","",'DF raw data'!G142) -> 0.000266321 | D137: =IF('DF raw data'!H142="","",'DF raw data'!H142) -> -1.52509e-05 | F137: -1.446372668e-05 | G137: 0.0002676259729 | H137: -1.532562941e-05 | J137: -0.0004730968116 | K137: -0.009335463942 | L137: 0.01000257764 | M137: 0.1926042253 | N137: 0.001294412826
A138: =IF('DF raw data'!E143="","",'DF raw data'!E143) -> -262 | B138: =IF('DF raw data'!F143="","",'DF raw data'!F143) -> -8.76104e-06 | C138: =IF('DF raw data'!G143="","",'DF raw data'!G143) -> 0.000267975 | D138: =IF('DF raw data'!H143="","",'DF raw data'!H143) -> -4.29107e-06 | F138: -8.803969096e-06 | G138: 0.0002692880775 | H138: -4.312096243e-06 | J138: -0.0004774987962 | K138: -0.00957421334 | L138: 0.01013722168 | M138: 0.1976728362 | N138: 0.00134590846
A139: =IF('DF raw data'!E144="","",'DF raw data'!E144) -> -261.5 | B139: =IF('DF raw data'!F144="","",'DF raw data'!F144) -> -2.27246e-05 | C139: =IF('DF raw data'!G144="","",'DF raw data'!G144) -> 0.000260711 | D139: =IF('DF raw data'!H144="","",'DF raw data'!H144) -> -1.34799e-05 | F139: -2.283595054e-05 | G139: 0.0002619884839 | H139: -1.354595151e-05 | J139: -0.0004889167714 | K139: -0.009818671726 | L139: 0.01026821592 | M139: 0.2028069441 | N139: 0.001398746109
A140: =IF('DF raw data'!E145="","",'DF raw data'!E145) -> -261 | B140: =IF('DF raw data'!F145="","",'DF raw data'!F145) -> -1.11956e-05 | C140: =IF('DF raw data'!G145="","",'DF raw data'!G145) -> 0.000252204 | D140: =IF('DF raw data'!H145="","",'DF raw data'!H145) -> -4.86564e-06 | F140: -1.125045844e-05 | G140: 0.0002534397996 | H140: -4.889481636e-06 | J140: -0.0004945420006 | K140: -0.01006594273 | L140: 0.01039493582 | M140: 0.208004412 | N140: 0.00145289574
A141: =IF('DF raw data'!E146="","",'DF raw data'!E146) -> -260.5 | B141: =IF('DF raw data'!F146="","",'DF raw data'!F146) -> -8.9442e-06 | C141: =IF('DF raw data'!G146="","",'DF raw data'!G146) -> 0.000256267 | D141: =IF('DF raw data'!H146="","",'DF raw data'!H146) -> -1.82914e-05 | F141: -8.98802658e-06 | G141: 0.0002575227083 | H141: -1.838102786e-05 | J141: -0.0004990360139 | K141: -0.01031546073 | L141: 0.01052369717 | M141: 0.2132662606 | N141: 0.00150839436
A142: =IF('DF raw data'!E147="","",'DF raw data'!E147) -> -260 | B142: =IF('DF raw data'!F147="","",'DF raw data'!F147) -> -1.47733e-05 | C142: =IF('DF raw data'!G147="","",'DF raw data'!G147) -> 0.000252704 | D142: =IF('DF raw data'!H147="","",'DF raw data'!H147) -> -2.15497e-05 | F142: -1.484568917e-05 | G142: 0.0002539422496 | H142: -2.165529353e-05 | J142: -0.0005064588585 | K142: -0.01056869016 | L142: 0.0106506683 | M142: 0.2185915948 | N142: 0.001565240978
A143: =IF('DF raw data'!E148="","",'DF raw data'!E148) -> -259.5 | B143: =IF('DF raw data'!F148="","",'DF raw data'!F148) -> -1.22804e-05 | C143: =IF('DF raw data'!G148="","",'DF raw data'!G148) -> 0.000257531 | D143: =IF('DF raw data'!H148="","",'DF raw data'!H148) -> -1.2359e-05 | F143: -1.234057396e-05 | G143: 0.0002587929019 | H143: -1.24195591e-05 | J143: -0.0005126291455 | K143: -0.01082500474 | L143: 0.01078006475 | M143: 0.2239816271 | N143: 0.00162347727
A144: =IF('DF raw data'!E149="","",'DF raw data'!E149) -> -259 | B144: =IF('DF raw data'!F149="","",'DF raw data'!F149) -> -4.5889e-06 | C144: =IF('DF raw data'!G149="","",'DF raw data'!G149) -> 0.000257156 | D144: =IF('DF raw data'!H149="","",'DF raw data'!H149) -> -1.51312e-05 | F144: -4.61138561e-06 | G144: 0.0002584160644 | H144: -1.520534288e-05 | J144: -0.0005149348383 | K144: -0.01108247215 | L144: 0.01090927278 | M144: 0.2294362635 | N144: 0.001683115965
A145: =IF('DF raw data'!E150="","",'DF raw data'!E150) -> -258.5 | B145: =IF('DF raw data'!F150="","",'DF raw data'!F150) -> -1.54811e-05 | C145: =IF('DF raw data'!G150="","",'DF raw data'!G150) -> 0.00025606 | D145: =IF('DF raw data'!H150="","",'DF raw data'!H150) -> -1.7663e-05 | F145: -1.555695739e-05 | G145: 0.000257314694 | H145: -1.77495487e-05 | J145: -0.000522713317 | K145: -0.01134382881 | L145: 0.01103793013 | M145: 0.2349552286 | N145: 0.001744170531
A146: =IF('DF raw data'!E151="","",'DF raw data'!E151) -> -258 | B146: =IF('DF raw data'!F151="","",'DF raw data'!F151) -> -1.27303e-05 | C146: =IF('DF raw data'!G151="","",'DF raw data'!G151) -> 0.000246155 | D146: =IF('DF raw data'!H151="","",'DF raw data'!H151) -> -1.00233e-05 | F146: -1.279267847e-05 | G146: 0.0002473611595 | H146: -1.007241417e-05 | J146: -0.0005291096562 | K146: -0.01160838364 | L146: 0.01116161071 | M146: 0.240536034 | N146: 0.001806601286
A147: =IF('DF raw data'!E152="","",'DF raw data'!E152) -> -257.5 | B147: =IF('DF raw data'!F152="","",'DF raw data'!F152) -> -6.44394e-06 | C147: =IF('DF raw data'!G152="","",'DF raw data'!G152) -> 0.000243001 | D147: =IF('DF raw data'!H152="","",'DF raw data'!H152) -> -2.00133e-05 | F147: -6.475515306e-06 | G147: 0.0002441917049 | H147: -2.011136517e-05 | J147: -0.0005323474139 | K147: -0.01187455735 | L147: 0.01128370656 | M147: 0.2461778872 | N147: 0.001870404
A148: =IF('DF raw data'!E153="","",'DF raw data'!E153) -> -257 | B148: =IF('DF raw data'!F153="","",'DF raw data'!F153) -> -4.47069e-06 | C148: =IF('DF raw data'!G153="","",'DF raw data'!G153) -> 0.000249063 | D148: =IF('DF raw data'!H153="","",'DF raw data'!H153) -> 2.19453e-07 | F148: -4.492596381e-06 | G148: 0.0002502834087 | H148: 2.205283197e-07 | J148: -0.0005345937121 | K148: -0.0121418542 | L148: 0.01140884827 | M148: 0.2518823114 | N148: 0.001935627804
A149: =IF('DF raw data'!E154="","",'DF raw data'!E154) -> -256.5 | B149: =IF('DF raw data'!F154="","",'DF raw data'!F154) -> -1.46574e-05 | C149: =IF('DF raw data'!G154="","",'DF raw data'!G154) -> 0.000251718 | D149: =IF('DF raw data'!H154="","",'DF raw data'!H154) -> -3.16323e-06 | F149: -1.472922126e-05 | G149: 0.0002529514182 | H149: -3.178729827e-06 | J149: -0.0005419583227 | K149: -0.01241283337 | L149: 0.01153532397 | M149: 0.2576499734 | N149: 0.002002306513
A150: =IF('DF raw data'!E155="","",'DF raw data'!E155) -> -256 | B150: =IF('DF raw data'!F155="","",'DF raw data'!F155) -> -1.31759e-05 | C150: =IF('DF raw data'!G155="","",'DF raw data'!G155) -> 0.000244772 | D150: =IF('DF raw data'!H155="","",'DF raw data'!H155) -> -1.44477e-05 | F150: -1.324046191e-05 | G150: 0.0002459713828 | H150: -1.451849373e-05 | J150: -0.0005485785537 | K150: -0.01268712264 | L150: 0.01165830967 | M150: 0.2634791282 | N150: 0.002070415075
A151: =IF('DF raw data'!E156="","",'DF raw data'!E156) -> -255.5 | B151: =IF('DF raw data'!F156="","",'DF raw data'!F156) -> -1.39456e-05 | C151: =IF('DF raw data'!G156="","",'DF raw data'!G156) -> 0.000259956 | D151: =IF('DF raw data'!H156="","",'DF raw data'!H156) -> -1.36792e-05 | F151: -1.401393344e-05 | G151: 0.0002612297844 | H151: -1.374622808e-05 | J151: -0.0005555855204 | K151: -0.0129649154 | L151: 0.01178892456 | M151: 0.2693735905 | N151: 0.002140058783
A152: =IF('DF raw data'!E157="","",'DF raw data'!E157) -> -255 | B152: =IF('DF raw data'!F157="","",'DF raw data'!F157) -> -1.46527e-05 | C152: =IF('DF raw data'!G157="","",'DF raw data'!G157) -> 0.000257116 | D152: =IF('DF raw data'!H157="","",'DF raw data'!H157) -> -9.84876e-06 | F152: -1.472449823e-05 | G152: 0.0002583758684 | H152: -9.897018924e-06 | J152: -0.0005629477695 | K152: -0.01324638929 | L152: 0.01191811249 | M152: 0.2753326467 | N152: 0.002211237941
A153: =IF('DF raw data'!E158="","",'DF raw data'!E158) -> -254.5 | B153: =IF('DF raw data'!F158="","",'DF raw data'!F158) -> -2.60637e-05 | C153: =IF('DF raw data'!G158="","",'DF raw data'!G158) -> 0.000251839 | D153: =IF('DF raw data'!H158="","",'DF raw data'!H158) -> -3.37852e-06 | F153: -2.619141213e-05 | G153: 0.0002530730111 | H153: -3.395074748e-06 | J153: -0.0005760434756 | K153: -0.01353441103 | L153: 0.012044649 | M153: 0.2813549712 | N153: 0.002283940639
A154: =IF('DF raw data'!E159="","",'DF raw data'!E159) -> -254 | B154: =IF('DF raw data'!F159="","",'DF raw data'!F159) -> -7.2864e-06 | C154: =IF('DF raw data'!G159="","",'DF raw data'!G159) -> 0.000260048 | D154: =IF('DF raw data'!H159="","",'DF raw data'!H159) -> -5.38426e-06 | F154: -7.32210336e-06 | G154: 0.0002613222352 | H154: -5.410642874e-06 | J154: -0.0005797045272 | K154: -0.01382426329 | L154: 0.01217531012 | M154: 0.2874426263 | N154: 0.002358227756
A155: =IF('DF raw data'!E160="","",'DF raw data'!E160) -> -253.5 | B155: =IF('DF raw data'!F160="","",'DF raw data'!F160) -> -1.74723e-05 | C155: =IF('DF raw data'!G160="","",'DF raw data'!G160) -> 0.00025193 | D155: =IF('DF raw data'!H160="","",'DF raw data'!H160) -> -1.02513e-05 | F155: -1.755791427e-05 | G155: 0.000253164457 | H155: -1.030153137e-05 | J155: -0.0005884834844 | K155: -0.01411850503 | L155: 0.01230189234 | M155: 0.2935935724 | N155: 0.00243406919
A156: =IF('DF raw data'!E161="","",'DF raw data'!E161) -> -253 | B156: =IF('DF raw data'!F161="","",'DF raw data'!F161) -> -1.76598e-05 | C156: =IF('DF raw data'!G161="","",'DF raw data'!G161) -> 0.000255205 | D156: =IF('DF raw data'!H161="","",'DF raw data'!H161) -> -1.69347e-05 | F156: -1.774633302e-05 | G156: 0.0002564555045 | H156: -1.701768003e-05 | J156: -0.0005973566509 | K156: -0.01441718336 | L156: 0.0124301201 | M156: 0.2998086325 | N156: 0.00251150155
A157: =IF('DF raw data'!E162="","",'DF raw data'!E162) -> -252.5 | B157: =IF('DF raw data'!F162="","",'DF raw data'!F162) -> -1.43862e-05 | C157: =IF('DF raw data'!G162="","",'DF raw data'!G162) -> 0.000268503 | D157: =IF('DF raw data'!H162="","",'DF raw data'!H162) -> -2.61962e-05 | F157: -1.445669238e-05 | G157: 0.0002698186647 | H157: -2.632456138e-05 | J157: -0.0006045849971 | K157: -0.01471947585 | L157: 0.01256502943 | M157: 0.3060911472 | N157: 0.002590624294
A158: =IF('DF raw data'!E163="","",'DF raw data'!E163) -> -252 | B158: =IF('DF raw data'!F163="","",'DF raw data'!F163) -> -1.9581e-05 | C158: =IF('DF raw data'!G163="","",'DF raw data'!G163) -> 0.000263484 | D158: =IF('DF raw data'!H163="","",'DF raw data'!H163) -> -1.8654e-05 | F158: -1.96769469e-05 | G158: 0.0002647750716 | H158: -1.87454046e-05 | J158: -0.0006144234705 | K158: -0.01502668759 | L158: 0.01269741696 | M158: 0.3124398557 | N158: 0.002671425251
A159: =IF('DF raw data'!E164="","",'DF raw data'!E164) -> -251.5 | B159: =IF('DF raw data'!F164="","",'DF raw data'!F164) -> -4.59549e-06 | C159: =IF('DF raw data'!G164="","",'DF raw data'!G164) -> 0.000259856 | D159: =IF('DF raw data'!H164="","",'DF raw data'!H164) -> -5.1293e-06 | F159: -4.618007901e-06 | G159: 0.0002611292944 | H159: -5.15443357e-06 | J159: -0.0006167324745 | K159: -0.01533505383 | L159: 0.01282798161 | M159: 0.3188538465 | N159: 0.002753893986
A160: =IF('DF raw data'!E165="","",'DF raw data'!E165) -> -251 | B160: =IF('DF raw data'!F165="","",'DF raw data'!F165) -> -1.47148e-05 | C160: =IF('DF raw data'!G165="","",'DF raw data'!G165) -> 0.000263942 | D160: =IF('DF raw data'!H165="","",'DF raw data'!H165) -> -1.26964e-05 | F160: -1.478690252e-05 | G160: 0.0002652353158 | H160: -1.275861236e-05 | J160: -0.0006241259257 | K160: -0.01564711679 | L160: 0.01296059927 | M160: 0.3253341461 | N160: 0.00283807732
A161: =IF('DF raw data'!E166="","",'DF raw data'!E166) -> -250.5 | B161: =IF('DF raw data'!F166="","",'DF raw data'!F166) -> -1.64456e-05 | C161: =IF('DF raw data'!G166="","",'DF raw data'!G166) -> 0.000258287 | D161: =IF('DF raw data'!H166="","",'DF raw data'!H166) -> -1.23094e-05 | F161: -1.652618344e-05 | G161: 0.0002595526063 | H161: -1.236971606e-05 | J161: -0.0006323890175 | K161: -0.0159633113 | L161: 0.01309037557 | M161: 0.3318793339 | N161: 0.002923956244
A162: =IF('DF raw data'!E167="","",'DF raw data'!E167) -> -250 | B162: =IF('DF raw data'!F167="","",'DF raw data'!F167) -> -1.18967e-05 | C162: =IF('DF raw data'!G167="","",'DF raw data'!G167) -> 0.000253949 | D162: =IF('DF raw data'!H167="","",'DF raw data'!H167) -> -1.07018e-05 | F162: -1.195499383e-05 | G162: 0.0002551933501 | H162: -1.075423882e-05 | J162: -0.0006383665144 | K162: -0.01628249456 | L162: 0.01321797225 | M162: 0.33848832 | N162: 0.003011517395
A163: =IF('DF raw data'!E168="","",'DF raw data'!E168) -> -249.5 | B163: =IF('DF raw data'!F168="","",'DF raw data'!F168) -> -1.51603e-05 | C163: =IF('DF raw data'!G168="","",'DF raw data'!G168) -> 0.000258878 | D163: =IF('DF raw data'!H168="","",'DF raw data'!H168) -> -1.80403e-05 | F163: -1.523458547e-05 | G163: 0.0002601465022 | H163: -1.812869747e-05 | J163: -0.0006459838071 | K163: -0.01660548646 | L163: 0.0133480455 | M163: 0.3451623428 | N163: 0.003100811202
A164: =IF('DF raw data'!E169="","",'DF raw data'!E169) -> -249 | B164: =IF('DF raw data'!F169="","",'DF raw data'!F169) -> -9.65329e-06 | C164: =IF('DF raw data'!G169="","",'DF raw data'!G169) -> 0.000273638 | D164: =IF('DF raw data'!H169="","",'DF raw data'!H169) -> -1.17382e-05 | F164: -9.700591121e-06 | G164: 0.0002749788262 | H164: -1.179571718e-05 | J164: -0.0006508341027 | K164: -0.01693090351 | L164: 0.01348553491 | M164: 0.3519051102 | N164: 0.00319195282
A165: =IF('DF raw data'!E170="","",'DF raw data'!E170) -> -248.5 | B165: =IF('DF raw data'!F170="","",'DF raw data'!F170) -> -9.97857e-06 | C165: =IF('DF raw data'!G170="","",'DF raw data'!G170) -> 0.000278911 | D165: =IF('DF raw data'!H170="","",'DF raw data'!H170) -> -4.66187e-06 | F165: -1.002746499e-05 | G165: 0.0002802776639 | H165: -4.684713163e-06 | J165: -0.0006558478352 | K165: -0.01725882743 | L165: 0.01362567374 | M165: 0.3587179471 | N165: 0.003284997381
A166: =IF('DF raw data'!E171="","",'DF raw data'!E171) -> -248 | B166: =IF('DF raw data'!F171="","",'DF raw data'!F171) -> -8.3742e-06 | C166: =IF('DF raw data'!G171="","",'DF raw data'!G171) -> 0.000269642 | D166: =IF('DF raw data'!H171="","",'DF raw data'!H171) -> -7.98864e-06 | F166: -8.41523358e-06 | G166: 0.0002709632458 | H166: -8.027784336e-06 | J166: -0.000660055452 | K166: -0.01758885515 | L166: 0.01376115537 | M166: 0.3655985248 | N166: 0.003379899916
A167: =IF('DF raw data'!E172="","",'DF raw data'!E172) -> -247.5 | B167: =IF('DF raw data'!F172="","",'DF raw data'!F172) -> -1.22182e-05 | C167: =IF('DF raw data'!G172="","",'DF raw data'!G172) -> 0.000264671 | D167: =IF('DF raw data'!H172="","",'DF raw data'!H172) -> -9.2815e-06 | F167: -1.227806918e-05 | G167: 0.0002659678879 | H167: -9.32697935e-06 | J167: -0.0006661944865 | K167: -0.0179219524 | L167: 0.01389413931 | M167: 0.3725455945 | N167: 0.003476645377
A168: =IF('DF raw data'!E173="","",'DF raw data'!E173) -> -247 | B168: =IF('DF raw data'!F173="","",'DF raw data'!F173) -> -8.24942e-06 | C168: =IF('DF raw data'!G173="","",'DF raw data'!G173) -> 0.000270181 | D168: =IF('DF raw data'!H173="","",'DF raw data'!H173) -> -2.77484e-06 | F168: -8.289842158e-06 | G168: 0.0002715048869 | H168: -2.788436716e-06 | J168: -0.0006703394076 | K168: -0.0182571221 | L168: 0.01402989175 | M168: 0.3795605403 | N168: 0.003575288986
A169: =IF('DF raw data'!E174="","",'DF raw data'!E174) -> -246.5 | B169: =IF('DF raw data'!F174="","",'DF raw data'!F174) -> -4.3993e-06 | C169: =IF('DF raw data'!G174="","",'DF raw data'!G174) -> 0.000277636 | D169: =IF('DF raw data'!H174="","",'DF raw data'!H174) -> -1.09821e-05 | F169: -4.42085657e-06 | G169: 0.0002789964164 | H169: -1.103591229e-05 | J169: -0.0006725498359 | K169: -0.01859339702 | L169: 0.01416938996 | M169: 0.3866452353 | N169: 0.003675900954
A170: =IF('DF raw data'!E175="","",'DF raw data'!E175) -> -246 | B170: =IF('DF raw data'!F175="","",'DF raw data'!F175) -> -1.63894e-05 | C170: =IF('DF raw data'!G175="","",'DF raw data'!G175) -> 0.000260536 | D170: =IF('DF raw data'!H175="","",'DF raw data'!H175) -> -4.01852e-08 | F170: -1.646970806e-05 | G170: 0.0002618126264 | H170: -4.038210748e-08 | J170: -0.0006807846899 | K170: -0.01893378936 | L170: 0.01430029628 | M170: 0.3937953835 | N170: 0.003778381924
A171: =IF('DF raw data'!E176="","",'DF raw data'!E176) -> -245.5 | B171: =IF('DF raw data'!F176="","",'DF raw data'!F176) -> -1.83688e-05 | C171: =IF('DF raw data'!G176="","",'DF raw data'!G176) -> 0.000261226 | D171: =IF('DF raw data'!H176="","",'DF raw data'!H176) -> -1.13471e-05 | F171: -1.845880712e-05 | G171: 0.0002625060074 | H171: -1.140270079e-05 | J171: -0.0006900140935 | K171: -0.01927879641 | L171: 0.01443154928 | M171: 0.4010111581 | N171: 0.003882754791
A172: =IF('DF raw data'!E177="","",'DF raw data'!E177) -> -245 | B172: =IF('DF raw data'!F177="","",'DF raw data'!F177) -> -2.12473e-05 | C172: =IF('DF raw data'!G177="","",'DF raw data'!G177) -> 0.000259639 | D172: =IF('DF raw data'!H177="","",'DF raw data'!H177) -> -1.88181e-05 | F172: -2.135141177e-05 | G172: 0.0002609112311 | H172: -1.891030869e-05 | J172: -0.0007006897994 | K172: -0.01962914131 | L172: 0.0145620049 | M172: 0.4082921605 | N172: 0.003989026268
A173: =IF('DF raw data'!E178="","",'DF raw data'!E178) -> -244.5 | B173: =IF('DF raw data'!F178="","",'DF raw data'!F178) -> -9.59255e-06 | C173: =IF('DF raw data'!G178="","",'DF raw data'!G178) -> 0.0002533 | D173: =IF('DF raw data'!H178="","",'DF raw data'!H178) -> -6.62139e-06 | F173: -9.639553495e-06 | G173: 0.00025454117 | H173: -6.653834811e-06 | J173: -0.0007055095761 | K173: -0.0199818961 | L173: 0.01468927548 | M173: 0.4156367983 | N173: 0.004097162547
A174: =IF('DF raw data'!E179="","",'DF raw data'!E179) -> -244 | B174: =IF('DF raw data'!F179="","",'DF raw data'!F179) -> -1.0227e-05 | C174: =IF('DF raw data'!G179="","",'DF raw data'!G179) -> 0.000260952 | D174: =IF('DF raw data'!H179="","",'DF raw data'!H179) -> -1.65117e-05 | F174: -1.02771123e-05 | G174: 0.0002622306648 | H174: -1.659260733e-05 | J174: -0.0007106481323 | K174: -0.02033722017 | L174: 0.01482039081 | M174: 0.4230469937 | N174: 0.004207237049
A175: =IF('DF raw data'!E180="","",'DF raw data'!E180) -> -243.5 | B175: =IF('DF raw data'!F180="","",'DF raw data'!F180) -> -4.01691e-06 | C175: =IF('DF raw data'!G180="","",'DF raw data'!G180) -> 0.000264122 | D175: =IF('DF raw data'!H180="","",'DF raw data'!H180) -> -7.78249e-06 | F175: -4.036592859e-06 | G175: 0.0002654161978 | H175: -7.820624201e-06 | J175: -0.0007126664287 | K175: -0.02069355338 | L175: 0.01495309891 | M175: 0.4305235431 | N175: 0.004319288579
A176: =IF('DF raw data'!E181="","",'DF raw data'!E181) -> -243 | B176: =IF('DF raw data'!F181="","",'DF raw data'!F181) -> -2.20903e-05 | C176: =IF('DF raw data'!G181="","",'DF raw data'!G181) -> 0.000261816 | D176: =IF('DF raw data'!H181="","",'DF raw data'!H181) -> -3.11267e-06 | F176: -2.219854247e-05 | G176: 0.0002630988984 | H176: -3.127922083e-06 | J176: -0.0007237656999 | K176: -0.02105543623 | L176: 0.01508464836 | M176: 0.4380658673 | N176: 0.004433323806
A177: =IF('DF raw data'!E182="","",'DF raw data'!E182) -> -242.5 | B177: =IF('DF raw data'!F182="","",'DF raw data'!F182) -> -1.07409e-05 | C177: =IF('DF raw data'!G182="","",'DF raw data'!G182) -> 0.000258311 | D177: =IF('DF raw data'!H182="","",'DF raw data'!H182) -> -1.48516e-05 | F177: -1.079353041e-05 | G177: 0.0002595767239 | H177: -1.492437284e-05 | J177: -0.0007291624651 | K177: -0.02142001746 | L177: 0.01521443672 | M177: 0.4456730857 | N177: 0.004549329187
A178: =IF('DF raw data'!E183="","",'DF raw data'!E183) -> -242 | B178: =IF('DF raw data'!F183="","",'DF raw data'!F183) -> -9.52244e-06 | C178: =IF('DF raw data'!G183="","",'DF raw data'!G183) -> 0.000259032 | D178: =IF('DF raw data'!H183="","",'DF raw data'!H183) -> -1.5885e-05 | F178: -9.569099956e-06 | G178: 0.0002603012568 | H178: -1.59628365e-05 | J178: -0.0007339470151 | K178: -0.02178699097 | L178: 0.01534458735 | M178: 0.4533453794 | N178: 0.004667326707
A179: =IF('DF raw data'!E184="","",'DF raw data'!E184) -> -241.5 | B179: =IF('DF raw data'!F184="","",'DF raw data'!F184) -> -1.38211e-05 | C179: =IF('DF raw data'!G184="","",'DF raw data'!G184) -> 0.00026221 | D179: =IF('DF raw data'!H184="","",'DF raw data'!H184) -> -7.94255e-06 | F179: -1.388882339e-05 | G179: 0.000263494829 | H179: -7.981468495e-06 | J179: -0.0007408914268 | K179: -0.02215743668 | L179: 0.01547633477 | M179: 0.4610835467 | N179: 0.004787359636
A180: =IF('DF raw data'!E185="","",'DF raw data'!E185) -> -241 | B180: =IF('DF raw data'!F185="","",'DF raw data'!F185) -> -3.50009e-06 | C180: =IF('DF raw data'!G185="","",'DF raw data'!G185) -> 0.000251704 | D180: =IF('DF raw data'!H185="","",'DF raw data'!H185) -> -1.41585e-05 | F180: -3.517240441e-06 | G180: 0.0002529373496 | H180: -1.422787665e-05 | J180: -0.000742650047 | K180: -0.02252876171 | L180: 0.01560280344 | M180: 0.4688849485 | N180: 0.004909359138
A181: =IF('DF raw data'!E186="","",'DF raw data'!E186) -> -240.5 | B181: =IF('DF raw data'!F186="","",'DF raw data'!F186) -> -1.44653e-05 | C181: =IF('DF raw data'!G186="","",'DF raw data'!G186) -> 0.000247743 | D181: =IF('DF raw data'!H186="","",'DF raw data'!H186) -> -2.83575e-06 | F181: -1.453617997e-05 | G181: 0.0002489569407 | H181: -2.849645175e-06 | J181: -0.000749918137 | K181: -0.02290372078 | L181: 0.01572728191 | M181: 0.4767485894 | N181: 0.005033314025
A182: =IF('DF raw data'!E187="","",'DF raw data'!E187) -> -240 | B182: =IF('DF raw data'!F187="","",'DF raw data'!F187) -> -1.10643e-05 | C182: =IF('DF raw data'!G187="","",'DF raw data'!G187) -> 0.000254489 | D182: =IF('DF raw data'!H187="","",'DF raw data'!H187) -> -9.68822e-06 | F182: -1.111851507e-05 | G182: 0.0002557359961 | H182: -9.735692278e-06 | J182: -0.0007554773946 | K182: -0.02328145947 | L182: 0.01585514991 | M182: 0.4846761644 | N182: 0.005159292287
A183: =IF('DF raw data'!E188="","",'DF raw data'!E188) -> -239.5 | B183: =IF('DF raw data'!F188="","",'DF raw data'!F188) -> -6.77718e-06 | C183: =IF('DF raw data'!G188="","",'DF raw data'!G188) -> 0.000260073 | D183: =IF('DF raw data'!H188="","",'DF raw data'!H188) -> -4.43464e-07 | F183: -6.810388182e-06 | G183: 0.0002613473577 | H183: -4.456369736e-07 | J183: -0.0007588825887 | K183: -0.02366090077 | L183: 0.01598582359 | M183: 0.4926690762 | N183: 0.005287353516
A184: =IF('DF raw data'!E189="","",'DF raw data'!E189) -> -239 | B184: =IF('DF raw data'!F189="","",'DF raw data'!F189) -> -1.81038e-05 | C184: =IF('DF raw data'!G189="","",'DF raw data'!G189) -> 0.000256461 | D184: =IF('DF raw data'!H189="","",'DF raw data'!H189) -> -2.42044e-05 | F184: -1.819250862e-05 | G184: 0.0002577176589 | H184: -2.432300156e-05 | J184: -0.000767978843 | K184: -0.02404489019 | L184: 0.01611468242 | M184: 0.5007264174 | N184: 0.005417489907
A185: =IF('DF raw data'!E190="","",'DF raw data'!E190) -> -238.5 | B185: =IF('DF raw data'!F190="","",'DF raw data'!F190) -> -2.95162e-05 | C185: =IF('DF raw data'!G190="","",'DF raw data'!G190) -> 0.000259468 | D185: =IF('DF raw data'!H190="","",'DF raw data'!H190) -> -1.56964e-05 | F185: -2.966082938e-05 | G185: 0.0002607393932 | H185: -1.577331236e-05 | J185: -0.0007828092577 | K185: -0.02443629482 | L185: 0.01624505211 | M185: 0.5088489434 | N185: 0.005549747161
A186: =IF('DF raw data'!E191="","",'DF raw data'!E191) -> -238 | B186: =IF('DF raw data'!F191="","",'DF raw data'!F191) -> -1.19017e-05 | C186: =IF('DF raw data'!G191="","",'DF raw data'!G191) -> 0.000254714 | D186: =IF('DF raw data'!H191="","",'DF raw data'!H191) -> -3.02315e-06 | F186: -1.196001833e-05 | G186: 0.0002559620986 | H186: -3.037963435e-06 | J186: -0.0007887892668 | K186: -0.02483068945 | L186: 0.01637303316 | M186: 0.51703546 | N186: 0.005684096363
A187: =IF('DF raw data'!E192="","",'DF raw data'!E192) -> -237.5 | B187: =IF('DF raw data'!F192="","",'DF raw data'!F192) -> -1.66409e-05 | C187: =IF('DF raw data'!G192="","",'DF raw data'!G192) -> 0.000252949 | D187: =IF('DF raw data'!H192="","",'DF raw data'!H192) -> -7.83492e-06 | F187: -1.672244041e-05 | G187: 0.0002541884501 | H187: -7.873311108e-06 | J187: -0.000797150487 | K187: -0.02522926469 | L187: 0.01650012739 | M187: 0.5252855237 | N187: 0.005820541189
A188: =IF('DF raw data'!E193="","",'DF raw data'!E193) -> -237 | B188: =IF('DF raw data'!F193="","",'DF raw data'!F193) -> -1.98994e-05 | C188: =IF('DF raw data'!G193="","",'DF raw data'!G193) -> 0.000250746 | D188: =IF('DF raw data'!H193="","",'DF raw data'!H193) -> -2.19624e-05 | F188: -1.999690706e-05 | G188: 0.0002519746554 | H188: -2.207001576e-05 | J188: -0.0008071489406 | K188: -0.02563283916 | L188: 0.01662611472 | M188: 0.5335985811 | N188: 0.005959080779
A189: =IF('DF raw data'!E194="","",'DF raw data'!E194) -> -236.5 | B189: =IF('DF raw data'!F194="","",'DF raw data'!F194) -> -1.59324e-05 | C189: =IF('DF raw data'!G194="","",'DF raw data'!G194) -> 0.000249403 | D189: =IF('DF raw data'!H194="","",'DF raw data'!H194) -> -1.32786e-05 | F189: -1.601046876e-05 | G189: 0.0002506250747 | H189: -1.334366514e-05 | J189: -0.0008151541749 | K189: -0.02604041625 | L189: 0.01675142725 | M189: 0.5419742947 | N189: 0.006099718175
A190: =IF('DF raw data'!E195="","",'DF raw data'!E195) -> -236 | B190: =IF('DF raw data'!F195="","",'DF raw data'!F195) -> -1.93949e-05 | C190: =IF('DF raw data'!G195="","",'DF raw data'!G195) -> 0.000249916 | D190: =IF('DF raw data'!H195="","",'DF raw data'!H195) -> -9.56625e-06 | F190: -1.948993501e-05 | G190: 0.0002511405884 | H190: -9.613124625e-06 | J190: -0.0008248991424 | K190: -0.02645286582 | L190: 0.01687699755 | M190: 0.5504127935 | N190: 0.006242474927
A191: =IF('DF raw data'!E196="","",'DF raw data'!E196) -> -235.5 | B191: =IF('DF raw data'!F196="","",'DF raw data'!F196) -> -1.26664e-05 | C191: =IF('DF raw data'!G196="","",'DF raw data'!G196) -> 0.000251738 | D191: =IF('DF raw data'!H196="","",'DF raw data'!H196) -> -9.98362e-06 | F191: -1.272846536e-05 | G191: 0.0002529715162 | H191: -1.003253974e-05 | J191: -0.0008312633751 | K191: -0.02686849751 | L191: 0.01700348331 | M191: 0.5589145351 | N191: 0.006387379649
A192: =IF('DF raw data'!E197="","",'DF raw data'!E197) -> -235 | B192: =IF('DF raw data'!F197="","",'DF raw data'!F197) -> -1.81807e-05 | C192: =IF('DF raw data'!G197="","",'DF raw data'!G197) -> 0.000259021 | D192: =IF('DF raw data'!H197="","",'DF raw data'!H197) -> -4.26607e-06 | F192: =(1-$G$1*($B$49-$G$2))*B192 -> -1.826978543e-05 | G192: 0.0002602902029 | H192: -4.286973743e-06 | J192: =F192*$G$3+J191 -> -0.0008403982678 | K192: =J192*$G$3+K191 -> -0.02728869664 | L192: =G192*$G$3+L191 -> 0.01713362841 | M192: =L192*$G$3+M191 -> 0.5674813493 | N192: =(J192^2+L192^2)*$G$3+N191 -> 0.006534513395
A193: =IF('DF raw data'!E198="","",'DF raw data'!E198) -> -234.5 | B193: =IF('DF raw data'!F198="","",'DF raw data'!F198) -> -1.98433e-05 | C193: =IF('DF raw data'!G198="","",'DF raw data'!G198) -> 0.000251908 | D193: =IF('DF raw data'!H198="","",'DF raw data'!H198) -> -1.0091e-05 | F193: -1.994053217e-05 | G193: 0.0002531423492 | H193: -1.01404459e-05 | J193: -0.0008503685339 | K193: -0.02771388091 | L193: 0.01726019958 | M193: 0.5761114491 | N193: 0.006683832203
A194: =IF('DF raw data'!E199="","",'DF raw data'!E199) -> -234 | B194: =IF('DF raw data'!F199="","",'DF raw data'!F199) -> -2.08697e-05 | C194: =IF('DF raw data'!G199="","",'DF raw data'!G199) -> 0.000256449 | D194: =IF('DF raw data'!H199="","",'DF raw data'!H199) -> -8.15431e-06 | F194: -2.097196153e-05 | G194: 0.0002577056001 | H194: -8.194266119e-06 | J194: -0.0008608545147 | K194: -0.02814430817 | L194: 0.01738905238 | M194: 0.5848059753 | N194: 0.006835392309
A195: =IF('DF raw data'!E200="","",'DF raw data'!E200) -> -233.5 | B195: =IF('DF raw data'!F200="","",'DF raw data'!F200) -> -2.47523e-06 | C195: =IF('DF raw data'!G200="","",'DF raw data'!G200) -> 0.000267831 | D195: =IF('DF raw data'!H200="","",'DF raw data'!H200) -> -1.36663e-05 | F195: -2.487358627e-06 | G195: 0.0002691433719 | H195: -1.373326487e-05 | J195: -0.000862098194 | K195: -0.02857535727 | L195: 0.01752362407 | M195: 0.5935677873 | N195: 0.006989302616
A196: =IF('DF raw data'!E201="","",'DF raw data'!E201) -> -233 | B196: =IF('DF raw data'!F201="","",'DF raw data'!F201) -> -9.52469e-06 | C196: =IF('DF raw data'!G201="","",'DF raw data'!G201) -> 0.000263775 | D196: =IF('DF raw data'!H201="","",'DF raw data'!H201) -> -1.24668e-05 | F196: -9.571360981e-06 | G196: 0.0002650674975 | H196: -1.252788732e-05 | J196: -0.0008668838745 | K196: -0.0290087992 | L196: 0.01765615782 | M196: 0.6023958662 | N196: 0.007145548314
A197: =IF('DF raw data'!E202="","",'DF raw data'!E202) -> -232.5 | B197: =IF('DF raw data'!F202="","",'DF raw data'!F202) -> -8.88344e-06 | C197: =IF('DF raw data'!G202="","",'DF raw data'!G202) -> 0.000255657 | D197: =IF('DF raw data'!H202="","",'DF raw data'!H202) -> -1.33765e-05 | F197: -8.926968856e-06 | G197: 0.0002569097193 | H197: -1.344204485e-05 | J197: -0.0008713473589 | K197: -0.02944447288 | L197: 0.01778461268 | M197: 0.6112881726 | N197: 0.007304074161
A198: =IF('DF raw data'!E203="","",'DF raw data'!E203) -> -232 | B198: =IF('DF raw data'!F203="","",'DF raw data'!F203) -> -1.18285e-05 | C198: =IF('DF raw data'!G203="","",'DF raw data'!G203) -> 0.000253435 | D198: =IF('DF raw data'!H203="","",'DF raw data'!H203) -> -1.69878e-05 | F198: -1.188645965e-05 | G198: 0.0002546768315 | H198: -1.707104022e-05 | J198: -0.0008772905887 | K198: -0.02988311818 | L198: 0.01791195109 | M198: 0.6202441481 | N198: 0.007464877977
A199: =IF('DF raw data'!E204="","",'DF raw data'!E204) -> -231.5 | B199: =IF('DF raw data'!F204="","",'DF raw data'!F204) -> -7.34429e-06 | C199: =IF('DF raw data'!G204="","",'DF raw data'!G204) -> 0.000254619 | D199: =IF('DF raw data'!H204="","",'DF raw data'!H204) -> -1.53591e-05 | F199: -7.380277021e-06 | G199: 0.0002558666331 | H199: -1.543435959e-05 | J199: -0.0008809807273 | K199: -0.03032360854 | L199: 0.01803988441 | M199: 0.6292640903 | N199: 0.007627984755
A200: =IF('DF raw data'!E205="","",'DF raw data'!E205) -> -231 | B200: =IF('DF raw data'!F205="","",'DF raw data'!F205) -> -2.20791e-05 | C200: =IF('DF raw data'!G205="","",'DF raw data'!G205) -> 0.000249208 | D200: =IF('DF raw data'!H205="","",'DF raw data'!H205) -> -2.04145e-05 | F200: -2.218728759e-05 | G200: 0.0002504291192 | H200: -2.051453105e-05 | J200: -0.000892074371 | K200: -0.03076964573 | L200: 0.01816509897 | M200: 0.6383466398 | N200: 0.007793368064
A201: =IF('DF raw data'!E206="","",'DF raw data'!E206) -> -230.5 | B201: =IF('DF raw data'!F206="","",'DF raw data'!F206) -> -1.1382e-05 | C201: =IF('DF raw data'!G206="","",'DF raw data'!G206) -> 0.000248557 | D201: =IF('DF raw data'!H206="","",'DF raw data'!H206) -> -1.42631e-05 | F201: -1.14377718e-05 | G201: 0.0002497749293 | H201: -1.433298919e-05 | J201: -0.0008977932569 | K201: -0.03121854235 | L201: 0.01828998643 | M201: 0.647491633 | N201: 0.007961032882
... 1061 more rows

Sheet 10 y=0
A1: =IF('DF raw data'!I1="","",'DF raw data'!I1) -> Number of header lines | B1: =IF('DF raw data'!J1="","",'DF raw data'!J1) -> 54 | C1: =IF('DF raw data'!K1="","",'DF raw data'!K1) ->  | D1: =IF('DF raw data'!L1="","",'DF raw data'!L1) ->  | F1: T_coeff | G1: -0.001 | H1: /degC | J1: IBy total | K1: =J1262*1000 -> -23.47730233 | L1: muTm | M1: =L1262*1000 -> 122.4848799 | R1: DF ref | S1: ='10 y=-0.2'!S1 -> 1
A2: =IF('DF raw data'!I2="","",'DF raw data'!I2) -> Measured by | B2: =IF('DF raw data'!J2="","",'DF raw data'!J2) -> Danfysik | C2: =IF('DF raw data'!K2="","",'DF raw data'!K2) ->  | D2: =IF('DF raw data'!L2="","",'DF raw data'!L2) ->  | F2: Tcorr | G2: 20 | H2: degC | J2: JBy total | K2: =K1262 -> -26.76902321 | L2: muTm^2 | M2: =M1262 -> 39.92124029
A3: =IF('DF raw data'!I3="","",'DF raw data'!I3) -> Operator | B3: =IF('DF raw data'!J3="","",'DF raw data'!J3) -> PMHA | C3: =IF('DF raw data'!K3="","",'DF raw data'!K3) ->  | D3: =IF('DF raw data'!L3="","",'DF raw data'!L3) ->  | F3: Step | G3: =A63-A62 -> 0.5 | H3: mm | J3: PI total | K3: =N1262 -> 10499.2591 | L3: T^2mm^3
A4: =IF('DF raw data'!I4="","",'DF raw data'!I4) -> Data-time | B4: =IF('DF raw data'!J4="","",'DF raw data'!J4) -> 24-09-2024, 14:40:42 | C4: =IF('DF raw data'!K4="","",'DF raw data'!K4) ->  | D4: =IF('DF raw data'!L4="","",'DF raw data'!L4) -> 
A5: =IF('DF raw data'!I5="","",'DF raw data'!I5) -> Project | B5: =IF('DF raw data'!J5="","",'DF raw data'!J5) -> 504314 | C5: =IF('DF raw data'!K5="","",'DF raw data'!K5) ->  | D5: =IF('DF raw data'!L5="","",'DF raw data'!L5) -> 
A6: =IF('DF raw data'!I6="","",'DF raw data'!I6) -> Magnet type | B6: =IF('DF raw data'!J6="","",'DF raw data'!J6) -> Dipole | C6: =IF('DF raw data'!K6="","",'DF raw data'!K6) ->  | D6: =IF('DF raw data'!L6="","",'DF raw data'!L6) -> 
A7: =IF('DF raw data'!I7="","",'DF raw data'!I7) -> Magnet nr. | B7: =IF('DF raw data'!J7="","",'DF raw data'!J7) -> 2410101 | C7: =IF('DF raw data'!K7="","",'DF raw data'!K7) ->  | D7: =IF('DF raw data'!L7="","",'DF raw data'!L7) -> 
A8: =IF('DF raw data'!I8="","",'DF raw data'!I8) -> Meas. number | B8: =IF('DF raw data'!J8="","",'DF raw data'!J8) -> 677 | C8: =IF('DF raw data'!K8="","",'DF raw data'!K8) ->  | D8: =IF('DF raw data'!L8="","",'DF raw data'!L8) -> 
A9: =IF('DF raw data'!I9="","",'DF raw data'!I9) -> Add. info | B9: =IF('DF raw data'!J9="","",'DF raw data'!J9) -> Y-alignment scan 3) | C9: =IF('DF raw data'!K9="","",'DF raw data'!K9) ->  | D9: =IF('DF raw data'!L9="","",'DF raw data'!L9) -> 
A10: =IF('DF raw data'!I10="","",'DF raw data'!I10) -> Device | B10: =IF('DF raw data'!J10="","",'DF raw data'!J10) -> (HAL) HALL-PROBE | C10: =IF('DF raw data'!K10="","",'DF raw data'!K10) ->  | D10: =IF('DF raw data'!L10="","",'DF raw data'!L10) -> 
A11: =IF('DF raw data'!I11="","",'DF raw data'!I11) -> Goal | B11: =IF('DF raw data'!J11="","",'DF raw data'!J11) -> (AXI) AXis Integral (Line, EFB) | C11: =IF('DF raw data'!K11="","",'DF raw data'!K11) ->  | D11: =IF('DF raw data'!L11="","",'DF raw data'!L11) -> 
A12: =IF('DF raw data'!I12="","",'DF raw data'!I12) -> Power supply mode | B12: =IF('DF raw data'!J12="","",'DF raw data'!J12) -> (PM) Permanent Magnet (no MPS in use) | C12: =IF('DF raw data'!K12="","",'DF raw data'!K12) ->  | D12: =IF('DF raw data'!L12="","",'DF raw data'!L12) -> 
A13: =IF('DF raw data'!I13="","",'DF raw data'!I13) -> Data format | B13: =IF('DF raw data'!J13="","",'DF raw data'!J13) -> Raw data text file | C13: =IF('DF raw data'!K13="","",'DF raw data'!K13) ->  | D13: =IF('DF raw data'!L13="","",'DF raw data'!L13) -> 
A14: =IF('DF raw data'!I14="","",'DF raw data'!I14) -> Direction of the pos. x-axis | B14: =IF('DF raw data'!J14="","",'DF raw data'!J14) -> See test program | C14: =IF('DF raw data'!K14="","",'DF raw data'!K14) ->  | D14: =IF('DF raw data'!L14="","",'DF raw data'!L14) -> 
A15: =IF('DF raw data'!I15="","",'DF raw data'!I15) -> Direction of the pos. y-axis | B15: =IF('DF raw data'!J15="","",'DF raw data'!J15) -> Vertical up | C15: =IF('DF raw data'!K15="","",'DF raw data'!K15) ->  | D15: =IF('DF raw data'!L15="","",'DF raw data'!L15) -> 
A16: =IF('DF raw data'!I16="","",'DF raw data'!I16) -> Direction of the pos. z-axis | B16: =IF('DF raw data'!J16="","",'DF raw data'!J16) -> See test program | C16: =IF('DF raw data'!K16="","",'DF raw data'!K16) ->  | D16: =IF('DF raw data'!L16="","",'DF raw data'!L16) -> 
A17: =IF('DF raw data'!I17="","",'DF raw data'!I17) -> Mapper type | B17: =IF('DF raw data'!J17="","",'DF raw data'!J17) -> Precision Hall Mapper | C17: =IF('DF raw data'!K17="","",'DF raw data'!K17) ->  | D17: =IF('DF raw data'!L17="","",'DF raw data'!L17) -> 
A18: =IF('DF raw data'!I18="","",'DF raw data'!I18) -> Mapper Danfysik Reg. Number | B18: =IF('DF raw data'!J18="","",'DF raw data'!J18) -> 2033-D (mapper 1) | C18: =IF('DF raw data'!K18="","",'DF raw data'!K18) ->  | D18: =IF('DF raw data'!L18="","",'DF raw data'!L18) -> 
A19: =IF('DF raw data'!I19="","",'DF raw data'!I19) -> Measurement consept | B19: =IF('DF raw data'!J19="","",'DF raw data'!J19) -> Square line grid | C19: =IF('DF raw data'!K19="","",'DF raw data'!K19) ->  | D19: =IF('DF raw data'!L19="","",'DF raw data'!L19) -> 
A20: =IF('DF raw data'!I20="","",'DF raw data'!I20) -> Mode | B20: =IF('DF raw data'!J20="","",'DF raw data'!J20) -> On-the-fly measurement | C20: =IF('DF raw data'!K20="","",'DF raw data'!K20) ->  | D20: =IF('DF raw data'!L20="","",'DF raw data'!L20) -> 
A21: =IF('DF raw data'!I21="","",'DF raw data'!I21) ->  | B21: =IF('DF raw data'!J21="","",'DF raw data'!J21) ->  | C21: =IF('DF raw data'!K21="","",'DF raw data'!K21) ->  | D21: =IF('DF raw data'!L21="","",'DF raw data'!L21) -> 
A22: =IF('DF raw data'!I22="","",'DF raw data'!I22) -> Probe Name | B22: =IF('DF raw data'!J22="","",'DF raw data'!J22) -> ID12_By | C22: =IF('DF raw data'!K22="","",'DF raw data'!K22) ->  | D22: =IF('DF raw data'!L22="","",'DF raw data'!L22) -> 
A23: =IF('DF raw data'!I23="","",'DF raw data'!I23) -> Probe Type | B23: =IF('DF raw data'!J23="","",'DF raw data'!J23) -> DF_ID_3D_Bxyz | C23: =IF('DF raw data'!K23="","",'DF raw data'!K23) ->  | D23: =IF('DF raw data'!L23="","",'DF raw data'!L23) -> 
A24: =IF('DF raw data'!I24="","",'DF raw data'!I24) -> Probe Danfysik Reg. Number | B24: =IF('DF raw data'!J24="","",'DF raw data'!J24) -> 2277 | C24: =IF('DF raw data'!K24="","",'DF raw data'!K24) ->  | D24: =IF('DF raw data'!L24="","",'DF raw data'!L24) -> 
A25: =IF('DF raw data'!I25="","",'DF raw data'!I25) -> Probe Axis | B25: =IF('DF raw data'!J25="","",'DF raw data'!J25) -> By | C25: =IF('DF raw data'!K25="","",'DF raw data'!K25) ->  | D25: =IF('DF raw data'!L25="","",'DF raw data'!L25) -> 
A26: =IF('DF raw data'!I26="","",'DF raw data'!I26) -> Probe Current Supply | B26: =IF('DF raw data'!J26="","",'DF raw data'!J26) -> 1825-D | C26: =IF('DF raw data'!K26="","",'DF raw data'!K26) ->  | D26: =IF('DF raw data'!L26="","",'DF raw data'!L26) -> 
A27: =IF('DF raw data'!I27="","",'DF raw data'!I27) -> Probe Gain Correction | B27: =IF('DF raw data'!J27="","",'DF raw data'!J27) -> 0.99617 | C27: =IF('DF raw data'!K27="","",'DF raw data'!K27) ->  | D27: =IF('DF raw data'!L27="","",'DF raw data'!L27) -> 
A28: =IF('DF raw data'!I28="","",'DF raw data'!I28) -> Probe Offset Correction | B28: =IF('DF raw data'!J28="","",'DF raw data'!J28) -> 0.0027549 | C28: =IF('DF raw data'!K28="","",'DF raw data'!K28) ->  | D28: =IF('DF raw data'!L28="","",'DF raw data'!L28) -> 
A29: =IF('DF raw data'!I29="","",'DF raw data'!I29) -> DVM Number | B29: =IF('DF raw data'!J29="","",'DF raw data'!J29) -> 2 | C29: =IF('DF raw data'!K29="","",'DF raw data'!K29) ->  | D29: =IF('DF raw data'!L29="","",'DF raw data'!L29) -> 
A30: =IF('DF raw data'!I30="","",'DF raw data'!I30) -> DVM Type | B30: =IF('DF raw data'!J30="","",'DF raw data'!J30) -> K2701 | C30: =IF('DF raw data'!K30="","",'DF raw data'!K30) ->  | D30: =IF('DF raw data'!L30="","",'DF raw data'!L30) -> 
A31: =IF('DF raw data'!I31="","",'DF raw data'!I31) -> DVM Danfysik Reg. Number | B31: =IF('DF raw data'!J31="","",'DF raw data'!J31) -> 1743-D | C31: =IF('DF raw data'!K31="","",'DF raw data'!K31) ->  | D31: =IF('DF raw data'!L31="","",'DF raw data'!L31) -> 
A32: =IF('DF raw data'!I32="","",'DF raw data'!I32) -> Probe Name | B32: =IF('DF raw data'!J32="","",'DF raw data'!J32) -> ID12_Bx | C32: =IF('DF raw data'!K32="","",'DF raw data'!K32) ->  | D32: =IF('DF raw data'!L32="","",'DF raw data'!L32) -> 
A33: =IF('DF raw data'!I33="","",'DF raw data'!I33) -> Probe Type | B33: =IF('DF raw data'!J33="","",'DF raw data'!J33) -> DF_ID_3D_Bxyz | C33: =IF('DF raw data'!K33="","",'DF raw data'!K33) ->  | D33: =IF('DF raw data'!L33="","",'DF raw data'!L33) -> 
A34: =IF('DF raw data'!I34="","",'DF raw data'!I34) -> Probe Danfysik Reg. Number | B34: =IF('DF raw data'!J34="","",'DF raw data'!J34) -> 2277 | C34: =IF('DF raw data'!K34="","",'DF raw data'!K34) ->  | D34: =IF('DF raw data'!L34="","",'DF raw data'!L34) -> 
A35: =IF('DF raw data'!I35="","",'DF raw data'!I35) -> Probe Axis | B35: =IF('DF raw data'!J35="","",'DF raw data'!J35) -> Bx | C35: =IF('DF raw data'!K35="","",'DF raw data'!K35) ->  | D35: =IF('DF raw data'!L35="","",'DF raw data'!L35) -> 
A36: =IF('DF raw data'!I36="","",'DF raw data'!I36) -> Probe Current Supply | B36: =IF('DF raw data'!J36="","",'DF raw data'!J36) -> 1825-D | C36: =IF('DF raw data'!K36="","",'DF raw data'!K36) ->  | D36: =IF('DF raw data'!L36="","",'DF raw data'!L36) -> 
A37: =IF('DF raw data'!I37="","",'DF raw data'!I37) -> Probe Gain Correction | B37: =IF('DF raw data'!J37="","",'DF raw data'!J37) -> 1 | C37: =IF('DF raw data'!K37="","",'DF raw data'!K37) ->  | D37: =IF('DF raw data'!L37="","",'DF raw data'!L37) -> 
A38: =IF('DF raw data'!I38="","",'DF raw data'!I38) -> Probe Offset Correction | B38: =IF('DF raw data'!J38="","",'DF raw data'!J38) -> -0.1756 | C38: =IF('DF raw data'!K38="","",'DF raw data'!K38) ->  | D38: =IF('DF raw data'!L38="","",'DF raw data'!L38) -> 
A39: =IF('DF raw data'!I39="","",'DF raw data'!I39) -> DVM Number | B39: =IF('DF raw data'!J39="","",'DF raw data'!J39) -> 3 | C39: =IF('DF raw data'!K39="","",'DF raw data'!K39) ->  | D39: =IF('DF raw data'!L39="","",'DF raw data'!L39) -> 
A40: =IF('DF raw data'!I40="","",'DF raw data'!I40) -> DVM Type | B40: =IF('DF raw data'!J40="","",'DF raw data'!J40) -> K2701 | C40: =IF('DF raw data'!K40="","",'DF raw data'!K40) ->  | D40: =IF('DF raw data'!L40="","",'DF raw data'!L40) -> 
A41: =IF('DF raw data'!I41="","",'DF raw data'!I41) -> DVM Danfysik Reg. Number | B41: =IF('DF raw data'!J41="","",'DF raw data'!J41) -> 1744-D | C41: =IF('DF raw data'!K41="","",'DF raw data'!K41) ->  | D41: =IF('DF raw data'!L41="","",'DF raw data'!L41) -> 
A42: =IF('DF raw data'!I42="","",'DF raw data'!I42) -> Probe Name | B42: =IF('DF raw data'!J42="","",'DF raw data'!J42) -> ID12_Bz | C42: =IF('DF raw data'!K42="","",'DF raw data'!K42) ->  | D42: =IF('DF raw data'!L42="","",'DF raw data'!L42) -> 
A43: =IF('DF raw data'!I43="","",'DF raw data'!I43) -> Probe Type | B43: =IF('DF raw data'!J43="","",'DF raw data'!J43) -> DF_ID_3D_Bxyz | C43: =IF('DF raw data'!K43="","",'DF raw data'!K43) ->  | D43: =IF('DF raw data'!L43="","",'DF raw data'!L43) -> 
A44: =IF('DF raw data'!I44="","",'DF raw data'!I44) -> Probe Danfysik Reg. Number | B44: =IF('DF raw data'!J44="","",'DF raw data'!J44) -> 2277 | C44: =IF('DF raw data'!K44="","",'DF raw data'!K44) ->  | D44: =IF('DF raw data'!L44="","",'DF raw data'!L44) -> 
A45: =IF('DF raw data'!I45="","",'DF raw data'!I45) -> Probe Axis | B45: =IF('DF raw data'!J45="","",'DF raw data'!J45) -> Bz | C45: =IF('DF raw data'!K45="","",'DF raw data'!K45) ->  | D45: =IF('DF raw data'!L45="","",'DF raw data'!L45) -> 
A46: =IF('DF raw data'!I46="","",'DF raw data'!I46) -> Probe Current Supply | B46: =IF('DF raw data'!J46="","",'DF raw data'!J46) -> 1825-D | C46: =IF('DF raw data'!K46="","",'DF raw data'!K46) ->  | D46: =IF('DF raw data'!L46="","",'DF raw data'!L46) -> 
A47: =IF('DF raw data'!I47="","",'DF raw data'!I47) -> Probe Gain Correction | B47: =IF('DF raw data'!J47="","",'DF raw data'!J47) -> 1 | C47: =IF('DF raw data'!K47="","",'DF raw data'!K47) ->  | D47: =IF('DF raw data'!L47="","",'DF raw data'!L47) -> 
A48: =IF('DF raw data'!I53="","",'DF raw data'!I53) -> PS-Gap: | B48: =IF('DF raw data'!J53="","",'DF raw data'!J53) -> 10 | C48: =IF('DF raw data'!K53="","",'DF raw data'!K53) ->  | D48: =IF('DF raw data'!L53="","",'DF raw data'!L53) -> 
A49: =IF('DF raw data'!I54="","",'DF raw data'!I54) -> PS-Temperature: | B49: =IF('DF raw data'!J54="","",'DF raw data'!J54) -> 24.9 | C49: =IF('DF raw data'!K54="","",'DF raw data'!K54) ->  | D49: =IF('DF raw data'!L54="","",'DF raw data'!L54) -> 
A50: =IF('DF raw data'!I55="","",'DF raw data'!I55) -> PS-Encoder: | B50: =IF('DF raw data'!J55="","",'DF raw data'!J55) -> 19.5984 | C50: =IF('DF raw data'!K55="","",'DF raw data'!K55) ->  | D50: =IF('DF raw data'!L55="","",'DF raw data'!L55) -> 
A51: =IF('DF raw data'!I56="","",'DF raw data'!I56) ->  | B51: =IF('DF raw data'!J56="","",'DF raw data'!J56) ->  | C51: =IF('DF raw data'!K56="","",'DF raw data'!K56) ->  | D51: =IF('DF raw data'!L56="","",'DF raw data'!L56) -> 
A52: =IF('DF raw data'!I57="","",'DF raw data'!I57) -> Monitor-Index | B52: =IF('DF raw data'!J57="","",'DF raw data'!J57) -> [1,1,4] | C52: =IF('DF raw data'!K57="","",'DF raw data'!K57) ->  | D52: =IF('DF raw data'!L57="","",'DF raw data'!L57) -> 
A53: =IF('DF raw data'!I58="","",'DF raw data'!I58) ->  | B53: =IF('DF raw data'!J58="","",'DF raw data'!J58) ->  | C53: =IF('DF raw data'!K58="","",'DF raw data'!K58) ->  | D53: =IF('DF raw data'!L58="","",'DF raw data'!L58) -> 
A54: =IF('DF raw data'!I59="","",'DF raw data'!I59) -> Time [s] | B54: =IF('DF raw data'!J59="","",'DF raw data'!J59) -> Y [mm] | C54: =IF('DF raw data'!K59="","",'DF raw data'!K59) -> X [mm] | D54: =IF('DF raw data'!L59="","",'DF raw data'!L59) -> Nominal current [A]
A55: =IF('DF raw data'!I60="","",'DF raw data'!I60) ->  | B55: =IF('DF raw data'!J60="","",'DF raw data'!J60) ->  | C55: =IF('DF raw data'!K60="","",'DF raw data'!K60) ->  | D55: =IF('DF raw data'!L60="","",'DF raw data'!L60) -> 
A56: =IF('DF raw data'!I61="","",'DF raw data'!I61) -> 207.3 | B56: =IF('DF raw data'!J61="","",'DF raw data'!J61) -> 31.55 | C56: =IF('DF raw data'!K61="","",'DF raw data'!K61) -> 302.55 | D56: =IF('DF raw data'!L61="","",'DF raw data'!L61) -> 0
A57: =IF('DF raw data'!I62="","",'DF raw data'!I62) ->  | B57: =IF('DF raw data'!J62="","",'DF raw data'!J62) ->  | C57: =IF('DF raw data'!K62="","",'DF raw data'!K62) ->  | D57: =IF('DF raw data'!L62="","",'DF raw data'!L62) -> 
A58: =IF('DF raw data'!I63="","",'DF raw data'!I63) -> Measurement-Index | B58: =IF('DF raw data'!J63="","",'DF raw data'!J63) -> [1,1,1201,2] | C58: =IF('DF raw data'!K63="","",'DF raw data'!K63) ->  | D58: =IF('DF raw data'!L63="","",'DF raw data'!L63) -> 
A59: =IF('DF raw data'!I64="","",'DF raw data'!I64) ->  | B59: =IF('DF raw data'!J64="","",'DF raw data'!J64) ->  | C59: =IF('DF raw data'!K64="","",'DF raw data'!K64) ->  | D59: =IF('DF raw data'!L64="","",'DF raw data'!L64) -> 
A60: =IF('DF raw data'!I65="","",'DF raw data'!I65) -> Z [mm] | B60: By [T] | C60: Bx [T] | D60: Bz [T] | F60: By_corr | G60: Bx_corr | H60: Bz_corr | J60: Iy | K60: Jy | L60: Ix | M60: Jx | N60: PI
A62: =IF('DF raw data'!I67="","",'DF raw data'!I67) -> -300 | B62: =IF('DF raw data'!J67="","",'DF raw data'!J67) -> -2.21676e-05 | C62: =IF('DF raw data'!K67="","",'DF raw data'!K67) -> 0.000229949 | D62: =IF('DF raw data'!L67="","",'DF raw data'!L67) -> -1.68334e-05 | F62: =(1-$G$1*($B$49))*B62 -> -2.271957324e-05 | G62: =(1-$G$1*($B$49-$G$2))*C62 -> 0.0002310757501 | H62: =(1-$G$1*($B$49-$G$2))*D62 -> -1.691588366e-05 | J62: =F62*$G$3 -> -1.135978662e-05 | K62: =J62*$G$3 -> -5.67989331e-06 | L62: =G62*$G$3 -> 0.000115537875 | M62: =L62*$G$3 -> 5.776893752e-05 | N62: =(J62^2+L62^2)*$G$3 -> 6.739022662e-09
A63: =IF('DF raw data'!I68="","",'DF raw data'!I68) -> -299.5 | B63: =IF('DF raw data'!J68="","",'DF raw data'!J68) -> -1.73624e-05 | C63: =IF('DF raw data'!K68="","",'DF raw data'!K68) -> 0.000235881 | D63: =IF('DF raw data'!L68="","",'DF raw data'!L68) -> -1.71752e-05 | F63: =(1-$G$1*($B$49-$G$2))*B63 -> -1.744747576e-05 | G63: =(1-$G$1*($B$49-$G$2))*C63 -> 0.0002370368169 | H63: -1.725935848e-05 | J63: =F63*$G$3+J62 -> -2.00835245e-05 | K63: =J63*$G$3+K62 -> -1.572165556e-05 | L63: =G63*$G$3+L62 -> 0.0002340562835 | M63: =L63*$G$3+M62 -> 0.0001747970793 | N63: =(J63^2+L63^2)*$G$3+N62 -> 3.433186856e-08
A64: =IF('DF raw data'!I69="","",'DF raw data'!I69) -> -299 | B64: =IF('DF raw data'!J69="","",'DF raw data'!J69) -> -1.80027e-05 | C64: =IF('DF raw data'!K69="","",'DF raw data'!K69) -> 0.000234666 | D64: =IF('DF raw data'!L69="","",'DF raw data'!L69) -> -1.78977e-05 | F64: =(1-$G$1*($B$49-$G$2))*B64 -> -1.809091323e-05 | G64: 0.0002358158634 | H64: -1.798539873e-05 | J64: =F64*$G$3+J63 -> -2.912898112e-05 | K64: =J64*$G$3+K63 -> -3.028614612e-05 | L64: =G64*$G$3+L63 -> 0.0003519642152 | M64: =L64*$G$3+M63 -> 0.0003507791869 | N64: =(J64^2+L64^2)*$G$3+N63 -> 9.669552172e-08
A65: =IF('DF raw data'!I70="","",'DF raw data'!I70) -> -298.5 | B65: =IF('DF raw data'!J70="","",'DF raw data'!J70) -> -1.72339e-05 | C65: =IF('DF raw data'!K70="","",'DF raw data'!K70) -> 0.00023194 | D65: =IF('DF raw data'!L70="","",'DF raw data'!L70) -> -1.83236e-05 | F65: -1.731834611e-05 | G65: 0.000233076506 | H65: -1.841338564e-05 | J65: -3.778815417e-05 | K65: -4.91802232e-05 | L65: 0.0004685024682 | M65: 0.000585030421 | N65: 2.071567754e-07
A66: =IF('DF raw data'!I71="","",'DF raw data'!I71) -> -298 | B66: =IF('DF raw data'!J71="","",'DF raw data'!J71) -> -2.73582e-05 | C66: =IF('DF raw data'!K71="","",'DF raw data'!K71) -> 0.000234962 | D66: =IF('DF raw data'!L71="","",'DF raw data'!L71) -> -1.79716e-05 | F66: -2.749225518e-05 | G66: 0.0002361133138 | H66: -1.805966084e-05 | J66: -5.153428176e-05 | K66: -7.494736408e-05 | L66: 0.0005865591251 | M66: 0.0008783099835 | N66: 3.805104701e-07
A67: =IF('DF raw data'!I72="","",'DF raw data'!I72) -> -297.5 | B67: =IF('DF raw data'!J72="","",'DF raw data'!J72) -> -2.01182e-05 | C67: =IF('DF raw data'!K72="","",'DF raw data'!K72) -> 0.000234805 | D67: =IF('DF raw data'!L72="","",'DF raw data'!L72) -> -1.74984e-05 | F67: -2.021677918e-05 | G67: 0.0002359555445 | H67: -1.758414216e-05 | J67: -6.164267135e-05 | K67: -0.0001057686998 | L67: 0.0007045368973 | M67: 0.001230578432 | N67: 6.305964994e-07
A68: =IF('DF raw data'!I73="","",'DF raw data'!I73) -> -297 | B68: =IF('DF raw data'!J73="","",'DF raw data'!J73) -> -1.97332e-05 | C68: =IF('DF raw data'!K73="","",'DF raw data'!K73) -> 0.000237024 | D68: =IF('DF raw data'!L73="","",'DF raw data'!L73) -> -1.74693e-05 | F68: -1.982989268e-05 | G68: 0.0002381854176 | H68: -1.755489957e-05 | J68: -7.155761769e-05 | K68: -0.0001415475086 | L68: 0.0008236296061 | M68: 0.001642393235 | N68: 9.723396098e-07
A69: =IF('DF raw data'!I74="","",'DF raw data'!I74) -> -296.5 | B69: =IF('DF raw data'!J74="","",'DF raw data'!J74) -> -1.95413e-05 | C69: =IF('DF raw data'!K74="","",'DF raw data'!K74) -> 0.00023791 | D69: =IF('DF raw data'!L74="","",'DF raw data'!L74) -> -1.75176e-05 | F69: -1.963705237e-05 | G69: 0.000239075759 | H69: -1.760343624e-05 | J69: -8.137614387e-05 | K69: -0.0001822355805 | L69: 0.0009431674856 | M69: 0.002113976978 | N69: 1.420433101e-06
A70: =IF('DF raw data'!I75="","",'DF raw data'!I75) -> -296 | B70: =IF('DF raw data'!J75="","",'DF raw data'!J75) -> -2.1143e-05 | C70: =IF('DF raw data'!K75="","",'DF raw data'!K75) -> 0.000230551 | D70: =IF('DF raw data'!L75="","",'DF raw data'!L75) -> -1.71755e-05 | F70: -2.12466007e-05 | G70: 0.0002316806999 | H70: -1.725965995e-05 | J70: -9.199944422e-05 | K70: -0.0002282353027 | L70: 0.001059007836 | M70: 0.002643480896 | N70: 1.985413848e-06
A71: =IF('DF raw data'!I76="","",'DF raw data'!I76) -> -295.5 | B71: =IF('DF raw data'!J76="","",'DF raw data'!J76) -> -1.62096e-05 | C71: =IF('DF raw data'!K76="","",'DF raw data'!K76) -> 0.000239598 | D71: =IF('DF raw data'!L76="","",'DF raw data'!L76) -> -1.68685e-05 | F71: -1.628902704e-05 | G71: 0.0002407720302 | H71: -1.695115565e-05 | J71: -0.0001001439577 | K71: -0.0002783072815 | L71: 0.001179393851 | M71: 0.003233177821 | N71: 2.685913182e-06
A72: =IF('DF raw data'!I77="","",'DF raw data'!I77) -> -295 | B72: =IF('DF raw data'!J77="","",'DF raw data'!J77) -> -1.19154e-05 | C72: =IF('DF raw data'!K77="","",'DF raw data'!K77) -> 0.000242217 | D72: =IF('DF raw data'!L77="","",'DF raw data'!L77) -> -1.7094e-05 | F72: -1.197378546e-05 | G72: 0.0002434038633 | H72: -1.71777606e-05 | J72: -0.0001061308505 | K72: -0.0003313727068 | L72: 0.001301095782 | M72: 0.003883725712 | N72: 3.537970178e-06
A73: =IF('DF raw data'!I78="","",'DF raw data'!I78) -> -294.5 | B73: =IF('DF raw data'!J78="","",'DF raw data'!J78) -> -1.05057e-05 | C73: =IF('DF raw data'!K78="","",'DF raw data'!K78) -> 0.00023777 | D73: =IF('DF raw data'!L78="","",'DF raw data'!L78) -> -1.77192e-05 | F73: -1.055717793e-05 | G73: 0.000238935073 | H73: -1.780602408e-05 | J73: -0.0001114094394 | K73: -0.0003870774265 | L73: 0.001420563319 | M73: 0.004594007372 | N73: 4.553176281e-06
A74: =IF('DF raw data'!I79="","",'DF raw data'!I79) -> -294 | B74: =IF('DF raw data'!J79="","",'DF raw data'!J79) -> -1.24272e-05 | C74: =IF('DF raw data'!K79="","",'DF raw data'!K79) -> 0.000236483 | D74: =IF('DF raw data'!L79="","",'DF raw data'!L79) -> -1.83386e-05 | F74: -1.248809328e-05 | G74: 0.0002376417667 | H74: -1.842845914e-05 | J74: -0.0001176534861 | K74: -0.0004459041695 | L74: 0.001539384202 | M74: 0.005363699473 | N74: 5.744949313e-06
A75: =IF('DF raw data'!I80="","",'DF raw data'!I80) -> -293.5 | B75: =IF('DF raw data'!J80="","",'DF raw data'!J80) -> -1.4414e-05 | C75: =IF('DF raw data'!K80="","",'DF raw data'!K80) -> 0.000240792 | D75: =IF('DF raw data'!L80="","",'DF raw data'!L80) -> -1.87863e-05 | F75: -1.44846286e-05 | G75: 0.0002419718808 | H75: -1.887835287e-05 | J75: -0.0001248958004 | K75: -0.0005083520697 | L75: 0.001660370143 | M75: 0.006193884544 | N75: 7.131163299e-06
A76: =IF('DF raw data'!I81="","",'DF raw data'!I81) -> -293 | B76: =IF('DF raw data'!J81="","",'DF raw data'!J81) -> -1.89631e-05 | C76: =IF('DF raw data'!K81="","",'DF raw data'!K81) -> 0.000242597 | D76: =IF('DF raw data'!L81="","",'DF raw data'!L81) -> -1.89165e-05 | F76: -1.905601919e-05 | G76: 0.0002437857253 | H76: -1.900919085e-05 | J76: -0.00013442381 | K76: -0.0005755639747 | L76: 0.001782263005 | M76: 0.007085016047 | N76: 8.728428889e-06
A77: =IF('DF raw data'!I82="","",'DF raw data'!I82) -> -292.5 | B77: =IF('DF raw data'!J82="","",'DF raw data'!J82) -> -2.38344e-05 | C77: =IF('DF raw data'!K82="","",'DF raw data'!K82) -> 0.000237727 | D77: =IF('DF raw data'!L82="","",'DF raw data'!L82) -> -1.84719e-05 | F77: -2.395118856e-05 | G77: 0.0002388918623 | H77: -1.856241231e-05 | J77: -0.0001463994043 | K77: -0.0006487636768 | L77: 0.001901708936 | M77: 0.008035870515 | N77: 1.054739372e-05
A78: =IF('DF raw data'!I83="","",'DF raw data'!I83) -> -292 | B78: =IF('DF raw data'!J83="","",'DF raw data'!J83) -> -2.63972e-05 | C78: =IF('DF raw data'!K83="","",'DF raw data'!K83) -> 0.000231101 | D78: =IF('DF raw data'!L83="","",'DF raw data'!L83) -> -1.75266e-05 | F78: -2.652654628e-05 | G78: 0.0002322333949 | H78: -1.761248034e-05 | J78: -0.0001596626774 | K78: -0.0007285950155 | L78: 0.002017825634 | M78: 0.009044783332 | N78: 1.259594995e-05
A79: =IF('DF raw data'!I84="","",'DF raw data'!I84) -> -291.5 | B79: =IF('DF raw data'!J84="","",'DF raw data'!J84) -> -2.23556e-05 | C79: =IF('DF raw data'!K84="","",'DF raw data'!K84) -> 0.000228297 | D79: =IF('DF raw data'!L84="","",'DF raw data'!L84) -> -2.61398e-05 | F79: -2.246514244e-05 | G79: 0.0002294156553 | H79: -2.626788502e-05 | J79: -0.0001708952486 | K79: -0.0008140426398 | L79: 0.002132533461 | M79: 0.01011105006 | N79: 1.488440203e-05
A80: =IF('DF raw data'!I85="","",'DF raw data'!I85) -> -291 | B80: =IF('DF raw data'!J85="","",'DF raw data'!J85) -> -1.5627e-05 | C80: =IF('DF raw data'!K85="","",'DF raw data'!K85) -> 0.000225417 | D80: =IF('DF raw data'!L85="","",'DF raw data'!L85) -> -2.49623e-05 | F80: -1.57035723e-05 | G80: 0.0002265215433 | H80: -2.508461527e-05 | J80: -0.0001787470348 | K80: -0.0009034161572 | L80: 0.002245794233 | M80: 0.01123394718 | N80: 1.742217315e-05
A81: =IF('DF raw data'!I86="","",'DF raw data'!I86) -> -290.5 | B81: =IF('DF raw data'!J86="","",'DF raw data'!J86) -> -1.40898e-05 | C81: =IF('DF raw data'!K86="","",'DF raw data'!K86) -> 0.000225849 | D81: =IF('DF raw data'!L86="","",'DF raw data'!L86) -> -2.5005e-05 | F81: -1.415884002e-05 | G81: 0.0002269556601 | H81: -2.51275245e-05 | J81: -0.0001858264548 | K81: -0.0009963293846 | L81: 0.002359272063 | M81: 0.01241358321 | N81: 2.022252122e-05
A82: =IF('DF raw data'!I87="","",'DF raw data'!I87) -> -290 | B82: =IF('DF raw data'!J87="","",'DF raw data'!J87) -> -1.6585e-05 | C82: =IF('DF raw data'!K87="","",'DF raw data'!K87) -> 0.000227341 | D82: =IF('DF raw data'!L87="","",'DF raw data'!L87) -> -2.99743e-05 | F82: -1.66662665e-05 | G82: 0.0002284549709 | H82: -3.012117407e-05 | J82: -0.000194159588 | K82: -0.001093409179 | L82: 0.002473499549 | M82: 0.01365033299 | N82: 2.33004702e-05
A83: =IF('DF raw data'!I88="","",'DF raw data'!I88) -> -289.5 | B83: =IF('DF raw data'!J88="","",'DF raw data'!J88) -> -1.23648e-05 | C83: =IF('DF raw data'!K88="","",'DF raw data'!K88) -> 0.000231491 | D83: =IF('DF raw data'!L88="","",'DF raw data'!L88) -> -1.67359e-05 | F83: -1.242538752e-05 | G83: 0.0002326253059 | H83: -1.681790591e-05 | J83: -0.0002003722818 | K83: -0.00119359532 | L83: 0.002589812202 | M83: 0.01494523909 | N83: 2.667410834e-05
A84: =IF('DF raw data'!I89="","",'DF raw data'!I89) -> -289 | B84: =IF('DF raw data'!J89="","",'DF raw data'!J89) -> -2.66561e-05 | C84: =IF('DF raw data'!K89="","",'DF raw data'!K89) -> 0.000228759 | D84: =IF('DF raw data'!L89="","",'DF raw data'!L89) -> -1.35272e-05 | F84: -2.678671489e-05 | G84: 0.0002298799191 | H84: -1.359348328e-05 | J84: -0.0002137656392 | K84: -0.001300478139 | L84: 0.002704752161 | M84: 0.01629761517 | N84: 3.035479834e-05
A85: =IF('DF raw data'!I90="","",'DF raw data'!I90) -> -288.5 | B85: =IF('DF raw data'!J90="","",'DF raw data'!J90) -> -3.15196e-05 | C85: =IF('DF raw data'!K90="","",'DF raw data'!K90) -> 0.000232835 | D85: =IF('DF raw data'!L90="","",'DF raw data'!L90) -> -2.61206e-05 | F85: -3.167404604e-05 | G85: 0.0002339758915 | H85: -2.624859094e-05 | J85: -0.0002296026623 | K85: -0.00141527947 | L85: 0.002821740107 | M85: 0.01770848522 | N85: 3.436226565e-05
A86: =IF('DF raw data'!I91="","",'DF raw data'!I91) -> -288 | B86: =IF('DF raw data'!J91="","",'DF raw data'!J91) -> -2.26198e-05 | C86: =IF('DF raw data'!K91="","",'DF raw data'!K91) -> 0.000234235 | D86: =IF('DF raw data'!L91="","",'DF raw data'!L91) -> -1.23983e-05 | F86: -2.273063702e-05 | G86: 0.0002353827515 | H86: -1.245905167e-05 | J86: -0.0002409679808 | K86: -0.001535763461 | L86: 0.002939431483 | M86: 0.01917820096 | N86: 3.871142715e-05
A87: =IF('DF raw data'!I92="","",'DF raw data'!I92) -> -287.5 | B87: =IF('DF raw data'!J92="","",'DF raw data'!J92) -> -1.33902e-05 | C87: =IF('DF raw data'!K92="","",'DF raw data'!K92) -> 0.000235735 | D87: =IF('DF raw data'!L92="","",'DF raw data'!L92) -> -1.66424e-05 | F87: -1.345581198e-05 | G87: 0.0002368901015 | H87: -1.672394776e-05 | J87: -0.0002476958868 | K87: -0.001659611404 | L87: 0.003057876533 | M87: 0.02070713923 | N87: 4.341740823e-05
A88: =IF('DF raw data'!I93="","",'DF raw data'!I93) -> -287 | B88: =IF('DF raw data'!J93="","",'DF raw data'!J93) -> -8.58036e-06 | C88: =IF('DF raw data'!K93="","",'DF raw data'!K93) -> 0.00022311 | D88: =IF('DF raw data'!L93="","",'DF raw data'!L93) -> -2.16803e-05 | F88: -8.622403764e-06 | G88: 0.000224203239 | H88: -2.178653347e-05 | J88: -0.0002520070886 | K88: -0.001785614948 | L88: 0.003169978153 | M88: 0.0222921283 | N88: 4.847354276e-05
A89: =IF('DF raw data'!I94="","",'DF raw data'!I94) -> -286.5 | B89: =IF('DF raw data'!J94="","",'DF raw data'!J94) -> -1.76111e-05 | C89: =IF('DF raw data'!K94="","",'DF raw data'!K94) -> 0.000220994 | D89: =IF('DF raw data'!L94="","",'DF raw data'!L94) -> -2.99415e-05 | F89: -1.769739439e-05 | G89: 0.0002220768706 | H89: -3.008821335e-05 | J89: -0.0002608557858 | K89: -0.001916042841 | L89: 0.003281016588 | M89: 0.0239326366 | N89: 5.389010056e-05
A90: =IF('DF raw data'!I95="","",'DF raw data'!I95) -> -286 | B90: =IF('DF raw data'!J95="","",'DF raw data'!J95) -> -2.26711e-05 | C90: =IF('DF raw data'!K95="","",'DF raw data'!K95) -> 0.000226865 | D90: =IF('DF raw data'!L95="","",'DF raw data'!L95) -> -3.18781e-05 | F90: -2.278218839e-05 | G90: 0.0002279766385 | H90: -3.203430269e-05 | J90: -0.00027224688 | K90: -0.002052166281 | L90: 0.003395004907 | M90: 0.02563013905 | N90: 5.96901889e-05
A91: =IF('DF raw data'!I96="","",'DF raw data'!I96) -> -285.5 | B91: =IF('DF raw data'!J96="","",'DF raw data'!J96) -> -2.74265e-05 | C91: =IF('DF raw data'!K96="","",'DF raw data'!K96) -> 0.000227175 | D91: =IF('DF raw data'!L96="","",'DF raw data'!L96) -> -1.35462e-05 | F91: -2.756088985e-05 | G91: 0.0002282881575 | H91: -1.361257638e-05 | J91: -0.0002860273249 | K91: -0.002195179944 | L91: 0.003509148986 | M91: 0.02738471355 | N91: 6.588815802e-05
A92: =IF('DF raw data'!I97="","",'DF raw data'!I97) -> -285 | B92: =IF('DF raw data'!J97="","",'DF raw data'!J97) -> -3.02349e-05 | C92: =IF('DF raw data'!K97="","",'DF raw data'!K97) -> 0.000230369 | D92: =IF('DF raw data'!L97="","",'DF raw data'!L97) -> -2.77741e-05 | F92: -3.038305101e-05 | G92: 0.0002314978081 | H92: -2.791019309e-05 | J92: -0.0003012188505 | K92: -0.002345789369 | L92: 0.00362489789 | M92: 0.02919716249 | N92: 7.250346677e-05
A93: =IF('DF raw data'!I98="","",'DF raw data'!I98) -> -284.5 | B93: =IF('DF raw data'!J98="","",'DF raw data'!J98) -> -1.41525e-05 | C93: =IF('DF raw data'!K98="","",'DF raw data'!K98) -> 0.000234358 | D93: =IF('DF raw data'!L98="","",'DF raw data'!L98) -> -2.69524e-05 | F93: -1.422184725e-05 | G93: 0.0002355063542 | H93: -2.708446676e-05 | J93: -0.0003083297741 | K93: -0.002499954256 | L93: 0.003742651067 | M93: 0.03106848802 | N93: 7.95547189e-05
A94: =IF('DF raw data'!I99="","",'DF raw data'!I99) -> -284 | B94: =IF('DF raw data'!J99="","",'DF raw data'!J99) -> -2.05028e-05 | C94: =IF('DF raw data'!K99="","",'DF raw data'!K99) -> 0.000233081 | D94: =IF('DF raw data'!L99="","",'DF raw data'!L99) -> -1.59075e-05 | F94: -2.060326372e-05 | G94: 0.0002342230969 | H94: -1.598544675e-05 | J94: -0.0003186314059 | K94: -0.002659269959 | L94: 0.003859762616 | M94: 0.03299836933 | N94: 8.705436561e-05
A95: =IF('DF raw data'!I100="","",'DF raw data'!I100) -> -283.5 | B95: =IF('DF raw data'!J100="","",'DF raw data'!J100) -> -2.47918e-05 | C95: =IF('DF raw data'!K100="","",'DF raw data'!K100) -> 0.0002379 | D95: =IF('DF raw data'!L100="","",'DF raw data'!L100) -> -2.48062e-05 | F95: -2.491327982e-05 | G95: 0.00023906571 | H95: -2.492775038e-05 | J95: -0.0003310880458 | K95: -0.002824813982 | L95: 0.003979295471 | M95: 0.03498801707 | N95: 9.502657148e-05
A96: =IF('DF raw data'!I101="","",'DF raw data'!I101) -> -283 | B96: =IF('DF raw data'!J101="","",'DF raw data'!J101) -> -3.01057e-05 | C96: =IF('DF raw data'!K101="","",'DF raw data'!K101) -> 0.000239799 | D96: =IF('DF raw data'!L101="","",'DF raw data'!L101) -> -2.93779e-05 | F96: -3.025321793e-05 | G96: 0.0002409740151 | H96: -2.952185171e-05 | J96: -0.0003462146548 | K96: -0.002997921309 | L96: 0.004099782478 | M96: 0.03703790831 | N96: 0.000103490612
A97: =IF('DF raw data'!I102="","",'DF raw data'!I102) -> -282.5 | B97: =IF('DF raw data'!J102="","",'DF raw data'!J102) -> -2.04299e-05 | C97: =IF('DF raw data'!K102="","",'DF raw data'!K102) -> 0.000239312 | D97: =IF('DF raw data'!L102="","",'DF raw data'!L102) -> -3.12519e-05 | F97: -2.053000651e-05 | G97: 0.0002404846288 | H97: -3.140503431e-05 | J97: -0.0003564796581 | K97: -0.003176161138 | L97: 0.004220024793 | M97: 0.0391479207 | N97: 0.0001124584555
A98: =IF('DF raw data'!I103="","",'DF raw data'!I103) -> -282 | B98: =IF('DF raw data'!J103="","",'DF raw data'!J103) -> -1.69736e-05 | C98: =IF('DF raw data'!K103="","",'DF raw data'!K103) -> 0.00023675 | D98: =IF('DF raw data'!L103="","",'DF raw data'!L103) -> -2.33185e-05 | F98: -1.705677064e-05 | G98: 0.000237910075 | H98: -2.343276065e-05 | J98: -0.0003650080434 | K98: -0.00335866516 | L98: 0.00433897983 | M98: 0.04131741062 | N98: 0.0001219384439
A99: =IF('DF raw data'!I104="","",'DF raw data'!I104) -> -281.5 | B99: =IF('DF raw data'!J104="","",'DF raw data'!J104) -> -1.90951e-05 | C99: =IF('DF raw data'!K104="","",'DF raw data'!K104) -> 0.000228924 | D99: =IF('DF raw data'!L104="","",'DF raw data'!L104) -> -1.46455e-05 | F99: -1.918866599e-05 | G99: 0.0002300457276 | H99: -1.471726295e-05 | J99: -0.0003746023764 | K99: -0.003545966348 | L99: 0.004454002694 | M99: 0.04354441197 | N99: 0.0001319276774
A100: =IF('DF raw data'!I105="","",'DF raw data'!I105) -> -281 | B100: =IF('DF raw data'!J105="","",'DF raw data'!J105) -> -7.61144e-06 | C100: =IF('DF raw data'!K105="","",'DF raw data'!K105) -> 0.000237038 | D100: =IF('DF raw data'!L105="","",'DF raw data'!L105) -> -3.34449e-05 | F100: -7.648736056e-06 | G100: 0.0002381994862 | H100: -3.360878001e-05 | J100: -0.0003784267444 | K100: -0.00373517972 | L100: 0.004573102437 | M100: 0.04583096318 | N100: 0.0001424559137
A101: =IF('DF raw data'!I106="","",'DF raw data'!I106) -> -280.5 | B101: =IF('DF raw data'!J106="","",'DF raw data'!J106) -> -1.67145e-05 | C101: =IF('DF raw data'!K106="","",'DF raw data'!K106) -> 0.000243704 | D101: =IF('DF raw data'!L106="","",'DF raw data'!L106) -> -2.92708e-05 | F101: -1.679640105e-05 | G101: 0.0002448981496 | H101: -2.941422692e-05 | J101: -0.0003868249449 | K101: -0.003928592193 | L101: 0.004695551512 | M101: 0.04817873894 | N101: 0.0001535548325
A102: =IF('DF raw data'!I107="","",'DF raw data'!I107) -> -280 | B102: =IF('DF raw data'!J107="","",'DF raw data'!J107) -> -1.63274e-05 | C102: =IF('DF raw data'!K107="","",'DF raw data'!K107) -> 0.000242841 | D102: =IF('DF raw data'!L107="","",'DF raw data'!L107) -> -3.17954e-05 | F102: -1.640740426e-05 | G102: 0.0002440309209 | H102: -3.195119746e-05 | J102: -0.0003950286471 | K102: -0.004126106516 | L102: 0.004817566972 | M102: 0.05058752243 | N102: 0.0001652373321
A103: =IF('DF raw data'!I108="","",'DF raw data'!I108) -> -279.5 | B103: =IF('DF raw data'!J108="","",'DF raw data'!J108) -> -1.80665e-05 | C103: =IF('DF raw data'!K108="","",'DF raw data'!K108) -> 0.00024351 | D103: =IF('DF raw data'!L108="","",'DF raw data'!L108) -> -1.92374e-05 | F103: -1.815502585e-05 | G103: 0.000244703199 | H103: -1.933166326e-05 | J103: -0.00040410616 | K103: -0.004328159596 | L103: 0.004939918572 | M103: 0.05305748171 | N103: 0.0001775203807
A104: =IF('DF raw data'!I109="","",'DF raw data'!I109) -> -279 | B104: =IF('DF raw data'!J109="","",'DF raw data'!J109) -> -1.9085e-05 | C104: =IF('DF raw data'!K109="","",'DF raw data'!K109) -> 0.000240589 | D104: =IF('DF raw data'!L109="","",'DF raw data'!L109) -> -2.85166e-05 | F104: -1.91785165e-05 | G104: 0.0002417678861 | H104: -2.865633134e-05 | J104: -0.0004136954182 | K104: -0.004535007306 | L104: 0.005060802515 | M104: 0.05558788297 | N104: 0.0001904118137
A105: =IF('DF raw data'!I110="","",'DF raw data'!I110) -> -278.5 | B105: =IF('DF raw data'!J110="","",'DF raw data'!J110) -> -2.70396e-05 | C105: =IF('DF raw data'!K110="","",'DF raw data'!K110) -> 0.000240951 | D105: =IF('DF raw data'!L110="","",'DF raw data'!L110) -> -1.715e-05 | F105: -2.717209404e-05 | G105: 0.0002421316599 | H105: -1.7234035e-05 | J105: -0.0004272814653 | K105: -0.004748648038 | L105: 0.005181868345 | M105: 0.05817881714 | N105: 0.0002039289782
A106: =IF('DF raw data'!I111="","",'DF raw data'!I111) -> -278 | B106: =IF('DF raw data'!J111="","",'DF raw data'!J111) -> -2.39642e-05 | C106: =IF('DF raw data'!K111="","",'DF raw data'!K111) -> 0.000234364 | D106: =IF('DF raw data'!L111="","",'DF raw data'!L111) -> -1.40385e-05 | F106: -2.408162458e-05 | G106: 0.0002355123836 | H106: -1.410728865e-05 | J106: -0.0004393222775 | K106: -0.004968309177 | L106: 0.005299624537 | M106: 0.06082862941 | N106: 0.0002180684903
A107: =IF('DF raw data'!I112="","",'DF raw data'!I112) -> -277.5 | B107: =IF('DF raw data'!J112="","",'DF raw data'!J112) -> -2.42275e-05 | C107: =IF('DF raw data'!K112="","",'DF raw data'!K112) -> 0.000232685 | D107: =IF('DF raw data'!L112="","",'DF raw data'!L112) -> -5.24685e-06 | F107: -2.434621475e-05 | G107: 0.0002338251565 | H107: -5.272559565e-06 | J107: -0.0004514953849 | K107: -0.005194056869 | L107: 0.005416537115 | M107: 0.06353689797 | N107: 0.0002328398515
A108: =IF('DF raw data'!I113="","",'DF raw data'!I113) -> -277 | B108: =IF('DF raw data'!J113="","",'DF raw data'!J113) -> -1.56863e-05 | C108: =IF('DF raw data'!K113="","",'DF raw data'!K113) -> 0.000231998 | D108: =IF('DF raw data'!L113="","",'DF raw data'!L113) -> -3.19898e-05 | F108: -1.576316287e-05 | G108: 0.0002331347902 | H108: -3.214655002e-05 | J108: -0.0004593769664 | K108: -0.005423745353 | L108: 0.00553310451 | M108: 0.06630345022 | N108: 0.0002482529879
A109: =IF('DF raw data'!I114="","",'DF raw data'!I114) -> -276.5 | B109: =IF('DF raw data'!J114="","",'DF raw data'!J114) -> -1.4218e-05 | C109: =IF('DF raw data'!K114="","",'DF raw data'!K114) -> 0.000234315 | D109: =IF('DF raw data'!L114="","",'DF raw data'!L114) -> -2.48755e-05 | F109: -1.42876682e-05 | G109: 0.0002354631435 | H109: -2.499738995e-05 | J109: -0.0004665208005 | K109: -0.005657005753 | L109: 0.005650836082 | M109: 0.06912886826 | N109: 0.0002643277829
A110: =IF('DF raw data'!I115="","",'DF raw data'!I115) -> -276 | B110: =IF('DF raw data'!J115="","",'DF raw data'!J115) -> -2.94649e-05 | C110: =IF('DF raw data'!K115="","",'DF raw data'!K115) -> 0.000233465 | D110: =IF('DF raw data'!L115="","",'DF raw data'!L115) -> -2.97668e-05 | F110: -2.960927801e-05 | G110: 0.0002346089785 | H110: -2.991265732e-05 | J110: -0.0004813254395 | K110: -0.005897668473 | L110: 0.005768140571 | M110: 0.07201293855 | N110: 0.0002810793428
A111: =IF('DF raw data'!I116="","",'DF raw data'!I116) -> -275.5 | B111: =IF('DF raw data'!J116="","",'DF raw data'!J116) -> -1.33267e-05 | C111: =IF('DF raw data'!K116="","",'DF raw data'!K116) -> 0.000226946 | D111: =IF('DF raw data'!L116="","",'DF raw data'!L116) -> -1.59295e-05 | F111: -1.339200083e-05 | G111: 0.0002280580354 | H111: -1.600755455e-05 | J111: -0.0004880214399 | K111: -0.006141679192 | L111: 0.005882169589 | M111: 0.07495402334 | N111: 0.0002984983848
A112: =IF('DF raw data'!I117="","",'DF raw data'!I117) -> -275 | B112: =IF('DF raw data'!J117="","",'DF raw data'!J117) -> -1.87664e-05 | C112: =IF('DF raw data'!K117="","",'DF raw data'!K117) -> 0.000231986 | D112: =IF('DF raw data'!L117="","",'DF raw data'!L117) -> -2.5563e-05 | F112: -1.885835536e-05 | G112: 0.0002331227314 | H112: -2.56882587e-05 | J112: -0.0004974506176 | K112: -0.006390404501 | L112: 0.005998730954 | M112: 0.07795338882 | N112: 0.0003166144999
A113: =IF('DF raw data'!I118="","",'DF raw data'!I118) -> -274.5 | B113: =IF('DF raw data'!J118="","",'DF raw data'!J118) -> -1.78735e-05 | C113: =IF('DF raw data'!K118="","",'DF raw data'!K118) -> 0.000237942 | D113: =IF('DF raw data'!L118="","",'DF raw data'!L118) -> -2.05978e-05 | F113: -1.796108015e-05 | G113: 0.0002391079158 | H113: -2.069872922e-05 | J113: -0.0005064311576 | K113: -0.00664362008 | L113: 0.006118284912 | M113: 0.08101253128 | N113: 0.0003354594413
A114: =IF('DF raw data'!I119="","",'DF raw data'!I119) -> -274 | B114: =IF('DF raw data'!J119="","",'DF raw data'!J119) -> -1.80644e-05 | C114: =IF('DF raw data'!K119="","",'DF raw data'!K119) -> 0.000228829 | D114: =IF('DF raw data'!L119="","",'DF raw data'!L119) -> -2.10127e-05 | F114: -1.815291556e-05 | G114: 0.0002299502621 | H114: -2.111566223e-05 | J114: -0.0005155076154 | K114: -0.006901373888 | L114: 0.006233260043 | M114: 0.0841291613 | N114: 0.0003550190808
A115: =IF('DF raw data'!I120="","",'DF raw data'!I120) -> -273.5 | B115: =IF('DF raw data'!J120="","",'DF raw data'!J120) -> -2.09414e-05 | C115: =IF('DF raw data'!K120="","",'DF raw data'!K120) -> 0.000229754 | D115: =IF('DF raw data'!L120="","",'DF raw data'!L120) -> -3.29089e-05 | F115: -2.104401286e-05 | G115: 0.0002308797946 | H115: -3.307015361e-05 | J115: -0.0005260296218 | K115: -0.007164388699 | L115: 0.006348699941 | M115: 0.08730351127 | N115: 0.0003753104298
A116: =IF('DF raw data'!I121="","",'DF raw data'!I121) -> -273 | B116: =IF('DF raw data'!J121="","",'DF raw data'!J121) -> -1.39591e-05 | C116: =IF('DF raw data'!K121="","",'DF raw data'!K121) -> 0.000225475 | D116: =IF('DF raw data'!L121="","",'DF raw data'!L121) -> -2.77895e-05 | F116: -1.402749959e-05 | G116: 0.0002265798275 | H116: -2.792566855e-05 | J116: -0.0005330433716 | K116: -0.007430910385 | L116: 0.006461989854 | M116: 0.0905345062 | N116: 0.0003963311539
A117: =IF('DF raw data'!I122="","",'DF raw data'!I122) -> -272.5 | B117: =IF('DF raw data'!J122="","",'DF raw data'!J122) -> -1.7614e-05 | C117: =IF('DF raw data'!K122="","",'DF raw data'!K122) -> 0.000227664 | D117: =IF('DF raw data'!L122="","",'DF raw data'!L122) -> -2.5594e-05 | F117: -1.77003086e-05 | G117: 0.0002287795536 | H117: -2.57194106e-05 | J117: -0.0005418935259 | K117: -0.007701857147 | L117: 0.006576379631 | M117: 0.09382269601 | N117: 0.0004181023627
A118: =IF('DF raw data'!I123="","",'DF raw data'!I123) -> -272 | B118: =IF('DF raw data'!J123="","",'DF raw data'!J123) -> -2.74227e-05 | C118: =IF('DF raw data'!K123="","",'DF raw data'!K123) -> 0.000230531 | D118: =IF('DF raw data'!L123="","",'DF raw data'!L123) -> -1.69159e-05 | F118: -2.755707123e-05 | G118: 0.0002316606019 | H118: -1.699878791e-05 | J118: -0.0005556720616 | K118: -0.007979693178 | L118: 0.006692209932 | M118: 0.09716880098 | N118: 0.0004406495853
A119: =IF('DF raw data'!I124="","",'DF raw data'!I124) -> -271.5 | B119: =IF('DF raw data'!J124="","",'DF raw data'!J124) -> -1.90276e-05 | C119: =IF('DF raw data'!K124="","",'DF raw data'!K124) -> 0.000237645 | D119: =IF('DF raw data'!L124="","",'DF raw data'!L124) -> -1.9741e-05 | F119: -1.912083524e-05 | G119: 0.0002388094605 | H119: -1.98377309e-05 | J119: -0.0005652324792 | K119: -0.008262309418 | L119: 0.006811614662 | M119: 0.1005746083 | N119: 0.0004640083763
A120: =IF('DF raw data'!I125="","",'DF raw data'!I125) -> -271 | B120: =IF('DF raw data'!J125="","",'DF raw data'!J125) -> -1.50504e-05 | C120: =IF('DF raw data'!K125="","",'DF raw data'!K125) -> 0.000231597 | D120: =IF('DF raw data'!L125="","",'DF raw data'!L125) -> -2.43942e-05 | F120: -1.512414696e-05 | G120: 0.0002327318253 | H120: -2.451373158e-05 | J120: -0.0005727945527 | K120: -0.008548706694 | L120: 0.006927980575 | M120: 0.1040385986 | N120: 0.0004881708806
A121: =IF('DF raw data'!I126="","",'DF raw data'!I126) -> -270.5 | B121: =IF('DF raw data'!J126="","",'DF raw data'!J126) -> -1.63251e-05 | C121: =IF('DF raw data'!K126="","",'DF raw data'!K126) -> 0.000227088 | D121: =IF('DF raw data'!L126="","",'DF raw data'!L126) -> -3.69094e-05 | F121: -1.640509299e-05 | G121: 0.0002282007312 | H121: -3.709025606e-05 | J121: -0.0005809970991 | K121: -0.008839205244 | L121: 0.007042080941 | M121: 0.1075596391 | N121: 0.0005131351114
A122: =IF('DF raw data'!I127="","",'DF raw data'!I127) -> -270 | B122: =IF('DF raw data'!J127="","",'DF raw data'!J127) -> -7.99093e-06 | C122: =IF('DF raw data'!K127="","",'DF raw data'!K127) -> 0.000235981 | D122: =IF('DF raw data'!L127="","",'DF raw data'!L127) -> -4.10692e-05 | F122: -8.030085557e-06 | G122: 0.0002371373069 | H122: -4.127043908e-05 | J122: -0.0005850121419 | K122: -0.009131711315 | L122: 0.007160649594 | M122: 0.1111399639 | N122: 0.0005389436823
A123: =IF('DF raw data'!I128="","",'DF raw data'!I128) -> -269.5 | B123: =IF('DF raw data'!J128="","",'DF raw data'!J128) -> -2.1964e-05 | C123: =IF('DF raw data'!K128="","",'DF raw data'!K128) -> 0.00023663 | D123: =IF('DF raw data'!L128="","",'DF raw data'!L128) -> -3.70594e-05 | F123: -2.20716236e-05 | G123: 0.000237789487 | H123: -3.724099106e-05 | J123: -0.0005960479537 | K123: -0.009429735292 | L123: 0.007279544338 | M123: 0.114779736 | N123: 0.0005656172017
A124: =IF('DF raw data'!I129="","",'DF raw data'!I129) -> -269 | B124: =IF('DF raw data'!J129="","",'DF raw data'!J129) -> -1.08156e-05 | C124: =IF('DF raw data'!K129="","",'DF raw data'!K129) -> 0.000236108 | D124: =IF('DF raw data'!L129="","",'DF raw data'!L129) -> -3.33098e-05 | F124: -1.086859644e-05 | G124: 0.0002372649292 | H124: -3.347301802e-05 | J124: -0.0006014822519 | K124: -0.009730476418 | L124: 0.007398176802 | M124: 0.1184788244 | N124: 0.0005931646022
A125: =IF('DF raw data'!I130="","",'DF raw data'!I130) -> -268.5 | B125: =IF('DF raw data'!J130="","",'DF raw data'!J130) -> -2.03056e-05 | C125: =IF('DF raw data'!K130="","",'DF raw data'!K130) -> 0.00022611 | D125: =IF('DF raw data'!L130="","",'DF raw data'!L130) -> -2.5288e-05 | F125: -2.040509744e-05 | G125: 0.000227217939 | H125: -2.54119112e-05 | J125: -0.0006116848007 | K125: -0.01003631882 | L125: 0.007511785772 | M125: 0.1222347173 | N125: 0.0006215651441
A126: =IF('DF raw data'!I131="","",'DF raw data'!I131) -> -268 | B126: =IF('DF raw data'!J131="","",'DF raw data'!J131) -> -1.96098e-05 | C126: =IF('DF raw data'!K131="","",'DF raw data'!K131) -> 0.00022766 | D126: =IF('DF raw data'!L131="","",'DF raw data'!L131) -> -9.60233e-06 | F126: -1.970588802e-05 | G126: 0.000228775534 | H126: -9.649381417e-06 | J126: -0.0006215377447 | K126: -0.01034708769 | L126: 0.007626173539 | M126: 0.1260478041 | N126: 0.0006508375601
A127: =IF('DF raw data'!I132="","",'DF raw data'!I132) -> -267.5 | B127: =IF('DF raw data'!J132="","",'DF raw data'!J132) -> -9.09452e-06 | C127: =IF('DF raw data'!K132="","",'DF raw data'!K132) -> 0.00022628 | D127: =IF('DF raw data'!L132="","",'DF raw data'!L132) -> -2.01423e-05 | F127: -9.139083148e-06 | G127: 0.000227388772 | H127: -2.024099727e-05 | J127: -0.0006261072863 | K127: -0.01066014133 | L127: 0.007739867925 | M127: 0.1299177381 | N127: 0.000680986343
A128: =IF('DF raw data'!I133="","",'DF raw data'!I133) -> -267 | B128: =IF('DF raw data'!J133="","",'DF raw data'!J133) -> -1.85148e-05 | C128: =IF('DF raw data'!K133="","",'DF raw data'!K133) -> 0.000229942 | D128: =IF('DF raw data'!L133="","",'DF raw data'!L133) -> -1.8066e-05 | F128: =(1-$G$1*($B$49-$G$2))*B128 -> -1.860552252e-05 | G128: 0.0002310687158 | H128: -1.81545234e-05 | J128: =F128*$G$3+J127 -> -0.0006354100475 | K128: =J128*$G$3+K127 -> -0.01097784636 | L128: =G128*$G$3+L127 -> 0.007855402283 | M128: =L128*$G$3+M127 -> 0.1338454392 | N128: =(J128^2+L128^2)*$G$3+N127 -> 0.0007120418885
A129: =IF('DF raw data'!I134="","",'DF raw data'!I134) -> -266.5 | B129: =IF('DF raw data'!J134="","",'DF raw data'!J134) -> -2.21733e-05 | C129: =IF('DF raw data'!K134="","",'DF raw data'!K134) -> 0.00023749 | D129: =IF('DF raw data'!L134="","",'DF raw data'!L134) -> -1.10635e-05 | F129: -2.228194917e-05 | G129: 0.000238653701 | H129: -1.111771115e-05 | J129: -0.0006465510221 | K129: -0.01130112187 | L129: 0.007974729133 | M129: 0.1378328038 | N129: 0.000744049055
A130: =IF('DF raw data'!I135="","",'DF raw data'!I135) -> -266 | B130: =IF('DF raw data'!J135="","",'DF raw data'!J135) -> -2.03722e-05 | C130: =IF('DF raw data'!K135="","",'DF raw data'!K135) -> 0.000240186 | D130: =IF('DF raw data'!L135="","",'DF raw data'!L135) -> -1.9611e-05 | F130: -2.047202378e-05 | G130: 0.0002413629114 | H130: -1.97070939e-05 | J130: -0.000656787034 | K130: -0.01162951539 | L130: 0.008095410589 | M130: 0.1418805091 | N130: 0.0007770325759
A131: =IF('DF raw data'!I136="","",'DF raw data'!I136) -> -265.5 | B131: =IF('DF raw data'!J136="","",'DF raw data'!J136) -> -2.0955e-05 | C131: =IF('DF raw data'!K136="","",'DF raw data'!K136) -> 0.000245045 | D131: =IF('DF raw data'!L136="","",'DF raw data'!L136) -> -1.19847e-05 | F131: -2.10576795e-05 | G131: 0.0002462457205 | H131: -1.204342503e-05 | J131: -0.0006673158737 | K131: -0.01196317332 | L131: 0.008218533449 | M131: 0.1459897758 | N131: 0.0008110273771
A132: =IF('DF raw data'!I137="","",'DF raw data'!I137) -> -265 | B132: =IF('DF raw data'!J137="","",'DF raw data'!J137) -> -2.19083e-05 | C132: =IF('DF raw data'!K137="","",'DF raw data'!K137) -> 0.000240926 | D132: =IF('DF raw data'!L137="","",'DF raw data'!L137) -> -2.24056e-05 | F132: -2.201565067e-05 | G132: 0.0002421065374 | H132: -2.251538744e-05 | J132: -0.0006783236991 | K132: -0.01230233517 | L132: 0.008339586718 | M132: 0.1501595691 | N132: 0.000846031792
A133: =IF('DF raw data'!I138="","",'DF raw data'!I138) -> -264.5 | B133: =IF('DF raw data'!J138="","",'DF raw data'!J138) -> -8.6481e-06 | C133: =IF('DF raw data'!K138="","",'DF raw data'!K138) -> 0.000240545 | D133: =IF('DF raw data'!L138="","",'DF raw data'!L138) -> -1.66217e-05 | F133: -8.69047569e-06 | G133: 0.0002417236705 | H133: -1.670314633e-05 | J133: -0.0006826689369 | K133: -0.01264366964 | L133: 0.008460448553 | M133: 0.1543897934 | N133: 0.0008820544053
A134: =IF('DF raw data'!I139="","",'DF raw data'!I139) -> -264 | B134: =IF('DF raw data'!J139="","",'DF raw data'!J139) -> -9.86045e-06 | C134: =IF('DF raw data'!K139="","",'DF raw data'!K139) -> 0.000237323 | D134: =IF('DF raw data'!L139="","",'DF raw data'!L139) -> -2.38551e-05 | F134: -9.908766205e-06 | G134: 0.0002384858827 | H134: -2.397198999e-05 | J134: -0.00068762332 | K134: -0.0129874813 | L134: 0.008579691494 | M134: 0.1586796392 | N134: 0.0009190963712
A135: =IF('DF raw data'!I140="","",'DF raw data'!I140) -> -263.5 | B135: =IF('DF raw data'!J140="","",'DF raw data'!J140) -> -2.09404e-05 | C135: =IF('DF raw data'!K140="","",'DF raw data'!K140) -> 0.000238294 | D135: =IF('DF raw data'!L140="","",'DF raw data'!L140) -> -3.4428e-05 | F135: -2.104300796e-05 | G135: 0.0002394616406 | H135: -3.45966972e-05 | J135: -0.000698144824 | K135: -0.01333655371 | L135: 0.008699422315 | M135: 0.1630293503 | N135: 0.0009571800486
A136: =IF('DF raw data'!I141="","",'DF raw data'!I141) -> -263 | B136: =IF('DF raw data'!J141="","",'DF raw data'!J141) -> -2.13886e-05 | C136: =IF('DF raw data'!K141="","",'DF raw data'!K141) -> 0.000239901 | D136: =IF('DF raw data'!L141="","",'DF raw data'!L141) -> -3.32681e-05 | F136: -2.149340414e-05 | G136: 0.0002410765149 | H136: -3.343111369e-05 | J136: -0.0007088915261 | K136: -0.01369099948 | L136: 0.008819960572 | M136: 0.1674393306 | N136: 0.0009963271645
A137: =IF('DF raw data'!I142="","",'DF raw data'!I142) -> -262.5 | B137: =IF('DF raw data'!J142="","",'DF raw data'!J142) -> -1.37008e-05 | C137: =IF('DF raw data'!K142="","",'DF raw data'!K142) -> 0.000242451 | D137: =IF('DF raw data'!L142="","",'DF raw data'!L142) -> -3.20427e-05 | F137: -1.376793392e-05 | G137: 0.0002436390099 | H137: -3.219970923e-05 | J137: -0.000715775493 | K137: -0.01404888722 | L137: 0.008941780077 | M137: 0.1719102206 | N137: 0.001036561047
A138: =IF('DF raw data'!I143="","",'DF raw data'!I143) -> -262 | B138: =IF('DF raw data'!J143="","",'DF raw data'!J143) -> -2.44063e-05 | C138: =IF('DF raw data'!K143="","",'DF raw data'!K143) -> 0.000242183 | D138: =IF('DF raw data'!L143="","",'DF raw data'!L143) -> -2.42142e-05 | F138: -2.452589087e-05 | G138: 0.0002433696967 | H138: -2.433284958e-05 | J138: -0.0007280384385 | K138: -0.01441290644 | L138: 0.009063464925 | M138: 0.1764419531 | N138: 0.001077899265
A139: =IF('DF raw data'!I144="","",'DF raw data'!I144) -> -261.5 | B139: =IF('DF raw data'!J144="","",'DF raw data'!J144) -> -1.85065e-05 | C139: =IF('DF raw data'!K144="","",'DF raw data'!K144) -> 0.000242017 | D139: =IF('DF raw data'!L144="","",'DF raw data'!L144) -> -3.25937e-05 | F139: -1.859718185e-05 | G139: 0.0002432028833 | H139: -3.275340913e-05 | J139: -0.0007373370294 | K139: -0.01478157496 | L139: 0.009185066367 | M139: 0.1810344863 | N139: 0.00112035382
A140: =IF('DF raw data'!I145="","",'DF raw data'!I145) -> -261 | B140: =IF('DF raw data'!J145="","",'DF raw data'!J145) -> -1.40908e-05 | C140: =IF('DF raw data'!K145="","",'DF raw data'!K145) -> 0.000245503 | D140: =IF('DF raw data'!L145="","",'DF raw data'!L145) -> -2.23306e-05 | F140: -1.415984492e-05 | G140: 0.0002467059647 | H140: -2.244001994e-05 | J140: -0.0007444169518 | K140: -0.01515378343 | L140: 0.009308419349 | M140: 0.185688696 | N140: 0.001163954234
A141: =IF('DF raw data'!I146="","",'DF raw data'!I146) -> -260.5 | B141: =IF('DF raw data'!J146="","",'DF raw data'!J146) -> -2.2101e-05 | C141: =IF('DF raw data'!K146="","",'DF raw data'!K146) -> 0.000249373 | D141: =IF('DF raw data'!L146="","",'DF raw data'!L146) -> -2.36951e-05 | F141: -2.22092949e-05 | G141: 0.0002505949277 | H141: -2.381120599e-05 | J141: -0.0007555215993 | K141: -0.01553154423 | L141: 0.009433716813 | M141: 0.1904055544 | N141: 0.001208737147
A142: =IF('DF raw data'!I147="","",'DF raw data'!I147) -> -260 | B142: =IF('DF raw data'!J147="","",'DF raw data'!J147) -> -1.80053e-05 | C142: =IF('DF raw data'!K147="","",'DF raw data'!K147) -> 0.000248344 | D142: =IF('DF raw data'!L147="","",'DF raw data'!L147) -> -1.35018e-05 | F142: -1.809352597e-05 | G142: 0.0002495608856 | H142: -1.356795882e-05 | J142: -0.0007645683623 | K142: -0.01591382841 | L142: 0.009558497256 | M142: 0.195184803 | N142: 0.001254711864
A143: =IF('DF raw data'!I148="","",'DF raw data'!I148) -> -259.5 | B143: =IF('DF raw data'!J148="","",'DF raw data'!J148) -> -1.44129e-05 | C143: =IF('DF raw data'!K148="","",'DF raw data'!K148) -> 0.000239746 | D143: =IF('DF raw data'!L148="","",'DF raw data'!L148) -> -2.06859e-05 | F143: -1.448352321e-05 | G143: 0.0002409207554 | H143: -2.078726091e-05 | J143: -0.0007718101239 | K143: -0.01629973347 | L143: 0.009678957634 | M143: 0.2000242818 | N143: 0.00130185082
A144: =IF('DF raw data'!I149="","",'DF raw data'!I149) -> -259 | B144: =IF('DF raw data'!J149="","",'DF raw data'!J149) -> -1.24801e-05 | C144: =IF('DF raw data'!K149="","",'DF raw data'!K149) -> 0.000247052 | D144: =IF('DF raw data'!L149="","",'DF raw data'!L149) -> -3.56105e-05 | F144: -1.254125249e-05 | G144: 0.0002482625548 | H144: -3.578499145e-05 | J144: -0.0007780807501 | K144: -0.01668877385 | L144: 0.009803088911 | M144: 0.2049258263 | N144: 0.001350203801
A145: =IF('DF raw data'!I150="","",'DF raw data'!I150) -> -258.5 | B145: =IF('DF raw data'!J150="","",'DF raw data'!J150) -> -1.25496e-05 | C145: =IF('DF raw data'!K150="","",'DF raw data'!K150) -> 0.000247165 | D145: =IF('DF raw data'!L150="","",'DF raw data'!L150) -> -2.85487e-05 | F145: -1.261109304e-05 | G145: 0.0002483761085 | H145: -2.868858863e-05 | J145: -0.0007843862967 | K145: -0.017080967 | L145: 0.009927276965 | M145: 0.2098894648 | N145: 0.001399786846
A146: =IF('DF raw data'!I151="","",'DF raw data'!I151) -> -258 | B146: =IF('DF raw data'!J151="","",'DF raw data'!J151) -> -1.39618e-05 | C146: =IF('DF raw data'!K151="","",'DF raw data'!K151) -> 0.000248428 | D146: =IF('DF raw data'!L151="","",'DF raw data'!L151) -> -2.3557e-05 | F146: -1.403021282e-05 | G146: 0.0002496452972 | H146: -2.36724293e-05 | J146: -0.0007914014031 | K146: -0.0174766677 | L146: 0.01005209961 | M146: 0.2149155146 | N146: 0.001450622357
A147: =IF('DF raw data'!I152="","",'DF raw data'!I152) -> -257.5 | B147: =IF('DF raw data'!J152="","",'DF raw data'!J152) -> -2.27403e-05 | C147: =IF('DF raw data'!K152="","",'DF raw data'!K152) -> 0.000252988 | D147: =IF('DF raw data'!L152="","",'DF raw data'!L152) -> -2.6084e-05 | F147: -2.285172747e-05 | G147: 0.0002542276412 | H147: -2.62118116e-05 | J147: -0.0008028272668 | K147: -0.01787808133 | L147: 0.01017921343 | M147: 0.2200051213 | N147: 0.001502752816
A148: =IF('DF raw data'!I153="","",'DF raw data'!I153) -> -257 | B148: =IF('DF raw data'!J153="","",'DF raw data'!J153) -> -2.06257e-05 | C148: =IF('DF raw data'!K153="","",'DF raw data'!K153) -> 0.000243939 | D148: =IF('DF raw data'!L153="","",'DF raw data'!L153) -> -2.3955e-05 | F148: -2.072676593e-05 | G148: 0.0002451343011 | H148: -2.40723795e-05 | J148: -0.0008131906498 | K148: -0.01828467666 | L148: 0.01030178059 | M148: 0.2251560116 | N148: 0.001556146797
A149: =IF('DF raw data'!I154="","",'DF raw data'!I154) -> -256.5 | B149: =IF('DF raw data'!J154="","",'DF raw data'!J154) -> -3.12694e-05 | C149: =IF('DF raw data'!K154="","",'DF raw data'!K154) -> 0.000234693 | D149: =IF('DF raw data'!L154="","",'DF raw data'!L154) -> -1.63677e-05 | F149: -3.142262006e-05 | G149: 0.0002358429957 | H149: -1.644790173e-05 | J149: -0.0008289019598 | K149: -0.01869912764 | L149: 0.01041970208 | M149: 0.2303658626 | N149: 0.001610775432
A150: =IF('DF raw data'!I155="","",'DF raw data'!I155) -> -256 | B150: =IF('DF raw data'!J155="","",'DF raw data'!J155) -> -3.09365e-05 | C150: =IF('DF raw data'!K155="","",'DF raw data'!K155) -> 0.000238999 | D150: =IF('DF raw data'!L155="","",'DF raw data'!L155) -> -3.31151e-05 | F150: -3.108808885e-05 | G150: 0.0002401700951 | H150: -3.327736399e-05 | J150: -0.0008444460042 | K150: -0.01912135064 | L150: 0.01053978713 | M150: 0.2356357562 | N150: 0.001666675533
A151: =IF('DF raw data'!I156="","",'DF raw data'!I156) -> -255.5 | B151: =IF('DF raw data'!J156="","",'DF raw data'!J156) -> -2.50477e-05 | C151: =IF('DF raw data'!K156="","",'DF raw data'!K156) -> 0.000239304 | D151: =IF('DF raw data'!L156="","",'DF raw data'!L156) -> -2.54372e-05 | F151: -2.517043373e-05 | G151: 0.0002404765896 | H151: -2.556184228e-05 | J151: -0.0008570312211 | K151: -0.01954986625 | L151: 0.01066002543 | M151: 0.2409657689 | N151: 0.001723860856
A152: =IF('DF raw data'!I157="","",'DF raw data'!I157) -> -255 | B152: =IF('DF raw data'!J157="","",'DF raw data'!J157) -> -1.99897e-05 | C152: =IF('DF raw data'!K157="","",'DF raw data'!K157) -> 0.000237651 | D152: =IF('DF raw data'!L157="","",'DF raw data'!L157) -> -1.66162e-05 | F152: -2.008764953e-05 | G152: 0.0002388154899 | H152: -1.669761938e-05 | J152: -0.0008670750459 | K152: -0.01998340377 | L152: 0.01077943317 | M152: 0.2463554855 | N152: 0.001782334855
A153: =IF('DF raw data'!I158="","",'DF raw data'!I158) -> -254.5 | B153: =IF('DF raw data'!J158="","",'DF raw data'!J158) -> -2.29332e-05 | C153: =IF('DF raw data'!K158="","",'DF raw data'!K158) -> 0.000233498 | D153: =IF('DF raw data'!L158="","",'DF raw data'!L158) -> -2.49797e-05 | F153: -2.304557268e-05 | G153: 0.0002346421402 | H153: -2.510210053e-05 | J153: -0.0008785978322 | K153: -0.02042270269 | L153: 0.01089675424 | M153: 0.2518038626 | N153: 0.001842090449
A154: =IF('DF raw data'!I159="","",'DF raw data'!I159) -> -254 | B154: =IF('DF raw data'!J159="","",'DF raw data'!J159) -> -2.22933e-05 | C154: =IF('DF raw data'!K159="","",'DF raw data'!K159) -> 0.000238195 | D154: =IF('DF raw data'!L159="","",'DF raw data'!L159) -> -2.14982e-05 | F154: -2.240253717e-05 | G154: 0.0002393621555 | H154: -2.160354118e-05 | J154: -0.0008897991008 | K154: -0.02086760224 | L154: 0.01101643532 | M154: 0.2573120803 | N154: 0.001903167243
A155: =IF('DF raw data'!I160="","",'DF raw data'!I160) -> -253.5 | B155: =IF('DF raw data'!J160="","",'DF raw data'!J160) -> -2.23543e-05 | C155: =IF('DF raw data'!K160="","",'DF raw data'!K160) -> 0.000252195 | D155: =IF('DF raw data'!L160="","",'DF raw data'!L160) -> -2.8581e-05 | F155: -2.246383607e-05 | G155: 0.0002534307555 | H155: -2.87210469e-05 | J155: -0.0009010310188 | K155: -0.02131811775 | L155: 0.0111431507 | M155: 0.2628836556 | N155: 0.001965658075
A156: =IF('DF raw data'!I161="","",'DF raw data'!I161) -> -253 | B156: =IF('DF raw data'!J161="","",'DF raw data'!J161) -> -2.47273e-05 | C156: =IF('DF raw data'!K161="","",'DF raw data'!K161) -> 0.000251713 | D156: =IF('DF raw data'!L161="","",'DF raw data'!L161) -> -2.28535e-05 | F156: -2.484846377e-05 | G156: 0.0002529463937 | H156: -2.296548215e-05 | J156: -0.0009134552507 | K156: -0.02177484537 | L156: 0.01126962389 | M156: 0.2685184675 | N156: 0.002029577487
A157: =IF('DF raw data'!I162="","",'DF raw data'!I162) -> -252.5 | B157: =IF('DF raw data'!J162="","",'DF raw data'!J162) -> -2.36402e-05 | C157: =IF('DF raw data'!K162="","",'DF raw data'!K162) -> 0.000236754 | D157: =IF('DF raw data'!L162="","",'DF raw data'!L162) -> -2.1947e-05 | F157: -2.375603698e-05 | G157: 0.0002379140946 | H157: -2.20545403e-05 | J157: -0.0009253332692 | K157: -0.02223751201 | L157: 0.01138858094 | M157: 0.274212758 | N157: 0.002094855496
A158: =IF('DF raw data'!I163="","",'DF raw data'!I163) -> -252 | B158: =IF('DF raw data'!J163="","",'DF raw data'!J163) -> -1.52471e-05 | C158: =IF('DF raw data'!K163="","",'DF raw data'!K163) -> 0.000231058 | D158: =IF('DF raw data'!L163="","",'DF raw data'!L163) -> -1.76879e-05 | F158: -1.532181079e-05 | G158: 0.0002321901842 | H158: -1.777457071e-05 | J158: -0.0009329941746 | K158: -0.0227040091 | L158: 0.01150467603 | M158: 0.279965096 | N158: 0.00216146952
A159: =IF('DF raw data'!I164="","",'DF raw data'!I164) -> -251.5 | B159: =IF('DF raw data'!J164="","",'DF raw data'!J164) -> -2.83147e-05 | C159: =IF('DF raw data'!K164="","",'DF raw data'!K164) -> 0.000240481 | D159: =IF('DF raw data'!L164="","",'DF raw data'!L164) -> -2.73911e-05 | F159: -2.845344203e-05 | G159: 0.0002416593569 | H159: -2.752531639e-05 | J159: -0.0009472208956 | K159: -0.02317761954 | L159: 0.01162550571 | M159: 0.2857778489 | N159: 0.002229494325
A160: =IF('DF raw data'!I165="","",'DF raw data'!I165) -> -251 | B160: =IF('DF raw data'!J165="","",'DF raw data'!J165) -> -2.00534e-05 | C160: =IF('DF raw data'!K165="","",'DF raw data'!K165) -> 0.000252091 | D160: =IF('DF raw data'!L165="","",'DF raw data'!L165) -> -1.70761e-05 | F160: -2.015166166e-05 | G160: 0.0002533262459 | H160: -1.715977289e-05 | J160: -0.0009572967264 | K160: -0.02365626791 | L160: 0.01175216883 | M160: 0.2916539333 | N160: 0.00229900927
A161: =IF('DF raw data'!I166="","",'DF raw data'!I166) -> -250.5 | B161: =IF('DF raw data'!J166="","",'DF raw data'!J166) -> -1.58299e-05 | C161: =IF('DF raw data'!K166="","",'DF raw data'!K166) -> 0.000248629 | D161: =IF('DF raw data'!L166="","",'DF raw data'!L166) -> -9.99947e-06 | F161: -1.590746651e-05 | G161: 0.0002498472821 | H161: -1.00484674e-05 | J161: -0.0009652504597 | K161: -0.02413889314 | L161: 0.01187709247 | M161: 0.2975924795 | N161: 0.002370007787
A162: =IF('DF raw data'!I167="","",'DF raw data'!I167) -> -250 | B162: =IF('DF raw data'!J167="","",'DF raw data'!J167) -> -1.3062e-05 | C162: =IF('DF raw data'!K167="","",'DF raw data'!K167) -> 0.000251825 | D162: =IF('DF raw data'!L167="","",'DF raw data'!L167) -> -2.78538e-05 | F162: -1.31260038e-05 | G162: 0.0002530589425 | H162: -2.799028362e-05 | J162: -0.0009718134616 | K162: -0.02462479987 | L162: 0.01200362195 | M162: 0.3035942905 | N162: 0.002442523468
A163: =IF('DF raw data'!I168="","",'DF raw data'!I168) -> -249.5 | B163: =IF('DF raw data'!J168="","",'DF raw data'!J168) -> -2.37702e-05 | C163: =IF('DF raw data'!K168="","",'DF raw data'!K168) -> 0.000253612 | D163: =IF('DF raw data'!L168="","",'DF raw data'!L168) -> -1.89783e-05 | F163: -2.388667398e-05 | G163: 0.0002548546988 | H163: -1.907129367e-05 | J163: -0.0009837567986 | K163: -0.02511667827 | L163: 0.0121310493 | M163: 0.3096598152 | N163: 0.002516588535
A164: =IF('DF raw data'!I169="","",'DF raw data'!I169) -> -249 | B164: =IF('DF raw data'!J169="","",'DF raw data'!J169) -> -2.00642e-05 | C164: =IF('DF raw data'!K169="","",'DF raw data'!K169) -> 0.000238981 | D164: =IF('DF raw data'!L169="","",'DF raw data'!L169) -> -5.28425e-07 | F164: -2.016251458e-05 | G164: 0.0002401520069 | H164: -5.310142825e-07 | J164: -0.0009938380559 | K164: -0.02561359729 | L164: 0.0122511253 | M164: 0.3157853778 | N164: 0.002592127428
A165: =IF('DF raw data'!I170="","",'DF raw data'!I170) -> -248.5 | B165: =IF('DF raw data'!J170="","",'DF raw data'!J170) -> -1.73091e-05 | C165: =IF('DF raw data'!K170="","",'DF raw data'!K170) -> 0.000242076 | D165: =IF('DF raw data'!L170="","",'DF raw data'!L170) -> -1.39532e-06 | F165: -1.739391459e-05 | G165: 0.0002432621724 | H165: -1.402157068e-06 | J165: -0.001002535013 | K165: -0.0261148648 | L165: 0.01237275638 | M165: 0.321971756 | N165: 0.002669172516
A166: =IF('DF raw data'!I171="","",'DF raw data'!I171) -> -248 | B166: =IF('DF raw data'!J171="","",'DF raw data'!J171) -> -1.42898e-05 | C166: =IF('DF raw data'!K171="","",'DF raw data'!K171) -> 0.000257221 | D166: =IF('DF raw data'!L171="","",'DF raw data'!L171) -> -1.16495e-05 | F166: -1.435982002e-05 | G166: 0.0002584813829 | H166: -1.170658255e-05 | J166: -0.001009714923 | K166: -0.02661972226 | L166: 0.01250199708 | M166: 0.3282227545 | N166: 0.002747832244
A167: =IF('DF raw data'!I172="","",'DF raw data'!I172) -> -247.5 | B167: =IF('DF raw data'!J172="","",'DF raw data'!J172) -> -2.47289e-05 | C167: =IF('DF raw data'!K172="","",'DF raw data'!K172) -> 0.000248542 | D167: =IF('DF raw data'!L172="","",'DF raw data'!L172) -> -2.24811e-05 | F167: -2.485007161e-05 | G167: 0.0002497598558 | H167: -2.259125739e-05 | J167: -0.001022139959 | K167: -0.02713079224 | L167: 0.012626877 | M167: 0.334536193 | N167: 0.00282807364
A168: =IF('DF raw data'!I173="","",'DF raw data'!I173) -> -247 | B168: =IF('DF raw data'!J173="","",'DF raw data'!J173) -> -2.45359e-05 | C168: =IF('DF raw data'!K173="","",'DF raw data'!K173) -> 0.000246084 | D168: =IF('DF raw data'!L173="","",'DF raw data'!L173) -> -2.21124e-05 | F168: -2.465612591e-05 | G168: 0.0002472898116 | H168: -2.222075076e-05 | J168: -0.001034468022 | K168: -0.02764802625 | L168: 0.01275052191 | M168: 0.340911454 | N168: 0.002909896607
A169: =IF('DF raw data'!I174="","",'DF raw data'!I174) -> -246.5 | B169: =IF('DF raw data'!J174="","",'DF raw data'!J174) -> -1.94089e-05 | C169: =IF('DF raw data'!K174="","",'DF raw data'!K174) -> 0.000249321 | D169: =IF('DF raw data'!L174="","",'DF raw data'!L174) -> -2.43635e-05 | F169: -1.950400361e-05 | G169: 0.0002505426729 | H169: -2.448288115e-05 | J169: -0.001044220024 | K169: -0.02817013627 | L169: 0.01287579325 | M169: 0.3473493506 | N169: 0.00299333483
A170: =IF('DF raw data'!I175="","",'DF raw data'!I175) -> -246 | B170: =IF('DF raw data'!J175="","",'DF raw data'!J175) -> -2.21609e-05 | C170: =IF('DF raw data'!K175="","",'DF raw data'!K175) -> 0.000242099 | D170: =IF('DF raw data'!L175="","",'DF raw data'!L175) -> -2.82328e-05 | F170: -2.226948841e-05 | G170: 0.0002432852851 | H170: -2.837114072e-05 | J170: -0.001055354768 | K170: -0.02869781365 | L170: 0.01299743589 | M170: 0.3538480686 | N170: 0.003078358387
A171: =IF('DF raw data'!I176="","",'DF raw data'!I176) -> -245.5 | B171: =IF('DF raw data'!J176="","",'DF raw data'!J176) -> -1.53709e-05 | C171: =IF('DF raw data'!K176="","",'DF raw data'!K176) -> 0.000235687 | D171: =IF('DF raw data'!L176="","",'DF raw data'!L176) -> -2.57132e-05 | F171: -1.544621741e-05 | G171: 0.0002368418663 | H171: -2.583919468e-05 | J171: -0.001063077877 | K171: -0.02922935259 | L171: 0.01311585682 | M171: 0.360405997 | N171: 0.003164936304
A172: =IF('DF raw data'!I177="","",'DF raw data'!I177) -> -245 | B172: =IF('DF raw data'!J177="","",'DF raw data'!J177) -> -2.4728e-05 | C172: =IF('DF raw data'!K177="","",'DF raw data'!K177) -> 0.000240031 | D172: =IF('DF raw data'!L177="","",'DF raw data'!L177) -> -2.20386e-05 | F172: -2.48491672e-05 | G172: 0.0002412071519 | H172: -2.214658914e-05 | J172: -0.00107550246 | K172: -0.02976710382 | L172: 0.0132364604 | M172: 0.3670242272 | N172: 0.003253116599
A173: =IF('DF raw data'!I178="","",'DF raw data'!I178) -> -244.5 | B173: =IF('DF raw data'!J178="","",'DF raw data'!J178) -> -2.42785e-05 | C173: =IF('DF raw data'!K178="","",'DF raw data'!K178) -> 0.0002388 | D173: =IF('DF raw data'!L178="","",'DF raw data'!L178) -> -2.55059e-05 | F173: -2.439746465e-05 | G173: 0.00023997012 | H173: -2.563087891e-05 | J173: -0.001087701193 | K173: -0.03031095441 | L173: 0.01335644546 | M173: 0.3737024499 | N173: 0.003342905464
A174: =IF('DF raw data'!I179="","",'DF raw data'!I179) -> -244 | B174: =IF('DF raw data'!J179="","",'DF raw data'!J179) -> -2.10146e-05 | C174: =IF('DF raw data'!K179="","",'DF raw data'!K179) -> 0.000232821 | D174: =IF('DF raw data'!L179="","",'DF raw data'!L179) -> -1.74124e-05 | F174: -2.111757154e-05 | G174: 0.0002339618229 | H174: -1.749772076e-05 | J174: -0.001098259978 | K174: -0.0308600844 | L174: 0.01347342637 | M174: 0.3804391631 | N174: 0.00343427516
A175: =IF('DF raw data'!I180="","",'DF raw data'!I180) -> -243.5 | B175: =IF('DF raw data'!J180="","",'DF raw data'!J180) -> -1.65909e-05 | C175: =IF('DF raw data'!K180="","",'DF raw data'!K180) -> 0.00024024 | D175: =IF('DF raw data'!L180="","",'DF raw data'!L180) -> -2.20731e-05 | F175: -1.667219541e-05 | G175: 0.000241417176 | H175: -2.218125819e-05 | J175: -0.001106596076 | K175: -0.03141338244 | L175: 0.01359413496 | M175: 0.3872362306 | N175: 0.00352728769
A176: =IF('DF raw data'!I181="","",'DF raw data'!I181) -> -243 | B176: =IF('DF raw data'!J181="","",'DF raw data'!J181) -> -2.89631e-05 | C176: =IF('DF raw data'!K181="","",'DF raw data'!K181) -> 0.000237412 | D176: =IF('DF raw data'!L181="","",'DF raw data'!L181) -> -1.30492e-05 | F176: -2.910501919e-05 | G176: 0.0002385753188 | H176: -1.311314108e-05 | J176: -0.001121148586 | K176: -0.03197395673 | L176: 0.01371342262 | M176: 0.3940929419 | N176: 0.003621945157
A177: =IF('DF raw data'!I182="","",'DF raw data'!I182) -> -242.5 | B177: =IF('DF raw data'!J182="","",'DF raw data'!J182) -> -3.45511e-06 | C177: =IF('DF raw data'!K182="","",'DF raw data'!K182) -> 0.000234145 | D177: =IF('DF raw data'!L182="","",'DF raw data'!L182) -> -2.02229e-05 | F177: -3.472040039e-06 | G177: 0.0002352923105 | H177: -2.032199221e-05 | J177: -0.001122884606 | K177: -0.03253539904 | L177: 0.01383106877 | M177: 0.4010084763 | N177: 0.003718224824
A178: =IF('DF raw data'!I183="","",'DF raw data'!I183) -> -242 | B178: =IF('DF raw data'!J183="","",'DF raw data'!J183) -> -2.35129e-05 | C178: =IF('DF raw data'!K183="","",'DF raw data'!K183) -> 0.000239021 | D178: =IF('DF raw data'!L183="","",'DF raw data'!L183) -> -1.84731e-05 | F178: -2.362811321e-05 | G178: 0.0002401922029 | H178: -1.856361819e-05 | J178: -0.001134698662 | K178: -0.03310274837 | L178: 0.01395116487 | M178: 0.4079840587 | N178: 0.003816186095
A179: =IF('DF raw data'!I184="","",'DF raw data'!I184) -> -241.5 | B179: =IF('DF raw data'!J184="","",'DF raw data'!J184) -> -1.1728e-05 | C179: =IF('DF raw data'!K184="","",'DF raw data'!K184) -> 0.000239424 | D179: =IF('DF raw data'!L184="","",'DF raw data'!L184) -> -1.06878e-05 | F179: -1.17854672e-05 | G179: 0.0002405971776 | H179: -1.074017022e-05 | J179: -0.001140591396 | K179: -0.03367304407 | L179: 0.01407146346 | M179: 0.4150197904 | N179: 0.003915839611
A180: =IF('DF raw data'!I185="","",'DF raw data'!I185) -> -241 | B180: =IF('DF raw data'!J185="","",'DF raw data'!J185) -> -1.74884e-05 | C180: =IF('DF raw data'!K185="","",'DF raw data'!K185) -> 0.000248278 | D180: =IF('DF raw data'!L185="","",'DF raw data'!L185) -> -2.00347e-05 | F180: -1.757409316e-05 | G180: 0.0002494945622 | H180: -2.013287003e-05 | J180: -0.001149378442 | K180: -0.03424773329 | L180: 0.01419621074 | M180: 0.4221178958 | N180: 0.004017266347
A181: =IF('DF raw data'!I186="","",'DF raw data'!I186) -> -240.5 | B181: =IF('DF raw data'!J186="","",'DF raw data'!J186) -> -1.33252e-05 | C181: =IF('DF raw data'!K186="","",'DF raw data'!K186) -> 0.000250075 | D181: =IF('DF raw data'!L186="","",'DF raw data'!L186) -> -1.8273e-05 | F181: -1.339049348e-05 | G181: 0.0002513003675 | H181: -1.83625377e-05 | J181: -0.001156073689 | K181: -0.03482577013 | L181: 0.01432186093 | M181: 0.4292788263 | N181: 0.00412049245
A182: =IF('DF raw data'!I187="","",'DF raw data'!I187) -> -240 | B182: =IF('DF raw data'!J187="","",'DF raw data'!J187) -> -1.2684e-05 | C182: =IF('DF raw data'!K187="","",'DF raw data'!K187) -> 0.00024791 | D182: =IF('DF raw data'!L187="","",'DF raw data'!L187) -> -1.78375e-05 | F182: -1.27461516e-05 | G182: 0.000249124759 | H182: -1.792490375e-05 | J182: -0.001162446765 | K182: -0.03540699351 | L182: 0.01444642331 | M182: 0.4365020379 | N182: 0.004225517664
A183: =IF('DF raw data'!I188="","",'DF raw data'!I188) -> -239.5 | B183: =IF('DF raw data'!J188="","",'DF raw data'!J188) -> -1.61375e-05 | C183: =IF('DF raw data'!K188="","",'DF raw data'!K188) -> 0.000249431 | D183: =IF('DF raw data'!L188="","",'DF raw data'!L188) -> -2.95263e-05 | F183: -1.621657375e-05 | G183: 0.0002506532119 | H183: -2.967097887e-05 | J183: -0.001170555052 | K183: -0.03599227104 | L183: 0.01457174991 | M183: 0.4437879129 | N183: 0.004332370712
A184: =IF('DF raw data'!I189="","",'DF raw data'!I189) -> -239 | B184: =IF('DF raw data'!J189="","",'DF raw data'!J189) -> -2.37636e-05 | C184: =IF('DF raw data'!K189="","",'DF raw data'!K189) -> 0.000249822 | D184: =IF('DF raw data'!L189="","",'DF raw data'!L189) -> -2.71893e-05 | F184: -2.388004164e-05 | G184: 0.0002510461278 | H184: -2.732252757e-05 | J184: -0.001182495073 | K184: -0.03658351858 | L184: 0.01469727298 | M184: 0.4511365494 | N184: 0.004441074775
A185: =IF('DF raw data'!I190="","",'DF raw data'!I190) -> -238.5 | B185: =IF('DF raw data'!J190="","",'DF raw data'!J190) -> -1.63361e-05 | C185: =IF('DF raw data'!K190="","",'DF raw data'!K190) -> 0.000254669 | D185: =IF('DF raw data'!L190="","",'DF raw data'!L190) -> -1.99822e-05 | F185: -1.641614689e-05 | G185: 0.0002559168781 | H185: -2.008011278e-05 | J185: -0.001190703146 | K185: -0.03717887015 | L185: 0.01482523142 | M185: 0.4585491651 | N185: 0.004551677406
A186: =IF('DF raw data'!I191="","",'DF raw data'!I191) -> -238 | B186: =IF('DF raw data'!J191="","",'DF raw data'!J191) -> -6.47145e-06 | C186: =IF('DF raw data'!K191="","",'DF raw data'!K191) -> 0.000258354 | D186: =IF('DF raw data'!L191="","",'DF raw data'!L191) -> -1.28041e-05 | F186: -6.503160105e-06 | G186: 0.0002596199346 | H186: -1.286684009e-05 | J186: -0.001193954726 | K186: -0.03777584751 | L186: 0.01495504138 | M186: 0.4660266858 | N186: 0.004664216801
A187: =IF('DF raw data'!I192="","",'DF raw data'!I192) -> -237.5 | B187: =IF('DF raw data'!J192="","",'DF raw data'!J192) -> -2.87033e-05 | C187: =IF('DF raw data'!K192="","",'DF raw data'!K192) -> 0.000252404 | D187: =IF('DF raw data'!L192="","",'DF raw data'!L192) -> -2.08518e-05 | F187: -2.884394617e-05 | G187: 0.0002536407796 | H187: -2.095397382e-05 | J187: -0.001208376699 | K187: -0.03838003586 | L187: 0.01508186177 | M187: 0.4735676167 | N187: 0.004778678165
A188: =IF('DF raw data'!I193="","",'DF raw data'!I193) -> -237 | B188: =IF('DF raw data'!J193="","",'DF raw data'!J193) -> -1.76248e-05 | C188: =IF('DF raw data'!K193="","",'DF raw data'!K193) -> 0.000245779 | D188: =IF('DF raw data'!L193="","",'DF raw data'!L193) -> -7.43226e-06 | F188: -1.771116152e-05 | G188: 0.0002469833171 | H188: -7.468678074e-06 | J188: -0.00121723228 | K188: -0.038988652 | L188: 0.01520535343 | M188: 0.4811702934 | N188: 0.004895020379
A189: =IF('DF raw data'!I194="","",'DF raw data'!I194) -> -236.5 | B189: =IF('DF raw data'!J194="","",'DF raw data'!J194) -> -1.48653e-05 | C189: =IF('DF raw data'!K194="","",'DF raw data'!K194) -> 0.00024426 | D189: =IF('DF raw data'!L194="","",'DF raw data'!L194) -> -1.4951e-05 | F189: -1.493813997e-05 | G189: 0.000245456874 | H189: -1.50242599e-05 | J189: -0.00122470135 | K189: -0.03960100268 | L189: 0.01532808187 | M189: 0.4888343343 | N189: 0.005013245373
A190: =IF('DF raw data'!I195="","",'DF raw data'!I195) -> -236 | B190: =IF('DF raw data'!J195="","",'DF raw data'!J195) -> -2.51775e-05 | C190: =IF('DF raw data'!K195="","",'DF raw data'!K195) -> 0.000249632 | D190: =IF('DF raw data'!L195="","",'DF raw data'!L195) -> -2.06505e-05 | F190: -2.530086975e-05 | G190: 0.0002508551968 | H190: -2.075168745e-05 | J190: -0.001237351785 | K190: -0.04021967857 | L190: 0.01545350947 | M190: 0.496561089 | N190: 0.00513341637
A191: =IF('DF raw data'!I196="","",'DF raw data'!I196) -> -235.5 | B191: =IF('DF raw data'!J196="","",'DF raw data'!J196) -> -1.4095e-05 | C191: =IF('DF raw data'!K196="","",'DF raw data'!K196) -> 0.00024931 | D191: =IF('DF raw data'!L196="","",'DF raw data'!L196) -> -1.70469e-05 | F191: -1.41640655e-05 | G191: 0.000250531619 | H191: -1.713042981e-05 | J191: -0.001244433818 | K191: -0.04084189548 | L191: 0.01557877528 | M191: 0.5043504767 | N191: 0.005255539797
A192: =IF('DF raw data'!I197="","",'DF raw data'!I197) -> -235 | B192: =IF('DF raw data'!J197="","",'DF raw data'!J197) -> -1.56313e-05 | C192: =IF('DF raw data'!K197="","",'DF raw data'!K197) -> 0.00024873 | D192: =IF('DF raw data'!L197="","",'DF raw data'!L197) -> -1.82106e-05 | F192: =(1-$G$1*($B$49-$G$2))*B192 -> -1.570789337e-05 | G192: 0.000249948777 | H192: -1.829983194e-05 | J192: =F192*$G$3+J191 -> -0.001252287764 | K192: =J192*$G$3+K191 -> -0.04146803936 | L192: =G192*$G$3+L191 -> 0.01570374966 | M192: =L192*$G$3+M191 -> 0.5122023515 | N192: =(J192^2+L192^2)*$G$3+N191 -> 0.005379627786
A193: =IF('DF raw data'!I198="","",'DF raw data'!I198) -> -234.5 | B193: =IF('DF raw data'!J198="","",'DF raw data'!J198) -> -2.37062e-05 | C193: =IF('DF raw data'!K198="","",'DF raw data'!K198) -> 0.000247722 | D193: =IF('DF raw data'!L198="","",'DF raw data'!L198) -> -1.85302e-05 | F193: -2.382236038e-05 | G193: 0.0002489358378 | H193: -1.862099798e-05 | J193: -0.001264198945 | K193: -0.04210013883 | L193: 0.01582821758 | M193: 0.5201164603 | N193: 0.005505693122
A194: =IF('DF raw data'!I199="","",'DF raw data'!I199) -> -234 | B194: =IF('DF raw data'!J199="","",'DF raw data'!J199) -> 6.43085e-07 | C194: =IF('DF raw data'!K199="","",'DF raw data'!K199) -> 0.000245196 | D194: =IF('DF raw data'!L199="","",'DF raw data'!L199) -> -1.53711e-05 | F194: 6.462361165e-07 | G194: 0.0002463974604 | H194: -1.544641839e-05 | J194: -0.001263875826 | K194: -0.04273207675 | L194: 0.01595141631 | M194: 0.5280921685 | N194: 0.005633715654
A195: =IF('DF raw data'!I200="","",'DF raw data'!I200) -> -233.5 | B195: =IF('DF raw data'!J200="","",'DF raw data'!J200) -> -1.35139e-05 | C195: =IF('DF raw data'!K200="","",'DF raw data'!K200) -> 0.000255163 | D195: =IF('DF raw data'!L200="","",'DF raw data'!L200) -> -2.34718e-05 | F195: -1.358011811e-05 | G195: 0.0002564132987 | H195: -2.358681182e-05 | J195: -0.001270665885 | K195: -0.04336740969 | L195: 0.01607962296 | M195: 0.5361319799 | N195: 0.005763800087
A196: =IF('DF raw data'!I201="","",'DF raw data'!I201) -> -233 | B196: =IF('DF raw data'!J201="","",'DF raw data'!J201) -> -1.69067e-05 | C196: =IF('DF raw data'!K201="","",'DF raw data'!K201) -> 0.000258178 | D196: =IF('DF raw data'!L201="","",'DF raw data'!L201) -> -2.775e-05 | F196: -1.698954283e-05 | G196: 0.0002594430722 | H196: -2.7885975e-05 | J196: -0.001279160657 | K196: -0.04400699002 | L196: 0.0162093445 | M196: 0.5442366522 | N196: 0.005895989638
A197: =IF('DF raw data'!I202="","",'DF raw data'!I202) -> -232.5 | B197: =IF('DF raw data'!J202="","",'DF raw data'!J202) -> -1.40857e-05 | C197: =IF('DF raw data'!K202="","",'DF raw data'!K202) -> 0.000256479 | D197: =IF('DF raw data'!L202="","",'DF raw data'!L202) -> -3.12098e-05 | F197: -1.415471993e-05 | G197: 0.0002577357471 | H197: -3.136272802e-05 | J197: -0.001286238017 | K197: -0.04465010903 | L197: 0.01633821237 | M197: 0.5524057584 | N197: 0.006030285434
A198: =IF('DF raw data'!I203="","",'DF raw data'!I203) -> -232 | B198: =IF('DF raw data'!J203="","",'DF raw data'!J203) -> -1.8002e-05 | C198: =IF('DF raw data'!K203="","",'DF raw data'!K203) -> 0.00025143 | D198: =IF('DF raw data'!L203="","",'DF raw data'!L203) -> -1.87175e-05 | F198: -1.80902098e-05 | G198: 0.000252662007 | H198: -1.880921575e-05 | J198: -0.001295283122 | K198: -0.04529775059 | L198: 0.01646454338 | M198: 0.5606380301 | N198: 0.006166664907
A199: =IF('DF raw data'!I204="","",'DF raw data'!I204) -> -231.5 | B199: =IF('DF raw data'!J204="","",'DF raw data'!J204) -> -2.56251e-05 | C199: =IF('DF raw data'!K204="","",'DF raw data'!K204) -> 0.00025237 | D199: =IF('DF raw data'!L204="","",'DF raw data'!L204) -> -2.41658e-05 | F199: -2.575066299e-05 | G199: 0.000253606613 | H199: -2.428421242e-05 | J199: -0.001308158453 | K199: -0.04595182981 | L199: 0.01659134668 | M199: 0.5689337034 | N199: 0.006305156939
A200: =IF('DF raw data'!I205="","",'DF raw data'!I205) -> -231 | B200: =IF('DF raw data'!J205="","",'DF raw data'!J205) -> -1.87745e-05 | C200: =IF('DF raw data'!K205="","",'DF raw data'!K205) -> 0.00025315 | D200: =IF('DF raw data'!L205="","",'DF raw data'!L205) -> -1.33086e-05 | F200: -1.886649505e-05 | G200: 0.000254390435 | H200: -1.337381214e-05 | J200: -0.001317591701 | K200: -0.04661062566 | L200: 0.0167185419 | M200: 0.5772929744 | N200: 0.006445779784
A201: =IF('DF raw data'!I206="","",'DF raw data'!I206) -> -230.5 | B201: =IF('DF raw data'!J206="","",'DF raw data'!J206) -> -7.36104e-06 | C201: =IF('DF raw data'!K206="","",'DF raw data'!K206) -> 0.000255623 | D201: =IF('DF raw data'!L206="","",'DF raw data'!L206) -> -2.49166e-05 | F201: -7.397109096e-06 | G201: 0.0002568755527 | H201: -2.503869134e-05 | J201: -0.001321290255 | K201: -0.04727127079 | L201: 0.01684697968 | M201: 0.5857164642 | N201: 0.00658856305
... 1061 more rows

Sheet 10 y=0.1
A1: =IF('DF raw data'!M1="","",'DF raw data'!M1) -> Number of header lines | B1: =IF('DF raw data'!N1="","",'DF raw data'!N1) -> 54 | C1: =IF('DF raw data'!O1="","",'DF raw data'!O1) ->  | D1: =IF('DF raw data'!P1="","",'DF raw data'!P1) ->  | F1: T_coeff | G1: -0.001 | H1: /degC | J1: ='10 y=-0.2'!J1 -> IBy total | K1: ='10 y=-0.2'!K1 -> -22.77411817 | L1: ='10 y=-0.2'!L1 -> muTm | R1: ='10 y=-0.2'!R1 -> DF ref | S1: ='10 y=-0.2'!S1 -> 1
A2: =IF('DF raw data'!M2="","",'DF raw data'!M2) -> Measured by | B2: =IF('DF raw data'!N2="","",'DF raw data'!N2) -> Danfysik | C2: =IF('DF raw data'!O2="","",'DF raw data'!O2) ->  | D2: =IF('DF raw data'!P2="","",'DF raw data'!P2) ->  | F2: Tcorr | G2: 20 | H2: degC | J2: JBy total | K2: =K1262 -> -26.84082768 | L2: muTm^2 | M2: =M1262 -> 31.02081019
A3: =IF('DF raw data'!M3="","",'DF raw data'!M3) -> Operator | B3: =IF('DF raw data'!N3="","",'DF raw data'!N3) -> PMHA | C3: =IF('DF raw data'!O3="","",'DF raw data'!O3) ->  | D3: =IF('DF raw data'!P3="","",'DF raw data'!P3) ->  | F3: Step | G3: =A63-A62 -> 0.5 | H3: mm | J3: PI total | K3: =N1262 -> 10498.23241 | L3: T^2mm^3
A4: =IF('DF raw data'!M4="","",'DF raw data'!M4) -> Data-time | B4: =IF('DF raw data'!N4="","",'DF raw data'!N4) -> 24-09-2024, 14:44:10 | C4: =IF('DF raw data'!O4="","",'DF raw data'!O4) ->  | D4: =IF('DF raw data'!P4="","",'DF raw data'!P4) -> 
A5: =IF('DF raw data'!M5="","",'DF raw data'!M5) -> Project | B5: =IF('DF raw data'!N5="","",'DF raw data'!N5) -> 504314 | C5: =IF('DF raw data'!O5="","",'DF raw data'!O5) ->  | D5: =IF('DF raw data'!P5="","",'DF raw data'!P5) -> 
A6: =IF('DF raw data'!M6="","",'DF raw data'!M6) -> Magnet type | B6: =IF('DF raw data'!N6="","",'DF raw data'!N6) -> Dipole | C6: =IF('DF raw data'!O6="","",'DF raw data'!O6) ->  | D6: =IF('DF raw data'!P6="","",'DF raw data'!P6) -> 
A7: =IF('DF raw data'!M7="","",'DF raw data'!M7) -> Magnet nr. | B7: =IF('DF raw data'!N7="","",'DF raw data'!N7) -> 2410101 | C7: =IF('DF raw data'!O7="","",'DF raw data'!O7) ->  | D7: =IF('DF raw data'!P7="","",'DF raw data'!P7) -> 
A8: =IF('DF raw data'!M8="","",'DF raw data'!M8) -> Meas. number | B8: =IF('DF raw data'!N8="","",'DF raw data'!N8) -> 678 | C8: =IF('DF raw data'!O8="","",'DF raw data'!O8) ->  | D8: =IF('DF raw data'!P8="","",'DF raw data'!P8) -> 
A9: =IF('DF raw data'!M9="","",'DF raw data'!M9) -> Add. info | B9: =IF('DF raw data'!N9="","",'DF raw data'!N9) -> Y-alignment scan 4) | C9: =IF('DF raw data'!O9="","",'DF raw data'!O9) ->  | D9: =IF('DF raw data'!P9="","",'DF raw data'!P9) -> 
A10: =IF('DF raw data'!M10="","",'DF raw data'!M10) -> Device | B10: =IF('DF raw data'!N10="","",'DF raw data'!N10) -> (HAL) HALL-PROBE | C10: =IF('DF raw data'!O10="","",'DF raw data'!O10) ->  | D10: =IF('DF raw data'!P10="","",'DF raw data'!P10) -> 
A11: =IF('DF raw data'!M11="","",'DF raw data'!M11) -> Goal | B11: =IF('DF raw data'!N11="","",'DF raw data'!N11) -> (AXI) AXis Integral (Line, EFB) | C11: =IF('DF raw data'!O11="","",'DF raw data'!O11) ->  | D11: =IF('DF raw data'!P11="","",'DF raw data'!P11) -> 
A12: =IF('DF raw data'!M12="","",'DF raw data'!M12) -> Power supply mode | B12: =IF('DF raw data'!N12="","",'DF raw data'!N12) -> (PM) Permanent Magnet (no MPS in use) | C12: =IF('DF raw data'!O12="","",'DF raw data'!O12) ->  | D12: =IF('DF raw data'!P12="","",'DF raw data'!P12) -> 
A13: =IF('DF raw data'!M13="","",'DF raw data'!M13) -> Data format | B13: =IF('DF raw data'!N13="","",'DF raw data'!N13) -> Raw data text file | C13: =IF('DF raw data'!O13="","",'DF raw data'!O13) ->  | D13: =IF('DF raw data'!P13="","",'DF raw data'!P13) -> 
A14: =IF('DF raw data'!M14="","",'DF raw data'!M14) -> Direction of the pos. x-axis | B14: =IF('DF raw data'!N14="","",'DF raw data'!N14) -> See test program | C14: =IF('DF raw data'!O14="","",'DF raw data'!O14) ->  | D14: =IF('DF raw data'!P14="","",'DF raw data'!P14) -> 
A15: =IF('DF raw data'!M15="","",'DF raw data'!M15) -> Direction of the pos. y-axis | B15: =IF('DF raw data'!N15="","",'DF raw data'!N15) -> Vertical up | C15: =IF('DF raw data'!O15="","",'DF raw data'!O15) ->  | D15: =IF('DF raw data'!P15="","",'DF raw data'!P15) -> 
A16: =IF('DF raw data'!M16="","",'DF raw data'!M16) -> Direction of the pos. z-axis | B16: =IF('DF raw data'!N16="","",'DF raw data'!N16) -> See test program | C16: =IF('DF raw data'!O16="","",'DF raw data'!O16) ->  | D16: =IF('DF raw data'!P16="","",'DF raw data'!P16) -> 
A17: =IF('DF raw data'!M17="","",'DF raw data'!M17) -> Mapper type | B17: =IF('DF raw data'!N17="","",'DF raw data'!N17) -> Precision Hall Mapper | C17: =IF('DF raw data'!O17="","",'DF raw data'!O17) ->  | D17: =IF('DF raw data'!P17="","",'DF raw data'!P17) -> 
A18: =IF('DF raw data'!M18="","",'DF raw data'!M18) -> Mapper Danfysik Reg. Number | B18: =IF('DF raw data'!N18="","",'DF raw data'!N18) -> 2033-D (mapper 1) | C18: =IF('DF raw data'!O18="","",'DF raw data'!O18) ->  | D18: =IF('DF raw data'!P18="","",'DF raw data'!P18) -> 
A19: =IF('DF raw data'!M19="","",'DF raw data'!M19) -> Measurement consept | B19: =IF('DF raw data'!N19="","",'DF raw data'!N19) -> Square line grid | C19: =IF('DF raw data'!O19="","",'DF raw data'!O19) ->  | D19: =IF('DF raw data'!P19="","",'DF raw data'!P19) -> 
A20: =IF('DF raw data'!M20="","",'DF raw data'!M20) -> Mode | B20: =IF('DF raw data'!N20="","",'DF raw data'!N20) -> On-the-fly measurement | C20: =IF('DF raw data'!O20="","",'DF raw data'!O20) ->  | D20: =IF('DF raw data'!P20="","",'DF raw data'!P20) -> 
A21: =IF('DF raw data'!M21="","",'DF raw data'!M21) ->  | B21: =IF('DF raw data'!N21="","",'DF raw data'!N21) ->  | C21: =IF('DF raw data'!O21="","",'DF raw data'!O21) ->  | D21: =IF('DF raw data'!P21="","",'DF raw data'!P21) -> 
A22: =IF('DF raw data'!M22="","",'DF raw data'!M22) -> Probe Name | B22: =IF('DF raw data'!N22="","",'DF raw data'!N22) -> ID12_By | C22: =IF('DF raw data'!O22="","",'DF raw data'!O22) ->  | D22: =IF('DF raw data'!P22="","",'DF raw data'!P22) -> 
A23: =IF('DF raw data'!M23="","",'DF raw data'!M23) -> Probe Type | B23: =IF('DF raw data'!N23="","",'DF raw data'!N23) -> DF_ID_3D_Bxyz | C23: =IF('DF raw data'!O23="","",'DF raw data'!O23) ->  | D23: =IF('DF raw data'!P23="","",'DF raw data'!P23) -> 
A24: =IF('DF raw data'!M24="","",'DF raw data'!M24) -> Probe Danfysik Reg. Number | B24: =IF('DF raw data'!N24="","",'DF raw data'!N24) -> 2277 | C24: =IF('DF raw data'!O24="","",'DF raw data'!O24) ->  | D24: =IF('DF raw data'!P24="","",'DF raw data'!P24) -> 
A25: =IF('DF raw data'!M25="","",'DF raw data'!M25) -> Probe Axis | B25: =IF('DF raw data'!N25="","",'DF raw data'!N25) -> By | C25: =IF('DF raw data'!O25="","",'DF raw data'!O25) ->  | D25: =IF('DF raw data'!P25="","",'DF raw data'!P25) -> 
A26: =IF('DF raw data'!M26="","",'DF raw data'!M26) -> Probe Current Supply | B26: =IF('DF raw data'!N26="","",'DF raw data'!N26) -> 1825-D | C26: =IF('DF raw data'!O26="","",'DF raw data'!O26) ->  | D26: =IF('DF raw data'!P26="","",'DF raw data'!P26) -> 
A27: =IF('DF raw data'!M27="","",'DF raw data'!M27) -> Probe Gain Correction | B27: =IF('DF raw data'!N27="","",'DF raw data'!N27) -> 0.99617 | C27: =IF('DF raw data'!O27="","",'DF raw data'!O27) ->  | D27: =IF('DF raw data'!P27="","",'DF raw data'!P27) -> 
A28: =IF('DF raw data'!M28="","",'DF raw data'!M28) -> Probe Offset Correction | B28: =IF('DF raw data'!N28="","",'DF raw data'!N28) -> 0.0027549 | C28: =IF('DF raw data'!O28="","",'DF raw data'!O28) ->  | D28: =IF('DF raw data'!P28="","",'DF raw data'!P28) -> 
A29: =IF('DF raw data'!M29="","",'DF raw data'!M29) -> DVM Number | B29: =IF('DF raw data'!N29="","",'DF raw data'!N29) -> 2 | C29: =IF('DF raw data'!O29="","",'DF raw data'!O29) ->  | D29: =IF('DF raw data'!P29="","",'DF raw data'!P29) -> 
A30: =IF('DF raw data'!M30="","",'DF raw data'!M30) -> DVM Type | B30: =IF('DF raw data'!N30="","",'DF raw data'!N30) -> K2701 | C30: =IF('DF raw data'!O30="","",'DF raw data'!O30) ->  | D30: =IF('DF raw data'!P30="","",'DF raw data'!P30) -> 
A31: =IF('DF raw data'!M31="","",'DF raw data'!M31) -> DVM Danfysik Reg. Number | B31: =IF('DF raw data'!N31="","",'DF raw data'!N31) -> 1743-D | C31: =IF('DF raw data'!O31="","",'DF raw data'!O31) ->  | D31: =IF('DF raw data'!P31="","",'DF raw data'!P31) -> 
A32: =IF('DF raw data'!M32="","",'DF raw data'!M32) -> Probe Name | B32: =IF('DF raw data'!N32="","",'DF raw data'!N32) -> ID12_Bx | C32: =IF('DF raw data'!O32="","",'DF raw data'!O32) ->  | D32: =IF('DF raw data'!P32="","",'DF raw data'!P32) -> 
A33: =IF('DF raw data'!M33="","",'DF raw data'!M33) -> Probe Type | B33: =IF('DF raw data'!N33="","",'DF raw data'!N33) -> DF_ID_3D_Bxyz | C33: =IF('DF raw data'!O33="","",'DF raw data'!O33) ->  | D33: =IF('DF raw data'!P33="","",'DF raw data'!P33) -> 
A34: =IF('DF raw data'!M34="","",'DF raw data'!M34) -> Probe Danfysik Reg. Number | B34: =IF('DF raw data'!N34="","",'DF raw data'!N34) -> 2277 | C34: =IF('DF raw data'!O34="","",'DF raw data'!O34) ->  | D34: =IF('DF raw data'!P34="","",'DF raw data'!P34) -> 
A35: =IF('DF raw data'!M35="","",'DF raw data'!M35) -> Probe Axis | B35: =IF('DF raw data'!N35="","",'DF raw data'!N35) -> Bx | C35: =IF('DF raw data'!O35="","",'DF raw data'!O35) ->  | D35: =IF('DF raw data'!P35="","",'DF raw data'!P35) -> 
A36: =IF('DF raw data'!M36="","",'DF raw data'!M36) -> Probe Current Supply | B36: =IF('DF raw data'!N36="","",'DF raw data'!N36) -> 1825-D | C36: =IF('DF raw data'!O36="","",'DF raw data'!O36) ->  | D36: =IF('DF raw data'!P36="","",'DF raw data'!P36) -> 
A37: =IF('DF raw data'!M37="","",'DF raw data'!M37) -> Probe Gain Correction | B37: =IF('DF raw data'!N37="","",'DF raw data'!N37) -> 1 | C37: =IF('DF raw data'!O37="","",'DF raw data'!O37) ->  | D37: =IF('DF raw data'!P37="","",'DF raw data'!P37) -> 
A38: =IF('DF raw data'!M38="","",'DF raw data'!M38) -> Probe Offset Correction | B38: =IF('DF raw data'!N38="","",'DF raw data'!N38) -> -0.1756 | C38: =IF('DF raw data'!O38="","",'DF raw data'!O38) ->  | D38: =IF('DF raw data'!P38="","",'DF raw data'!P38) -> 
A39: =IF('DF raw data'!M39="","",'DF raw data'!M39) -> DVM Number | B39: =IF('DF raw data'!N39="","",'DF raw data'!N39) -> 3 | C39: =IF('DF raw data'!O39="","",'DF raw data'!O39) ->  | D39: =IF('DF raw data'!P39="","",'DF raw data'!P39) -> 
A40: =IF('DF raw data'!M40="","",'DF raw data'!M40) -> DVM Type | B40: =IF('DF raw data'!N40="","",'DF raw data'!N40) -> K2701 | C40: =IF('DF raw data'!O40="","",'DF raw data'!O40) ->  | D40: =IF('DF raw data'!P40="","",'DF raw data'!P40) -> 
A41: =IF('DF raw data'!M41="","",'DF raw data'!M41) -> DVM Danfysik Reg. Number | B41: =IF('DF raw data'!N41="","",'DF raw data'!N41) -> 1744-D | C41: =IF('DF raw data'!O41="","",'DF raw data'!O41) ->  | D41: =IF('DF raw data'!P41="","",'DF raw data'!P41) -> 
A42: =IF('DF raw data'!M42="","",'DF raw data'!M42) -> Probe Name | B42: =IF('DF raw data'!N42="","",'DF raw data'!N42) -> ID12_Bz | C42: =IF('DF raw data'!O42="","",'DF raw data'!O42) ->  | D42: =IF('DF raw data'!P42="","",'DF raw data'!P42) -> 
A43: =IF('DF raw data'!M43="","",'DF raw data'!M43) -> Probe Type | B43: =IF('DF raw data'!N43="","",'DF raw data'!N43) -> DF_ID_3D_Bxyz | C43: =IF('DF raw data'!O43="","",'DF raw data'!O43) ->  | D43: =IF('DF raw data'!P43="","",'DF raw data'!P43) -> 
A44: =IF('DF raw data'!M44="","",'DF raw data'!M44) -> Probe Danfysik Reg. Number | B44: =IF('DF raw data'!N44="","",'DF raw data'!N44) -> 2277 | C44: =IF('DF raw data'!O44="","",'DF raw data'!O44) ->  | D44: =IF('DF raw data'!P44="","",'DF raw data'!P44) -> 
A45: =IF('DF raw data'!M45="","",'DF raw data'!M45) -> Probe Axis | B45: =IF('DF raw data'!N45="","",'DF raw data'!N45) -> Bz | C45: =IF('DF raw data'!O45="","",'DF raw data'!O45) ->  | D45: =IF('DF raw data'!P45="","",'DF raw data'!P45) -> 
A46: =IF('DF raw data'!M46="","",'DF raw data'!M46) -> Probe Current Supply | B46: =IF('DF raw data'!N46="","",'DF raw data'!N46) -> 1825-D | C46: =IF('DF raw data'!O46="","",'DF raw data'!O46) ->  | D46: =IF('DF raw data'!P46="","",'DF raw data'!P46) -> 
A47: =IF('DF raw data'!M47="","",'DF raw data'!M47) -> Probe Gain Correction | B47: =IF('DF raw data'!N47="","",'DF raw data'!N47) -> 1 | C47: =IF('DF raw data'!O47="","",'DF raw data'!O47) ->  | D47: =IF('DF raw data'!P47="","",'DF raw data'!P47) -> 
A48: =IF('DF raw data'!M53="","",'DF raw data'!M53) -> PS-Gap: | B48: =IF('DF raw data'!N53="","",'DF raw data'!N53) -> 10 | C48: =IF('DF raw data'!O53="","",'DF raw data'!O53) ->  | D48: =IF('DF raw data'!P53="","",'DF raw data'!P53) -> 
A49: =IF('DF raw data'!M54="","",'DF raw data'!M54) -> PS-Temperature: | B49: =IF('DF raw data'!N54="","",'DF raw data'!N54) -> 24.9 | C49: =IF('DF raw data'!O54="","",'DF raw data'!O54) ->  | D49: =IF('DF raw data'!P54="","",'DF raw data'!P54) -> 
A50: =IF('DF raw data'!M55="","",'DF raw data'!M55) -> PS-Encoder: | B50: =IF('DF raw data'!N55="","",'DF raw data'!N55) -> 19.5984 | C50: =IF('DF raw data'!O55="","",'DF raw data'!O55) ->  | D50: =IF('DF raw data'!P55="","",'DF raw data'!P55) -> 
A51: =IF('DF raw data'!M56="","",'DF raw data'!M56) ->  | B51: =IF('DF raw data'!N56="","",'DF raw data'!N56) ->  | C51: =IF('DF raw data'!O56="","",'DF raw data'!O56) ->  | D51: =IF('DF raw data'!P56="","",'DF raw data'!P56) -> 
A52: =IF('DF raw data'!M57="","",'DF raw data'!M57) -> Monitor-Index | B52: =IF('DF raw data'!N57="","",'DF raw data'!N57) -> [1,1,4] | C52: =IF('DF raw data'!O57="","",'DF raw data'!O57) ->  | D52: =IF('DF raw data'!P57="","",'DF raw data'!P57) -> 
A53: =IF('DF raw data'!M58="","",'DF raw data'!M58) ->  | B53: =IF('DF raw data'!N58="","",'DF raw data'!N58) ->  | C53: =IF('DF raw data'!O58="","",'DF raw data'!O58) ->  | D53: =IF('DF raw data'!P58="","",'DF raw data'!P58) -> 
A54: =IF('DF raw data'!M59="","",'DF raw data'!M59) -> Time [s] | B54: =IF('DF raw data'!N59="","",'DF raw data'!N59) -> Y [mm] | C54: =IF('DF raw data'!O59="","",'DF raw data'!O59) -> X [mm] | D54: =IF('DF raw data'!P59="","",'DF raw data'!P59) -> Nominal current [A]
A55: =IF('DF raw data'!M60="","",'DF raw data'!M60) ->  | B55: =IF('DF raw data'!N60="","",'DF raw data'!N60) ->  | C55: =IF('DF raw data'!O60="","",'DF raw data'!O60) ->  | D55: =IF('DF raw data'!P60="","",'DF raw data'!P60) -> 
A56: =IF('DF raw data'!M61="","",'DF raw data'!M61) -> 207.6 | B56: =IF('DF raw data'!N61="","",'DF raw data'!N61) -> 31.65 | C56: =IF('DF raw data'!O61="","",'DF raw data'!O61) -> 302.55 | D56: =IF('DF raw data'!P61="","",'DF raw data'!P61) -> 0
A57: =IF('DF raw data'!M62="","",'DF raw data'!M62) ->  | B57: =IF('DF raw data'!N62="","",'DF raw data'!N62) ->  | C57: =IF('DF raw data'!O62="","",'DF raw data'!O62) ->  | D57: =IF('DF raw data'!P62="","",'DF raw data'!P62) -> 
A58: =IF('DF raw data'!M63="","",'DF raw data'!M63) -> Measurement-Index | B58: =IF('DF raw data'!N63="","",'DF raw data'!N63) -> [1,1,1201,2] | C58: =IF('DF raw data'!O63="","",'DF raw data'!O63) ->  | D58: =IF('DF raw data'!P63="","",'DF raw data'!P63) -> 
A59: =IF('DF raw data'!M64="","",'DF raw data'!M64) ->  | B59: =IF('DF raw data'!N64="","",'DF raw data'!N64) ->  | C59: =IF('DF raw data'!O64="","",'DF raw data'!O64) ->  | D59: =IF('DF raw data'!P64="","",'DF raw data'!P64) -> 
A60: =IF('DF raw data'!M65="","",'DF raw data'!M65) -> Z [mm] | B60: By [T] | C60: Bx [T] | D60: Bz [T] | F60: By_corr | G60: Bx_corr | H60: Bz_corr | J60: Iy | K60: Jy | L60: Ix | M60: Jx | N60: PI
A62: =IF('DF raw data'!M67="","",'DF raw data'!M67) -> -300 | B62: =IF('DF raw data'!N67="","",'DF raw data'!N67) -> -3.17767e-05 | C62: =IF('DF raw data'!O67="","",'DF raw data'!O67) -> 0.000158508 | D62: =IF('DF raw data'!P67="","",'DF raw data'!P67) -> -1.95373e-05 | F62: =(1-$G$1*($B$49))*B62 -> -3.256793983e-05 | G62: =(1-$G$1*($B$49-$G$2))*C62 -> 0.0001592846892 | H62: =(1-$G$1*($B$49-$G$2))*D62 -> -1.963303277e-05 | J62: =F62*$G$3 -> -1.628396991e-05 | K62: =J62*$G$3 -> -8.141984957e-06 | L62: =G62*$G$3 -> 7.96423446e-05 | M62: =L62*$G$3 -> 3.98211723e-05 | N62: =(J62^2+L62^2)*$G$3 -> 3.304035365e-09
A63: =IF('DF raw data'!M68="","",'DF raw data'!M68) -> -299.5 | B63: =IF('DF raw data'!N68="","",'DF raw data'!N68) -> -2.79935e-05 | C63: =IF('DF raw data'!O68="","",'DF raw data'!O68) -> 0.000167115 | D63: =IF('DF raw data'!P68="","",'DF raw data'!P68) -> -1.9918e-05 | F63: =(1-$G$1*($B$49-$G$2))*B63 -> -2.813066815e-05 | G63: =(1-$G$1*($B$49-$G$2))*C63 -> 0.0001679338635 | H63: -2.00155982e-05 | J63: =F63*$G$3+J62 -> -3.034930399e-05 | K63: =J63*$G$3+K62 -> -2.331663695e-05 | L63: =G63*$G$3+L62 -> 0.0001636092763 | M63: =L63*$G$3+M62 -> 0.0001216258105 | N63: =(J63^2+L63^2)*$G$3+N62 -> 1.714857315e-08
A64: =IF('DF raw data'!M69="","",'DF raw data'!M69) -> -299 | B64: =IF('DF raw data'!N69="","",'DF raw data'!N69) -> -2.69679e-05 | C64: =IF('DF raw data'!O69="","",'DF raw data'!O69) -> 0.000172283 | D64: =IF('DF raw data'!P69="","",'DF raw data'!P69) -> -2.02373e-05 | F64: =(1-$G$1*($B$49-$G$2))*B64 -> -2.710004271e-05 | G64: 0.0001731271867 | H64: -2.033646277e-05 | J64: =F64*$G$3+J63 -> -4.389932534e-05 | K64: =J64*$G$3+K63 -> -4.526629962e-05 | L64: =G64*$G$3+L63 -> 0.0002501728697 | M64: =L64*$G$3+M63 -> 0.0002467122453 | N64: =(J64^2+L64^2)*$G$3+N63 -> 4.940538089e-08
A65: =IF('DF raw data'!M70="","",'DF raw data'!M70) -> -298.5 | B65: =IF('DF raw data'!N70="","",'DF raw data'!N70) -> -3.59432e-05 | C65: =IF('DF raw data'!O70="","",'DF raw data'!O70) -> 0.000176602 | D65: =IF('DF raw data'!P70="","",'DF raw data'!P70) -> -1.94557e-05 | F65: -3.611932168e-05 | G65: 0.0001774673498 | H65: -1.955103293e-05 | J65: -6.195898618e-05 | K65: -7.624579272e-05 | L65: 0.0003389065446 | M65: 0.0004161655176 | N65: 1.087536619e-07
A66: =IF('DF raw data'!M71="","",'DF raw data'!M71) -> -298 | B66: =IF('DF raw data'!N71="","",'DF raw data'!N71) -> -2.78018e-05 | C66: =IF('DF raw data'!O71="","",'DF raw data'!O71) -> 0.000183648 | D66: =IF('DF raw data'!P71="","",'DF raw data'!P71) -> -1.88183e-05 | F66: -2.793802882e-05 | G66: 0.0001845478752 | H66: -1.891050967e-05 | J66: -7.592800059e-05 | K66: -0.000114209793 | L66: 0.0004311804822 | M66: 0.0006317557587 | N66: 2.045944966e-07
A67: =IF('DF raw data'!M72="","",'DF raw data'!M72) -> -297.5 | B67: =IF('DF raw data'!N72="","",'DF raw data'!N72) -> -1.18464e-05 | C67: =IF('DF raw data'!O72="","",'DF raw data'!O72) -> 0.000190396 | D67: =IF('DF raw data'!P72="","",'DF raw data'!P72) -> -2.01562e-05 | F67: -1.190444736e-05 | G67: 0.0001913289404 | H67: -2.025496538e-05 | J67: -8.188022427e-05 | K67: -0.0001551499052 | L67: 0.0005268449524 | M67: 0.0008951782349 | N67: 3.467294841e-07
A68: =IF('DF raw data'!M73="","",'DF raw data'!M73) -> -297 | B68: =IF('DF raw data'!N73="","",'DF raw data'!N73) -> -1.74191e-05 | C68: =IF('DF raw data'!O73="","",'DF raw data'!O73) -> 0.000185576 | D68: =IF('DF raw data'!P73="","",'DF raw data'!P73) -> -2.16984e-05 | F68: -1.750445359e-05 | G68: 0.0001864853224 | H68: -2.180472216e-05 | J68: -9.063245107e-05 | K68: -0.0002004661307 | L68: 0.0006200876136 | M68: 0.001205222042 | N68: 5.43090929e-07
A69: =IF('DF raw data'!M74="","",'DF raw data'!M74) -> -296.5 | B69: =IF('DF raw data'!N74="","",'DF raw data'!N74) -> -4.60044e-05 | C69: =IF('DF raw data'!O74="","",'DF raw data'!O74) -> 0.000184278 | D69: =IF('DF raw data'!P74="","",'DF raw data'!P74) -> -2.05699e-05 | F69: -4.622982156e-05 | G69: 0.0001851809622 | H69: -2.067069251e-05 | J69: -0.0001137473618 | K69: -0.0002573398116 | L69: 0.0007126780947 | M69: 0.001561561089 | N69: 8.035151935e-07
A70: =IF('DF raw data'!M75="","",'DF raw data'!M75) -> -296 | B70: =IF('DF raw data'!N75="","",'DF raw data'!N75) -> -2.60077e-05 | C70: =IF('DF raw data'!O75="","",'DF raw data'!O75) -> 0.000177611 | D70: =IF('DF raw data'!P75="","",'DF raw data'!P75) -> -1.86523e-05 | F70: -2.613513773e-05 | G70: 0.0001784812939 | H70: -1.874369627e-05 | J70: -0.0001268149307 | K70: -0.000320747277 | L70: 0.0008019187416 | M70: 0.00196252046 | N70: 1.133093041e-06
A71: =IF('DF raw data'!M76="","",'DF raw data'!M76) -> -295.5 | B71: =IF('DF raw data'!N76="","",'DF raw data'!N76) -> -1.4731e-05 | C71: =IF('DF raw data'!O76="","",'DF raw data'!O76) -> 0.00017413 | D71: =IF('DF raw data'!P76="","",'DF raw data'!P76) -> -1.90434e-05 | F71: -1.48031819e-05 | G71: 0.000174983237 | H71: -1.913671266e-05 | J71: -0.0001342165217 | K71: -0.0003878555378 | L71: 0.0008894103601 | M71: 0.00240722564 | N71: 1.537625473e-06
A72: =IF('DF raw data'!M77="","",'DF raw data'!M77) -> -295 | B72: =IF('DF raw data'!N77="","",'DF raw data'!N77) -> -1.24216e-05 | C72: =IF('DF raw data'!O77="","",'DF raw data'!O77) -> 0.000177685 | D72: =IF('DF raw data'!P77="","",'DF raw data'!P77) -> -2.06495e-05 | F72: -1.248246584e-05 | G72: 0.0001785556565 | H72: -2.075068255e-05 | J72: -0.0001404577546 | K72: -0.0004580844151 | L72: 0.0009786881884 | M72: 0.002896569734 | N72: 2.026404948e-06
A73: =IF('DF raw data'!M78="","",'DF raw data'!M78) -> -294.5 | B73: =IF('DF raw data'!N78="","",'DF raw data'!N78) -> -3.04954e-05 | C73: =IF('DF raw data'!O78="","",'DF raw data'!O78) -> 0.000181068 | D73: =IF('DF raw data'!P78="","",'DF raw data'!P78) -> -2.04635e-05 | F73: -3.064482746e-05 | G73: 0.0001819552332 | H73: -2.056377115e-05 | J73: -0.0001557801683 | K73: -0.0005359744993 | L73: 0.001069665805 | M73: 0.003431402637 | N73: 2.610631146e-06
A74: =IF('DF raw data'!M79="","",'DF raw data'!M79) -> -294 | B74: =IF('DF raw data'!N79="","",'DF raw data'!N79) -> -2.50462e-05 | C74: =IF('DF raw data'!O79="","",'DF raw data'!O79) -> 0.000175973 | D74: =IF('DF raw data'!P79="","",'DF raw data'!P79) -> -1.91866e-05 | F74: -2.516892638e-05 | G74: 0.0001768352677 | H74: -1.928061434e-05 | J74: -0.0001683646315 | K74: -0.000620156815 | L74: 0.001158083439 | M74: 0.004010444356 | N74: 3.295383096e-06
A75: =IF('DF raw data'!M80="","",'DF raw data'!M80) -> -293.5 | B75: =IF('DF raw data'!N80="","",'DF raw data'!N80) -> -7.61731e-06 | C75: =IF('DF raw data'!O80="","",'DF raw data'!O80) -> 0.000180342 | D75: =IF('DF raw data'!P80="","",'DF raw data'!P80) -> -1.92945e-05 | F75: -7.654634819e-06 | G75: 0.0001812256758 | H75: -1.938904305e-05 | J75: -0.0001721919489 | K75: -0.0007062527895 | L75: 0.001248696277 | M75: 0.004634792494 | N75: 4.089829325e-06
A76: =IF('DF raw data'!M81="","",'DF raw data'!M81) -> -293 | B76: =IF('DF raw data'!N81="","",'DF raw data'!N81) -> -1.50489e-05 | C76: =IF('DF raw data'!O81="","",'DF raw data'!O81) -> 0.00018182 | D76: =IF('DF raw data'!P81="","",'DF raw data'!P81) -> -2.06561e-05 | F76: -1.512263961e-05 | G76: 0.000182710918 | H76: -2.075731489e-05 | J76: -0.0001797532687 | K76: -0.0007961294238 | L76: 0.001340051736 | M76: 0.005304818362 | N76: 5.003854271e-06
A77: =IF('DF raw data'!M82="","",'DF raw data'!M82) -> -292.5 | B77: =IF('DF raw data'!N82="","",'DF raw data'!N82) -> -1.37041e-05 | C77: =IF('DF raw data'!O82="","",'DF raw data'!O82) -> 0.000188026 | D77: =IF('DF raw data'!P82="","",'DF raw data'!P82) -> -2.14249e-05 | F77: -1.377125009e-05 | G77: 0.0001889473274 | H77: -2.152988201e-05 | J77: -0.0001866388938 | K77: -0.0008894488707 | L77: 0.001434525399 | M77: 0.006022081062 | N77: 6.050202871e-06
A78: =IF('DF raw data'!M83="","",'DF raw data'!M83) -> -292 | B78: =IF('DF raw data'!N83="","",'DF raw data'!N83) -> -2.99794e-05 | C78: =IF('DF raw data'!O83="","",'DF raw data'!O83) -> 0.000178896 | D78: =IF('DF raw data'!P83="","",'DF raw data'!P83) -> -2.08649e-05 | F78: -3.012629906e-05 | G78: 0.0001797725904 | H78: -2.096713801e-05 | J78: -0.0002017020433 | K78: -0.0009902998924 | L78: 0.001524411695 | M78: 0.006784286909 | N78: 7.232460235e-06
A79: =IF('DF raw data'!M84="","",'DF raw data'!M84) -> -291.5 | B79: =IF('DF raw data'!N84="","",'DF raw data'!N84) -> -1.83881e-05 | C79: =IF('DF raw data'!O84="","",'DF raw data'!O84) -> 0.00018458 | D79: =IF('DF raw data'!P84="","",'DF raw data'!P84) -> -1.26391e-05 | F79: -1.847820169e-05 | G79: 0.000185484442 | H79: -1.270103159e-05 | J79: -0.0002109411441 | K79: -0.001095770464 | L79: 0.001617153916 | M79: 0.007592863867 | N79: 8.562301712e-06
A80: =IF('DF raw data'!M85="","",'DF raw data'!M85) -> -291 | B80: =IF('DF raw data'!N85="","",'DF raw data'!N85) -> -2.13931e-05 | C80: =IF('DF raw data'!O85="","",'DF raw data'!O85) -> 0.000180193 | D80: =IF('DF raw data'!P85="","",'DF raw data'!P85) -> -2.00497e-05 | F80: -2.149792619e-05 | G80: 0.0001810759457 | H80: -2.014794353e-05 | J80: -0.0002216901072 | K80: -0.001206615518 | L80: 0.001707691888 | M80: 0.008446709811 | N80: 1.004498076e-05
A81: =IF('DF raw data'!M86="","",'DF raw data'!M86) -> -290.5 | B81: =IF('DF raw data'!N86="","",'DF raw data'!N86) -> -2.2297e-05 | C81: =IF('DF raw data'!O86="","",'DF raw data'!O86) -> 0.000174458 | D81: =IF('DF raw data'!P86="","",'DF raw data'!P86) -> -1.35306e-05 | F81: -2.24062553e-05 | G81: 0.0001753128442 | H81: -1.359689994e-05 | J81: -0.0002328932349 | K81: -0.001323062135 | L81: 0.001795348311 | M81: 0.009344383967 | N81: 1.168373816e-05
A82: =IF('DF raw data'!M87="","",'DF raw data'!M87) -> -290 | B82: =IF('DF raw data'!N87="","",'DF raw data'!N87) -> -2.65161e-05 | C82: =IF('DF raw data'!O87="","",'DF raw data'!O87) -> 0.000182422 | D82: =IF('DF raw data'!P87="","",'DF raw data'!P87) -> -2.51181e-05 | F82: -2.664602889e-05 | G82: 0.0001833158678 | H82: -2.524117869e-05 | J82: -0.0002462162493 | K82: -0.00144617026 | L82: 0.001887006244 | M82: 0.01028788709 | N82: 1.349444567e-05
A83: =IF('DF raw data'!M88="","",'DF raw data'!M88) -> -289.5 | B83: =IF('DF raw data'!N88="","",'DF raw data'!N88) -> -2.24795e-05 | C83: =IF('DF raw data'!O88="","",'DF raw data'!O88) -> 0.000182856 | D83: =IF('DF raw data'!P88="","",'DF raw data'!P88) -> -2.84537e-05 | F83: -2.258964955e-05 | G83: 0.0001837519944 | H83: -2.859312313e-05 | J83: -0.0002575110741 | K83: -0.001574925797 | L83: 0.001978882242 | M83: 0.01127732821 | N83: 1.548558911e-05
A84: =IF('DF raw data'!M89="","",'DF raw data'!M89) -> -289 | B84: =IF('DF raw data'!N89="","",'DF raw data'!N89) -> -3.29271e-05 | C84: =IF('DF raw data'!O89="","",'DF raw data'!O89) -> 0.000184447 | D84: =IF('DF raw data'!P89="","",'DF raw data'!P89) -> -2.0671e-05 | F84: -3.308844279e-05 | G84: 0.0001853507903 | H84: -2.07722879e-05 | J84: -0.0002740552955 | K84: -0.001711953445 | L84: 0.002071557637 | M84: 0.01231310703 | N84: 1.766881778e-05
A85: =IF('DF raw data'!M90="","",'DF raw data'!M90) -> -288.5 | B85: =IF('DF raw data'!N90="","",'DF raw data'!N90) -> -2.35096e-05 | C85: =IF('DF raw data'!O90="","",'DF raw data'!O90) -> 0.000184547 | D85: =IF('DF raw data'!P90="","",'DF raw data'!P90) -> -2.12332e-05 | F85: -2.362479704e-05 | G85: 0.0001854512803 | H85: -2.133724268e-05 | J85: -0.000285867694 | K85: -0.001854887292 | L85: 0.002164283277 | M85: 0.01339524867 | N85: 2.0051739e-05
A86: =IF('DF raw data'!M91="","",'DF raw data'!M91) -> -288 | B86: =IF('DF raw data'!N91="","",'DF raw data'!N91) -> -2.94675e-05 | C86: =IF('DF raw data'!O91="","",'DF raw data'!O91) -> 0.000179684 | D86: =IF('DF raw data'!P91="","",'DF raw data'!P91) -> -1.98165e-05 | F86: -2.961189075e-05 | G86: 0.0001805644516 | H86: -1.991360085e-05 | J86: -0.0003006736394 | K86: -0.002005224112 | L86: 0.002254565503 | M86: 0.01452253142 | N86: 2.263847412e-05
A87: =IF('DF raw data'!M92="","",'DF raw data'!M92) -> -287.5 | B87: =IF('DF raw data'!N92="","",'DF raw data'!N92) -> -2.33781e-05 | C87: =IF('DF raw data'!O92="","",'DF raw data'!O92) -> 0.000185531 | D87: =IF('DF raw data'!P92="","",'DF raw data'!P92) -> -2.61737e-05 | F87: -2.349265269e-05 | G87: 0.0001864401019 | H87: -2.630195113e-05 | J87: -0.0003124199657 | K87: -0.002161434095 | L87: 0.002347785554 | M87: 0.0156964242 | N87: 2.544332575e-05
A88: =IF('DF raw data'!M93="","",'DF raw data'!M93) -> -287 | B88: =IF('DF raw data'!N93="","",'DF raw data'!N93) -> -2.94723e-05 | C88: =IF('DF raw data'!O93="","",'DF raw data'!O93) -> 0.000182136 | D88: =IF('DF raw data'!P93="","",'DF raw data'!P93) -> -1.23088e-05 | F88: -2.961671427e-05 | G88: 0.0001830284664 | H88: -1.236911312e-05 | J88: -0.0003272283229 | K88: -0.002325048256 | L88: 0.002439299787 | M88: 0.01691607409 | N88: 2.847195666e-05
A89: =IF('DF raw data'!M94="","",'DF raw data'!M94) -> -286.5 | B89: =IF('DF raw data'!N94="","",'DF raw data'!N94) -> -1.18383e-05 | C89: =IF('DF raw data'!O94="","",'DF raw data'!O94) -> 0.000173436 | D89: =IF('DF raw data'!P94="","",'DF raw data'!P94) -> -3.26187e-05 | F89: -1.189630767e-05 | G89: 0.0001742858364 | H89: -3.277853163e-05 | J89: -0.0003331764767 | K89: -0.002491636494 | L89: 0.002526442705 | M89: 0.01817929544 | N89: 3.171891631e-05
A90: =IF('DF raw data'!M95="","",'DF raw data'!M95) -> -286 | B90: =IF('DF raw data'!N95="","",'DF raw data'!N95) -> -2.56891e-05 | C90: =IF('DF raw data'!O95="","",'DF raw data'!O95) -> 0.000169689 | D90: =IF('DF raw data'!P95="","",'DF raw data'!P95) -> -1.62873e-05 | F90: -2.581497659e-05 | G90: 0.0001705204761 | H90: -1.636710777e-05 | J90: -0.000346083965 | K90: -0.002664678477 | L90: 0.002611702943 | M90: 0.01948514691 | N90: 3.51892995e-05
A91: =IF('DF raw data'!M96="","",'DF raw data'!M96) -> -285.5 | B91: =IF('DF raw data'!N96="","",'DF raw data'!N96) -> -1.99176e-05 | C91: =IF('DF raw data'!O96="","",'DF raw data'!O96) -> 0.000180433 | D91: =IF('DF raw data'!P96="","",'DF raw data'!P96) -> -2.62441e-05 | F91: -2.001519624e-05 | G91: 0.0001813171217 | H91: -2.637269609e-05 | J91: -0.0003560915631 | K91: -0.002842724258 | L91: 0.002702361504 | M91: 0.02083632766 | N91: 3.890407895e-05
A92: =IF('DF raw data'!M97="","",'DF raw data'!M97) -> -285 | B92: =IF('DF raw data'!N97="","",'DF raw data'!N97) -> -1.02418e-05 | C92: =IF('DF raw data'!O97="","",'DF raw data'!O97) -> 0.000185631 | D92: =IF('DF raw data'!P97="","",'DF raw data'!P97) -> -2.24165e-05 | F92: -1.029198482e-05 | G92: 0.0001865405919 | H92: -2.252634085e-05 | J92: -0.0003612375555 | K92: -0.003023343036 | L92: 0.0027956318 | M92: 0.02223414356 | N92: 4.287710382e-05
A93: =IF('DF raw data'!M98="","",'DF raw data'!M98) -> -284.5 | B93: =IF('DF raw data'!N98="","",'DF raw data'!N98) -> -1.16477e-05 | C93: =IF('DF raw data'!O98="","",'DF raw data'!O98) -> 0.00017984 | D93: =IF('DF raw data'!P98="","",'DF raw data'!P98) -> -3.0289e-05 | F93: -1.170477373e-05 | G93: 0.000180721216 | H93: -3.04374161e-05 | J93: -0.0003670899424 | K93: -0.003206888007 | L93: 0.002885992408 | M93: 0.02367713977 | N93: 4.710895742e-05
A94: =IF('DF raw data'!M99="","",'DF raw data'!M99) -> -284 | B94: =IF('DF raw data'!N99="","",'DF raw data'!N99) -> -3.54289e-05 | C94: =IF('DF raw data'!O99="","",'DF raw data'!O99) -> 0.000187683 | D94: =IF('DF raw data'!P99="","",'DF raw data'!P99) -> -1.66152e-05 | F94: -3.560250161e-05 | G94: 0.0001886026467 | H94: -1.669661448e-05 | J94: -0.0003848911932 | K94: -0.003399333604 | L94: 0.002980293731 | M94: 0.02516728663 | N94: 5.16241034e-05
A95: =IF('DF raw data'!M100="","",'DF raw data'!M100) -> -283.5 | B95: =IF('DF raw data'!N100="","",'DF raw data'!N100) -> -2.72981e-05 | C95: =IF('DF raw data'!O100="","",'DF raw data'!O100) -> 0.000183418 | D95: =IF('DF raw data'!P100="","",'DF raw data'!P100) -> -9.70306e-06 | F95: -2.743186069e-05 | G95: 0.0001843167482 | H95: -9.750604994e-06 | J95: -0.0003986071235 | K95: -0.003598637166 | L95: 0.003072452105 | M95: 0.02670351269 | N95: 5.642352819e-05
A96: =IF('DF raw data'!M101="","",'DF raw data'!M101) -> -283 | B96: =IF('DF raw data'!N101="","",'DF raw data'!N101) -> -1.2489e-05 | C96: =IF('DF raw data'!O101="","",'DF raw data'!O101) -> 0.000177038 | D96: =IF('DF raw data'!P101="","",'DF raw data'!P101) -> -1.52981e-05 | F96: -1.25501961e-05 | G96: 0.0001779054862 | H96: -1.537306069e-05 | J96: -0.0004048822216 | K96: -0.003801078277 | L96: 0.003161404849 | M96: 0.02828421511 | N96: 6.15027333e-05
A97: =IF('DF raw data'!M102="","",'DF raw data'!M102) -> -282.5 | B97: =IF('DF raw data'!N102="","",'DF raw data'!N102) -> -1.15205e-05 | C97: =IF('DF raw data'!O102="","",'DF raw data'!O102) -> 0.000184281 | D97: =IF('DF raw data'!P102="","",'DF raw data'!P102) -> -2.87294e-05 | F97: -1.157695045e-05 | G97: 0.0001851839769 | H97: -2.887017406e-05 | J97: -0.0004106706968 | K97: -0.004006413625 | L97: 0.003253996837 | M97: 0.02991121353 | N97: 6.688130622e-05
A98: =IF('DF raw data'!M103="","",'DF raw data'!M103) -> -282 | B98: =IF('DF raw data'!N103="","",'DF raw data'!N103) -> -3.54973e-05 | C98: =IF('DF raw data'!O103="","",'DF raw data'!O103) -> 0.000184331 | D98: =IF('DF raw data'!P103="","",'DF raw data'!P103) -> -9.99486e-06 | F98: -3.567123677e-05 | G98: 0.0001852342219 | H98: -1.004383481e-05 | J98: -0.0004285063152 | K98: -0.004220666783 | L98: 0.003346613948 | M98: 0.0315845205 | N98: 7.257302751e-05
A99: =IF('DF raw data'!M104="","",'DF raw data'!M104) -> -281.5 | B99: =IF('DF raw data'!N104="","",'DF raw data'!N104) -> -2.38941e-05 | C99: =IF('DF raw data'!O104="","",'DF raw data'!O104) -> 0.000176968 | D99: =IF('DF raw data'!P104="","",'DF raw data'!P104) -> -2.12352e-05 | F99: -2.401118109e-05 | G99: 0.0001778351432 | H99: -2.133925248e-05 | J99: -0.0004405119058 | K99: -0.004440922735 | L99: 0.00343553152 | M99: 0.03330228626 | N99: 7.857149129e-05
A100: =IF('DF raw data'!M105="","",'DF raw data'!M105) -> -281 | B100: =IF('DF raw data'!N105="","",'DF raw data'!N105) -> -2.03019e-05 | C100: =IF('DF raw data'!O105="","",'DF raw data'!O105) -> 0.000180788 | D100: =IF('DF raw data'!P105="","",'DF raw data'!P105) -> -2.3021e-05 | F100: -2.040137931e-05 | G100: 0.0001816738612 | H100: -2.31338029e-05 | J100: -0.0004507125954 | K100: -0.004666279033 | L100: 0.00352636845 | M100: 0.03506547049 | N100: 8.489069943e-05
A101: =IF('DF raw data'!M106="","",'DF raw data'!M106) -> -280.5 | B101: =IF('DF raw data'!N106="","",'DF raw data'!N106) -> -3.27396e-05 | C101: =IF('DF raw data'!O106="","",'DF raw data'!O106) -> 0.000178619 | D101: =IF('DF raw data'!P106="","",'DF raw data'!P106) -> -1.90973e-05 | F101: -3.290002404e-05 | G101: 0.0001794942331 | H101: -1.919087677e-05 | J101: -0.0004671626074 | K101: -0.004899860337 | L101: 0.003616115567 | M101: 0.03687352827 | N101: 9.153796578e-05
A102: =IF('DF raw data'!M107="","",'DF raw data'!M107) -> -280 | B102: =IF('DF raw data'!N107="","",'DF raw data'!N107) -> -3.06859e-05 | C102: =IF('DF raw data'!O107="","",'DF raw data'!O107) -> 0.000176107 | D102: =IF('DF raw data'!P107="","",'DF raw data'!P107) -> -1.81852e-05 | F102: -3.083626091e-05 | G102: 0.0001769699243 | H102: -1.827430748e-05 | J102: -0.0004825807379 | K102: -0.005141150706 | L102: 0.003704600529 | M102: 0.03872582854 | N102: 9.85164404e-05
A103: =IF('DF raw data'!M108="","",'DF raw data'!M108) -> -279.5 | B103: =IF('DF raw data'!N108="","",'DF raw data'!N108) -> -2.46626e-05 | C103: =IF('DF raw data'!O108="","",'DF raw data'!O108) -> 0.000171155 | D103: =IF('DF raw data'!P108="","",'DF raw data'!P108) -> -2.18028e-05 | F103: -2.478344674e-05 | G103: 0.0001719936595 | H103: -2.190963372e-05 | J103: -0.0004949724613 | K103: -0.005388636936 | L103: 0.003790597359 | M103: 0.04062112722 | N103: 0.0001058232534
A104: =IF('DF raw data'!M109="","",'DF raw data'!M109) -> -279 | B104: =IF('DF raw data'!N109="","",'DF raw data'!N109) -> -2.19651e-05 | C104: =IF('DF raw data'!O109="","",'DF raw data'!O109) -> 0.000170608 | D104: =IF('DF raw data'!P109="","",'DF raw data'!P109) -> -2.75713e-05 | F104: -2.207272899e-05 | G104: 0.0001714439792 | H104: -2.770639937e-05 | J104: -0.0005060088257 | K104: -0.005641641349 | L104: 0.003876319348 | M104: 0.04255928689 | N104: 0.0001134642018
A105: =IF('DF raw data'!M110="","",'DF raw data'!M110) -> -278.5 | B105: =IF('DF raw data'!N110="","",'DF raw data'!N110) -> -2.33094e-05 | C105: =IF('DF raw data'!O110="","",'DF raw data'!O110) -> 0.000173123 | D105: =IF('DF raw data'!P110="","",'DF raw data'!P110) -> -3.32971e-05 | F105: -2.342361606e-05 | G105: 0.0001739713027 | H105: -3.346025579e-05 | J105: -0.0005177206338 | K105: -0.005900501666 | L105: 0.003963305 | M105: 0.04454093939 | N105: 0.0001214521123
A106: =IF('DF raw data'!M111="","",'DF raw data'!M111) -> -278 | B106: =IF('DF raw data'!N111="","",'DF raw data'!N111) -> -2.3378e-05 | C106: =IF('DF raw data'!O111="","",'DF raw data'!O111) -> 0.000179929 | D106: =IF('DF raw data'!P111="","",'DF raw data'!P111) -> -2.28122e-05 | F106: -2.34925522e-05 | G106: 0.0001808106521 | H106: -2.292397978e-05 | J106: -0.0005294669099 | K106: -0.006165235121 | L106: 0.004053710326 | M106: 0.04656779455 | N106: 0.0001298085636
A107: =IF('DF raw data'!M112="","",'DF raw data'!M112) -> -277.5 | B107: =IF('DF raw data'!N112="","",'DF raw data'!N112) -> -1.3324e-05 | C107: =IF('DF raw data'!O112="","",'DF raw data'!O112) -> 0.000178384 | D107: =IF('DF raw data'!P112="","",'DF raw data'!P112) -> -1.4518e-05 | F107: -1.33892876e-05 | G107: 0.0001792580816 | H107: -1.45891382e-05 | J107: -0.0005361615537 | K107: -0.006433315898 | L107: 0.004143339366 | M107: 0.04863946424 | N107: 0.0001385359288
A108: =IF('DF raw data'!M113="","",'DF raw data'!M113) -> -277 | B108: =IF('DF raw data'!N113="","",'DF raw data'!N113) -> -1.88309e-05 | C108: =IF('DF raw data'!O113="","",'DF raw data'!O113) -> 0.000176648 | D108: =IF('DF raw data'!P113="","",'DF raw data'!P113) -> -1.89542e-05 | F108: -1.892317141e-05 | G108: 0.0001775135752 | H108: -1.904707558e-05 | J108: -0.0005456231394 | K108: -0.006706127468 | L108: 0.004232096154 | M108: 0.05075551231 | N108: 0.0001476401
A109: =IF('DF raw data'!M114="","",'DF raw data'!M114) -> -276.5 | B109: =IF('DF raw data'!N114="","",'DF raw data'!N114) -> -2.15346e-05 | C109: =IF('DF raw data'!O114="","",'DF raw data'!O114) -> 0.000176164 | D109: =IF('DF raw data'!P114="","",'DF raw data'!P114) -> -2.50156e-06 | F109: -2.164011954e-05 | G109: 0.0001770272036 | H109: -2.513817644e-06 | J109: -0.0005564431992 | K109: -0.006984349067 | L109: 0.004320609756 | M109: 0.05291581719 | N109: 0.0001571287489
A110: =IF('DF raw data'!M115="","",'DF raw data'!M115) -> -276 | B110: =IF('DF raw data'!N115="","",'DF raw data'!N115) -> -2.07643e-05 | C110: =IF('DF raw data'!O115="","",'DF raw data'!O115) -> 0.00017695 | D110: =IF('DF raw data'!P115="","",'DF raw data'!P115) -> -2.07346e-06 | F110: -2.086604507e-05 | G110: 0.000177817055 | H110: -2.083619954e-06 | J110: -0.0005668762217 | K110: -0.007267787178 | L110: 0.004409518283 | M110: 0.05512057633 | N110: 0.000167011349
A111: =IF('DF raw data'!M116="","",'DF raw data'!M116) -> -275.5 | B111: =IF('DF raw data'!N116="","",'DF raw data'!N116) -> -1.13989e-05 | C111: =IF('DF raw data'!O116="","",'DF raw data'!O116) -> 0.000179399 | D111: =IF('DF raw data'!P116="","",'DF raw data'!P116) -> -1.82942e-05 | F111: -1.145475461e-05 | G111: 0.0001802780551 | H111: -1.838384158e-05 | J111: -0.000572603599 | K111: -0.007554088978 | L111: 0.004499657311 | M111: 0.05737040499 | N111: 0.0001772987444
A112: =IF('DF raw data'!M117="","",'DF raw data'!M117) -> -275 | B112: =IF('DF raw data'!N117="","",'DF raw data'!N117) -> -6.42193e-06 | C112: =IF('DF raw data'!O117="","",'DF raw data'!O117) -> 0.000182035 | D112: =IF('DF raw data'!P117="","",'DF raw data'!P117) -> 1.60373e-05 | F112: -6.453397457e-06 | G112: 0.0001829269715 | H112: 1.611588277e-05 | J112: -0.0005758302977 | K112: -0.007842004126 | L112: 0.004591120797 | M112: 0.05966596539 | N112: 0.0001880037297
A113: =IF('DF raw data'!M118="","",'DF raw data'!M118) -> -274.5 | B113: =IF('DF raw data'!N118="","",'DF raw data'!N118) -> -2.22314e-05 | C113: =IF('DF raw data'!O118="","",'DF raw data'!O118) -> 0.000169504 | D113: =IF('DF raw data'!P118="","",'DF raw data'!P118) -> -1.51698e-05 | F113: -2.234033386e-05 | G113: 0.0001703345696 | H113: -1.524413202e-05 | J113: -0.0005870004647 | K113: -0.008135504359 | L113: 0.004676288081 | M113: 0.06200410943 | N113: 0.0001991098496
A114: =IF('DF raw data'!M119="","",'DF raw data'!M119) -> -274 | B114: =IF('DF raw data'!N119="","",'DF raw data'!N119) -> -1.64646e-05 | C114: =IF('DF raw data'!O119="","",'DF raw data'!O119) -> 0.000170803 | D114: =IF('DF raw data'!P119="","",'DF raw data'!P119) -> -1.17451e-05 | F114: -1.654527654e-05 | G114: 0.0001716399347 | H114: -1.180265099e-05 | J114: -0.0005952731029 | K114: -0.00843314091 | L114: 0.004762108049 | M114: 0.06438516345 | N114: 0.0002106258612
A115: =IF('DF raw data'!M120="","",'DF raw data'!M120) -> -273.5 | B115: =IF('DF raw data'!N120="","",'DF raw data'!N120) -> -1.99976e-05 | C115: =IF('DF raw data'!O120="","",'DF raw data'!O120) -> 0.000172807 | D115: =IF('DF raw data'!P120="","",'DF raw data'!P120) -> -9.45379e-07 | F115: -2.009558824e-05 | G115: 0.0001736537543 | H115: -9.500113571e-07 | J115: -0.000605320897 | K115: -0.008735801359 | L115: 0.004848934926 | M115: 0.06680963091 | N115: 0.0002225651528
A116: =IF('DF raw data'!M121="","",'DF raw data'!M121) -> -273 | B116: =IF('DF raw data'!N121="","",'DF raw data'!N121) -> -1.70387e-05 | C116: =IF('DF raw data'!O121="","",'DF raw data'!O121) -> 0.000172837 | D116: =IF('DF raw data'!P121="","",'DF raw data'!P121) -> -1.59905e-05 | F116: -1.712218963e-05 | G116: 0.0001736839013 | H116: -1.606885345e-05 | J116: -0.0006138819919 | K116: -0.009042742355 | L116: 0.004935776877 | M116: 0.06927751935 | N116: 0.000234934525
A117: =IF('DF raw data'!M122="","",'DF raw data'!M122) -> -272.5 | B117: =IF('DF raw data'!N122="","",'DF raw data'!N122) -> -2.68389e-05 | C117: =IF('DF raw data'!O122="","",'DF raw data'!O122) -> 0.000170472 | D117: =IF('DF raw data'!P122="","",'DF raw data'!P122) -> -2.56192e-05 | F117: -2.697041061e-05 | G117: 0.0001713073128 | H117: -2.574473408e-05 | J117: -0.0006273671972 | K117: -0.009356425953 | L117: 0.005021430533 | M117: 0.07178823462 | N117: 0.0002477387021
A118: =IF('DF raw data'!M123="","",'DF raw data'!M123) -> -272 | B118: =IF('DF raw data'!N123="","",'DF raw data'!N123) -> -1.19783e-05 | C118: =IF('DF raw data'!O123="","",'DF raw data'!O123) -> 0.000174505 | D118: =IF('DF raw data'!P123="","",'DF raw data'!P123) -> -1.25647e-05 | F118: -1.203699367e-05 | G118: 0.0001753600745 | H118: -1.262626703e-05 | J118: -0.000633385694 | K118: -0.0096731188 | L118: 0.00510911057 | M118: 0.0743427899 | N118: 0.0002609907963
A119: =IF('DF raw data'!M124="","",'DF raw data'!M124) -> -271.5 | B119: =IF('DF raw data'!N124="","",'DF raw data'!N124) -> -1.18442e-05 | C119: =IF('DF raw data'!O124="","",'DF raw data'!O124) -> 0.00017808 | D119: =IF('DF raw data'!P124="","",'DF raw data'!P124) -> -2.31279e-05 | F119: -1.190223658e-05 | G119: 0.000178952592 | H119: -2.324122671e-05 | J119: -0.0006393368123 | K119: -0.009992787206 | L119: 0.005198586866 | M119: 0.07694208334 | N119: 0.0002747078248
A120: =IF('DF raw data'!M125="","",'DF raw data'!M125) -> -271 | B120: =IF('DF raw data'!N125="","",'DF raw data'!N125) -> -2.60709e-05 | C120: =IF('DF raw data'!O125="","",'DF raw data'!O125) -> 0.000180324 | D120: =IF('DF raw data'!P125="","",'DF raw data'!P125) -> -2.11022e-05 | F120: -2.619864741e-05 | G120: 0.0001812075876 | H120: -2.120560078e-05 | J120: -0.000652436136 | K120: -0.01031900527 | L120: 0.00528919066 | M120: 0.07958667867 | N120: 0.0002889084301
A121: =IF('DF raw data'!M126="","",'DF raw data'!M126) -> -270.5 | B121: =IF('DF raw data'!N126="","",'DF raw data'!N126) -> -2.84372e-05 | C121: =IF('DF raw data'!O126="","",'DF raw data'!O126) -> 0.000172488 | D121: =IF('DF raw data'!P126="","",'DF raw data'!P126) -> -3.179e-05 | F121: -2.857654228e-05 | G121: 0.0001733331912 | H121: -3.1945771e-05 | J121: -0.0006667244071 | K121: -0.01065236748 | L121: 0.005375857256 | M121: 0.08227460729 | N121: 0.0003035806115
A122: =IF('DF raw data'!M127="","",'DF raw data'!M127) -> -270 | B122: =IF('DF raw data'!N127="","",'DF raw data'!N127) -> -2.05624e-05 | C122: =IF('DF raw data'!O127="","",'DF raw data'!O127) -> 0.000167954 | D122: =IF('DF raw data'!P127="","",'DF raw data'!P127) -> -1.72477e-05 | F122: -2.066315576e-05 | G122: 0.0001687769746 | H122: -1.733221373e-05 | J122: -0.000677055985 | K122: -0.01099089547 | L122: 0.005460245743 | M122: 0.08500473017 | N122: 0.0003187169557
A123: =IF('DF raw data'!M128="","",'DF raw data'!M128) -> -269.5 | B123: =IF('DF raw data'!N128="","",'DF raw data'!N128) -> -2.44071e-05 | C123: =IF('DF raw data'!O128="","",'DF raw data'!O128) -> 0.000173722 | D123: =IF('DF raw data'!P128="","",'DF raw data'!P128) -> -1.99239e-05 | F123: -2.452669479e-05 | G123: 0.0001745732378 | H123: -2.002152711e-05 | J123: -0.0006893193324 | K123: -0.01133555514 | L123: 0.005547532362 | M123: 0.08777849635 | N123: 0.0003343420939
A124: =IF('DF raw data'!M129="","",'DF raw data'!M129) -> -269 | B124: =IF('DF raw data'!N129="","",'DF raw data'!N129) -> -2.0684e-05 | C124: =IF('DF raw data'!O129="","",'DF raw data'!O129) -> 0.000184124 | D124: =IF('DF raw data'!P129="","",'DF raw data'!P129) -> -2.74355e-05 | F124: -2.07853516e-05 | G124: 0.0001850262076 | H124: -2.756993395e-05 | J124: -0.0006997120082 | K124: -0.01168541114 | L124: 0.005640045466 | M124: 0.09059851908 | N124: 0.0003504919487
A125: =IF('DF raw data'!M130="","",'DF raw data'!M130) -> -268.5 | B125: =IF('DF raw data'!N130="","",'DF raw data'!N130) -> -3.21608e-05 | C125: =IF('DF raw data'!O130="","",'DF raw data'!O130) -> 0.000187327 | D125: =IF('DF raw data'!P130="","",'DF raw data'!P130) -> -2.10538e-05 | F125: -3.231838792e-05 | G125: 0.0001882449023 | H125: -2.115696362e-05 | J125: -0.0007158712022 | K125: -0.01204334674 | L125: 0.005734167917 | M125: 0.09346560304 | N125: 0.0003671885254
A126: =IF('DF raw data'!M131="","",'DF raw data'!M131) -> -268 | B126: =IF('DF raw data'!N131="","",'DF raw data'!N131) -> -2.61431e-05 | C126: =IF('DF raw data'!O131="","",'DF raw data'!O131) -> 0.00018655 | D126: =IF('DF raw data'!P131="","",'DF raw data'!P131) -> -8.46022e-06 | F126: -2.627120119e-05 | G126: 0.000187464095 | H126: -8.501675078e-06 | J126: -0.0007290068028 | K126: -0.01240785014 | L126: 0.005827899964 | M126: 0.09637955302 | N126: 0.0003844364598
A127: =IF('DF raw data'!M132="","",'DF raw data'!M132) -> -267.5 | B127: =IF('DF raw data'!N132="","",'DF raw data'!N132) -> -3.24806e-05 | C127: =IF('DF raw data'!O132="","",'DF raw data'!O132) -> 0.000184692 | D127: =IF('DF raw data'!P132="","",'DF raw data'!P132) -> -2.21464e-05 | F127: -3.263975494e-05 | G127: 0.0001855969908 | H127: -2.225491736e-05 | J127: -0.0007453266802 | K127: -0.01278051348 | L127: 0.00592069846 | M127: 0.09933990225 | N127: 0.0004022415509
A128: =IF('DF raw data'!M133="","",'DF raw data'!M133) -> -267 | B128: =IF('DF raw data'!N133="","",'DF raw data'!N133) -> -1.68419e-05 | C128: =IF('DF raw data'!O133="","",'DF raw data'!O133) -> 0.000180311 | D128: =IF('DF raw data'!P133="","",'DF raw data'!P133) -> -2.30615e-05 | F128: =(1-$G$1*($B$49-$G$2))*B128 -> -1.692442531e-05 | G128: 0.0001811945239 | H128: -2.317450135e-05 | J128: =F128*$G$3+J127 -> -0.0007537888929 | K128: =J128*$G$3+K127 -> -0.01315740793 | L128: =G128*$G$3+L127 -> 0.006011295722 | M128: =L128*$G$3+M127 -> 0.1023455501 | N128: =(J128^2+L128^2)*$G$3+N127 -> 0.0004205934879
A129: =IF('DF raw data'!M134="","",'DF raw data'!M134) -> -266.5 | B129: =IF('DF raw data'!N134="","",'DF raw data'!N134) -> -3.56855e-05 | C129: =IF('DF raw data'!O134="","",'DF raw data'!O134) -> 0.000179803 | D129: =IF('DF raw data'!P134="","",'DF raw data'!P134) -> -2.09508e-05 | F129: -3.586035895e-05 | G129: 0.0001806840347 | H129: -2.105345892e-05 | J129: -0.0007717190724 | K129: -0.01354326747 | L129: 0.006101637739 | M129: 0.105396369 | N129: 0.0004395062546
A130: =IF('DF raw data'!M135="","",'DF raw data'!M135) -> -266 | B130: =IF('DF raw data'!N135="","",'DF raw data'!N135) -> -2.82486e-05 | C130: =IF('DF raw data'!O135="","",'DF raw data'!O135) -> 0.000181338 | D130: =IF('DF raw data'!P135="","",'DF raw data'!P135) -> -2.28878e-05 | F130: -2.838701814e-05 | G130: 0.0001822265562 | H130: -2.299995022e-05 | J130: -0.0007859125814 | K130: -0.01393622376 | L130: 0.006192751017 | M130: 0.1084927445 | N130: 0.0004589901665
A131: =IF('DF raw data'!M136="","",'DF raw data'!M136) -> -265.5 | B131: =IF('DF raw data'!N136="","",'DF raw data'!N136) -> -2.13951e-05 | C131: =IF('DF raw data'!O136="","",'DF raw data'!O136) -> 0.000176174 | D131: =IF('DF raw data'!P136="","",'DF raw data'!P136) -> -1.9743e-05 | F131: -2.149993599e-05 | G131: 0.0001770372526 | H131: -1.98397407e-05 | J131: -0.0007966625494 | K131: -0.01433455503 | L131: 0.006281269643 | M131: 0.1116333793 | N131: 0.0004790346762
A132: =IF('DF raw data'!M137="","",'DF raw data'!M137) -> -265 | B132: =IF('DF raw data'!N137="","",'DF raw data'!N137) -> -1.82538e-05 | C132: =IF('DF raw data'!O137="","",'DF raw data'!O137) -> 0.000173453 | D132: =IF('DF raw data'!P137="","",'DF raw data'!P137) -> -1.97629e-05 | F132: -1.834324362e-05 | G132: 0.0001743029197 | H132: -1.985973821e-05 | J132: -0.0008058341712 | K132: -0.01473747212 | L132: 0.006368421103 | M132: 0.1148175899 | N132: 0.0004996377543
A133: =IF('DF raw data'!M138="","",'DF raw data'!M138) -> -264.5 | B133: =IF('DF raw data'!N138="","",'DF raw data'!N138) -> -2.20409e-05 | C133: =IF('DF raw data'!O138="","",'DF raw data'!O138) -> 0.000179335 | D133: =IF('DF raw data'!P138="","",'DF raw data'!P138) -> -1.19598e-05 | F133: -2.214890041e-05 | G133: 0.0001802137415 | H133: -1.201840302e-05 | J133: -0.0008169086214 | K133: -0.01514592643 | L133: 0.006458527974 | M133: 0.1180468538 | N133: 0.0005208277159
A134: =IF('DF raw data'!M139="","",'DF raw data'!M139) -> -264 | B134: =IF('DF raw data'!N139="","",'DF raw data'!N139) -> -1.28064e-05 | C134: =IF('DF raw data'!O139="","",'DF raw data'!O139) -> 0.00018174 | D134: =IF('DF raw data'!P139="","",'DF raw data'!P139) -> -2.06796e-05 | F134: -1.286915136e-05 | G134: 0.000182630526 | H134: -2.078093004e-05 | J134: -0.0008233431971 | K134: -0.01555759803 | L134: 0.006549843237 | M134: 0.1213217755 | N134: 0.0005426168861
A135: =IF('DF raw data'!M140="","",'DF raw data'!M140) -> -263.5 | B135: =IF('DF raw data'!N140="","",'DF raw data'!N140) -> -1.90268e-05 | C135: =IF('DF raw data'!O140="","",'DF raw data'!O140) -> 0.000186625 | D135: =IF('DF raw data'!P140="","",'DF raw data'!P140) -> -1.5063e-05 | F135: -1.912003132e-05 | G135: 0.0001875394625 | H135: -1.51368087e-05 | J135: -0.0008329032128 | K135: -0.01597404963 | L135: 0.006643612968 | M135: 0.124643582 | N135: 0.0005650325466
A136: =IF('DF raw data'!M141="","",'DF raw data'!M141) -> -263 | B136: =IF('DF raw data'!N141="","",'DF raw data'!N141) -> -2.29983e-05 | C136: =IF('DF raw data'!O141="","",'DF raw data'!O141) -> 0.000191469 | D136: =IF('DF raw data'!P141="","",'DF raw data'!P141) -> -1.63916e-05 | F136: -2.311099167e-05 | G136: 0.0001924071981 | H136: -1.647191884e-05 | J136: -0.0008444587086 | K136: -0.01639627899 | L136: 0.006739816567 | M136: 0.1280134902 | N136: 0.0005881016656
A137: =IF('DF raw data'!M142="","",'DF raw data'!M142) -> -262.5 | B137: =IF('DF raw data'!N142="","",'DF raw data'!N142) -> -2.37661e-05 | C137: =IF('DF raw data'!O142="","",'DF raw data'!O142) -> 0.000190342 | D137: =IF('DF raw data'!P142="","",'DF raw data'!P142) -> -1.95758e-05 | F137: -2.388255389e-05 | G137: 0.0001912746758 | H137: -1.967172142e-05 | J137: -0.0008563999856 | K137: -0.01682447898 | L137: 0.006835453905 | M137: 0.1314312172 | N137: 0.0006118300911
A138: =IF('DF raw data'!M143="","",'DF raw data'!M143) -> -262 | B138: =IF('DF raw data'!N143="","",'DF raw data'!N143) -> -2.41459e-05 | C138: =IF('DF raw data'!O143="","",'DF raw data'!O143) -> 0.000179636 | D138: =IF('DF raw data'!P143="","",'DF raw data'!P143) -> -2.55671e-05 | F138: -2.426421491e-05 | G138: 0.0001805162164 | H138: -2.569237879e-05 | J138: -0.000868532093 | K138: -0.01725874503 | L138: 0.006925712013 | M138: 0.1348940732 | N138: 0.0006361900085
A139: =IF('DF raw data'!M144="","",'DF raw data'!M144) -> -261.5 | B139: =IF('DF raw data'!N144="","",'DF raw data'!N144) -> -1.62031e-05 | C139: =IF('DF raw data'!O144="","",'DF raw data'!O144) -> 0.00018381 | D139: =IF('DF raw data'!P144="","",'DF raw data'!P144) -> -2.12294e-05 | F139: -1.628249519e-05 | G139: 0.000184710669 | H139: -2.133342406e-05 | J139: -0.0008766733406 | K139: -0.0176970817 | L139: 0.007018067348 | M139: 0.1384031069 | N139: 0.0006612009213
A140: =IF('DF raw data'!M145="","",'DF raw data'!M145) -> -261 | B140: =IF('DF raw data'!N145="","",'DF raw data'!N145) -> -1.428e-05 | C140: =IF('DF raw data'!O145="","",'DF raw data'!O145) -> 0.000185697 | D140: =IF('DF raw data'!P145="","",'DF raw data'!P145) -> -2.14077e-05 | F140: -1.4349972e-05 | G140: 0.0001866069153 | H140: -2.151259773e-05 | J140: -0.0008838483266 | K140: -0.01813900586 | L140: 0.007111370805 | M140: 0.1419587923 | N140: 0.0006868773126
A141: =IF('DF raw data'!M146="","",'DF raw data'!M146) -> -260.5 | B141: =IF('DF raw data'!N146="","",'DF raw data'!N146) -> -2.51753e-05 | C141: =IF('DF raw data'!O146="","",'DF raw data'!O146) -> 0.000180093 | D141: =IF('DF raw data'!P146="","",'DF raw data'!P146) -> -2.03671e-05 | F141: -2.529865897e-05 | G141: 0.0001809754557 | H141: -2.046689879e-05 | J141: -0.0008964976561 | K141: -0.01858725469 | L141: 0.007201858533 | M141: 0.1455597215 | N141: 0.0007132125497
A142: =IF('DF raw data'!M147="","",'DF raw data'!M147) -> -260 | B142: =IF('DF raw data'!N147="","",'DF raw data'!N147) -> -2.82539e-05 | C142: =IF('DF raw data'!O147="","",'DF raw data'!O147) -> 0.000187582 | D142: =IF('DF raw data'!P147="","",'DF raw data'!P147) -> -1.53346e-05 | F142: -2.839234411e-05 | G142: 0.0001885011518 | H142: -1.540973954e-05 | J142: -0.0009106938282 | K142: -0.0190426016 | L142: 0.007296109109 | M142: 0.1492077761 | N142: 0.0007402438354
A143: =IF('DF raw data'!M148="","",'DF raw data'!M148) -> -259.5 | B143: =IF('DF raw data'!N148="","",'DF raw data'!N148) -> -1.65268e-05 | C143: =IF('DF raw data'!O148="","",'DF raw data'!O148) -> 0.000193933 | D143: =IF('DF raw data'!P148="","",'DF raw data'!P148) -> -1.61432e-05 | F143: -1.660778132e-05 | G143: 0.0001948832717 | H143: -1.622230168e-05 | J143: -0.0009189977188 | K143: -0.01950210046 | L143: 0.007393550745 | M143: 0.1529045515 | N143: 0.0007679984102
A144: =IF('DF raw data'!M149="","",'DF raw data'!M149) -> -259 | B144: =IF('DF raw data'!N149="","",'DF raw data'!N149) -> -2.57574e-05 | C144: =IF('DF raw data'!O149="","",'DF raw data'!O149) -> 0.000189417 | D144: =IF('DF raw data'!P149="","",'DF raw data'!P149) -> -1.1193e-05 | F144: -2.588361126e-05 | G144: 0.0001903451433 | H144: -1.12478457e-05 | J144: -0.0009319395244 | K144: -0.01996807022 | L144: 0.007488723317 | M144: 0.1566489131 | N144: 0.0007964731542
